Workbook

Sheet INVOICE 1
A1: STATE OF CALIFORNIA | N1: Purchase Authority | O1: BSCC 5227
A2: BOARD OF STATE AND COMMUNITY CORRECTIONS | N2: Purchase Order: | O2: 5227-0000001874
A3: Financial Invoice Form: BSCC 201 (Revised 04/2020)
A5: Program: | B5: CalVIP-17 | M5: Please Note: The California State Controller's Office will send all checks directly to the address listed in the "BSCC Vendor Data" section at the bottom of this invoice.
A7: Grantee: | B7: Young Visionaries Youth Leadership Academy | G7: Lead Public Agency: | I7: Young Visionaries Youth Leadership Academy
A9: Contract #: | B9: 864-17 | E9: Term: | F9: 2018-05-01 | G9: TO | I9: 2021-08-16 | N9: Invoicing Frequency | O9: Monthly
A11: Invoice #: | B11: 1 CALVIP 17 | E11: Reporting Period: | F11: 2018-05-01 | G11: TO | I11: 2018-05-31 | J11: Due: | K11: 2018-07-15 | N11: Final Invoice (Y/N): | O11: No
A13: Line Items | B13: Budget | F13: Prior Expenditures | J13: This Reporting Period | N13: Balance
B14: Grant Funds | C14: Cash Match | D14: In-kind Match | E14: TOTAL | F14: Grant Funds | G14: Cash Match | H14: In-kind Match | I14: TOTAL | J14: Grant Funds | K14: Cash Match | L14: In-kind Match | M14: TOTAL | N14: Grant Funds | O14: Cash Match | P14: In-kind Match | Q14: TOTAL
A15: Salaries & Benefits | B15: 386718 | C15: 261000 | D15: 109000 | E15: 756718 | F15: 0 | G15: 0 | H15: 0 | I15: =SUM(F15:H15) -> 0 | J15: 0 | K15: 0 | L15: 0 | M15: =SUM(J15:L15) -> 0 | N15: =B15-F15-J15 -> 386718 | O15: =C15-G15-K15 -> 261000 | P15: 109000 | Q15: =SUM(N15:P15) -> 756718
A16: Services & Supplies | B16: 21282 | C16: 51328 | D16: 0 | E16: 72610 | F16: 0 | G16: 0 | H16: 0 | I16: =SUM(F16:H16) -> 0 | J16: 0 | K16: 0 | L16: 0 | M16: =SUM(J16:L16) -> 0 | N16: 21282 | O16: 51328 | P16: 0 | Q16: =SUM(N16:P16) -> 72610
A17: Prof Services / Public Agency Subcontracts | B17: 40000 | C17: 40000 | D17: 0 | E17: 80000 | F17: 0 | G17: 0 | H17: 0 | I17: 0 | J17: 0 | K17: 0 | L17: 0 | M17: 0 | N17: 40000 | O17: 40000 | P17: 0 | Q17: 80000
A18: CBO Subcontracts | B18: 0 | C18: 0 | D18: 0 | E18: 0 | F18: 0 | G18: 0 | H18: 0 | I18: 0 | J18: 0 | K18: 0 | L18: 0 | M18: 0 | N18: 0 | O18: 0 | P18: 0 | Q18: 0
A19: Indirect Costs | B19: 0 | C19: 38672 | D19: 0 | E19: 38672 | F19: 0 | G19: 0 | H19: 0 | I19: 0 | J19: 0 | K19: 0 | L19: 0 | M19: 0 | N19: 0 | O19: 38672 | P19: 0 | Q19: 38672
A20: Equip/Fixed Assets | B20: 0 | C20: 0 | D20: 0 | E20: 0 | F20: 0 | G20: 0 | H20: 0 | I20: 0 | J20: 0 | K20: 0 | L20: 0 | M20: 0 | N20: 0 | O20: 0 | P20: 0 | Q20: 0
A21: Project Evaluation | B21: 50000 | C21: 0 | D21: 0 | E21: 50000 | F21: 0 | G21: 0 | H21: 0 | I21: 0 | J21: 0 | K21: 0 | L21: 0 | M21: 0 | N21: 50000 | O21: 0 | P21: 0 | Q21: 50000
A22: Other (Travel, Training, etc) | B22: 2000 | C22: 0 | D22: 0 | E22: 2000 | F22: 0 | G22: 0 | H22: 0 | I22: 0 | J22: 272 | K22: 0 | L22: 0 | M22: 272 | N22: 1728 | O22: 0 | P22: 0 | Q22: 1728
A23: TOTAL | B23: 500000 | C23: 391000 | D23: 109000 | E23: 1000000 | F23: =SUM(F15:F22) -> 0 | G23: 0 | H23: 0 | I23: 0 | J23: 272 | K23: 0 | L23: 0 | M23: 272 | N23: 499728 | O23: 391000 | P23: 109000 | Q23: 999728
A25: Project Income | D25: Income reported to date | E25: =L25 -> 0 | H25: Prior allocated income | I25: 0 | K25: This Period | L25: 0 | P25: Unallocated income balance | Q25: =E25-I25 -> 0
C27: Grant funds expended to date: | E27: =SUM(F23,J23) -> 272 | I27: Grant funds claimed this period: | J27: =J23 -> 272 | O27: Percentage Grant $$ expended to date: | Q27: =E27/B23 -> 0.000544
C28: Cash match to date: | E28: =SUM(G23,K23) -> 0 | O28: % of Total Obligated Cash Match to date: | Q28: =E28/C23 -> 0
C29: In-kind match to date: | E29: =SUM(H23,L23) -> 0 | O29: % of Total Obligated In-kind Match to date: | Q29: =E29/D23 -> 0
E31: Expenditure Descriptions - Units / $ Amounts | O31: Comments
A32: Salaries & Benefits | B32: Grant Funds | D32: =J15 -> 0
B33: Cash Match | D33: =K15 -> 0
B34: In-kind Match | D34: =L15 -> 0
A35: Services & Supplies | B35: Grant Funds | D35: =J16 -> 0
B36: Cash Match | D36: =K16 -> 0
B37: In-kind Match | D37: =L16 -> 0
A38: Prof Services / Public Agency Subcontracts | B38: Grant Funds | D38: =J17 -> 0
B39: Cash Match | D39: =K17 -> 0
B40: In-kind Match | D40: =L17 -> 0
A41: CBO Subcontracts | B41: Grant Funds | D41: =J18 -> 0
B42: Cash Match | D42: =K18 -> 0
B43: In-kind Match | D43: =L18 -> 0
A44: Indirect Cost | B44: Grant Funds | D44: =J19 -> 0
B45: Cash Match | D45: =K19 -> 0
B46: In-kind Match | D46: =L19 -> 0
A47: Equipment Fixed Assets | B47: Grant Funds | D47: =J20 -> 0
B48: Cash Match | D48: =K20 -> 0
B49: In-kind Match | D49: =L20 -> 0
A50: Project Evaluation | B50: Grant Funds | D50: =J21 -> 0
B51: Cash Match | D51: =K21 -> 0
B52: In-kind Match | D52: =L21 -> 0
A53: Other | B53: Grant Funds | D53: =J22 -> 272 | E53: Sacramento Conference Flight Expense $271.96
B54: Cash Match | D54: =K22 -> 0
B55: In-kind Match | D55: =L22 -> 0
A56: Project Income | D56: =Q25 -> 0
A57: PERSON PREPARING REPORT | F57: AUTHORIZED FINANCIAL OFFICER | N57: BSCC Supplier Data - Internal Use Only
F58: By checking the box below, I hereby certify that I am the authorized financial officer of the herein named agency. I further certify that I have not violated any of the provisions of Section 1090 of the Government Code in incurring the expenditures reported in this invoice, nor in any other way; that Sections 1090 through 1096 of the Government Code will not be violated in any way in the expenditure of funds pursuant to this invoice; that statement of funds above is true, correct, and in accordance with program provisions in all respects; and that all expenditures submitted after the expiration date of this contract are for the purpose of substantiating obligations legally incurred during the contract period. Furthermore, by submitting this invoice, I acknowledge that it must adhere to all of the requirements in the BSCC Grant Administration Guide, including any updates to the Guide during the term of the grant agreement.
A59: Jennifer Rosales, Office Manager
A60: Name, Title | N60: 0000102062
A61: 909-723-1695 | N61: Supplier ID
A62: Phone | N62: YOUNG VISIONARIES YOUTH LEADERSHIP ACADEMY
A63: rosalesj129@yvyla-ie.org | N63: Supplier Name
A64: Email | N64: 696 S TIPPECANOE AVE
A65: 2018-10-18 | N65: Address Line 1
A66: Date | N66: SAN BERNARDINO, CA 92408
F68: Terrance Stone, CEO/President
F69: Name, Title
F70: 909-723-1694
F71: Phone
F72: 2018-10-18
F73: Date
A75: BSCC USE ONLY
A76: Date Received: | C76: 2018-10-18 | I76: Approved By: | K76: Colleen Curtin | O76: Date:
K77: BSCC Field Representative

Sheet INVOICE 2
A1: STATE OF CALIFORNIA | N1: Purchase Authority | O1: BSCC 5227
A2: BOARD OF STATE AND COMMUNITY CORRECTIONS | N2: Purchase Order: | O2: 5227-0000001874 | Q2: ='INVOICE 1'!Q2 -> 0
A3: Financial Invoice Form: BSCC 201 (Revised 04/2020)
A5: Program: | B5: ='INVOICE 1'!B5 -> CalVIP-17 | M5: Please Note: The California State Controller's Office will send all checks directly to the address listed in the "BSCC Vendor Data" section at the bottom of this invoice.
A7: Grantee: | B7: ='INVOICE 1'!B7 -> Young Visionaries Youth Leadership Academy | G7: Lead Public Agency: | I7: ='INVOICE 1'!I7 -> Young Visionaries Youth Leadership Academy
A9: Contract #: | B9: ='INVOICE 1'!B9 -> 864-17 | E9: Term: | F9: ='INVOICE 1'!F9 -> 2018-05-01 | G9: TO | I9: ='INVOICE 1'!I9 -> 2021-08-16 | N9: Invoicing Frequency | O9: ='INVOICE 1'!O9 -> Monthly
A11: Invoice #: | B11: 2 CALVIP 18 | E11: Reporting Period: | F11: 2018-06-01 | G11: TO | I11: 2018-06-30 | J11: Due: | K11: 2018-08-15 | N11: Final Invoice (Y/N): | O11: No
A13: Line Items | B13: Budget | F13: Prior Expenditures | J13: This Reporting Period | N13: Balance
B14: Grant Funds | C14: Cash Match | D14: In-kind Match | E14: TOTAL | F14: Grant Funds | G14: Cash Match | H14: In-kind Match | I14: TOTAL | J14: Grant Funds | K14: Cash Match | L14: In-kind Match | M14: TOTAL | N14: Grant Funds | O14: Cash Match | P14: In-kind Match | Q14: TOTAL
A15: ='INVOICE 1'!A15 -> Salaries & Benefits | B15: ='INVOICE 1'!B15 -> 386718 | C15: ='INVOICE 1'!C15 -> 261000 | D15: ='INVOICE 1'!D15 -> 109000 | E15: =SUM(B15:D15) -> 756718 | F15: =SUM('INVOICE 1'!F15,'INVOICE 1'!J15) -> 0 | G15: =SUM('INVOICE 1'!G15,'INVOICE 1'!K15) -> 0 | H15: =SUM('INVOICE 1'!H15,'INVOICE 1'!L15) -> 0 | I15: =SUM(F15:H15) -> 0 | J15: 0 | K15: 0 | L15: 0 | M15: =SUM(J15:L15) -> 0 | N15: =B15-F15-J15 -> 386718 | O15: 261000 | P15: 109000 | Q15: =SUM(N15:P15) -> 756718
A16: ='INVOICE 1'!A16 -> Services & Supplies | B16: ='INVOICE 1'!B16 -> 21282 | C16: ='INVOICE 1'!C16 -> 51328 | D16: ='INVOICE 1'!D16 -> 0 | E16: =SUM(B16:D16) -> 72610 | F16: =SUM('INVOICE 1'!F16,'INVOICE 1'!J16) -> 0 | G16: =SUM('INVOICE 1'!G16,'INVOICE 1'!K16) -> 0 | H16: =SUM('INVOICE 1'!H16,'INVOICE 1'!L16) -> 0 | I16: =SUM(F16:H16) -> 0 | J16: 0 | K16: 0 | L16: 0 | M16: =SUM(J16:L16) -> 0 | N16: 21282 | O16: 51328 | P16: 0 | Q16: =SUM(N16:P16) -> 72610
A17: ='INVOICE 1'!A17 -> Prof Services / Public Agency Subcontracts | B17: ='INVOICE 1'!B17 -> 40000 | C17: ='INVOICE 1'!C17 -> 40000 | D17: ='INVOICE 1'!D17 -> 0 | E17: 80000 | F17: =SUM('INVOICE 1'!F17,'INVOICE 1'!J17) -> 0 | G17: =SUM('INVOICE 1'!G17,'INVOICE 1'!K17) -> 0 | H17: =SUM('INVOICE 1'!H17,'INVOICE 1'!L17) -> 0 | I17: 0 | J17: 0 | K17: 0 | L17: 0 | M17: 0 | N17: 40000 | O17: 40000 | P17: 0 | Q17: 80000
A18: ='INVOICE 1'!A18 -> CBO Subcontracts | B18: ='INVOICE 1'!B18 -> 0 | C18: ='INVOICE 1'!C18 -> 0 | D18: ='INVOICE 1'!D18 -> 0 | E18: 0 | F18: =SUM('INVOICE 1'!F18,'INVOICE 1'!J18) -> 0 | G18: =SUM('INVOICE 1'!G18,'INVOICE 1'!K18) -> 0 | H18: =SUM('INVOICE 1'!H18,'INVOICE 1'!L18) -> 0 | I18: 0 | J18: 0 | K18: 0 | L18: 0 | M18: 0 | N18: 0 | O18: 0 | P18: 0 | Q18: 0
A19: ='INVOICE 1'!A19 -> Indirect Costs | B19: ='INVOICE 1'!B19 -> 0 | C19: ='INVOICE 1'!C19 -> 38672 | D19: ='INVOICE 1'!D19 -> 0 | E19: 38672 | F19: =SUM('INVOICE 1'!F19,'INVOICE 1'!J19) -> 0 | G19: =SUM('INVOICE 1'!G19,'INVOICE 1'!K19) -> 0 | H19: =SUM('INVOICE 1'!H19,'INVOICE 1'!L19) -> 0 | I19: 0 | J19: 0 | K19: 0 | L19: 0 | M19: 0 | N19: 0 | O19: 38672 | P19: 0 | Q19: 38672
A20: ='INVOICE 1'!A20 -> Equip/Fixed Assets | B20: ='INVOICE 1'!B20 -> 0 | C20: ='INVOICE 1'!C20 -> 0 | D20: ='INVOICE 1'!D20 -> 0 | E20: 0 | F20: =SUM('INVOICE 1'!F20,'INVOICE 1'!J20) -> 0 | G20: =SUM('INVOICE 1'!G20,'INVOICE 1'!K20) -> 0 | H20: =SUM('INVOICE 1'!H20,'INVOICE 1'!L20) -> 0 | I20: 0 | J20: 0 | K20: 0 | L20: 0 | M20: 0 | N20: 0 | O20: 0 | P20: 0 | Q20: 0
A21: ='INVOICE 1'!A21 -> Project Evaluation | B21: ='INVOICE 1'!B21 -> 50000 | C21: ='INVOICE 1'!C21 -> 0 | D21: ='INVOICE 1'!D21 -> 0 | E21: 50000 | F21: =SUM('INVOICE 1'!F21,'INVOICE 1'!J21) -> 0 | G21: =SUM('INVOICE 1'!G21,'INVOICE 1'!K21) -> 0 | H21: =SUM('INVOICE 1'!H21,'INVOICE 1'!L21) -> 0 | I21: 0 | J21: 0 | K21: 0 | L21: 0 | M21: 0 | N21: 50000 | O21: 0 | P21: 0 | Q21: 50000
A22: ='INVOICE 1'!A22 -> Other (Travel, Training, etc) | B22: ='INVOICE 1'!B22 -> 2000 | C22: ='INVOICE 1'!C22 -> 0 | D22: ='INVOICE 1'!D22 -> 0 | E22: 2000 | F22: =SUM('INVOICE 1'!F22,'INVOICE 1'!J22) -> 272 | G22: =SUM('INVOICE 1'!G22,'INVOICE 1'!K22) -> 0 | H22: =SUM('INVOICE 1'!H22,'INVOICE 1'!L22) -> 0 | I22: 272 | J22: 330 | K22: 0 | L22: 0 | M22: 330 | N22: 1398 | O22: 0 | P22: 0 | Q22: 1398
A23: TOTAL | B23: =SUM(B15:B22) -> 500000 | C23: =SUM(C15:C22) -> 391000 | D23: =SUM(D15:D22) -> 109000 | E23: =SUM(E15:E22) -> 1000000 | F23: =SUM(F15:F22) -> 272 | G23: 0 | H23: 0 | I23: 272 | J23: 330 | K23: =SUM(K15:K22) -> 0 | L23: =SUM(L15:L22) -> 0 | M23: =SUM(M15:M22) -> 330 | N23: 499398 | O23: 391000 | P23: 109000 | Q23: 999398
A25: Project Income | D25: Income reported to date | E25: ='INVOICE 1'!E25+'INVOICE 2'!L25 -> 0 | H25: Prior allocated income | I25: 0 | K25: This Period | L25: 0 | P25: Unallocated income balance | Q25: =E25-I25 -> 0
C27: Grant funds expended to date: | E27: =SUM(F23,J23) -> 602 | I27: Grant funds claimed this period: | J27: =J23 -> 330 | O27: Percentage Grant $$ expended to date: | Q27: =E27/B23 -> 0.001204
C28: Cash match to date: | E28: =SUM(G23,K23) -> 0 | O28: % of Total Obligated Cash Match to date: | Q28: =E28/C23 -> 0
C29: In-kind match to date: | E29: =SUM(H23,L23) -> 0 | O29: % of Total Obligated In-kind Match to date: | Q29: =E29/D23 -> 0
E31: Expenditure Descriptions - Units / $ Amounts | O31: Comments
A32: Salaries & Benefits | B32: Grant Funds | D32: =J15 -> 0
B33: Cash Match | D33: =K15 -> 0
B34: In-kind Match | D34: =L15 -> 0
A35: Services & Supplies | B35: Grant Funds | D35: =J16 -> 0
B36: Cash Match | D36: =K16 -> 0
B37: In-kind Match | D37: =L16 -> 0
A38: Prof Services / Public Agency Subcontracts | B38: Grant Funds | D38: =-J17 -> 0
B39: Cash Match | D39: =K17 -> 0
B40: In-kind Match | D40: =L17 -> 0
A41: CBO Subcontracts | B41: Grant Funds | D41: =J18 -> 0
B42: Cash Match | D42: =K18 -> 0
B43: In-kind Match | D43: =L18 -> 0
A44: Indirect Cost | B44: Grant Funds | D44: =J19 -> 0
B45: Cash Match | D45: =K19 -> 0
B46: In-kind Match | D46: =L19 -> 0
A47: Equipment Fixed Assets | B47: Grant Funds | D47: =J20 -> 0
B48: Cash Match | D48: =K20 -> 0
B49: In-kind Match | D49: =-L20 -> 0
A50: Project Evaluation | B50: Grant Funds | D50: =J21 -> 0
B51: Cash Match | D51: =K21 -> 0
B52: In-kind Match | D52: =L21 -> 0
A53: Other | B53: Grant Funds | D53: =J22 -> 330 | E53: Sacramento Conference Travel Expenses Parking Fee $48 Hotel $153.02 Food $78.02 Transportation $51.11
B54: Cash Match | D54: =K22 -> 0
B55: In-kind Match | D55: =L22 -> 0
A56: Project Income | D56: =M25 -> 0
A57: PERSON PREPARING REPORT | F57: AUTHORIZED FINANCIAL OFFICER | N57: BSCC Supplier Data - Internal Use Only
F58: By checking the box below, I hereby certify that I am the authorized financial officer of the herein named agency. I further certify that I have not violated any of the provisions of Section 1090 of the Government Code in incurring the expenditures reported in this invoice, nor in any other way; that Sections 1090 through 1096 of the Government Code will not be violated in any way in the expenditure of funds pursuant to this invoice; that statement of funds above is true, correct, and in accordance with program provisions in all respects; and that all expenditures submitted after the expiration date of this contract are for the purpose of substantiating obligations legally incurred during the contract period. Furthermore, by submitting this invoice, I acknowledge that it must adhere to all of the requirements in the BSCC Grant Administration Guide, including any updates to the Guide during the term of the grant agreement.
A59: Jennifer Rosales, Office Manager
A60: Name, Title | N60: 0000102062
A61: 909-723-1695 | N61: Supplier ID
A62: Phone | N62: YOUNG VISIONARIES YOUTH LEADERSHIP ACADEMY
A63: rosalesj129@yvyla-ie.org | N63: Supplier Name
A64: Email | N64: 696 S TIPPECANOE AVE
A65: 2018-10-18 | N65: Address Line 1
A66: Date | N66: SAN BERNARDINO, CA 92408
F68: Terrance Stone, CEO/President
F69: Name, Title
F70: 909-723-1694
F71: Phone
F72: 2018-10-18
F73: Date
A75: BSCC USE ONLY
A76: Date Received: | C76: 2020-10-18 | I76: Approved By: | K76: Colleen Curtin | O76: Date:
K77: BSCC Field Representative

Sheet INVOICE 3
A1: STATE OF CALIFORNIA | N1: Purchase Authority | O1: BSCC 5227
A2: BOARD OF STATE AND COMMUNITY CORRECTIONS | N2: Purchase Order: | O2: 5227-0000001874 | Q2: ='INVOICE 1'!Q2 -> 0
A3: Financial Invoice Form: BSCC 201 (Revised 04/2020)
A5: Program: | B5: ='INVOICE 1'!B5 -> CalVIP-17 | M5: Please Note: The California State Controller's Office will send all checks directly to the address listed in the "BSCC Vendor Data" section at the bottom of this invoice.
A7: Grantee: | B7: ='INVOICE 1'!B7 -> Young Visionaries Youth Leadership Academy | G7: Lead Public Agency: | I7: ='INVOICE 1'!I7 -> Young Visionaries Youth Leadership Academy
A9: Contract #: | B9: ='INVOICE 1'!B9 -> 864-17 | E9: Term: | F9: ='INVOICE 1'!F9 -> 2018-05-01 | G9: TO | I9: ='INVOICE 1'!I9 -> 2021-08-16 | N9: Invoicing Frequency | O9: ='INVOICE 1'!O9 -> Monthly
A11: Invoice #: | B11: 3 CALVIP 18 | E11: Reporting Period: | F11: 2018-07-01 | G11: TO | I11: 2018-07-31 | J11: Due: | K11: 2018-09-15 | N11: Final Invoice (Y/N): | O11: No
A13: Line Items | B13: Budget | F13: Prior Expenditures | J13: 1 | N13: Balance
B14: Grant Funds | C14: Cash Match | D14: In-kind Match | E14: TOTAL | F14: Grant Funds | G14: Cash Match | H14: In-kind Match | I14: TOTAL | J14: Grant Funds | K14: Cash Match | L14: In-kind Match | M14: TOTAL | N14: Grant Funds | O14: Cash Match | P14: In-kind Match | Q14: TOTAL
A15: ='INVOICE 1'!A15 -> Salaries & Benefits | B15: ='INVOICE 2'!B15 -> 386718 | C15: ='INVOICE 2'!C15 -> 261000 | D15: ='INVOICE 2'!D15 -> 109000 | E15: =SUM(B15:D15) -> 756718 | F15: =SUM('INVOICE 2'!F15,'INVOICE 2'!J15) -> 0 | G15: =SUM('INVOICE 2'!G15,'INVOICE 2'!K15) -> 0 | H15: =SUM('INVOICE 2'!H15,'INVOICE 2'!L15) -> 0 | I15: =SUM(F15:H15) -> 0 | J15: 1801 | K15: 8540 | L15: 2575 | M15: =SUM(J15:L15) -> 12916 | N15: =B15-F15-J15 -> 384917 | O15: 252460 | P15: 106425 | Q15: =SUM(N15:P15) -> 743802
A16: ='INVOICE 1'!A16 -> Services & Supplies | B16: ='INVOICE 2'!B16 -> 21282 | C16: ='INVOICE 2'!C16 -> 51328 | D16: ='INVOICE 2'!D16 -> 0 | E16: =SUM(B16:D16) -> 72610 | F16: =SUM('INVOICE 2'!F16,'INVOICE 2'!J16) -> 0 | G16: =SUM('INVOICE 2'!G16,'INVOICE 2'!K16) -> 0 | H16: =SUM('INVOICE 2'!H16,'INVOICE 2'!L16) -> 0 | I16: =SUM(F16:H16) -> 0 | J16: 4000 | K16: 231 | L16: 0 | M16: =SUM(J16:L16) -> 4231 | N16: 17282 | O16: 51097 | P16: 0 | Q16: =SUM(N16:P16) -> 68379
A17: ='INVOICE 1'!A17 -> Prof Services / Public Agency Subcontracts | B17: ='INVOICE 2'!B17 -> 40000 | C17: ='INVOICE 2'!C17 -> 40000 | D17: ='INVOICE 2'!D17 -> 0 | E17: 80000 | F17: =SUM('INVOICE 2'!F17,'INVOICE 2'!J17) -> 0 | G17: =SUM('INVOICE 2'!G17,'INVOICE 2'!K17) -> 0 | H17: =SUM('INVOICE 2'!H17,'INVOICE 2'!L17) -> 0 | I17: 0 | J17: 0 | K17: 0 | L17: 0 | M17: 0 | N17: 40000 | O17: 40000 | P17: 0 | Q17: 80000
A18: ='INVOICE 1'!A18 -> CBO Subcontracts | B18: ='INVOICE 2'!B18 -> 0 | C18: ='INVOICE 2'!C18 -> 0 | D18: ='INVOICE 2'!D18 -> 0 | E18: 0 | F18: =SUM('INVOICE 2'!F18,'INVOICE 2'!J18) -> 0 | G18: =SUM('INVOICE 2'!G18,'INVOICE 2'!K18) -> 0 | H18: =SUM('INVOICE 2'!H18,'INVOICE 2'!L18) -> 0 | I18: 0 | J18: 0 | K18: 0 | L18: 0 | M18: 0 | N18: 0 | O18: 0 | P18: 0 | Q18: 0
A19: ='INVOICE 1'!A19 -> Indirect Costs | B19: ='INVOICE 2'!B19 -> 0 | C19: ='INVOICE 2'!C19 -> 38672 | D19: ='INVOICE 2'!D19 -> 0 | E19: 38672 | F19: =SUM('INVOICE 2'!F19,'INVOICE 2'!J19) -> 0 | G19: =SUM('INVOICE 2'!G19,'INVOICE 2'!K19) -> 0 | H19: =SUM('INVOICE 2'!H19,'INVOICE 2'!L19) -> 0 | I19: 0 | J19: 0 | K19: 180 | L19: 0 | M19: 180 | N19: 0 | O19: 38492 | P19: 0 | Q19: 38492
A20: ='INVOICE 1'!A20 -> Equip/Fixed Assets | B20: ='INVOICE 2'!B20 -> 0 | C20: ='INVOICE 2'!C20 -> 0 | D20: ='INVOICE 2'!D20 -> 0 | E20: 0 | F20: =SUM('INVOICE 2'!F20,'INVOICE 2'!J20) -> 0 | G20: =SUM('INVOICE 2'!G20,'INVOICE 2'!K20) -> 0 | H20: =SUM('INVOICE 2'!H20,'INVOICE 2'!L20) -> 0 | I20: 0 | J20: 0 | K20: 0 | L20: 0 | M20: 0 | N20: 0 | O20: 0 | P20: 0 | Q20: 0
A21: ='INVOICE 1'!A21 -> Project Evaluation | B21: ='INVOICE 2'!B21 -> 50000 | C21: ='INVOICE 2'!C21 -> 0 | D21: ='INVOICE 2'!D21 -> 0 | E21: 50000 | F21: =SUM('INVOICE 2'!F21,'INVOICE 2'!J21) -> 0 | G21: =SUM('INVOICE 2'!G21,'INVOICE 2'!K21) -> 0 | H21: =SUM('INVOICE 2'!H21,'INVOICE 2'!L21) -> 0 | I21: 0 | J21: 0 | K21: 0 | L21: 0 | M21: 0 | N21: 50000 | O21: 0 | P21: 0 | Q21: 50000
A22: ='INVOICE 1'!A22 -> Other (Travel, Training, etc) | B22: ='INVOICE 2'!B22 -> 2000 | C22: ='INVOICE 2'!C22 -> 0 | D22: ='INVOICE 2'!D22 -> 0 | E22: 2000 | F22: =SUM('INVOICE 2'!F22,'INVOICE 2'!J22) -> 602 | G22: =SUM('INVOICE 2'!G22,'INVOICE 2'!K22) -> 0 | H22: =SUM('INVOICE 2'!H22,'INVOICE 2'!L22) -> 0 | I22: 602 | J22: 0 | K22: 0 | L22: 0 | M22: 0 | N22: 1398 | O22: 0 | P22: 0 | Q22: 1398
A23: TOTAL | B23: =SUM(B15:B22) -> 500000 | C23: =SUM(C15:C22) -> 391000 | D23: =SUM(D15:D22) -> 109000 | E23: =SUM(E15:E22) -> 1000000 | F23: =SUM(F15:F22) -> 602 | G23: 0 | H23: 0 | I23: 602 | J23: 5801 | K23: =SUM(K15:K22) -> 8951 | L23: =SUM(L15:L22) -> 2575 | M23: =SUM(M15:M22) -> 17327 | N23: 493597 | O23: 382049 | P23: 106425 | Q23: 982071
A25: Project Income | D25: Income reported to date | E25: ='INVOICE 1'!E25+'INVOICE 3'!L25 -> 0 | H25: Prior allocated income | I25: 0 | K25: This Period | L25: 0 | P25: Unallocated income balance | Q25: =E25-I25 -> 0
C27: Grant funds expended to date: | E27: =SUM(F23,J23) -> 6403 | I27: Grant funds claimed this period: | J27: =J23 -> 5801 | O27: Percentage Grant $$ expended to date: | Q27: =E27/B23 -> 0.012806
C28: Cash match to date: | E28: =SUM(G23,K23) -> 8951 | O28: % of Total Obligated Cash Match to date: | Q28: =E28/C23 -> 0.02289258312
C29: In-kind match to date: | E29: =SUM(H23,L23) -> 2575 | O29: % of Total Obligated In-kind Match to date: | Q29: =E29/D23 -> 0.02362385321
E31: Expenditure Descriptions - Units / $ Amounts | O31: Comments
A32: Salaries & Benefits | B32: Grant Funds | D32: =J15 -> 1801 | E32: Cognitive Life Skills Director 0.5 FTE $1,452 Drug & Alcohol Facilitator 0.5 FTE $349.80
B33: Cash Match | D33: =K15 -> 8540 | E33: Project Director 0.4 FTE $8,540 Mental Health Specialist 1 FTE $2,787.20 Academic Tutor 0.5 FTE $765 Drug & Alcohol Facilitator 0.5 FTE $283.50 | O33: Cash and In-kind Match expenditure description.
B34: In-kind Match | D34: =L15 -> 2575
A35: Services & Supplies | B35: Grant Funds | D35: =J16 -> 4000 | E35: NCTI Training for Staff $4,000 Scheduled for August 6-10 2018
B36: Cash Match | D36: =K16 -> 231 | E36: TonerPirate.com purchase ink for printing services $231.42
B37: In-kind Match | D37: =L16 -> 0
A38: Prof Services / Public Agency Subcontracts | B38: Grant Funds | D38: =-J17 -> 0
B39: Cash Match | D39: =K17 -> 0
B40: In-kind Match | D40: =L17 -> 0
A41: CBO Subcontracts | B41: Grant Funds | D41: =J18 -> 0
B42: Cash Match | D42: =K18 -> 0
B43: In-kind Match | D43: =L18 -> 0
A44: Indirect Cost | B44: Grant Funds | D44: =J19 -> 0
B45: Cash Match | D45: =K19 -> 180 | E45: Indirect cost at 10% direct salaries for personal and fringe
B46: In-kind Match | D46: =L19 -> 0
A47: Equipment Fixed Assets | B47: Grant Funds | D47: =J20 -> 0
B48: Cash Match | D48: =K20 -> 0
B49: In-kind Match | D49: =-L20 -> 0
A50: Project Evaluation | B50: Grant Funds | D50: =J21 -> 0
B51: Cash Match | D51: =K21 -> 0
B52: In-kind Match | D52: =L21 -> 0
A53: Other | B53: Grant Funds | D53: =J22 -> 0
B54: Cash Match | D54: =K22 -> 0
B55: In-kind Match | D55: =L22 -> 0
A56: Project Income | D56: =M25 -> 0
A57: PERSON PREPARING REPORT | F57: AUTHORIZED FINANCIAL OFFICER | N57: BSCC Supplier Data - Internal Use Only
F58: By checking the box below, I hereby certify that I am the authorized financial officer of the herein named agency. I further certify that I have not violated any of the provisions of Section 1090 of the Government Code in incurring the expenditures reported in this invoice, nor in any other way; that Sections 1090 through 1096 of the Government Code will not be violated in any way in the expenditure of funds pursuant to this invoice; that statement of funds above is true, correct, and in accordance with program provisions in all respects; and that all expenditures submitted after the expiration date of this contract are for the purpose of substantiating obligations legally incurred during the contract period. Furthermore, by submitting this invoice, I acknowledge that it must adhere to all of the requirements in the BSCC Grant Administration Guide, including any updates to the Guide during the term of the grant agreement.
A59: Jennifer Rosales, Office Manager | N59: 0000102062
A60: Name, Title | N60: Supplier ID
A61: 909-723-1695 | N61: YOUNG VISIONARIES YOUTH LEADERSHIP ACADEMY
A62: Phone | N62: Supplier Name
A63: rosalesj129@yvyla-ie.org | N63: 696 S TIPPECANOE AVE
A64: Email | N64: Address Line 1
A65: 2018-11-02 | N65: SAN BERNARDINO, CA 92408
A66: Date | N66: ='INVOICE 1'!N66:Q66 -> SAN BERNARDINO, CA 92408
F68: Terrance Stone, CEO/President
F69: Name, Title
F70: 909-910-7327
F71: Phone
F72: 2018-11-02
F73: Date
A75: BSCC USE ONLY
A76: Date Received: | C76: 2018-11-30 | I76: Approved By: | O76: Date:
K77: BSCC Field Representative

Sheet INVOICE 4
A1: STATE OF CALIFORNIA | N1: Purchase Authority | O1: BSCC 5227
A2: BOARD OF STATE AND COMMUNITY CORRECTIONS | N2: Purchase Order: | O2: 5227-0000001874 | Q2: ='INVOICE 1'!Q2 -> 0
A3: Financial Invoice Form: BSCC 201 (Revised 04/2020)
A5: Program: | B5: ='INVOICE 1'!B5 -> CalVIP-17 | M5: Please Note: The California State Controller's Office will send all checks directly to the address listed in the "BSCC Vendor Data" section at the bottom of this invoice.
A7: Grantee: | B7: ='INVOICE 1'!B7 -> Young Visionaries Youth Leadership Academy | G7: Lead Public Agency: | I7: ='INVOICE 1'!I7 -> Young Visionaries Youth Leadership Academy
A9: Contract #: | B9: ='INVOICE 1'!B9 -> 864-17 | E9: Term: | F9: ='INVOICE 1'!F9 -> 2018-05-01 | G9: TO | I9: ='INVOICE 1'!I9 -> 2021-08-16 | N9: Invoicing Frequency | O9: ='INVOICE 1'!O9 -> Monthly
A11: Invoice #: | B11: 4 CALVIP 18 | E11: Reporting Period: | F11: 2018-08-01 | G11: TO | I11: 2018-08-31 | J11: Due: | K11: 2018-10-15 | N11: Final Invoice (Y/N): | O11: No
A13: Line Items | B13: Budget | F13: Prior Expenditures | J13: This Reporting Period | N13: Balance
B14: Grant Funds | C14: Cash Match | D14: In-kind Match | E14: TOTAL | F14: Grant Funds | G14: Cash Match | H14: In-kind Match | I14: TOTAL | J14: Grant Funds | K14: Cash Match | L14: In-kind Match | M14: TOTAL | N14: Grant Funds | O14: Cash Match | P14: In-kind Match | Q14: TOTAL
A15: ='INVOICE 1'!A15 -> Salaries & Benefits | B15: ='INVOICE 3'!B15 -> 386718 | C15: ='INVOICE 3'!C15 -> 261000 | D15: ='INVOICE 3'!D15 -> 109000 | E15: =SUM(B15:D15) -> 756718 | F15: =SUM('INVOICE 3'!F15,'INVOICE 3'!J15) -> 1801 | G15: =SUM('INVOICE 3'!G15,'INVOICE 3'!K15) -> 8540 | H15: =SUM('INVOICE 3'!H15,'INVOICE 3'!L15) -> 2575 | I15: =SUM(F15:H15) -> 12916 | J15: 10106 | K15: 3717 | L15: 3349 | M15: =SUM(J15:L15) -> 17172 | N15: =B15-F15-J15 -> 374811 | O15: 248743 | P15: 103076 | Q15: =SUM(N15:P15) -> 726630
A16: ='INVOICE 1'!A16 -> Services & Supplies | B16: ='INVOICE 3'!B16 -> 21282 | C16: ='INVOICE 3'!C16 -> 51328 | D16: ='INVOICE 3'!D16 -> 0 | E16: =SUM(B16:D16) -> 72610 | F16: =SUM('INVOICE 3'!F16,'INVOICE 3'!J16) -> 4000 | G16: =SUM('INVOICE 3'!G16,'INVOICE 3'!K16) -> 231 | H16: =SUM('INVOICE 3'!H16,'INVOICE 3'!L16) -> 0 | I16: =SUM(F16:H16) -> 4231 | J16: 0 | K16: 1373 | L16: 0 | M16: =SUM(J16:L16) -> 1373 | N16: 17282 | O16: 49724 | P16: 0 | Q16: =SUM(N16:P16) -> 67006
A17: ='INVOICE 1'!A17 -> Prof Services / Public Agency Subcontracts | B17: ='INVOICE 3'!B17 -> 40000 | C17: ='INVOICE 3'!C17 -> 40000 | D17: ='INVOICE 3'!D17 -> 0 | E17: 80000 | F17: =SUM('INVOICE 3'!F17,'INVOICE 3'!J17) -> 0 | G17: =SUM('INVOICE 3'!G17,'INVOICE 3'!K17) -> 0 | H17: =SUM('INVOICE 3'!H17,'INVOICE 3'!L17) -> 0 | I17: 0 | J17: 0 | K17: 0 | L17: 0 | M17: 0 | N17: 40000 | O17: 40000 | P17: 0 | Q17: 80000
A18: ='INVOICE 1'!A18 -> CBO Subcontracts | B18: ='INVOICE 3'!B18 -> 0 | C18: ='INVOICE 3'!C18 -> 0 | D18: ='INVOICE 3'!D18 -> 0 | E18: 0 | F18: =SUM('INVOICE 3'!F18,'INVOICE 3'!J18) -> 0 | G18: =SUM('INVOICE 3'!G18,'INVOICE 3'!K18) -> 0 | H18: =SUM('INVOICE 3'!H18,'INVOICE 3'!L18) -> 0 | I18: 0 | J18: 0 | K18: 0 | L18: 0 | M18: 0 | N18: 0 | O18: 0 | P18: 0 | Q18: 0
A19: ='INVOICE 1'!A19 -> Indirect Costs | B19: ='INVOICE 3'!B19 -> 0 | C19: ='INVOICE 3'!C19 -> 38672 | D19: ='INVOICE 3'!D19 -> 0 | E19: 38672 | F19: =SUM('INVOICE 3'!F19,'INVOICE 3'!J19) -> 0 | G19: =SUM('INVOICE 3'!G19,'INVOICE 3'!K19) -> 180 | H19: =SUM('INVOICE 3'!H19,'INVOICE 3'!L19) -> 0 | I19: 180 | J19: 0 | K19: 1010 | L19: 0 | M19: 1010 | N19: 0 | O19: 37482 | P19: 0 | Q19: 37482
A20: ='INVOICE 1'!A20 -> Equip/Fixed Assets | B20: ='INVOICE 3'!B20 -> 0 | C20: ='INVOICE 3'!C20 -> 0 | D20: ='INVOICE 3'!D20 -> 0 | E20: 0 | F20: =SUM('INVOICE 3'!F20,'INVOICE 3'!J20) -> 0 | G20: =SUM('INVOICE 3'!G20,'INVOICE 3'!K20) -> 0 | H20: =SUM('INVOICE 3'!H20,'INVOICE 3'!L20) -> 0 | I20: 0 | J20: 0 | K20: 0 | L20: 0 | M20: 0 | N20: 0 | O20: 0 | P20: 0 | Q20: 0
A21: ='INVOICE 1'!A21 -> Project Evaluation | B21: ='INVOICE 3'!B21 -> 50000 | C21: ='INVOICE 3'!C21 -> 0 | D21: ='INVOICE 3'!D21 -> 0 | E21: 50000 | F21: =SUM('INVOICE 3'!F21,'INVOICE 3'!J21) -> 0 | G21: =SUM('INVOICE 3'!G21,'INVOICE 3'!K21) -> 0 | H21: =SUM('INVOICE 3'!H21,'INVOICE 3'!L21) -> 0 | I21: 0 | J21: 0 | K21: 0 | L21: 0 | M21: 0 | N21: 50000 | O21: 0 | P21: 0 | Q21: 50000
A22: ='INVOICE 1'!A22 -> Other (Travel, Training, etc) | B22: ='INVOICE 3'!B22 -> 2000 | C22: ='INVOICE 3'!C22 -> 0 | D22: ='INVOICE 3'!D22 -> 0 | E22: 2000 | F22: =SUM('INVOICE 3'!F22,'INVOICE 3'!J22) -> 602 | G22: =SUM('INVOICE 3'!G22,'INVOICE 3'!K22) -> 0 | H22: =SUM('INVOICE 3'!H22,'INVOICE 3'!L22) -> 0 | I22: 602 | J22: 0 | K22: 0 | L22: 0 | M22: 0 | N22: 1398 | O22: 0 | P22: 0 | Q22: 1398
A23: TOTAL | B23: =SUM(B15:B22) -> 500000 | C23: =SUM(C15:C22) -> 391000 | D23: =SUM(D15:D22) -> 109000 | E23: =SUM(E15:E22) -> 1000000 | F23: =SUM(F15:F22) -> 6403 | G23: 8951 | H23: 2575 | I23: 17929 | J23: 10106 | K23: =SUM(K15:K22) -> 6100 | L23: =SUM(L15:L22) -> 3349 | M23: =SUM(M15:M22) -> 19555 | N23: 483491 | O23: 375949 | P23: 103076 | Q23: 962516
A25: Project Income | D25: Income reported to date | E25: ='INVOICE 1'!E25+'INVOICE 4'!L25 -> 0 | H25: Prior allocated income | I25: 0 | K25: This Period | L25: 0 | P25: Unallocated income balance | Q25: =E25-I25 -> 0
C28: Cash match to date: | E28: =SUM(G23,K23) -> 15051 | O28: % of Total Obligated Cash Match to date: | Q28: =E28/C23 -> 0.03849360614
C29: In-kind match to date: | E29: =SUM(H23,L23) -> 5924 | O29: % of Total Obligated In-kind Match to date: | Q29: =E29/D23 -> 0.05434862385
E31: Expenditure Descriptions - Units / $ Amounts | O31: Comments
A32: Salaries & Benefits | B32: Grant Funds | D32: =J15 -> 10106 | E32: Project Director 0.4 FTE $4,483, Enterprise Outreach Coordinator 1 FTE $1575 Cognitive Life Skills Director 0.5 FTE $1360.80.Drug & Alcohol Facilitator 0.5 FTE $1,704 Academic Tutor 0.5 FTE $984
B33: Cash Match | D33: =K15 -> 3717 | E33: Project Director 0.4 FTE $3,458, Cognitive Life Skills Director 0.5 FTE $259.20.In-Kind Match Administrative Support $3,349 | O33: Cash and In-kind Match expenditure description.
B34: In-kind Match | D34: =L15 -> 3349
A35: Services & Supplies | B35: Grant Funds | D35: =J18 -> 0
B36: Cash Match | D36: =K16 -> 1373 | E36: \Money order purchase for participants to complete Live scan - 11 @ $75 each for a total of $825 plus $48 purchasing fee. Office Supplies ex. Business cards, certificates, envelopes, seals, id badges $340.39.Security Guard Training Class graduation ceremony food purchase $159.96
B37: In-kind Match | D37: =L16 -> 0
A38: Prof Services / Public Agency Subcontracts | B38: Grant Funds | D38: =-J17 -> 0
B39: Cash Match | D39: =K17 -> 0
B40: In-kind Match | D40: =L17 -> 0
A41: CBO Subcontracts | B41: Grant Funds | D41: =J18 -> 0
B42: Cash Match | D42: =K18 -> 0
B43: In-kind Match | D43: =L18 -> 0
A44: Indirect Cost | B44: Grant Funds | D44: =J19 -> 0
B45: Cash Match | D45: =K19 -> 1010 | E45: Indirect cost at 10% direct salaries for personal and fringe
B46: In-kind Match | D46: =L19 -> 0
A47: Equipment Fixed Assets | B47: Grant Funds | D47: =J20 -> 0
B48: Cash Match | D48: =K20 -> 0
B49: In-kind Match | D49: =-L20 -> 0
A50: Project Evaluation | B50: Grant Funds | D50: =J21 -> 0
B51: Cash Match | D51: =K21 -> 0
B52: In-kind Match | D52: =L21 -> 0
A53: Other | B53: Grant Funds | D53: =J22 -> 0
B54: Cash Match | D54: =K22 -> 0
B55: In-kind Match | D55: =L22 -> 0
A56: Project Income | D56: =M25 -> 0
A57: PERSON PREPARING REPORT | F57: AUTHORIZED FINANCIAL OFFICER | N57: BSCC Supplier Data - Internal Use Only
F58: By checking the box below, I hereby certify that I am the authorized financial officer of the herein named agency. I further certify that I have not violated any of the provisions of Section 1090 of the Government Code in incurring the expenditures reported in this invoice, nor in any other way; that Sections 1090 through 1096 of the Government Code will not be violated in any way in the expenditure of funds pursuant to this invoice; that statement of funds above is true, correct, and in accordance with program provisions in all respects; and that all expenditures submitted after the expiration date of this contract are for the purpose of substantiating obligations legally incurred during the contract period. Furthermore, by submitting this invoice, I acknowledge that it must adhere to all of the requirements in the BSCC Grant Administration Guide, including any updates to the Guide during the term of the grant agreement.
A59: Jennifer Rosales, Office Manager | N59: 0000102062
A60: Name, Title | N60: Supplier ID
A61: 909-723-1695 | N61: YOUNG VISIONARIES YOUTH LEADERSHIP ACADEMY
A62: Phone | N62: Supplier Name
A63: rosalesj129@yvyla-ie.org | N63: 696 S TIPPECANOE AVE
A64: Email | N64: Address Line 1
A65: 2018-11-02 | N65: SAN BERNARDINO, CA 92408
A66: Date | N66: ='INVOICE 1'!N66:Q66 -> SAN BERNARDINO, CA 92408
F68: Terrance Stone, CEO/President
F69: Name, Title
F70: 909-910-7327
F71: Phone
F72: 2018-11-02
F73: Date
A75: BSCC USE ONLY
A76: Date Received: | C76: 2018-11-30 | I76: Approved By: | K76: Colleen Curtin | O76: Date: | P76: 2018-12-12
K77: BSCC Field Representative

Sheet INVOICE 5
A1: STATE OF CALIFORNIA | N1: Purchase Authority | O1: BSCC 5227
A2: BOARD OF STATE AND COMMUNITY CORRECTIONS | N2: Purchase Order: | O2: 5227-0000001874 | Q2: ='INVOICE 1'!Q2 -> 0
A3: Financial Invoice Form: BSCC 201 (Revised 04/2020)
A5: Program: | B5: ='INVOICE 1'!B5 -> CalVIP-17 | M5: Please Note: The California State Controller's Office will send all checks directly to the address listed in the "BSCC Vendor Data" section at the bottom of this invoice.
A7: Grantee: | B7: ='INVOICE 1'!B7 -> Young Visionaries Youth Leadership Academy | G7: Lead Public Agency: | I7: ='INVOICE 1'!I7 -> Young Visionaries Youth Leadership Academy
A9: Contract #: | B9: ='INVOICE 1'!B9 -> 864-17 | E9: Term: | F9: ='INVOICE 1'!F9 -> 2018-05-01 | G9: TO | I9: ='INVOICE 1'!I9 -> 2021-08-16 | N9: Invoicing Frequency | O9: ='INVOICE 1'!O9 -> Monthly
A11: Invoice #: | B11: 5 CALVIP 18 | E11: Reporting Period: | F11: 2018-09-01 | G11: TO | I11: 2018-09-30 | J11: Due: | K11: 2018-11-15 | N11: Final Invoice (Y/N): | O11: No
A13: Line Items | B13: Budget | F13: Prior Expenditures | J13: This Reporting Period | N13: Balance
B14: Grant Funds | C14: Cash Match | D14: In-kind Match | E14: TOTAL | F14: Grant Funds | G14: Cash Match | H14: In-kind Match | I14: TOTAL | J14: Grant Funds | K14: Cash Match | L14: In-kind Match | M14: TOTAL | N14: Grant Funds | O14: Cash Match | P14: In-kind Match | Q14: TOTAL
A15: ='INVOICE 1'!A15 -> Salaries & Benefits | B15: ='INVOICE 4'!B15 -> 386718 | C15: ='INVOICE 4'!C15 -> 261000 | D15: ='INVOICE 4'!D15 -> 109000 | E15: =SUM(B15:D15) -> 756718 | F15: =SUM('INVOICE 4'!F15,'INVOICE 4'!J15) -> 11907 | G15: =SUM('INVOICE 4'!G15,'INVOICE 4'!K15) -> 12257 | H15: =SUM('INVOICE 4'!H15,'INVOICE 4'!L15) -> 5924 | I15: =SUM(F15:H15) -> 30088 | J15: 11543 | K15: 7074 | L15: 2971 | M15: =SUM(J15:L15) -> 21588 | N15: =B15-F15-J15 -> 363268 | O15: 241669 | P15: 100105 | Q15: =SUM(N15:P15) -> 705042
A16: ='INVOICE 1'!A16 -> Services & Supplies | B16: ='INVOICE 4'!B16 -> 21282 | C16: ='INVOICE 4'!C16 -> 51328 | D16: ='INVOICE 4'!D16 -> 0 | E16: =SUM(B16:D16) -> 72610 | F16: =SUM('INVOICE 4'!F16,'INVOICE 4'!J16) -> 4000 | G16: =SUM('INVOICE 4'!G16,'INVOICE 4'!K16) -> 1604 | H16: =SUM('INVOICE 4'!H16,'INVOICE 4'!L16) -> 0 | I16: =SUM(F16:H16) -> 5604 | J16: 0 | K16: 1623 | L16: 0 | M16: =SUM(J16:L16) -> 1623 | N16: 17282 | O16: 48101 | P16: 0 | Q16: =SUM(N16:P16) -> 65383
A17: ='INVOICE 1'!A17 -> Prof Services / Public Agency Subcontracts | B17: ='INVOICE 4'!B17 -> 40000 | C17: ='INVOICE 4'!C17 -> 40000 | D17: ='INVOICE 4'!D17 -> 0 | E17: 80000 | F17: =SUM('INVOICE 4'!F17,'INVOICE 4'!J17) -> 0 | G17: =SUM('INVOICE 4'!G17,'INVOICE 4'!K17) -> 0 | H17: =SUM('INVOICE 4'!H17,'INVOICE 4'!L17) -> 0 | I17: 0 | J17: 0 | K17: 0 | L17: 0 | M17: 0 | N17: 40000 | O17: 40000 | P17: 0 | Q17: 80000
A18: ='INVOICE 1'!A18 -> CBO Subcontracts | B18: ='INVOICE 4'!B18 -> 0 | C18: ='INVOICE 4'!C18 -> 0 | D18: ='INVOICE 4'!D18 -> 0 | E18: 0 | F18: =SUM('INVOICE 4'!F18,'INVOICE 4'!J18) -> 0 | G18: =SUM('INVOICE 4'!G18,'INVOICE 4'!K18) -> 0 | H18: =SUM('INVOICE 4'!H18,'INVOICE 4'!L18) -> 0 | I18: 0 | J18: 0 | K18: 0 | L18: 0 | M18: 0 | N18: 0 | O18: 0 | P18: 0 | Q18: 0
A19: ='INVOICE 1'!A19 -> Indirect Costs | B19: ='INVOICE 4'!B19 -> 0 | C19: ='INVOICE 4'!C19 -> 38672 | D19: ='INVOICE 4'!D19 -> 0 | E19: 38672 | F19: =SUM('INVOICE 4'!F19,'INVOICE 4'!J19) -> 0 | G19: =SUM('INVOICE 4'!G19,'INVOICE 4'!K19) -> 1190 | H19: =SUM('INVOICE 4'!H19,'INVOICE 4'!L19) -> 0 | I19: 1190 | J19: 0 | K19: 1154 | L19: 0 | M19: 1154 | N19: 0 | O19: 36328 | P19: 0 | Q19: 36328
A20: ='INVOICE 1'!A20 -> Equip/Fixed Assets | B20: ='INVOICE 4'!B20 -> 0 | C20: ='INVOICE 4'!C20 -> 0 | D20: ='INVOICE 4'!D20 -> 0 | E20: 0 | F20: =SUM('INVOICE 4'!F20,'INVOICE 4'!J20) -> 0 | G20: =SUM('INVOICE 4'!G20,'INVOICE 4'!K20) -> 0 | H20: =SUM('INVOICE 4'!H20,'INVOICE 4'!L20) -> 0 | I20: 0 | J20: 0 | K20: 0 | L20: 0 | M20: 0 | N20: 0 | O20: 0 | P20: 0 | Q20: 0
A21: ='INVOICE 1'!A21 -> Project Evaluation | B21: ='INVOICE 4'!B21 -> 50000 | C21: ='INVOICE 4'!C21 -> 0 | D21: ='INVOICE 4'!D21 -> 0 | E21: 50000 | F21: =SUM('INVOICE 4'!F21,'INVOICE 4'!J21) -> 0 | G21: =SUM('INVOICE 4'!G21,'INVOICE 4'!K21) -> 0 | H21: =SUM('INVOICE 4'!H21,'INVOICE 4'!L21) -> 0 | I21: 0 | J21: 7500 | K21: 0 | L21: 0 | M21: 7500 | N21: 42500 | O21: 0 | P21: 0 | Q21: 42500
A22: ='INVOICE 1'!A22 -> Other (Travel, Training, etc) | B22: ='INVOICE 4'!B22 -> 2000 | C22: ='INVOICE 4'!C22 -> 0 | D22: ='INVOICE 4'!D22 -> 0 | E22: 2000 | F22: =SUM('INVOICE 4'!F22,'INVOICE 4'!J22) -> 602 | G22: =SUM('INVOICE 4'!G22,'INVOICE 4'!K22) -> 0 | H22: =SUM('INVOICE 4'!H22,'INVOICE 4'!L22) -> 0 | I22: 602 | J22: 0 | K22: 0 | L22: 0 | M22: 0 | N22: 1398 | O22: 0 | P22: 0 | Q22: 1398
A23: TOTAL | B23: =SUM(B15:B22) -> 500000 | C23: =SUM(C15:C22) -> 391000 | D23: =SUM(D15:D22) -> 109000 | E23: =SUM(E15:E22) -> 1000000 | F23: =SUM(F15:F22) -> 16509 | G23: 15051 | H23: 5924 | I23: 37484 | J23: 19043 | K23: =SUM(K15:K22) -> 9851 | L23: =SUM(L15:L22) -> 2971 | M23: =SUM(M15:M22) -> 31865 | N23: 464448 | O23: 366098 | P23: 100105 | Q23: 930651
A25: Project Income | D25: Income reported to date | E25: ='INVOICE 1'!E25+'INVOICE 5'!L25 -> 0 | H25: Prior allocated income | I25: 0 | K25: This Period | L25: 0 | P25: Unallocated income balance | Q25: =E25-I25 -> 0
C27: Grant funds expended to date: | E27: =SUM(F23,J23) -> 35552 | I27: Grant funds claimed this period: | J27: =J23 -> 19043 | O27: Percentage Grant $$ expended to date: | Q27: =E27/B23 -> 0.071104
C28: Cash match to date: | E28: =SUM(G23,K23) -> 24902 | O28: % of Total Obligated Cash Match to date: | Q28: =E28/C23 -> 0.06368797954
C29: In-kind match to date: | E29: =SUM(H23,L23) -> 8895 | O29: % of Total Obligated In-kind Match to date: | Q29: =E29/D23 -> 0.08160550459
E31: Expenditure Descriptions - Units / $ Amounts | O31: Comments
A32: Salaries & Benefits | B32: Grant Funds | D32: =J15 -> 11543 | E32: Project Director 0.4 FTE $4,483 Enterprise Outreach Coordinator 1 FTE $1575 Cognitive Life Skills Director 0.5 FTE $1360.80.Drug & Alcohol Facilitator 0.5 FTE $1,704 Academic Tutor 0.5 FTE $984
B33: Cash Match | D33: =K15 -> 7074 | E33: Project Director 0.4 FTE $3,458 Cognitive Life Skills Director 0.5 FTE $259.20. In-Kind Match Administrative Support $3,349 | O33: Cash and In-kind Match expenditure description.
B34: In-kind Match | D34: =L15 -> 2971
A35: Services & Supplies | B35: Grant Funds | D35: =J16 -> 0
B36: Cash Match | D36: =K16 -> 1623 | E36: Money order purchase for participants to complete Live Scan - 19 @ $75 each for a total of $1,425 plus $72 purchasing fee.Purchase 25 safety vest for participants to wear during Forklift training @ $3.99 each for a total of $99.75 plus tax s/h $26.67
B37: In-kind Match | D37: =L16 -> 0
A38: Prof Services / Public Agency Subcontracts | B38: Grant Funds | D38: =-J17 -> 0
B39: Cash Match | D39: =K17 -> 0
B40: In-kind Match | D40: =L17 -> 0
A41: CBO Subcontracts | B41: Grant Funds | D41: =J18 -> 0
B42: Cash Match | D42: =K18 -> 0
B43: In-kind Match | D43: =L18 -> 0
A44: Indirect Cost | B44: Grant Funds | D44: =J19 -> 0
B45: Cash Match | D45: =K19 -> 1154 | E45: Indirect cost at 10% direct salaries for personal and fringe
B46: In-kind Match | D46: =L19 -> 0
A47: Equipment Fixed Assets | B47: Grant Funds | D47: =J20 -> 0
B48: Cash Match | D48: =K20 -> 0
B49: In-kind Match | D49: =-L20 -> 0
A50: Project Evaluation | B50: Grant Funds | D50: =J21 -> 7500 | E50: Strategic Partnership Schools Group providing comprehensive evaluation services 150 hours @ $50 per hour for a total of $7,500
B51: Cash Match | D51: =K21 -> 0
B52: In-kind Match | D52: =L21 -> 0
A53: Other | B53: Grant Funds | D53: =J22 -> 0
B54: Cash Match | D54: =K22 -> 0
B55: In-kind Match | D55: =L22 -> 0
A56: Project Income | D56: =M25 -> 0
A57: PERSON PREPARING REPORT | F57: AUTHORIZED FINANCIAL OFFICER | N57: BSCC Supplier Data - Internal Use Only
F58: By checking the box below, I hereby certify that I am the authorized financial officer of the herein named agency. I further certify that I have not violated any of the provisions of Section 1090 of the Government Code in incurring the expenditures reported in this invoice, nor in any other way; that Sections 1090 through 1096 of the Government Code will not be violated in any way in the expenditure of funds pursuant to this invoice; that statement of funds above is true, correct, and in accordance with program provisions in all respects; and that all expenditures submitted after the expiration date of this contract are for the purpose of substantiating obligations legally incurred during the contract period. Furthermore, by submitting this invoice, I acknowledge that it must adhere to all of the requirements in the BSCC Grant Administration Guide, including any updates to the Guide during the term of the grant agreement.
A59: Jennifer Rosales, Office Manager | N59: 0000102062
A60: Name, Title | N60: Supplier ID
A61: 909-723-1695 | N61: YOUNG VISIONARIES YOUTH LEADERSHIP ACADEMY
A62: Phone | N62: Supplier Name
A63: rosalesj129@yvyla-ie.org | N63: 696 S TIPPECANOE AVE
A64: Email | N64: Address Line 1
A65: 2018-11-02 | N65: SAN BERNARDINO, CA 92408
A66: Date | N66: ='INVOICE 1'!N66:Q66 -> SAN BERNARDINO, CA 92408
F68: Terrance Stone, CEO/President
F69: Name, Title
F70: 909-910-7327
F71: Phone
F72: 2018-11-02
F73: Date
A75: BSCC USE ONLY
A76: Date Received: | C76: 11/30/20018 | I76: Approved By: | K76: Colleen Curtin | O76: Date: | P76: 2018-12-12
K77: BSCC Field Representative

Sheet INVOICE 6
A1: STATE OF CALIFORNIA | N1: Purchase Authority | O1: BSCC 5227
A2: BOARD OF STATE AND COMMUNITY CORRECTIONS | N2: Purchase Order: | O2: 5227-0000001874 | Q2: ='INVOICE 1'!Q2 -> 0
A3: Financial Invoice Form: BSCC 201 (Revised 04/2020)
A5: Program: | B5: ='INVOICE 1'!B5 -> CalVIP-17 | M5: Please Note: The California State Controller's Office will send all checks directly to the address listed in the "BSCC Vendor Data" section at the bottom of this invoice.
A7: Grantee: | B7: ='INVOICE 1'!B7 -> Young Visionaries Youth Leadership Academy | G7: Lead Public Agency: | I7: ='INVOICE 1'!I7 -> Young Visionaries Youth Leadership Academy
A9: Contract #: | B9: ='INVOICE 1'!B9 -> 864-17 | E9: Term: | F9: ='INVOICE 1'!F9 -> 2018-05-01 | G9: TO | I9: ='INVOICE 1'!I9 -> 2021-08-16 | N9: Invoicing Frequency | O9: ='INVOICE 1'!O9 -> Monthly
A11: Invoice #: | B11: 6 CALVIP 18 | E11: Reporting Period: | F11: 2018-10-01 | G11: TO | I11: 2018-10-31 | J11: Due: | K11: 2018-12-15 | N11: Final Invoice (Y/N): | O11: No
A13: Line Items | B13: Budget | F13: Prior Expenditures | J13: This Reporting Period | N13: Balance
B14: Grant Funds | C14: Cash Match | D14: In-kind Match | E14: TOTAL | F14: Grant Funds | G14: Cash Match | H14: In-kind Match | I14: TOTAL | J14: Grant Funds | K14: Cash Match | L14: In-kind Match | M14: TOTAL | N14: Grant Funds | O14: Cash Match | P14: In-kind Match | Q14: TOTAL
A15: ='INVOICE 1'!A15 -> Salaries & Benefits | B15: ='INVOICE 5'!B15 -> 386718 | C15: ='INVOICE 5'!C15 -> 261000 | D15: ='INVOICE 5'!D15 -> 109000 | E15: =SUM(B15:D15) -> 756718 | F15: =SUM('INVOICE 5'!F15,'INVOICE 5'!J15) -> 23450 | G15: =SUM('INVOICE 5'!G15,'INVOICE 5'!K15) -> 19331 | H15: =SUM('INVOICE 5'!H15,'INVOICE 5'!L15) -> 8895 | I15: =SUM(F15:H15) -> 51676 | J15: 16180 | K15: 6317 | L15: 3151 | M15: =SUM(J15:L15) -> 25648 | N15: =B15-F15-J15 -> 347088 | O15: 235352 | P15: 96954 | Q15: =SUM(N15:P15) -> 679394
A16: ='INVOICE 1'!A16 -> Services & Supplies | B16: ='INVOICE 5'!B16 -> 21282 | C16: ='INVOICE 5'!C16 -> 51328 | D16: ='INVOICE 5'!D16 -> 0 | E16: =SUM(B16:D16) -> 72610 | F16: =SUM('INVOICE 5'!F16,'INVOICE 5'!J16) -> 4000 | G16: =SUM('INVOICE 5'!G16,'INVOICE 5'!K16) -> 3227 | H16: =SUM('INVOICE 5'!H16,'INVOICE 5'!L16) -> 0 | I16: =SUM(F16:H16) -> 7227 | J16: 0 | K16: 495 | L16: 0 | M16: =SUM(J16:L16) -> 495 | N16: 17282 | O16: 47606 | P16: 0 | Q16: =SUM(N16:P16) -> 64888
A17: ='INVOICE 1'!A17 -> Prof Services / Public Agency Subcontracts | B17: ='INVOICE 5'!B17 -> 40000 | C17: ='INVOICE 5'!C17 -> 40000 | D17: ='INVOICE 5'!D17 -> 0 | E17: 80000 | F17: =SUM('INVOICE 5'!F17,'INVOICE 5'!J17) -> 0 | G17: =SUM('INVOICE 5'!G17,'INVOICE 5'!K17) -> 0 | H17: =SUM('INVOICE 5'!H17,'INVOICE 5'!L17) -> 0 | I17: 0 | J17: 0 | K17: 0 | L17: 0 | M17: 0 | N17: 40000 | O17: 40000 | P17: 0 | Q17: 80000
A18: ='INVOICE 1'!A18 -> CBO Subcontracts | B18: ='INVOICE 5'!B18 -> 0 | C18: ='INVOICE 5'!C18 -> 0 | D18: ='INVOICE 5'!D18 -> 0 | E18: 0 | F18: =SUM('INVOICE 5'!F18,'INVOICE 5'!J18) -> 0 | G18: =SUM('INVOICE 5'!G18,'INVOICE 5'!K18) -> 0 | H18: =SUM('INVOICE 5'!H18,'INVOICE 5'!L18) -> 0 | I18: 0 | J18: 0 | K18: 0 | L18: 0 | M18: 0 | N18: 0 | O18: 0 | P18: 0 | Q18: 0
A19: ='INVOICE 1'!A19 -> Indirect Costs | B19: ='INVOICE 5'!B19 -> 0 | C19: ='INVOICE 5'!C19 -> 38672 | D19: ='INVOICE 5'!D19 -> 0 | E19: 38672 | F19: =SUM('INVOICE 5'!F19,'INVOICE 5'!J19) -> 0 | G19: =SUM('INVOICE 5'!G19,'INVOICE 5'!K19) -> 2344 | H19: =SUM('INVOICE 5'!H19,'INVOICE 5'!L19) -> 0 | I19: 2344 | J19: 0 | K19: 1634 | L19: 0 | M19: 1634 | N19: 0 | O19: 34694 | P19: 0 | Q19: 34694
A20: ='INVOICE 1'!A20 -> Equip/Fixed Assets | B20: ='INVOICE 5'!B20 -> 0 | C20: ='INVOICE 5'!C20 -> 0 | D20: ='INVOICE 5'!D20 -> 0 | E20: 0 | F20: =SUM('INVOICE 5'!F20,'INVOICE 5'!J20) -> 0 | G20: =SUM('INVOICE 5'!G20,'INVOICE 5'!K20) -> 0 | H20: =SUM('INVOICE 5'!H20,'INVOICE 5'!L20) -> 0 | I20: 0 | J20: 0 | K20: 0 | L20: 0 | M20: 0 | N20: 0 | O20: 0 | P20: 0 | Q20: 0
A21: ='INVOICE 1'!A21 -> Project Evaluation | B21: ='INVOICE 5'!B21 -> 50000 | C21: ='INVOICE 5'!C21 -> 0 | D21: ='INVOICE 5'!D21 -> 0 | E21: 50000 | F21: =SUM('INVOICE 5'!F21,'INVOICE 5'!J21) -> 7500 | G21: =SUM('INVOICE 5'!G21,'INVOICE 5'!K21) -> 0 | H21: =SUM('INVOICE 5'!H21,'INVOICE 5'!L21) -> 0 | I21: 7500 | J21: 7500 | L21: 0 | M21: 7500 | N21: 35000 | O21: 0 | P21: 0 | Q21: 35000
A22: ='INVOICE 1'!A22 -> Other (Travel, Training, etc) | B22: ='INVOICE 5'!B22 -> 2000 | C22: ='INVOICE 5'!C22 -> 0 | D22: ='INVOICE 5'!D22 -> 0 | E22: 2000 | F22: =SUM('INVOICE 5'!F22,'INVOICE 5'!J22) -> 602 | G22: =SUM('INVOICE 5'!G22,'INVOICE 5'!K22) -> 0 | H22: =SUM('INVOICE 5'!H22,'INVOICE 5'!L22) -> 0 | I22: 602 | J22: 0 | K22: 0 | L22: 0 | M22: 0 | N22: 1398 | O22: 0 | P22: 0 | Q22: 1398
A23: TOTAL | B23: =SUM(B15:B22) -> 500000 | C23: =SUM(C15:C22) -> 391000 | D23: =SUM(D15:D22) -> 109000 | E23: =SUM(E15:E22) -> 1000000 | F23: =SUM(F15:F22) -> 35552 | G23: 24902 | H23: 8895 | I23: 69349 | J23: 23680 | K23: =SUM(K15:K22) -> 8446 | L23: =SUM(L15:L22) -> 3151 | M23: =SUM(M15:M22) -> 35277 | N23: 440768 | O23: 357652 | P23: 96954 | Q23: 895374
A25: Project Income | D25: Income reported to date | E25: ='INVOICE 1'!E25+'INVOICE 6'!L25 -> 0 | H25: Prior allocated income | I25: 0 | K25: This Period | L25: 0 | P25: Unallocated income balance | Q25: =E25-I25 -> 0
C27: Grant funds expended to date: | E27: =SUM(F23,J23) -> 59232 | I27: Grant funds claimed this period: | J27: =J23 -> 23680 | O27: Percentage Grant $$ expended to date: | Q27: =E27/B23 -> 0.118464
C28: Cash match to date: | E28: =SUM(G23,K23) -> 33348 | O28: % of Total Obligated Cash Match to date: | Q28: =E28/C23 -> 0.08528900256
C29: In-kind match to date: | E29: =SUM(H23,L23) -> 12046 | O29: % of Total Obligated In-kind Match to date: | Q29: =E29/D23 -> 0.1105137615
E31: Expenditure Descriptions - Units / $ Amounts | O31: Comments
A32: Salaries & Benefits | B32: Grant Funds | D32: =J15 -> 16180 | E32: Project Director 0.4 FTE $5,754.07 Enterprise Outreach Coordinator 1 FTE $3,042 Cognitive Life Skills Director 0.5 FTE $1,890.Drug & Alcohol Facilitator 0.5 FTE $1,713.75 Academic Tutor 0.5 FTE $750 Mental Health Specialist 1 FTE $2,080.Job Readiness Trainer 0.5 FTE $950
B33: Cash Match | D33: =K15 -> 6317 | E33: Project Director 0.4 FTE $2,450 Cognitive Life Skills Director 0.5 FTE $846 Academic Tutor $0.5 FTE $525.Mental Health Specialist 1 FTE $2,496 Administrative Support 0.5 FTE $3,151.50 | O33: Cash and In-kind Match expenditure description.
B34: In-kind Match | D34: =L15 -> 3151
A35: Services & Supplies | B35: Grant Funds | D35: =J16 -> 0
B36: Cash Match | D36: =K16 -> 495 | E36: SOS employment development stipend 3 @ $165 each for a total of $495
B37: In-kind Match | D37: =L16 -> 0
A38: Prof Services / Public Agency Subcontracts | B38: Grant Funds | D38: =-J17 -> 0
B39: Cash Match | D39: =K17 -> 0
B40: In-kind Match | D40: =L17 -> 0
A41: CBO Subcontracts | B41: Grant Funds | D41: =J18 -> 0
B42: Cash Match | D42: =K18 -> 0
B43: In-kind Match | D43: =L18 -> 0
A44: Indirect Cost | B44: Grant Funds | D44: =J19 -> 0
B45: Cash Match | D45: =K19 -> 1634 | E45: Indirect rate cost 10% of personal and fringe
B46: In-kind Match | D46: =L19 -> 0
A47: Equipment Fixed Assets | B47: Grant Funds | D47: =J20 -> 0
B48: Cash Match | D48: =K20 -> 0
B49: In-kind Match | D49: =-L20 -> 0
A50: Project Evaluation | B50: Grant Funds | D50: =J21 -> 7500 | E50: Strategic Partnership Schools Group providing comprehensive evaluation services 150 hours @ $50 per hour for a total of $7,500
B51: Cash Match | D51: =K21 -> 0
B52: In-kind Match | D52: =L21 -> 0
A53: Other | B53: Grant Funds | D53: =J22 -> 0
B54: Cash Match | D54: =K22 -> 0
B55: In-kind Match | D55: =L22 -> 0
A56: Project Income | D56: =M25 -> 0
A57: PERSON PREPARING REPORT | F57: AUTHORIZED FINANCIAL OFFICER | N57: BSCC Supplier Data - Internal Use Only
F58: By checking the box below, I hereby certify that I am the authorized financial officer of the herein named agency. I further certify that I have not violated any of the provisions of Section 1090 of the Government Code in incurring the expenditures reported in this invoice, nor in any other way; that Sections 1090 through 1096 of the Government Code will not be violated in any way in the expenditure of funds pursuant to this invoice; that statement of funds above is true, correct, and in accordance with program provisions in all respects; and that all expenditures submitted after the expiration date of this contract are for the purpose of substantiating obligations legally incurred during the contract period. Furthermore, by submitting this invoice, I acknowledge that it must adhere to all of the requirements in the BSCC Grant Administration Guide, including any updates to the Guide during the term of the grant agreement.
A59: Jennifer Rosales, Office Manager | N59: 0000102062
A60: Name, Title | N60: Supplier ID
A61: 909-723-1695 | N61: YOUNG VISIONARIES YOUTH LEADERSHIP ACADEMY
A62: Phone | N62: Supplier Name
A63: rosalesj129@yvyla-ie.org | N63: 696 S TIPPECANOE AVE
A64: Email | N64: Address Line 1
A65: 2018-11-02 | N65: SAN BERNARDINO, CA 92408
A66: Date | N66: ='INVOICE 1'!N66:Q66 -> SAN BERNARDINO, CA 92408
F68: Terrance Stone, CEO/President
F69: Name, Title
F70: 909-910-7327
F71: Phone
F72: 2018-11-02
F73: Date
A75: BSCC USE ONLY
A76: Date Received: | C76: 2018-11-30 | I76: Approved By: | L76: Colleen Curtin | O76: Date: | P76: 2018-11-12
K77: BSCC Field Representative

Sheet INVOICE 7
A1: STATE OF CALIFORNIA | N1: Purchase Authority | O1: BSCC 5227
A2: BOARD OF STATE AND COMMUNITY CORRECTIONS | N2: Purchase Order: | O2: 5227-0000001874 | Q2: ='INVOICE 1'!Q2 -> 0
A3: Financial Invoice Form: BSCC 201 (Revised 04/2020)
A5: Program: | B5: ='INVOICE 1'!B5 -> CalVIP-17 | M5: Please Note: The California State Controller's Office will send all checks directly to the address listed in the "BSCC Vendor Data" section at the bottom of this invoice.
A7: Grantee: | B7: ='INVOICE 1'!B7 -> Young Visionaries Youth Leadership Academy | G7: Lead Public Agency: | I7: ='INVOICE 1'!I7 -> Young Visionaries Youth Leadership Academy
A9: Contract #: | B9: ='INVOICE 1'!B9 -> 864-17 | E9: Term: | F9: ='INVOICE 1'!F9 -> 2018-05-01 | G9: TO | I9: ='INVOICE 1'!I9 -> 2021-08-16 | N9: Invoicing Frequency | O9: ='INVOICE 1'!O9 -> Monthly
A11: Invoice #: | B11: 7 CALVIP 18 | E11: Reporting Period: | F11: 2018-11-01 | G11: TO | I11: 2018-11-30 | J11: Due: | K11: 2019-01-15 | N11: Final Invoice (Y/N): | O11: No
A13: Line Items | B13: Budget | F13: Prior Expenditures | J13: This Reporting Period | N13: Balance
B14: Grant Funds | C14: Cash Match | D14: In-kind Match | E14: TOTAL | F14: Grant Funds | G14: Cash Match | H14: In-kind Match | I14: TOTAL | J14: Grant Funds | K14: Cash Match | L14: In-kind Match | M14: TOTAL | N14: Grant Funds | O14: Cash Match | P14: In-kind Match | Q14: TOTAL
A15: ='INVOICE 1'!A15 -> Salaries & Benefits | B15: ='INVOICE 6'!B15 -> 386718 | C15: ='INVOICE 6'!C15 -> 261000 | D15: ='INVOICE 6'!D15 -> 109000 | E15: =SUM(B15:D15) -> 756718 | F15: =SUM('INVOICE 6'!F15,'INVOICE 6'!J15) -> 39630 | G15: =SUM('INVOICE 6'!G15,'INVOICE 6'!K15) -> 25648 | H15: =SUM('INVOICE 6'!H15,'INVOICE 6'!L15) -> 12046 | I15: =SUM(F15:H15) -> 77324 | J15: 10958 | K15: 6928 | L15: 4974 | M15: =SUM(J15:L15) -> 22860 | N15: =B15-F15-J15 -> 336130 | O15: 228424 | P15: 91980 | Q15: =SUM(N15:P15) -> 656534
A16: ='INVOICE 1'!A16 -> Services & Supplies | B16: ='INVOICE 6'!B16 -> 21282 | C16: ='INVOICE 6'!C16 -> 51328 | D16: ='INVOICE 6'!D16 -> 0 | E16: =SUM(B16:D16) -> 72610 | F16: =SUM('INVOICE 6'!F16,'INVOICE 6'!J16) -> 4000 | G16: =SUM('INVOICE 6'!G16,'INVOICE 6'!K16) -> 3722 | H16: =SUM('INVOICE 6'!H16,'INVOICE 6'!L16) -> 0 | I16: =SUM(F16:H16) -> 7722 | J16: 0 | K16: 0 | L16: 0 | M16: =SUM(J16:L16) -> 0 | N16: 17282 | O16: 47606 | P16: 0 | Q16: =SUM(N16:P16) -> 64888
A17: ='INVOICE 1'!A17 -> Prof Services / Public Agency Subcontracts | B17: ='INVOICE 6'!B17 -> 40000 | C17: ='INVOICE 6'!C17 -> 40000 | D17: ='INVOICE 6'!D17 -> 0 | E17: 80000 | F17: =SUM('INVOICE 6'!F17,'INVOICE 6'!J17) -> 0 | G17: =SUM('INVOICE 6'!G17,'INVOICE 6'!K17) -> 0 | H17: =SUM('INVOICE 6'!H17,'INVOICE 6'!L17) -> 0 | I17: 0 | J17: 0 | K17: 0 | L17: 0 | M17: 0 | N17: 40000 | O17: 40000 | P17: 0 | Q17: 80000
A18: ='INVOICE 1'!A18 -> CBO Subcontracts | B18: ='INVOICE 6'!B18 -> 0 | C18: ='INVOICE 6'!C18 -> 0 | D18: ='INVOICE 6'!D18 -> 0 | E18: 0 | F18: =SUM('INVOICE 6'!F18,'INVOICE 6'!J18) -> 0 | G18: =SUM('INVOICE 6'!G18,'INVOICE 6'!K18) -> 0 | H18: =SUM('INVOICE 6'!H18,'INVOICE 6'!L18) -> 0 | I18: 0 | J18: 0 | K18: 0 | L18: 0 | M18: 0 | N18: 0 | O18: 0 | P18: 0 | Q18: 0
A19: ='INVOICE 1'!A19 -> Indirect Costs | B19: ='INVOICE 6'!B19 -> 0 | C19: ='INVOICE 6'!C19 -> 38672 | D19: ='INVOICE 6'!D19 -> 0 | E19: 38672 | F19: =SUM('INVOICE 6'!F19,'INVOICE 6'!J19) -> 0 | G19: =SUM('INVOICE 6'!G19,'INVOICE 6'!K19) -> 3978 | H19: =SUM('INVOICE 6'!H19,'INVOICE 6'!L19) -> 0 | I19: 3978 | J19: 0 | K19: 1096 | L19: 0 | M19: 1096 | N19: 0 | O19: 33598 | P19: 0 | Q19: 33598
A20: ='INVOICE 1'!A20 -> Equip/Fixed Assets | B20: ='INVOICE 6'!B20 -> 0 | C20: ='INVOICE 6'!C20 -> 0 | D20: ='INVOICE 6'!D20 -> 0 | E20: 0 | F20: =SUM('INVOICE 6'!F20,'INVOICE 6'!J20) -> 0 | G20: =SUM('INVOICE 6'!G20,'INVOICE 6'!K20) -> 0 | H20: =SUM('INVOICE 6'!H20,'INVOICE 6'!L20) -> 0 | I20: 0 | J20: 0 | K20: 0 | L20: 0 | M20: 0 | N20: 0 | O20: 0 | P20: 0 | Q20: 0
A21: ='INVOICE 1'!A21 -> Project Evaluation | B21: ='INVOICE 6'!B21 -> 50000 | C21: ='INVOICE 6'!C21 -> 0 | D21: ='INVOICE 6'!D21 -> 0 | E21: 50000 | F21: =SUM('INVOICE 6'!F21,'INVOICE 6'!J21) -> 15000 | G21: =SUM('INVOICE 6'!G21,'INVOICE 6'!K21) -> 0 | H21: =SUM('INVOICE 6'!H21,'INVOICE 6'!L21) -> 0 | I21: 15000 | J21: 0 | K21: 0 | L21: 0 | M21: 0 | N21: 35000 | O21: 0 | P21: 0 | Q21: 35000
A22: ='INVOICE 1'!A22 -> Other (Travel, Training, etc) | B22: ='INVOICE 6'!B22 -> 2000 | C22: ='INVOICE 6'!C22 -> 0 | D22: ='INVOICE 6'!D22 -> 0 | E22: 2000 | F22: =SUM('INVOICE 6'!F22,'INVOICE 6'!J22) -> 602 | G22: =SUM('INVOICE 6'!G22,'INVOICE 6'!K22) -> 0 | H22: =SUM('INVOICE 6'!H22,'INVOICE 6'!L22) -> 0 | I22: 602 | J22: 0 | K22: 0 | L22: 0 | M22: 0 | N22: 1398 | O22: 0 | P22: 0 | Q22: 1398
A23: TOTAL | B23: =SUM(B15:B22) -> 500000 | C23: =SUM(C15:C22) -> 391000 | D23: =SUM(D15:D22) -> 109000 | E23: =SUM(E15:E22) -> 1000000 | F23: =SUM(F15:F22) -> 59232 | G23: 33348 | H23: 12046 | I23: 104626 | J23: 10958 | K23: =SUM(K15:K22) -> 8024 | L23: =SUM(L15:L22) -> 4974 | M23: =SUM(M15:M22) -> 23956 | N23: 429810 | O23: 349628 | P23: 91980 | Q23: 871418
A25: Project Income | D25: Income reported to date | E25: ='INVOICE 1'!E25+'INVOICE 7'!L25 -> 0 | H25: Prior allocated income | I25: 0 | K25: This Period | L25: 0 | P25: Unallocated income balance | Q25: =E25-I25 -> 0
C27: Grant funds expended to date: | E27: =SUM(F23,J23) -> 70190 | I27: Grant funds claimed this period: | J27: =J23 -> 10958 | O27: Percentage Grant $$ expended to date: | Q27: =E27/B23 -> 0.14038
C28: Cash match to date: | E28: =SUM(G23,K23) -> 41372 | O28: % of Total Obligated Cash Match to date: | Q28: =E28/C23 -> 0.1058107417
C29: In-kind match to date: | E29: =SUM(H23,L23) -> 17020 | O29: % of Total Obligated In-kind Match to date: | Q29: =E29/D23 -> 0.156146789
E31: Expenditure Descriptions - Units / $ Amounts | O31: Comments
A32: Salaries & Benefits | B32: Grant Funds | D32: =J15 -> 10958 | E32: Enterprise Outreach Coordinator 1 FTE $2,642.70 Cognitive Life Skills Director 0.5 FTE $1,662.82.Drug & Alcohol Facilitator 0.5 FTE $2,163.19 Academic Tutor 0.5 FTE $1,284.27 Mental Health Specialist 1 FTE $2,205.22..Job Readiness Trainer 0.5 FTE $1,000
B33: Cash Match | D33: =K15 -> 6928 | E33: Cognitive Life Skills Director 0.5 FTE $972 Academic Tutor 0.5 FTE $457.50.Mental Health Specialist 1 FTE $2,496 Administrative Support 0.5 $3,003 Mentors (5) @ 287.75 hours $3,453.Mentors (2) @ 117 hours $1,521 | O33: Cash and In-kind Match expenditure description.
B34: In-kind Match | D34: =L15 -> 4974
A35: Services & Supplies | B35: Grant Funds | D35: =J16 -> 0
B36: Cash Match | D36: =K16 -> 0
B37: In-kind Match | D37: =L16 -> 0
A38: Prof Services / Public Agency Subcontracts | B38: Grant Funds | D38: =-J17 -> 0
B39: Cash Match | D39: =K17 -> 0
B40: In-kind Match | D40: =L17 -> 0
A41: CBO Subcontracts | B41: Grant Funds | D41: =J18 -> 0
B42: Cash Match | D42: =K18 -> 0
B43: In-kind Match | D43: =L18 -> 0
A44: Indirect Cost | B44: Grant Funds | D44: =J19 -> 0
B45: Cash Match | D45: =K19 -> 1096 | E45: Indirect cost rate at 10% Salaries benefits and fringe
B46: In-kind Match | D46: =L19 -> 0
A47: Equipment Fixed Assets | B47: Grant Funds | D47: =J20 -> 0
B48: Cash Match | D48: =K20 -> 0
B49: In-kind Match | D49: =-L20 -> 0
A50: Project Evaluation | B50: Grant Funds | D50: =J21 -> 0
B51: Cash Match | D51: =K21 -> 0
B52: In-kind Match | D52: =L21 -> 0
A53: Other | B53: Grant Funds | D53: =J22 -> 0
B54: Cash Match | D54: =K22 -> 0
B55: In-kind Match | D55: =L22 -> 0
A56: Project Income | D56: =M25 -> 0
A57: PERSON PREPARING REPORT | F57: AUTHORIZED FINANCIAL OFFICER | N57: BSCC Supplier Data - Internal Use Only
F58: By checking the box below, I hereby certify that I am the authorized financial officer of the herein named agency. I further certify that I have not violated any of the provisions of Section 1090 of the Government Code in incurring the expenditures reported in this invoice, nor in any other way; that Sections 1090 through 1096 of the Government Code will not be violated in any way in the expenditure of funds pursuant to this invoice; that statement of funds above is true, correct, and in accordance with program provisions in all respects; and that all expenditures submitted after the expiration date of this contract are for the purpose of substantiating obligations legally incurred during the contract period. Furthermore, by submitting this invoice, I acknowledge that it must adhere to all of the requirements in the BSCC Grant Administration Guide, including any updates to the Guide during the term of the grant agreement.
A59: Jennifer Rosales, Office Manager | N59: 0000102062
A60: Name, Title | N60: Supplier ID
A61: 909-723-1695 | N61: YOUNG VISIONARIES YOUTH LEADERSHIP ACADEMY
A62: Phone | N62: Supplier Name
A63: rosalesj129@yvyla-ie.org | N63: 696 S TIPPECANOE AVE
A64: Email | N64: Address Line 1
A65: 2018-12-26 | N65: SAN BERNARDINO, CA 92408
A66: Date | N66: ='INVOICE 1'!N66:Q66 -> SAN BERNARDINO, CA 92408
F68: Terrance Stone, CEO/President
F69: Name, Title
F70: 909-910-7327
F71: Phone
F72: 2018-12-26
F73: Date
A75: BSCC USE ONLY
A76: Date Received: | C76: 2019-01-29 | I76: Approved By: | L76: Colleen Curtin | O76: Date: | P76: 2020-03-08
K77: BSCC Field Representative

Sheet INVOICE 8
A1: STATE OF CALIFORNIA | N1: Purchase Authority | O1: BSCC 5227
A2: BOARD OF STATE AND COMMUNITY CORRECTIONS | N2: Purchase Order: | O2: 5227-0000001874 | Q2: ='INVOICE 1'!Q2 -> 0
A3: Financial Invoice Form: BSCC 201 (Revised 04/2020)
A5: Program: | B5: ='INVOICE 1'!B5 -> CalVIP-17 | M5: Please Note: The California State Controller's Office will send all checks directly to the address listed in the "BSCC Vendor Data" section at the bottom of this invoice.
A7: Grantee: | B7: ='INVOICE 1'!B7 -> Young Visionaries Youth Leadership Academy | G7: Lead Public Agency: | I7: ='INVOICE 1'!I7 -> Young Visionaries Youth Leadership Academy
A9: Contract #: | B9: ='INVOICE 1'!B9 -> 864-17 | E9: Term: | F9: ='INVOICE 1'!F9 -> 2018-05-01 | G9: TO | I9: ='INVOICE 1'!I9 -> 2021-08-16 | N9: Invoicing Frequency | O9: ='INVOICE 1'!O9 -> Monthly
A11: Invoice #: | B11: 8 CALVIP 18 | E11: Reporting Period: | F11: 2018-12-01 | G11: TO | I11: 2018-12-31 | J11: Due: | K11: 2019-02-15 | N11: Final Invoice (Y/N): | O11: No
A13: Line Items | B13: Budget | F13: Prior Expenditures | J13: This Reporting Period | N13: Balance
B14: Grant Funds | C14: Cash Match | D14: In-kind Match | E14: TOTAL | F14: Grant Funds | G14: Cash Match | H14: In-kind Match | I14: TOTAL | J14: Grant Funds | K14: Cash Match | L14: In-kind Match | M14: TOTAL | N14: Grant Funds | O14: Cash Match | P14: In-kind Match | Q14: TOTAL
A15: ='INVOICE 1'!A15 -> Salaries & Benefits | B15: ='INVOICE 7'!B15 -> 386718 | C15: ='INVOICE 7'!C15 -> 261000 | D15: ='INVOICE 7'!D15 -> 109000 | E15: =SUM(B15:D15) -> 756718 | F15: =SUM('INVOICE 7'!F15,'INVOICE 7'!J15) -> 50588 | G15: =SUM('INVOICE 7'!G15,'INVOICE 7'!K15) -> 32576 | H15: =SUM('INVOICE 7'!H15,'INVOICE 7'!L15) -> 17020 | I15: =SUM(F15:H15) -> 100184 | J15: 10598 | K15: 5984 | L15: 2986 | M15: =SUM(J15:L15) -> 19568 | N15: =B15-F15-J15 -> 325532 | O15: 222440 | P15: 88994 | Q15: =SUM(N15:P15) -> 636966
A16: ='INVOICE 1'!A16 -> Services & Supplies | B16: ='INVOICE 7'!B16 -> 21282 | C16: ='INVOICE 7'!C16 -> 51328 | D16: ='INVOICE 7'!D16 -> 0 | E16: =SUM(B16:D16) -> 72610 | F16: =SUM('INVOICE 7'!F16,'INVOICE 7'!J16) -> 4000 | G16: =SUM('INVOICE 7'!G16,'INVOICE 7'!K16) -> 3722 | H16: =SUM('INVOICE 7'!H16,'INVOICE 7'!L16) -> 0 | I16: =SUM(F16:H16) -> 7722 | J16: 0 | K16: 931 | L16: 0 | M16: =SUM(J16:L16) -> 931 | N16: 17282 | O16: 46675 | P16: 0 | Q16: =SUM(N16:P16) -> 63957
A17: ='INVOICE 1'!A17 -> Prof Services / Public Agency Subcontracts | B17: ='INVOICE 7'!B17 -> 40000 | C17: ='INVOICE 7'!C17 -> 40000 | D17: ='INVOICE 7'!D17 -> 0 | E17: 80000 | F17: =SUM('INVOICE 7'!F17,'INVOICE 7'!J17) -> 0 | G17: =SUM('INVOICE 7'!G17,'INVOICE 7'!K17) -> 0 | H17: =SUM('INVOICE 7'!H17,'INVOICE 7'!L17) -> 0 | I17: 0 | J17: 0 | K17: 0 | L17: 0 | M17: 0 | N17: 40000 | O17: 40000 | P17: 0 | Q17: 80000
A18: ='INVOICE 1'!A18 -> CBO Subcontracts | B18: ='INVOICE 7'!B18 -> 0 | C18: ='INVOICE 7'!C18 -> 0 | D18: ='INVOICE 7'!D18 -> 0 | E18: 0 | F18: =SUM('INVOICE 7'!F18,'INVOICE 7'!J18) -> 0 | G18: =SUM('INVOICE 7'!G18,'INVOICE 7'!K18) -> 0 | H18: =SUM('INVOICE 7'!H18,'INVOICE 7'!L18) -> 0 | I18: 0 | J18: 0 | K18: 0 | L18: 0 | M18: 0 | N18: 0 | O18: 0 | P18: 0 | Q18: 0
A19: ='INVOICE 1'!A19 -> Indirect Costs | B19: ='INVOICE 7'!B19 -> 0 | C19: ='INVOICE 7'!C19 -> 38672 | D19: ='INVOICE 7'!D19 -> 0 | E19: 38672 | F19: =SUM('INVOICE 7'!F19,'INVOICE 7'!J19) -> 0 | G19: =SUM('INVOICE 7'!G19,'INVOICE 7'!K19) -> 5074 | H19: =SUM('INVOICE 7'!H19,'INVOICE 7'!L19) -> 0 | I19: 5074 | J19: 0 | K19: 1060 | L19: 0 | M19: 1060 | N19: 0 | O19: 32538 | P19: 0 | Q19: 32538
A20: ='INVOICE 1'!A20 -> Equip/Fixed Assets | B20: ='INVOICE 7'!B20 -> 0 | C20: ='INVOICE 7'!C20 -> 0 | D20: ='INVOICE 7'!D20 -> 0 | E20: 0 | F20: =SUM('INVOICE 7'!F20,'INVOICE 7'!J20) -> 0 | G20: =SUM('INVOICE 7'!G20,'INVOICE 7'!K20) -> 0 | H20: =SUM('INVOICE 7'!H20,'INVOICE 7'!L20) -> 0 | I20: 0 | J20: 0 | K20: 0 | L20: 0 | M20: 0 | N20: 0 | O20: 0 | P20: 0 | Q20: 0
A21: ='INVOICE 1'!A21 -> Project Evaluation | B21: ='INVOICE 7'!B21 -> 50000 | C21: ='INVOICE 7'!C21 -> 0 | D21: ='INVOICE 7'!D21 -> 0 | E21: 50000 | F21: =SUM('INVOICE 7'!F21,'INVOICE 7'!J21) -> 15000 | G21: =SUM('INVOICE 7'!G21,'INVOICE 7'!K21) -> 0 | H21: =SUM('INVOICE 7'!H21,'INVOICE 7'!L21) -> 0 | I21: 15000 | J21: 0 | K21: 0 | L21: 0 | M21: 0 | N21: 35000 | O21: 0 | P21: 0 | Q21: 35000
A22: ='INVOICE 1'!A22 -> Other (Travel, Training, etc) | B22: ='INVOICE 7'!B22 -> 2000 | C22: ='INVOICE 7'!C22 -> 0 | D22: ='INVOICE 7'!D22 -> 0 | E22: 2000 | F22: =SUM('INVOICE 7'!F22,'INVOICE 7'!J22) -> 602 | G22: =SUM('INVOICE 7'!G22,'INVOICE 7'!K22) -> 0 | H22: =SUM('INVOICE 7'!H22,'INVOICE 7'!L22) -> 0 | I22: 602 | J22: 0 | K22: 0 | L22: 0 | M22: 0 | N22: 1398 | O22: 0 | P22: 0 | Q22: 1398
A23: TOTAL | B23: =SUM(B15:B22) -> 500000 | C23: =SUM(C15:C22) -> 391000 | D23: =SUM(D15:D22) -> 109000 | E23: =SUM(E15:E22) -> 1000000 | F23: =SUM(F15:F22) -> 70190 | G23: 41372 | H23: 17020 | I23: 128582 | J23: 10598 | K23: =SUM(K15:K22) -> 7975 | L23: =SUM(L15:L22) -> 2986 | M23: =SUM(M15:M22) -> 21559 | N23: 419212 | O23: 341653 | P23: 88994 | Q23: 849859
A25: Project Income | D25: Income reported to date | E25: ='INVOICE 1'!E25+'INVOICE 8'!L25 -> 0 | H25: Prior allocated income | I25: 0 | K25: This Period | L25: 0 | P25: Unallocated income balance | Q25: =E25-I25 -> 0
C27: Grant funds expended to date: | E27: =SUM(F23,J23) -> 80788 | I27: Grant funds claimed this period: | J27: =J23 -> 10598 | O27: Percentage Grant $$ expended to date: | Q27: =E27/B23 -> 0.161576
C28: Cash match to date: | E28: =SUM(G23,K23) -> 49347 | O28: % of Total Obligated Cash Match to date: | Q28: =E28/C23 -> 0.1262071611
C29: In-kind match to date: | E29: =SUM(H23,L23) -> 20006 | O29: % of Total Obligated In-kind Match to date: | Q29: =E29/D23 -> 0.1835412844
E31: Expenditure Descriptions - Units / $ Amounts | O31: Comments
A32: Salaries & Benefits | B32: Grant Funds | D32: =J15 -> 10598 | E32: Enterprise Outreach Coordinator 1 FTE $3,177.47 Cognitive Life Skills Director 0.5 FTE $1,403.04. Academic Tutor 0.5 FTE $1,014.82 Drug & Alcohol Facilitator 0.5 FTE $1,978.89 Mental Health Specialist 1 FTE $1,823.56. Job Readiness Trainer 0.5 FTE $1,200
B33: Cash Match | D33: =K15 -> 5984 | E33: Cognitive Life Skills Director 0.5 FTE $576.00 Mental Health Specialist 1 FTE $2,184 Administrative Support 0.5 FTE $2,986.50.Mentors (5) @ 176 hours $2,112 Mentors (2) @ 85.5 $1,111.50. | O33: Cash and In-kind Match expenditure description.
B34: In-kind Match | D34: =L15 -> 2986
A35: Services & Supplies | B35: Grant Funds | D35: =J16 -> 0
B36: Cash Match | D36: =K16 -> 931 | E36: Employment Development Stipend (4) $931
B37: In-kind Match | D37: =L16 -> 0
A38: Prof Services / Public Agency Subcontracts | B38: Grant Funds | D38: =-J17 -> 0
B39: Cash Match | D39: =K17 -> 0
B40: In-kind Match | D40: =L17 -> 0
A41: CBO Subcontracts | B41: Grant Funds | D41: =J18 -> 0
B42: Cash Match | D42: =K18 -> 0
B43: In-kind Match | D43: =L18 -> 0
A44: Indirect Cost | B44: Grant Funds | D44: =J19 -> 0
B45: Cash Match | D45: =K19 -> 1060 | E45: Indirect cost rate at 10% Salaries benefits and fringe
B46: In-kind Match | D46: =L19 -> 0
A47: Equipment Fixed Assets | B47: Grant Funds | D47: =J20 -> 0
B48: Cash Match | D48: =K20 -> 0
B49: In-kind Match | D49: =-L20 -> 0
A50: Project Evaluation | B50: Grant Funds | D50: =J21 -> 0
B51: Cash Match | D51: =K21 -> 0
B52: In-kind Match | D52: =L21 -> 0
A53: Other | B53: Grant Funds | D53: =J22 -> 0
B54: Cash Match | D54: =K22 -> 0
B55: In-kind Match | D55: =L22 -> 0
A56: Project Income | D56: =M25 -> 0
A57: PERSON PREPARING REPORT | F57: AUTHORIZED FINANCIAL OFFICER | N57: BSCC Supplier Data - Internal Use Only
F58: By checking the box below, I hereby certify that I am the authorized financial officer of the herein named agency. I further certify that I have not violated any of the provisions of Section 1090 of the Government Code in incurring the expenditures reported in this invoice, nor in any other way; that Sections 1090 through 1096 of the Government Code will not be violated in any way in the expenditure of funds pursuant to this invoice; that statement of funds above is true, correct, and in accordance with program provisions in all respects; and that all expenditures submitted after the expiration date of this contract are for the purpose of substantiating obligations legally incurred during the contract period. Furthermore, by submitting this invoice, I acknowledge that it must adhere to all of the requirements in the BSCC Grant Administration Guide, including any updates to the Guide during the term of the grant agreement.
A59: Jennifer Rosales, Office Manager | N59: 0000102062
A60: Name, Title | N60: Supplier ID
A61: 909-723-1695 | N61: YOUNG VISIONARIES YOUTH LEADERSHIP ACADEMY
A62: Phone | N62: Supplier Name
A63: rosalesj129@yvyla-ie.org | N63: 696 S TIPPECANOE AVE
A64: Email | N64: Address Line 1
A65: 2019-01-11 | N65: SAN BERNARDINO, CA 92408
A66: Date | N66: ='INVOICE 1'!N66:Q66 -> SAN BERNARDINO, CA 92408
F68: Terrance Stone, CEO/President
F69: Name, Title
F70: 909-910-7327
F71: Phone
F72: 2019-01-11
F73: Date
A75: BSCC USE ONLY
A76: Date Received: | C76: 2019-01-29 | I76: Approved By: | K76: Colleen Curtin | O76: Date: | P76: 2019-03-08
K77: BSCC Field Representative

Sheet INVOICE 9
A1: STATE OF CALIFORNIA | N1: Purchase Authority | O1: BSCC 5227
A2: BOARD OF STATE AND COMMUNITY CORRECTIONS | N2: Purchase Order: | O2: 5227-0000001874 | Q2: ='INVOICE 1'!Q2 -> 0
A3: Financial Invoice Form: BSCC 201 (Revised 04/2020)
A5: Program: | B5: ='INVOICE 1'!B5 -> CalVIP-17 | M5: Please Note: The California State Controller's Office will send all checks directly to the address listed in the "BSCC Vendor Data" section at the bottom of this invoice.
A7: Grantee: | B7: ='INVOICE 1'!B7 -> Young Visionaries Youth Leadership Academy | G7: Lead Public Agency: | I7: ='INVOICE 1'!I7 -> Young Visionaries Youth Leadership Academy
A9: Contract #: | B9: ='INVOICE 1'!B9 -> 864-17 | E9: Term: | F9: ='INVOICE 1'!F9 -> 2018-05-01 | G9: TO | I9: ='INVOICE 1'!I9 -> 2021-08-16 | N9: Invoicing Frequency | O9: ='INVOICE 1'!O9 -> Monthly
A11: Invoice #: | B11: 9 CALVIP 18 | E11: Reporting Period: | F11: 2019-01-01 | G11: TO | I11: 2019-01-31 | J11: Due: | K11: 2019-03-15 | N11: Final Invoice (Y/N): | O11: No
A13: Line Items | B13: Budget | F13: Prior Expenditures | J13: This Reporting Period | N13: Balance
B14: Grant Funds | C14: Cash Match | D14: In-kind Match | E14: TOTAL | F14: Grant Funds | G14: Cash Match | H14: In-kind Match | I14: TOTAL | J14: Grant Funds | K14: Cash Match | L14: In-kind Match | M14: TOTAL | N14: Grant Funds | O14: Cash Match | P14: In-kind Match | Q14: TOTAL
A15: ='INVOICE 1'!A15 -> Salaries & Benefits | B15: ='INVOICE 8'!B15 -> 386718 | C15: ='INVOICE 8'!C15 -> 261000 | D15: ='INVOICE 8'!D15 -> 109000 | E15: =SUM(B15:D15) -> 756718 | F15: =SUM('INVOICE 8'!F15,'INVOICE 8'!J15) -> 61186 | G15: =SUM('INVOICE 8'!G15,'INVOICE 8'!K15) -> 38560 | H15: =SUM('INVOICE 8'!H15,'INVOICE 8'!L15) -> 20006 | I15: =SUM(F15:H15) -> 119752 | J15: 12906 | K15: 8952 | L15: 1840 | M15: =SUM(J15:L15) -> 23698 | N15: =B15-F15-J15 -> 312626 | O15: 213488 | P15: 87154 | Q15: =SUM(N15:P15) -> 613268
A16: ='INVOICE 1'!A16 -> Services & Supplies | B16: ='INVOICE 8'!B16 -> 21282 | C16: ='INVOICE 8'!C16 -> 51328 | D16: ='INVOICE 8'!D16 -> 0 | E16: =SUM(B16:D16) -> 72610 | F16: =SUM('INVOICE 8'!F16,'INVOICE 8'!J16) -> 4000 | G16: =SUM('INVOICE 8'!G16,'INVOICE 8'!K16) -> 4653 | H16: =SUM('INVOICE 8'!H16,'INVOICE 8'!L16) -> 0 | I16: =SUM(F16:H16) -> 8653 | J16: 393 | K16: 1615 | L16: 0 | M16: =SUM(J16:L16) -> 2008 | N16: 16889 | O16: 45060 | P16: 0 | Q16: =SUM(N16:P16) -> 61949
A17: ='INVOICE 1'!A17 -> Prof Services / Public Agency Subcontracts | B17: ='INVOICE 8'!B17 -> 40000 | C17: ='INVOICE 8'!C17 -> 40000 | D17: ='INVOICE 8'!D17 -> 0 | E17: 80000 | F17: =SUM('INVOICE 8'!F17,'INVOICE 8'!J17) -> 0 | G17: =SUM('INVOICE 8'!G17,'INVOICE 8'!K17) -> 0 | H17: =SUM('INVOICE 8'!H17,'INVOICE 8'!L17) -> 0 | I17: 0 | J17: 0 | K17: 0 | L17: 0 | M17: 0 | N17: 40000 | O17: 40000 | P17: 0 | Q17: 80000
A18: ='INVOICE 1'!A18 -> CBO Subcontracts | B18: ='INVOICE 8'!B18 -> 0 | C18: ='INVOICE 8'!C18 -> 0 | D18: ='INVOICE 8'!D18 -> 0 | E18: 0 | F18: =SUM('INVOICE 8'!F18,'INVOICE 8'!J18) -> 0 | G18: =SUM('INVOICE 8'!G18,'INVOICE 8'!K18) -> 0 | H18: =SUM('INVOICE 8'!H18,'INVOICE 8'!L18) -> 0 | I18: 0 | J18: 0 | K18: 0 | L18: 0 | M18: 0 | N18: 0 | O18: 0 | P18: 0 | Q18: 0
A19: ='INVOICE 1'!A19 -> Indirect Costs | B19: ='INVOICE 8'!B19 -> 0 | C19: ='INVOICE 8'!C19 -> 38672 | D19: ='INVOICE 8'!D19 -> 0 | E19: 38672 | F19: =SUM('INVOICE 8'!F19,'INVOICE 8'!J19) -> 0 | G19: =SUM('INVOICE 8'!G19,'INVOICE 8'!K19) -> 6134 | H19: =SUM('INVOICE 8'!H19,'INVOICE 8'!L19) -> 0 | I19: 6134 | J19: 0 | K19: 1291 | L19: 0 | M19: 1291 | N19: 0 | O19: 31247 | P19: 0 | Q19: 31247
A20: ='INVOICE 1'!A20 -> Equip/Fixed Assets | B20: ='INVOICE 8'!B20 -> 0 | C20: ='INVOICE 8'!C20 -> 0 | D20: ='INVOICE 8'!D20 -> 0 | E20: 0 | F20: =SUM('INVOICE 8'!F20,'INVOICE 8'!J20) -> 0 | G20: =SUM('INVOICE 8'!G20,'INVOICE 8'!K20) -> 0 | H20: =SUM('INVOICE 8'!H20,'INVOICE 8'!L20) -> 0 | I20: 0 | J20: 0 | K20: 0 | L20: 0 | M20: 0 | N20: 0 | O20: 0 | P20: 0 | Q20: 0
A21: ='INVOICE 1'!A21 -> Project Evaluation | B21: ='INVOICE 8'!B21 -> 50000 | C21: ='INVOICE 8'!C21 -> 0 | D21: ='INVOICE 8'!D21 -> 0 | E21: 50000 | F21: =SUM('INVOICE 8'!F21,'INVOICE 8'!J21) -> 15000 | G21: =SUM('INVOICE 8'!G21,'INVOICE 8'!K21) -> 0 | H21: =SUM('INVOICE 8'!H21,'INVOICE 8'!L21) -> 0 | I21: 15000 | J21: 5000 | K21: 0 | L21: 0 | M21: 5000 | N21: 30000 | O21: 0 | P21: 0 | Q21: 30000
A22: ='INVOICE 1'!A22 -> Other (Travel, Training, etc) | B22: ='INVOICE 8'!B22 -> 2000 | C22: ='INVOICE 8'!C22 -> 0 | D22: ='INVOICE 8'!D22 -> 0 | E22: 2000 | F22: =SUM('INVOICE 8'!F22,'INVOICE 8'!J22) -> 602 | G22: =SUM('INVOICE 8'!G22,'INVOICE 8'!K22) -> 0 | H22: =SUM('INVOICE 8'!H22,'INVOICE 8'!L22) -> 0 | I22: 602 | J22: 0 | K22: 0 | L22: 0 | M22: 0 | N22: 1398 | O22: 0 | P22: 0 | Q22: 1398
A23: TOTAL | B23: =SUM(B15:B22) -> 500000 | C23: =SUM(C15:C22) -> 391000 | D23: =SUM(D15:D22) -> 109000 | E23: =SUM(E15:E22) -> 1000000 | F23: =SUM(F15:F22) -> 80788 | G23: 49347 | H23: 20006 | I23: 150141 | J23: 18299 | K23: =SUM(K15:K22) -> 11858 | L23: =SUM(L15:L22) -> 1840 | M23: =SUM(M15:M22) -> 31997 | N23: 400913 | O23: 329795 | P23: 87154 | Q23: 817862
A25: Project Income | D25: Income reported to date | E25: ='INVOICE 1'!E25+'INVOICE 9'!L25 -> 0 | H25: Prior allocated income | I25: 0 | K25: This Period | L25: 0 | P25: Unallocated income balance | Q25: =E25-I25 -> 0
C27: Grant funds expended to date: | E27: =SUM(F23,J23) -> 99087 | I27: Grant funds claimed this period: | J27: =J23 -> 18299 | O27: Percentage Grant $$ expended to date: | Q27: =E27/B23 -> 0.198174
C28: Cash match to date: | E28: =SUM(G23,K23) -> 61205 | O28: % of Total Obligated Cash Match to date: | Q28: =E28/C23 -> 0.1565345269
C29: In-kind match to date: | E29: =SUM(H23,L23) -> 21846 | O29: % of Total Obligated In-kind Match to date: | Q29: =E29/D23 -> 0.2004220183
E31: Expenditure Descriptions - Units / $ Amounts | O31: Comments
A32: Salaries & Benefits | B32: Grant Funds | D32: =J15 -> 12906 | E32: Enterprise Outreach Coordinator 1 FTE $3,318.21 Cognitive Life Skills Director 0.5 FTE $1,498.17.Academic Tutor 0.5 FTE $2,109.83 Drug & Alocohol Facilitator 0.5 FTE $2,233.26 Mental Health Specialist 1 FTE $2,697.04.Job Readiness Trainer 0.5 FTE $1,050.00
B33: Cash Match | D33: =K15 -> 8952 | E33: Cognitive Life Skills Director 0.5 FTE $954.00 Mental Health Specialist 1 FTE $1,820.00 Administrative Support 0.5 FTE $1,840.00. Mentors (3) @ 274.5 hours $3,568.50 Mentors (5) @ 217.5 hours $2,610.00. | O33: Cash and In-kind Match exependiture description.
B34: In-kind Match | D34: =L15 -> 1840
A35: Services & Supplies | B35: Grant Funds | D35: =J16 -> 393 | E35: Social Solutions Global Inc supportive data collection program $316.71 .Office Depot supplies for recognition of Job Readiness and Cognitive Life Skills program $76.69
B36: Cash Match | D36: =K16 -> 1615 | E36: SOS Employment Development Mall trip to pick up and turn in applications for possible employment opportunities Food provided $60.37.BSIS Security Online Application fee to provide participant with Guard Card for employment $55.00 TonerPirate.com $298.32 toner purchase for printing services.Cell Business Equipment toner for printing materials $27 Cell Business Equipment $109.92 charge for Smart TV used to conduct safety training videos for Job Readiness Trainer.Sema Inc. $1,032.85 fee for Sharp printer/used for printed materials related to the program Sam's Club $31.30 purchase copy paper for printing
B37: In-kind Match | D37: =L16 -> 0
A38: Prof Services / Public Agency Subcontracts | B38: Grant Funds | D38: =-J17 -> 0
B39: Cash Match | D39: =K17 -> 0
B40: In-kind Match | D40: =L17 -> 0
A41: CBO Subcontracts | B41: Grant Funds | D41: =J18 -> 0
B42: Cash Match | D42: =K18 -> 0
B43: In-kind Match | D43: =L18 -> 0
A44: Indirect Cost | B44: Grant Funds | D44: =J19 -> 0
B45: Cash Match | D45: =K19 -> 1291 | E45: Indirect cost rate at 10% Salaries benefits and fringe
B46: In-kind Match | D46: =L19 -> 0
A47: Equipment Fixed Assets | B47: Grant Funds | D47: =J20 -> 0
B48: Cash Match | D48: =K20 -> 0
B49: In-kind Match | D49: =-L20 -> 0
A50: Project Evaluation | B50: Grant Funds | D50: =J21 -> 5000 | E50: Strategic Partnership Schools Group Providing comprehensive evaluation services 100 hours @ $50 per hour $5,000.
B51: Cash Match | D51: =K21 -> 0
B52: In-kind Match | D52: =L21 -> 0
A53: Other | B53: Grant Funds | D53: =J22 -> 0
B54: Cash Match | D54: =K22 -> 0
B55: In-kind Match | D55: =L22 -> 0
A56: Project Income | D56: =M25 -> 0
A57: PERSON PREPARING REPORT | F57: AUTHORIZED FINANCIAL OFFICER | N57: BSCC Supplier Data - Internal Use Only
F58: By checking the box below, I hereby certify that I am the authorized financial officer of the herein named agency. I further certify that I have not violated any of the provisions of Section 1090 of the Government Code in incurring the expenditures reported in this invoice, nor in any other way; that Sections 1090 through 1096 of the Government Code will not be violated in any way in the expenditure of funds pursuant to this invoice; that statement of funds above is true, correct, and in accordance with program provisions in all respects; and that all expenditures submitted after the expiration date of this contract are for the purpose of substantiating obligations legally incurred during the contract period. Furthermore, by submitting this invoice, I acknowledge that it must adhere to all of the requirements in the BSCC Grant Administration Guide, including any updates to the Guide during the term of the grant agreement.
A59: Jennifer Rosales, Office Manager | N59: 0000102062
A60: Name, Title | N60: Supplier ID
A61: 909-723-1695 | N61: YOUNG VISIONARIES YOUTH LEADERSHIP ACADEMY
A62: Phone | N62: Supplier Name
A63: rosalesj129@yvyla-ie.org | N63: 696 S TIPPECANOE AVE
A64: Email | N64: Address Line 1
A65: 2019-02-15 | N65: SAN BERNARDINO, CA 92408
A66: Date | N66: ='INVOICE 1'!N66:Q66 -> SAN BERNARDINO, CA 92408
F68: Terrance Stone, CEO/President
F69: Name, Title
F70: 909-910-7327
F71: Phone
F72: 2019-02-15
F73: Date
A75: BSCC USE ONLY
A76: Date Received: | C76: 2019-02-15 | I76: Approved By: | K76: Colleen Curtin | O76: Date: | P76: 2019-03-18
K77: BSCC Field Representative

Sheet MODIFICATION REQUEST 1
Q1: STATE OF CALIFORNIA
A2: MODIFICATION REQUEST - (FORM BSCC 223.1 (Revised 04/20) | Q2: BOARD OF STATE AND COMMUNITY CORRECTIONS
B5: Line-Item Change | G5: Budget Modification | M5: Project Income Allocation
B6: Check this box if you are modifying narrative details within a line item (or line items) but not changing the budget. | G6: Check this box if you are modifying line-item dollar amounts by moving funds from one line-item to another. | M6: Check this box if you are allocating earned project income.
A8: Important Note: You must provide a detailed justification for all modification requests. All modifications require BSCC Field Representative approval.
A10: Grantee: | B10: ='INVOICE 1'!B7 -> Young Visionaries Youth Leadership Academy | K10: Grant Program: | M10: ='INVOICE 1'!B5 -> CalVIP-17
A12: Address | K12: Lead Public Agency: | M12: ='INVOICE 1'!I7 -> Young Visionaries Youth Leadership Academy
A16: Contract #: | B16: ='INVOICE 1'!B9 -> 864-17 | M16: Modification Request # | N16: 1
A18: Term: | B18: ='INVOICE 1'!F9 -> 2018-05-01 | C18: ='INVOICE 1'!G9 -> TO | E18: ='INVOICE 1'!I9 -> 2021-08-16 | M18: Effective on Invoice # | N18: 10
A20: Line Items | B20: Current Budget | F20: Available Budget | J20: Changes (+/-) | N20: Modified Budget
B21: Grant Funds | C21: Cash Match | D21: In-kind Match | E21: TOTAL | F21: Grant Funds | G21: Cash Match | H21: In-kind Match | I21: TOTAL | J21: Grant Funds | K21: Cash Match | L21: In-kind Match | M21: TOTAL | N21: Grant Funds | O21: Cash Match | P21: In-kind Match | Q21: TOTAL
A22: Salaries & Benefits | B22: 366718 | C22: 261000 | D22: 109000 | E22: 736718 | F22: 98946 | G22: 69476 | H22: 38664 | I22: 207086 | J22: -20000 | K22: 0 | L22: 0 | M22: =SUM(J22:L22) -> -20000 | N22: =SUM(B22,J22) -> 346718 | O22: =SUM(C22,K22) -> 261000 | P22: 109000 | Q22: =SUM(N22:P22) -> 716718
A23: Services & Supplies | B23: 41282 | C23: 51328 | D23: 0 | E23: 92610 | F23: 2083 | G23: 21793 | H23: 0 | I23: 23876 | J23: 20000 | K23: 0 | L23: 0 | M23: =SUM(J23:L23) -> 20000 | N23: 61282 | O23: 51328 | P23: 0 | Q23: =SUM(N23:P23) -> 112610
A24: Professional Services | B24: 40000 | C24: 40000 | D24: 0 | E24: 80000 | F24: 4993 | G24: -1242 | H24: 0 | I24: 3751 | J24: 0 | K24: 0 | L24: 0 | M24: 0 | N24: 40000 | O24: 40000 | P24: 0 | Q24: 80000
A25: CBO Subcontracts | B25: 0 | C25: 0 | D25: 0 | E25: 0 | F25: 0 | G25: 0 | H25: 0 | I25: 0 | J25: 0 | K25: 0 | L25: 0 | M25: 0 | N25: 0 | O25: 0 | P25: 0 | Q25: 0
A26: Indirect Cost | B26: 0 | C26: 38672 | D26: 0 | E26: 38672 | F26: 0 | G26: 12843 | H26: 0 | I26: 12843 | J26: 0 | K26: 0 | L26: 0 | M26: 0 | N26: 0 | O26: 38672 | P26: 0 | Q26: 38672
A27: Equip/Fixed Assets | B27: 0 | C27: 0 | D27: 0 | E27: 0 | F27: 0 | G27: 0 | H27: 0 | I27: 0 | J27: 0 | K27: 0 | L27: 0 | M27: 0 | N27: 0 | O27: 0 | P27: 0 | Q27: 0
A28: Project Evaluation | B28: 50000 | C28: 0 | D28: 0 | E28: 50000 | F28: 3000 | G28: 0 | H28: 0 | I28: 3000 | J28: 0 | K28: 0 | L28: 0 | M28: 0 | N28: 50000 | O28: 0 | P28: 0 | Q28: 50000
A29: Other (Travel, Training,etc.) | B29: 2000 | C29: 0 | D29: 0 | E29: 2000 | F29: -602 | G29: 0 | H29: 0 | I29: -602 | J29: 0 | K29: 0 | L29: 0 | M29: 0 | N29: 2000 | O29: 0 | P29: 0 | Q29: 2000
A30: TOTAL | B30: 500000 | C30: 391000 | D30: 109000 | E30: 1000000 | F30: =SUM(F22:F29) -> 108420 | G30: 102870 | H30: 38664 | I30: 249954 | J30: 0 | K30: 0 | L30: 0 | M30: 0 | N30: 500000 | O30: 391000 | P30: 109000 | Q30: 1000000
A32: Project Income | D32: Income reported to date | E32: ='INVOICE 2'!E25 -> 0 | H32: Prior allocated income | I32: ='INVOICE 2'!I25 -> 0 | K32: This Period | L32: 0 | P32: Unallocated income balance | Q32: =E32-L32 -> 0
A34: JUSTIFICATION FOR MODIFICATION:
A35: Please see attached document for justification for modified budget.
A54: PERSON PREPARING REPORT | K54: AUTHORIZED FINANCIAL OFFICER
K55: I hereby certify that I am the authorized financial officer of the herein named agency. I further certify that I have not violated any of the provisions of Section 1090 of the Government Code in incurring the expenditures reported in this invoice, nor in any other way; that Sections 1090 through 1096 of the Government Code will not be violated in any way in the expenditure of funds pursuant to this invoice; that statement of funds above is true, correct, and in accordance with program provisions in all respects; and that all expenditures submitted after the expiration date of this contract are for the purpose of substantiating obligations legally incurred during the contract period. Furthermore, by submitting this invoice, I acknowledge that it must adhere to all of the requirements in the BSCC Grant Administration Guide, including any updates to the Guide during the term of the grant agreement.
A56: Jennifer Rosales, Office Manager
A57: Name, Title
A58: 909-723-1695
A59: Phone
A60: rosalesj129@yvyla-ie.org
A61: Email
A62: 2019-02-28
A63: Date
K65: Terrance Stone
K66: Name, Title
K67: 909-910-7327
K68: Phone
K69: 2019-02-18
K70: Date
A72: BSCC USE ONLY
A73: Date Received: | C73: 2019-02-18 | J73: Approved By: | K73: Colleen Curtin | O73: Date: | Q73: 2019-03-12
K74: BSCC Field Representative

Sheet INVOICE 10
A1: STATE OF CALIFORNIA | N1: Purchase Authority | O1: BSCC 5227
A2: BOARD OF STATE AND COMMUNITY CORRECTIONS | N2: Purchase Order: | O2: 5227-0000001874 | Q2: ='INVOICE 1'!Q2 -> 0
A3: Financial Invoice Form: BSCC 201 (Revised 04/2020)
A5: Program: | B5: ='INVOICE 1'!B5 -> CalVIP-17 | M5: Please Note: The California State Controller's Office will send all checks directly to the address listed in the "BSCC Vendor Data" section at the bottom of this invoice.
A7: Grantee: | B7: ='INVOICE 1'!B7 -> Young Visionaries Youth Leadership Academy | G7: Lead Public Agency: | I7: ='INVOICE 1'!I7 -> Young Visionaries Youth Leadership Academy
A9: Contract #: | B9: ='INVOICE 1'!B9 -> 864-17 | E9: Term: | F9: ='INVOICE 1'!F9 -> 2018-05-01 | G9: TO | I9: ='INVOICE 1'!I9 -> 2021-08-16 | N9: Invoicing Frequency | O9: ='INVOICE 1'!O9 -> Monthly
A11: Invoice #: | B11: 10 CALVIP 18 | E11: Reporting Period: | F11: 2019-02-01 | G11: TO | I11: 2019-02-28 | J11: Due: | K11: 2019-04-15 | N11: Final Invoice (Y/N): | O11: No
A13: Line Items | B13: Budget | F13: Prior Expenditures | J13: This Reporting Period | N13: Balance
B14: Grant Funds | C14: Cash Match | D14: In-kind Match | E14: TOTAL | F14: Grant Funds | G14: Cash Match | H14: In-kind Match | I14: TOTAL | J14: Grant Funds | K14: Cash Match | L14: In-kind Match | M14: TOTAL | N14: Grant Funds | O14: Cash Match | P14: In-kind Match | Q14: TOTAL
A15: ='INVOICE 1'!A15 -> Salaries & Benefits | B15: 366718 | C15: 261000 | D15: 109000 | E15: 736718 | F15: =SUM('INVOICE 9'!F15,'INVOICE 9'!J15) -> 74092 | G15: =SUM('INVOICE 9'!G15,'INVOICE 9'!K15) -> 47512 | H15: =SUM('INVOICE 9'!H15,'INVOICE 9'!L15) -> 21846 | I15: =SUM(F15:H15) -> 143450 | J15: 11769 | K15: 6532 | L15: 5261 | M15: =SUM(J15:L15) -> 23562 | N15: =B15-F15-J15 -> 280857 | O15: 206956 | P15: 81893 | Q15: =SUM(N15:P15) -> 569706
A16: ='INVOICE 1'!A16 -> Services & Supplies | B16: 41282 | C16: 51328 | D16: 0 | E16: 92610 | F16: =SUM('INVOICE 9'!F16,'INVOICE 9'!J16) -> 4393 | G16: =SUM('INVOICE 9'!G16,'INVOICE 9'!K16) -> 6268 | H16: =SUM('INVOICE 9'!H16,'INVOICE 9'!L16) -> 0 | I16: =SUM(F16:H16) -> 10661 | J16: 609 | K16: 1382 | L16: 0 | M16: =SUM(J16:L16) -> 1991 | N16: 36280 | O16: 43678 | P16: 0 | Q16: =SUM(N16:P16) -> 79958
A17: ='INVOICE 1'!A17 -> Prof Services / Public Agency Subcontracts | B17: 40000 | C17: 40000 | D17: 0 | E17: 80000 | F17: =SUM('INVOICE 9'!F17,'INVOICE 9'!J17) -> 0 | G17: =SUM('INVOICE 9'!G17,'INVOICE 9'!K17) -> 0 | H17: =SUM('INVOICE 9'!H17,'INVOICE 9'!L17) -> 0 | I17: 0 | J17: 2675 | K17: 2675 | L17: 0 | M17: 5350 | N17: 37325 | O17: 37325 | P17: 0 | Q17: 74650
A18: ='INVOICE 1'!A18 -> CBO Subcontracts | B18: 0 | C18: 0 | D18: 0 | E18: 0 | F18: =SUM('INVOICE 9'!F18,'INVOICE 9'!J18) -> 0 | G18: =SUM('INVOICE 9'!G18,'INVOICE 9'!K18) -> 0 | H18: =SUM('INVOICE 9'!H18,'INVOICE 9'!L18) -> 0 | I18: 0 | J18: 0 | K18: 0 | L18: 0 | M18: 0 | N18: 0 | O18: 0 | P18: 0 | Q18: 0
A19: ='INVOICE 1'!A19 -> Indirect Costs | B19: 0 | C19: 38672 | D19: 0 | E19: 38672 | F19: =SUM('INVOICE 9'!F19,'INVOICE 9'!J19) -> 0 | G19: =SUM('INVOICE 9'!G19,'INVOICE 9'!K19) -> 7425 | H19: =SUM('INVOICE 9'!H19,'INVOICE 9'!L19) -> 0 | I19: 7425 | J19: 0 | K19: 1177 | L19: 0 | M19: 1177 | N19: 0 | O19: 30070 | P19: 0 | Q19: 30070
A20: ='INVOICE 1'!A20 -> Equip/Fixed Assets | B20: 0 | C20: 0 | D20: 0 | E20: 0 | F20: =SUM('INVOICE 9'!F20,'INVOICE 9'!J20) -> 0 | G20: =SUM('INVOICE 9'!G20,'INVOICE 9'!K20) -> 0 | H20: =SUM('INVOICE 9'!H20,'INVOICE 9'!L20) -> 0 | I20: 0 | J20: 0 | K20: 0 | L20: 0 | M20: 0 | N20: 0 | O20: 0 | P20: 0 | Q20: 0
A21: ='INVOICE 1'!A21 -> Project Evaluation | B21: 50000 | C21: 0 | D21: 0 | E21: 50000 | F21: =SUM('INVOICE 9'!F21,'INVOICE 9'!J21) -> 20000 | G21: =SUM('INVOICE 9'!G21,'INVOICE 9'!K21) -> 0 | H21: =SUM('INVOICE 9'!H21,'INVOICE 9'!L21) -> 0 | I21: 20000 | J21: 0 | K21: 0 | L21: 0 | M21: 0 | N21: 30000 | O21: 0 | P21: 0 | Q21: 30000
A22: ='INVOICE 1'!A22 -> Other (Travel, Training, etc) | B22: 2000 | C22: 0 | D22: 0 | E22: 2000 | F22: =SUM('INVOICE 9'!F22,'INVOICE 9'!J22) -> 602 | G22: =SUM('INVOICE 9'!G22,'INVOICE 9'!K22) -> 0 | H22: =SUM('INVOICE 9'!H22,'INVOICE 9'!L22) -> 0 | I22: 602 | J22: 0 | K22: 0 | L22: 0 | M22: 0 | N22: 1398 | O22: 0 | P22: 0 | Q22: 1398
A23: TOTAL | B23: 500000 | C23: 391000 | D23: 109000 | E23: 1000000 | F23: =SUM(F15:F22) -> 99087 | G23: 61205 | H23: 21846 | I23: 182138 | J23: 15053 | K23: =SUM(K15:K22) -> 11766 | L23: =SUM(L15:L22) -> 5261 | M23: =SUM(M15:M22) -> 32080 | N23: 385860 | O23: 318029 | P23: 81893 | Q23: 785782
A25: Project Income | D25: Income reported to date | E25: ='INVOICE 1'!E25+'INVOICE 10'!L25 -> 0 | H25: Prior allocated income | I25: 0 | K25: This Period | L25: 0 | P25: Unallocated income balance | Q25: =E25-I25 -> 0
C27: Grant funds expended to date: | E27: =SUM(F23,J23) -> 114140 | I27: Grant funds claimed this period: | J27: =J23 -> 15053 | O27: Percentage Grant $$ expended to date: | Q27: =E27/B23 -> 0.22828
C28: Cash match to date: | E28: =SUM(G23,K23) -> 72971 | O28: % of Total Obligated Cash Match to date: | Q28: =E28/C23 -> 0.1866265985
C29: In-kind match to date: | E29: =SUM(H23,L23) -> 27107 | O29: % of Total Obligated In-kind Match to date: | Q29: =E29/D23 -> 0.2486880734
E31: Expenditure Descriptions - Units / $ Amounts | O31: Comments
A32: Salaries & Benefits | B32: Grant Funds | D32: =J15 -> 11769 | E32: Enterprise Outreach Coorinator 0.5 FTE $3,245.83 Cognitive Life Skills Director 0.5 FTE $1,136.02.Drug & Alcohol Facilitator 0.5 FTE $1,834.21 Academic Tutor 0.5 FTE $1,724.32 Mental Health Specialist 0.5 FTE $2,578.62. Job Readiness Trainer 0.5 FTE $1,250.00
B33: Cash Match | D33: =K15 -> 6532 | E33: Job Readiness Trainer 0.5 FTE $1,250.00.Administrative Support 0.5 FTE $1,680.00 Wells Fargo Financial Literacy $400.00. Mentors (2) $2,726.25 (@201.94hrs) Mentors (4) $2,134.38 (@170.75hrs) | O33: Cash and Inkind match
B34: In-kind Match | D34: =L15 -> 5261
A35: Services & Supplies | B35: Grant Funds | D35: =J16 -> 609 | E35: JYT Graphics promotional flyers 2,500 $125.00 Larry Milss Food purchase reimbursement $21.49.Social Solutions Global Inc supportive data collection program $316.71 Costco $82.24 food purchase for training session.La Noria $63.98 food purchase for graduation class of Forklift training
B36: Cash Match | D36: =K16 -> 1382 | E36: Sema Inc. $1,189.31 sharp printers Cell Business Equipment $109.46 Sharp TV (used for training videos).Live Scan Money order purchase $75.00 (for training participant to receive guard card) Live Scan Money order purcahse fee $8.00
B37: In-kind Match | D37: =L16 -> 0
A38: Prof Services / Public Agency Subcontracts | B38: Grant Funds | D38: =-J17 -> -2675 | E38: Entrepreneur High School professional services $2,675
B39: Cash Match | D39: =K17 -> 2675 | E39: Entrepreneur High School professional services $2,675
B40: In-kind Match | D40: =L17 -> 0
A41: CBO Subcontracts | B41: Grant Funds | D41: =J18 -> 0
B42: Cash Match | D42: =K18 -> 0
B43: In-kind Match | D43: =L18 -> 0
A44: Indirect Cost | B44: Grant Funds | D44: =J19 -> 0
B45: Cash Match | D45: =K19 -> 1177 | E45: Indirect cost rate at 10% Salaries benefits and fringe
B46: In-kind Match | D46: =L19 -> 0
A47: Equipment Fixed Assets | B47: Grant Funds | D47: =J20 -> 0
B48: Cash Match | D48: =K20 -> 0
B49: In-kind Match | D49: =-L20 -> 0
A50: Project Evaluation | B50: Grant Funds | D50: =J21 -> 0
B51: Cash Match | D51: =K21 -> 0
B52: In-kind Match | D52: =L21 -> 0
A53: Other | B53: Grant Funds | D53: =J22 -> 0
B54: Cash Match | D54: =K22 -> 0
B55: In-kind Match | D55: =L22 -> 0
A56: Project Income | D56: =M25 -> 0
A57: PERSON PREPARING REPORT | F57: AUTHORIZED FINANCIAL OFFICER | N57: BSCC Supplier Data - Internal Use Only
F58: By checking the box below, I hereby certify that I am the authorized financial officer of the herein named agency. I further certify that I have not violated any of the provisions of Section 1090 of the Government Code in incurring the expenditures reported in this invoice, nor in any other way; that Sections 1090 through 1096 of the Government Code will not be violated in any way in the expenditure of funds pursuant to this invoice; that statement of funds above is true, correct, and in accordance with program provisions in all respects; and that all expenditures submitted after the expiration date of this contract are for the purpose of substantiating obligations legally incurred during the contract period. Furthermore, by submitting this invoice, I acknowledge that it must adhere to all of the requirements in the BSCC Grant Administration Guide, including any updates to the Guide during the term of the grant agreement.
A59: Jennifer Rosales, Office Manager | N59: 0000102062
A60: Name, Title | N60: Supplier ID
A61: 909-723-1695 | N61: YOUNG VISIONARIES YOUTH LEADERSHIP ACADEMY
A62: Phone | N62: Supplier Name
A63: rosalesj129@yvyla-ie.org | N63: 696 S TIPPECANOE AVE
A64: Email | N64: Address Line 1
A65: 2019-03-20 | N65: SAN BERNARDINO, CA 92408
A66: Date | N66: ='INVOICE 1'!N66:Q66 -> SAN BERNARDINO, CA 92408
F68: Terrance Stone, CEO/President
F69: Name, Title
F70: 909-910-7327
F71: Phone
F72: 2019-03-20
F73: Date
A75: BSCC USE ONLY
A76: Date Received: | C76: 2018-03-21 | I76: Approved By: | K76: Colleen Curtin | O76: Date: | P76: 2018-03-25
K77: BSCC Field Representative

Sheet INVOICE 11
A1: STATE OF CALIFORNIA | N1: Purchase Authority | O1: BSCC 5227
A2: BOARD OF STATE AND COMMUNITY CORRECTIONS | N2: Purchase Order: | O2: 5227-0000001874 | Q2: ='INVOICE 1'!Q2 -> 0
A3: Financial Invoice Form: BSCC 201 (Revised 04/2020)
A5: Program: | B5: ='INVOICE 1'!B5 -> CalVIP-17 | M5: Please Note: The California State Controller's Office will send all checks directly to the address listed in the "BSCC Vendor Data" section at the bottom of this invoice.
A7: Grantee: | B7: ='INVOICE 1'!B7 -> Young Visionaries Youth Leadership Academy | G7: Lead Public Agency: | I7: ='INVOICE 1'!I7 -> Young Visionaries Youth Leadership Academy
A9: Contract #: | B9: ='INVOICE 1'!B9 -> 864-17 | E9: Term: | F9: ='INVOICE 1'!F9 -> 2018-05-01 | G9: TO | I9: ='INVOICE 1'!I9 -> 2021-08-16 | N9: Invoicing Frequency | O9: ='INVOICE 1'!O9 -> Monthly
A11: Invoice #: | B11: 11 CALVIP 18 | E11: Reporting Period: | F11: 2019-03-01 | G11: TO | I11: 2019-03-31 | J11: Due: | K11: 2019-05-15 | N11: Final Invoice (Y/N): | O11: No
A13: Line Items | B13: Budget | F13: Prior Expenditures | J13: This Reporting Period | N13: Balance
B14: Grant Funds | C14: Cash Match | D14: In-kind Match | E14: TOTAL | F14: Grant Funds | G14: Cash Match | H14: In-kind Match | I14: TOTAL | J14: Grant Funds | K14: Cash Match | L14: In-kind Match | M14: TOTAL | N14: Grant Funds | O14: Cash Match | P14: In-kind Match | Q14: TOTAL
A15: ='INVOICE 1'!A15 -> Salaries & Benefits | B15: 366718 | C15: 261000 | D15: 109000 | E15: 736718 | F15: =SUM('INVOICE 10'!F15,'INVOICE 10'!J15) -> 85861 | G15: =SUM('INVOICE 10'!G15,'INVOICE 10'!K15) -> 54044 | H15: =SUM('INVOICE 10'!H15,'INVOICE 10'!L15) -> 27107 | I15: =SUM(F15:H15) -> 167012 | J15: 11839 | K15: 11603 | L15: 1208 | M15: =SUM(J15:L15) -> 24650 | N15: =B15-F15-J15 -> 269018 | O15: 195353 | P15: 80685 | Q15: =SUM(N15:P15) -> 545056
A16: ='INVOICE 1'!A16 -> Services & Supplies | B16: 41282 | C16: 51328 | D16: 0 | E16: 92610 | F16: =SUM('INVOICE 10'!F16,'INVOICE 10'!J16) -> 5002 | G16: =SUM('INVOICE 10'!G16,'INVOICE 10'!K16) -> 7650 | H16: =SUM('INVOICE 10'!H16,'INVOICE 10'!L16) -> 0 | I16: =SUM(F16:H16) -> 12652 | J16: 829 | K16: 2248 | L16: 0 | M16: =SUM(J16:L16) -> 3077 | N16: 35451 | O16: 41430 | P16: 0 | Q16: =SUM(N16:P16) -> 76881
A17: ='INVOICE 1'!A17 -> Prof Services / Public Agency Subcontracts | B17: 40000 | C17: 40000 | D17: 0 | E17: 80000 | F17: =SUM('INVOICE 10'!F17,'INVOICE 10'!J17) -> 2675 | G17: =SUM('INVOICE 10'!G17,'INVOICE 10'!K17) -> 2675 | H17: =SUM('INVOICE 10'!H17,'INVOICE 10'!L17) -> 0 | I17: 5350 | J17: -2675 | K17: -2675 | L17: 0 | M17: -5350 | N17: 40000 | O17: 40000 | P17: 0 | Q17: 80000
A18: ='INVOICE 1'!A18 -> CBO Subcontracts | B18: 0 | C18: 0 | D18: 0 | E18: 0 | F18: =SUM('INVOICE 10'!F18,'INVOICE 10'!J18) -> 0 | G18: =SUM('INVOICE 10'!G18,'INVOICE 10'!K18) -> 0 | H18: =SUM('INVOICE 10'!H18,'INVOICE 10'!L18) -> 0 | I18: 0 | J18: 0 | K18: 0 | L18: 0 | M18: 0 | N18: 0 | O18: 0 | P18: 0 | Q18: 0
A19: ='INVOICE 1'!A19 -> Indirect Costs | B19: 0 | C19: 38672 | D19: 0 | E19: 38672 | F19: =SUM('INVOICE 10'!F19,'INVOICE 10'!J19) -> 0 | G19: =SUM('INVOICE 10'!G19,'INVOICE 10'!K19) -> 8602 | H19: =SUM('INVOICE 10'!H19,'INVOICE 10'!L19) -> 0 | I19: 8602 | J19: 0 | K19: 1184 | L19: 0 | M19: 1184 | N19: 0 | O19: 28886 | P19: 0 | Q19: 28886
A20: ='INVOICE 1'!A20 -> Equip/Fixed Assets | B20: 0 | C20: 0 | D20: 0 | E20: 0 | F20: =SUM('INVOICE 10'!F20,'INVOICE 10'!J20) -> 0 | G20: =SUM('INVOICE 10'!G20,'INVOICE 10'!K20) -> 0 | H20: =SUM('INVOICE 10'!H20,'INVOICE 10'!L20) -> 0 | I20: 0 | J20: 0 | K20: 0 | L20: 0 | M20: 0 | N20: 0 | O20: 0 | P20: 0 | Q20: 0
A21: ='INVOICE 1'!A21 -> Project Evaluation | B21: 50000 | C21: 0 | D21: 0 | E21: 50000 | F21: =SUM('INVOICE 10'!F21,'INVOICE 10'!J21) -> 20000 | G21: =SUM('INVOICE 10'!G21,'INVOICE 10'!K21) -> 0 | H21: =SUM('INVOICE 10'!H21,'INVOICE 10'!L21) -> 0 | I21: 20000 | J21: 0 | K21: 0 | L21: 0 | M21: 0 | N21: 30000 | O21: 0 | P21: 0 | Q21: 30000
A22: ='INVOICE 1'!A22 -> Other (Travel, Training, etc) | B22: 2000 | C22: 0 | D22: 0 | E22: 2000 | F22: =SUM('INVOICE 10'!F22,'INVOICE 10'!J22) -> 602 | G22: =SUM('INVOICE 10'!G22,'INVOICE 10'!K22) -> 0 | H22: =SUM('INVOICE 10'!H22,'INVOICE 10'!L22) -> 0 | I22: 602 | J22: 0 | K22: 0 | L22: 0 | M22: 0 | N22: 1398 | O22: 0 | P22: 0 | Q22: 1398
A23: TOTAL | B23: 500000 | C23: 391000 | D23: 109000 | E23: 1000000 | F23: =SUM(F15:F22) -> 114140 | G23: 72971 | H23: 27107 | I23: 214218 | J23: 9993 | K23: =SUM(K15:K22) -> 12360 | L23: =SUM(L15:L22) -> 1208 | M23: =SUM(M15:M22) -> 23561 | N23: 375867 | O23: 305669 | P23: 80685 | Q23: 762221
A25: Project Income | D25: Income reported to date | E25: ='INVOICE 1'!E25+'INVOICE 11'!L25 -> 0 | H25: Prior allocated income | I25: 0 | K25: This Period | L25: 0 | P25: Unallocated income balance | Q25: =E25-I25 -> 0
C27: Grant funds expended to date: | E27: =SUM(F23,J23) -> 124133 | I27: Grant funds claimed this period: | J27: =J23 -> 9993 | O27: Percentage Grant $$ expended to date: | Q27: =E27/B23 -> 0.248266
C28: Cash match to date: | E28: =SUM(G23,K23) -> 85331 | O28: % of Total Obligated Cash Match to date: | Q28: =E28/C23 -> 0.2182378517
C29: In-kind match to date: | E29: =SUM(H23,L23) -> 28315 | O29: % of Total Obligated In-kind Match to date: | Q29: =E29/D23 -> 0.2597706422
E31: Expenditure Descriptions - Units / $ Amounts | O31: Comments
A32: Salaries & Benefits | B32: Grant Funds | D32: =J15 -> 11839 | E32: Project Director 0.4 FTE $1,189.42 Enterprise Outreach Coordinator 1 FTE $3,379.32.Cognitive Life Skills Director 0.5 FTE $634.95 Academic Tutor 0.5 FTE $2,018.10 Drug & Alcohol Facilitator 0.5 FTE $1,725.23 .Mental Health Specialist 0.5 FTE $2,892.50
B33: Cash Match | D33: =K15 -> 11603 | E33: Project Director 0.6 FTE $1,506.93 Cognitive Life Skills Director 0.5 FTE $1,283.04 Mental Health Specialist 0.5 FTE $2,097.16.Administrative Support 0.5 FTE $1,008.00 Academic Tutor 0.5 FTE $1,300.00 Mentor (2) 0.5 FTE $2,747.25. Mentor (3) 0.5 FTE $2,668.75 Wells Fargo (financial literacy) $200.00 | O33: Cash and In-kind match expenditure desciption.
B34: In-kind Match | D34: =L15 -> 1208
A35: Services & Supplies | B35: Grant Funds | D35: =J16 -> 829 | E35: CAPS $300 Rental Office Space Social Solutions Data Tracking $293.25 Office Depot office supplies $235.54
B36: Cash Match | D36: =K16 -> 2248 | E36: Employment Development Stipends (4) $925 SEMA Inc (printers) $1,040.87 CBE (sharp monitor) $112.27.Microsoft Software $99.99 Costco $70.00 (food for forklift class)
B37: In-kind Match | D37: =L16 -> 0
A38: Prof Services / Public Agency Subcontracts | B38: Grant Funds | D38: =-J17 -> 2675 | E38: Invalid invoice adjustments have been made reimbursement needed $2,675 (new invoice created will reflect next invoice #12)
B39: Cash Match | D39: =K17 -> -2675 | E39: Invalid invoice adjustments have been made reimbursement needed $2,675 (new invoice created will reflect next invoice #12)
B40: In-kind Match | D40: =L17 -> 0
A41: CBO Subcontracts | B41: Grant Funds | D41: =J18 -> 0
B42: Cash Match | D42: =K18 -> 0
B43: In-kind Match | D43: =L18 -> 0
A44: Indirect Cost | B44: Grant Funds | D44: =J19 -> 0
B45: Cash Match | D45: =K19 -> 1184 | E45: Indirect cost rate at 10% Salaries benefits and fringe
B46: In-kind Match | D46: =L19 -> 0
A47: Equipment Fixed Assets | B47: Grant Funds | D47: =J20 -> 0
B48: Cash Match | D48: =K20 -> 0
B49: In-kind Match | D49: =-L20 -> 0
A50: Project Evaluation | B50: Grant Funds | D50: =J21 -> 0
B51: Cash Match | D51: =K21 -> 0
B52: In-kind Match | D52: =L21 -> 0
A53: Other | B53: Grant Funds | D53: =J22 -> 0
B54: Cash Match | D54: =K22 -> 0
B55: In-kind Match | D55: =L22 -> 0
A56: Project Income | D56: =M25 -> 0
A57: PERSON PREPARING REPORT | F57: AUTHORIZED FINANCIAL OFFICER | N57: BSCC Supplier Data - Internal Use Only
F58: By checking the box below, I hereby certify that I am the authorized financial officer of the herein named agency. I further certify that I have not violated any of the provisions of Section 1090 of the Government Code in incurring the expenditures reported in this invoice, nor in any other way; that Sections 1090 through 1096 of the Government Code will not be violated in any way in the expenditure of funds pursuant to this invoice; that statement of funds above is true, correct, and in accordance with program provisions in all respects; and that all expenditures submitted after the expiration date of this contract are for the purpose of substantiating obligations legally incurred during the contract period. Furthermore, by submitting this invoice, I acknowledge that it must adhere to all of the requirements in the BSCC Grant Administration Guide, including any updates to the Guide during the term of the grant agreement.
A59: Jennifer Rosales, Office Manager | N59: 0000102062
A60: Name, Title | N60: Supplier ID
A61: 909-723-1695 | N61: YOUNG VISIONARIES YOUTH LEADERSHIP ACADEMY
A62: Phone | N62: Supplier Name
A63: rosalesj129@yvyla-ie.org | N63: 696 S TIPPECANOE AVE
A64: Email | N64: Address Line 1
A65: 2019-05-23 | N65: SAN BERNARDINO, CA 92408
A66: Date | N66: ='INVOICE 1'!N66:Q66 -> SAN BERNARDINO, CA 92408
F68: Terrance Stone, CEO/President
F69: Name, Title
F70: 909-910-7327
F71: Phone
F72: 2019-05-23
F73: Date
A75: BSCC USE ONLY
A76: Date Received: | C76: 2019-06-06 | I76: Approved By: | K76: Colleen Curtin | O76: Date: | P76: 2019-08-14
K77: BSCC Field Representative

Sheet INVOICE 12
A1: STATE OF CALIFORNIA | N1: Purchase Authority | O1: BSCC 5227
A2: BOARD OF STATE AND COMMUNITY CORRECTIONS | N2: Purchase Order: | O2: 5227-0000002094 | Q2: ='INVOICE 1'!Q2 -> 0
A3: Financial Invoice Form: BSCC 201 (Revised 04/2020)
A5: Program: | B5: ='INVOICE 1'!B5 -> CalVIP-17 | M5: Please Note: The California State Controller's Office will send all checks directly to the address listed in the "BSCC Vendor Data" section at the bottom of this invoice.
A7: Grantee: | B7: ='INVOICE 1'!B7 -> Young Visionaries Youth Leadership Academy | G7: Lead Public Agency: | I7: ='INVOICE 1'!I7 -> Young Visionaries Youth Leadership Academy
A9: Contract #: | B9: ='INVOICE 1'!B9 -> 864-17 | E9: Term: | F9: ='INVOICE 1'!F9 -> 2018-05-01 | G9: TO | I9: ='INVOICE 1'!I9 -> 2021-08-16 | N9: Invoicing Frequency | O9: ='INVOICE 1'!O9 -> Monthly
A11: Invoice #: | B11: 12 CALVIP 18 | E11: Reporting Period: | F11: 2019-04-01 | G11: TO | I11: 4/31/2019 | J11: Due: | K11: 2019-06-15 | N11: Final Invoice (Y/N): | O11: No
A13: Line Items | B13: Budget | F13: Prior Expenditures | J13: This Reporting Period | N13: Balance
B14: Grant Funds | C14: Cash Match | D14: In-kind Match | E14: TOTAL | F14: Grant Funds | G14: Cash Match | H14: In-kind Match | I14: TOTAL | J14: Grant Funds | K14: Cash Match | L14: In-kind Match | M14: TOTAL | N14: Grant Funds | O14: Cash Match | P14: In-kind Match | Q14: TOTAL
A15: ='INVOICE 1'!A15 -> Salaries & Benefits | B15: 366718 | C15: 261000 | D15: 109000 | E15: 736718 | F15: =SUM('INVOICE 11'!F15,'INVOICE 11'!J15) -> 97700 | G15: =SUM('INVOICE 11'!G15,'INVOICE 11'!K15) -> 65647 | H15: =SUM('INVOICE 11'!H15,'INVOICE 11'!L15) -> 28315 | I15: =SUM(F15:H15) -> 191662 | J15: 16063 | K15: 22810 | L15: 3575 | M15: =SUM(J15:L15) -> 42448 | N15: =B15-F15-J15 -> 252955 | O15: 172543 | P15: 77110 | Q15: =SUM(N15:P15) -> 502608
A16: ='INVOICE 1'!A16 -> Services & Supplies | B16: 41282 | C16: 51328 | D16: 0 | E16: 92610 | F16: =SUM('INVOICE 11'!F16,'INVOICE 11'!J16) -> 5831 | G16: =SUM('INVOICE 11'!G16,'INVOICE 11'!K16) -> 9898 | H16: =SUM('INVOICE 11'!H16,'INVOICE 11'!L16) -> 0 | I16: =SUM(F16:H16) -> 15729 | J16: 413 | K16: 3072 | L16: 0 | M16: =SUM(J16:L16) -> 3485 | N16: 35038 | O16: 38358 | P16: 0 | Q16: =SUM(N16:P16) -> 73396
A17: ='INVOICE 1'!A17 -> Prof Services / Public Agency Subcontracts | B17: 40000 | C17: 40000 | D17: 0 | E17: 80000 | F17: =SUM('INVOICE 11'!F17,'INVOICE 11'!J17) -> 0 | G17: =SUM('INVOICE 11'!G17,'INVOICE 11'!K17) -> 0 | H17: =SUM('INVOICE 11'!H17,'INVOICE 11'!L17) -> 0 | I17: 0 | J17: 20007 | K17: 26242 | L17: 0 | M17: 46249 | N17: 19993 | O17: 13758 | P17: 0 | Q17: 33751
A18: ='INVOICE 1'!A18 -> CBO Subcontracts | B18: 0 | C18: 0 | D18: 0 | E18: 0 | F18: =SUM('INVOICE 11'!F18,'INVOICE 11'!J18) -> 0 | G18: =SUM('INVOICE 11'!G18,'INVOICE 11'!K18) -> 0 | H18: =SUM('INVOICE 11'!H18,'INVOICE 11'!L18) -> 0 | I18: 0 | J18: 0 | K18: 0 | L18: 0 | M18: 0 | N18: 0 | O18: 0 | P18: 0 | Q18: 0
A19: ='INVOICE 1'!A19 -> Indirect Costs | B19: 0 | C19: 38672 | D19: 0 | E19: 38672 | F19: =SUM('INVOICE 11'!F19,'INVOICE 11'!J19) -> 0 | G19: =SUM('INVOICE 11'!G19,'INVOICE 11'!K19) -> 9786 | H19: =SUM('INVOICE 11'!H19,'INVOICE 11'!L19) -> 0 | I19: 9786 | J19: 0 | K19: 1606 | L19: 0 | M19: 1606 | N19: 0 | O19: 27280 | P19: 0 | Q19: 27280
A20: ='INVOICE 1'!A20 -> Equip/Fixed Assets | B20: 0 | C20: 0 | D20: 0 | E20: 0 | F20: =SUM('INVOICE 11'!F20,'INVOICE 11'!J20) -> 0 | G20: =SUM('INVOICE 11'!G20,'INVOICE 11'!K20) -> 0 | H20: =SUM('INVOICE 11'!H20,'INVOICE 11'!L20) -> 0 | I20: 0 | J20: 0 | K20: 0 | L20: 0 | M20: 0 | N20: 0 | O20: 0 | P20: 0 | Q20: 0
A21: ='INVOICE 1'!A21 -> Project Evaluation | B21: 50000 | C21: 0 | D21: 0 | E21: 50000 | F21: =SUM('INVOICE 11'!F21,'INVOICE 11'!J21) -> 20000 | G21: =SUM('INVOICE 11'!G21,'INVOICE 11'!K21) -> 0 | H21: =SUM('INVOICE 11'!H21,'INVOICE 11'!L21) -> 0 | I21: 20000 | J21: 5000 | K21: 0 | L21: 0 | M21: 5000 | N21: 25000 | O21: 0 | P21: 0 | Q21: 25000
A22: ='INVOICE 1'!A22 -> Other (Travel, Training, etc) | B22: 2000 | C22: 0 | D22: 0 | E22: 2000 | F22: =SUM('INVOICE 11'!F22,'INVOICE 11'!J22) -> 602 | G22: =SUM('INVOICE 11'!G22,'INVOICE 11'!K22) -> 0 | H22: =SUM('INVOICE 11'!H22,'INVOICE 11'!L22) -> 0 | I22: 602 | J22: 0 | K22: 0 | L22: 0 | M22: 0 | N22: 1398 | O22: 0 | P22: 0 | Q22: 1398
A23: TOTAL | B23: 500000 | C23: 391000 | D23: 109000 | E23: 1000000 | F23: =SUM(F15:F22) -> 124133 | G23: 85331 | H23: 28315 | I23: 237779 | J23: 41483 | K23: =SUM(K15:K22) -> 53730 | L23: =SUM(L15:L22) -> 3575 | M23: =SUM(M15:M22) -> 98788 | N23: 334384 | O23: 251939 | P23: 77110 | Q23: 663433
A25: Project Income | D25: Income reported to date | E25: ='INVOICE 1'!E25+'INVOICE 12'!L25 -> 0 | H25: Prior allocated income | I25: 0 | K25: This Period | L25: 0 | P25: Unallocated income balance | Q25: =E25-I25 -> 0
C27: Grant funds expended to date: | E27: =SUM(F23,J23) -> 165616 | I27: Grant funds claimed this period: | J27: =J23 -> 41483 | O27: Percentage Grant $$ expended to date: | Q27: =E27/B23 -> 0.331232
C28: Cash match to date: | E28: =SUM(G23,K23) -> 139061 | O28: % of Total Obligated Cash Match to date: | Q28: =E28/C23 -> 0.3556547315
C29: In-kind match to date: | E29: =SUM(H23,L23) -> 31890 | O29: % of Total Obligated In-kind Match to date: | Q29: =E29/D23 -> 0.2925688073
E31: Expenditure Descriptions - Units / $ Amounts | O31: Comments
A32: Salaries & Benefits | B32: Grant Funds | D32: =J15 -> 16063 | E32: Project Director 0.4 FTE $1,702.41 Enterprise Outreach Coordinator 1 FTE $3,574.85.Cognitive Life Skills Coordinator 0.5 FTE $1,493.08 Academic Tutor 0.5 FTE $1,642.59.Drug & Alcohol Facilitator 0.5 FTE $1,698.39 Mental Health Specialist 0.5 FTE $2,501.93 Case Manager 0.5 FTE $2,200.Job Readiness Trainer 0.5 $500.00 Job Readiness Trainer 0.5 $750.00.Job Readiness Trainer Mr. Mills had emergency surgery. YV hired temporary trainer
B33: Cash Match | D33: =K15 -> 22810 | E33: Project Director 0.6 FTE $12,894.40 Cognitive Life Skills Coordinator 0.5 FTE $1,029.60.Academic Tutor 0.5 FTE (2) $2,387.50 Mental Health Specialist 0.5 FTE $2,774.20 Case Manager 0.5 FTE $1,388.00.Administrative Support 0.5 FTE $787.50 Mentors (1) $1,255.50 Mentors (3) $3,468.50.Financial Literacy Wells Fargo $400.00 (8hrs @ $50.00 per hour) | O33: Cash and In-kind match expenditure description
B34: In-kind Match | D34: =L15 -> 3575
A35: Services & Supplies | B35: Grant Funds | D35: =J16 -> 413 | E35: Costco $112.99 Food Purchase for Graduating Forklift Class.Community Action Partnership partial office space rental $300.00
B36: Cash Match | D36: =K16 -> 3072 | E36: 1&1 IONOS $7.00 inbox fee JYT Graphics $625 advertisement/promotion maintenance fee.Employment Development Stipends (4) $901 Domain Listing $228 website page SEMA Inc. $1,204.25 printers.CBE $106.92 Sharp monitors (used for training videos)
B37: In-kind Match | D37: =L16 -> 0
A38: Prof Services / Public Agency Subcontracts | B38: Grant Funds | D38: =-J17 -> -20007 | E38: Real Journey Academies - for professional services rendered outlined in the agreement dated May 1, 2018 $20,007.06
B39: Cash Match | D39: =K17 -> 26242 | E39: Real Journey Academies - matching funds contributed to the CALVIP grant $26,241.84
B40: In-kind Match | D40: =L17 -> 0
A41: CBO Subcontracts | B41: Grant Funds | D41: =J18 -> 0
B42: Cash Match | D42: =K18 -> 0
B43: In-kind Match | D43: =L18 -> 0
A44: Indirect Cost | B44: Grant Funds | D44: =J19 -> 0
B45: Cash Match | D45: =K19 -> 1606 | E45: Indirect cost rate at 10% Salaries benefits and fringe
B46: In-kind Match | D46: =L19 -> 0
A47: Equipment Fixed Assets | B47: Grant Funds | D47: =J20 -> 0
B48: Cash Match | D48: =K20 -> 0
B49: In-kind Match | D49: =-L20 -> 0
A50: Project Evaluation | B50: Grant Funds | D50: =J21 -> 5000 | E50: Strategic Partnership Schools Group Providing comprehensive evaluation services 100 hours @ $50 per hour $5,000.00
B51: Cash Match | D51: =K21 -> 0
B52: In-kind Match | D52: =L21 -> 0
A53: Other | B53: Grant Funds | D53: =J22 -> 0
B54: Cash Match | D54: =K22 -> 0
B55: In-kind Match | D55: =L22 -> 0
A56: Project Income | D56: =M25 -> 0
A57: PERSON PREPARING REPORT | F57: AUTHORIZED FINANCIAL OFFICER | N57: BSCC Supplier Data - Internal Use Only
F58: By checking the box below, I hereby certify that I am the authorized financial officer of the herein named agency. I further certify that I have not violated any of the provisions of Section 1090 of the Government Code in incurring the expenditures reported in this invoice, nor in any other way; that Sections 1090 through 1096 of the Government Code will not be violated in any way in the expenditure of funds pursuant to this invoice; that statement of funds above is true, correct, and in accordance with program provisions in all respects; and that all expenditures submitted after the expiration date of this contract are for the purpose of substantiating obligations legally incurred during the contract period. Furthermore, by submitting this invoice, I acknowledge that it must adhere to all of the requirements in the BSCC Grant Administration Guide, including any updates to the Guide during the term of the grant agreement.
A59: Jennifer Rosales, Office Manager | N59: 0000102062
A60: Name, Title | N60: Supplier ID
A61: 909-723-1695 | N61: YOUNG VISIONARIES YOUTH LEADERSHIP ACADEMY
A62: Phone | N62: Supplier Name
A63: rosalesj129@yvyla-ie.org | N63: 696 S TIPPECANOE AVE
A64: Email | N64: Address Line 1
A65: 2019-05-24 | N65: SAN BERNARDINO, CA 92408
A66: Date | N66: ='INVOICE 1'!N66:Q66 -> SAN BERNARDINO, CA 92408
F68: Terrance Stone, CEO/President
F69: Name, Title
F70: 909-910-7327
F71: Phone
F72: 2019-07-02
F73: Date
A75: BSCC USE ONLY
A76: Date Received: | C76: 2019-08-13 | I76: Approved By: | K76: Colleen Curtin | O76: Date: | P76: 2019-08-14
K77: BSCC Field Representative

Sheet INVOICE 13
A1: STATE OF CALIFORNIA | N1: Purchase Authority | O1: BSCC 5227
A2: BOARD OF STATE AND COMMUNITY CORRECTIONS | N2: Purchase Order: | O2: 5227-0000002094 | Q2: ='INVOICE 1'!Q2 -> 0
A3: Financial Invoice Form: BSCC 201 (Revised 04/2020)
A5: Program: | B5: ='INVOICE 1'!B5 -> CalVIP-17 | M5: Please Note: The California State Controller's Office will send all checks directly to the address listed in the "BSCC Vendor Data" section at the bottom of this invoice.
A7: Grantee: | B7: ='INVOICE 1'!B7 -> Young Visionaries Youth Leadership Academy | G7: Lead Public Agency: | I7: ='INVOICE 1'!I7 -> Young Visionaries Youth Leadership Academy
A9: Contract #: | B9: ='INVOICE 1'!B9 -> 864-17 | E9: Term: | F9: ='INVOICE 1'!F9 -> 2018-05-01 | G9: TO | I9: ='INVOICE 1'!I9 -> 2021-08-16 | N9: Invoicing Frequency | O9: ='INVOICE 1'!O9 -> Monthly
A11: Invoice #: | B11: 13 CALVIP 18 | E11: Reporting Period: | F11: 2019-05-01 | G11: TO | I11: 2019-05-31 | J11: Due: | K11: 2019-07-15 | N11: Final Invoice (Y/N): | O11: No
A13: Line Items | B13: Budget | F13: Prior Expenditures | J13: This Reporting Period | N13: Balance
B14: Grant Funds | C14: Cash Match | D14: In-kind Match | E14: TOTAL | F14: Grant Funds | G14: Cash Match | H14: In-kind Match | I14: TOTAL | J14: Grant Funds | K14: Cash Match | L14: In-kind Match | M14: TOTAL | N14: Grant Funds | O14: Cash Match | P14: In-kind Match | Q14: TOTAL
A15: ='INVOICE 1'!A15 -> Salaries & Benefits | B15: 366718 | C15: 261000 | D15: 109000 | E15: 736718 | F15: =SUM('INVOICE 12'!F15,'INVOICE 12'!J15) -> 113763 | G15: =SUM('INVOICE 12'!G15,'INVOICE 12'!K15) -> 88457 | H15: =SUM('INVOICE 12'!H15,'INVOICE 12'!L15) -> 31890 | I15: =SUM(F15:H15) -> 234110 | J15: 15293 | K15: 10082 | L15: 9127 | M15: =SUM(J15:L15) -> 34502 | N15: =B15-F15-J15 -> 237662 | O15: 162461 | P15: 67983 | Q15: =SUM(N15:P15) -> 468106
A16: ='INVOICE 1'!A16 -> Services & Supplies | B16: 41282 | C16: 51328 | D16: 0 | E16: 92610 | F16: =SUM('INVOICE 12'!F16,'INVOICE 12'!J16) -> 6244 | G16: =SUM('INVOICE 12'!G16,'INVOICE 12'!K16) -> 12970 | H16: =SUM('INVOICE 12'!H16,'INVOICE 12'!L16) -> 0 | I16: =SUM(F16:H16) -> 19214 | J16: 1008 | K16: 1907 | L16: 0 | M16: =SUM(J16:L16) -> 2915 | N16: 34030 | O16: 36451 | P16: 0 | Q16: =SUM(N16:P16) -> 70481
A17: ='INVOICE 1'!A17 -> Prof Services / Public Agency Subcontracts | B17: 40000 | C17: 40000 | D17: 0 | E17: 80000 | F17: =SUM('INVOICE 12'!F17,'INVOICE 12'!J17) -> 20007 | G17: =SUM('INVOICE 12'!G17,'INVOICE 12'!K17) -> 26242 | H17: =SUM('INVOICE 12'!H17,'INVOICE 12'!L17) -> 0 | I17: 46249 | J17: 0 | K17: 0 | L17: 0 | M17: 0 | N17: 19993 | O17: 13758 | P17: 0 | Q17: 33751
A18: ='INVOICE 1'!A18 -> CBO Subcontracts | B18: 0 | C18: 0 | D18: 0 | E18: 0 | F18: =SUM('INVOICE 12'!F18,'INVOICE 12'!J18) -> 0 | G18: =SUM('INVOICE 12'!G18,'INVOICE 12'!K18) -> 0 | H18: =SUM('INVOICE 12'!H18,'INVOICE 12'!L18) -> 0 | I18: 0 | J18: 0 | K18: 0 | L18: 0 | M18: 0 | N18: 0 | O18: 0 | P18: 0 | Q18: 0
A19: ='INVOICE 1'!A19 -> Indirect Costs | B19: 0 | C19: 38672 | D19: 0 | E19: 38672 | F19: =SUM('INVOICE 12'!F19,'INVOICE 12'!J19) -> 0 | G19: =SUM('INVOICE 12'!G19,'INVOICE 12'!K19) -> 11392 | H19: =SUM('INVOICE 12'!H19,'INVOICE 12'!L19) -> 0 | I19: 11392 | J19: 0 | K19: 1529 | L19: 0 | M19: 1529 | N19: 0 | O19: 25751 | P19: 0 | Q19: 25751
A20: ='INVOICE 1'!A20 -> Equip/Fixed Assets | B20: 0 | C20: 0 | D20: 0 | E20: 0 | F20: =SUM('INVOICE 12'!F20,'INVOICE 12'!J20) -> 0 | G20: =SUM('INVOICE 12'!G20,'INVOICE 12'!K20) -> 0 | H20: =SUM('INVOICE 12'!H20,'INVOICE 12'!L20) -> 0 | I20: 0 | J20: 0 | K20: 0 | L20: 0 | M20: 0 | N20: 0 | O20: 0 | P20: 0 | Q20: 0
A21: ='INVOICE 1'!A21 -> Project Evaluation | B21: 50000 | C21: 0 | D21: 0 | E21: 50000 | F21: =SUM('INVOICE 12'!F21,'INVOICE 12'!J21) -> 25000 | G21: =SUM('INVOICE 12'!G21,'INVOICE 12'!K21) -> 0 | H21: =SUM('INVOICE 12'!H21,'INVOICE 12'!L21) -> 0 | I21: 25000 | J21: 0 | K21: 0 | L21: 0 | M21: 0 | N21: 25000 | O21: 0 | P21: 0 | Q21: 25000
A22: ='INVOICE 1'!A22 -> Other (Travel, Training, etc) | B22: 2000 | C22: 0 | D22: 0 | E22: 2000 | F22: =SUM('INVOICE 12'!F22,'INVOICE 12'!J22) -> 602 | G22: =SUM('INVOICE 12'!G22,'INVOICE 12'!K22) -> 0 | H22: =SUM('INVOICE 12'!H22,'INVOICE 12'!L22) -> 0 | I22: 602 | J22: 0 | K22: 0 | L22: 0 | M22: 0 | N22: 1398 | O22: 0 | P22: 0 | Q22: 1398
A23: TOTAL | B23: 500000 | C23: 391000 | D23: 109000 | E23: 1000000 | F23: =SUM(F15:F22) -> 165616 | G23: 139061 | H23: 31890 | I23: 336567 | J23: 16301 | K23: =SUM(K15:K22) -> 13518 | L23: =SUM(L15:L22) -> 9127 | M23: =SUM(M15:M22) -> 38946 | N23: 318083 | O23: 238421 | P23: 67983 | Q23: 624487
A25: Project Income | D25: Income reported to date | E25: ='INVOICE 1'!E25+'INVOICE 13'!L25 -> 0 | H25: Prior allocated income | I25: 0 | K25: This Period | L25: 0 | P25: Unallocated income balance | Q25: =E25-I25 -> 0
C27: Grant funds expended to date: | E27: =SUM(F23,J23) -> 181917 | I27: Grant funds claimed this period: | J27: =J23 -> 16301 | O27: Percentage Grant $$ expended to date: | Q27: =E27/B23 -> 0.363834
C28: Cash match to date: | E28: =SUM(G23,K23) -> 152579 | O28: % of Total Obligated Cash Match to date: | Q28: =E28/C23 -> 0.3902276215
C29: In-kind match to date: | E29: =SUM(H23,L23) -> 41017 | O29: % of Total Obligated In-kind Match to date: | Q29: =E29/D23 -> 0.3763027523
E31: Expenditure Descriptions - Units / $ Amounts | O31: Comments
A32: Salaries & Benefits | B32: Grant Funds | D32: =J15 -> 15293 | E32: Project Director 0.4 FTE $1,267.35 Enterprise Outreach Coordinator 1 FTE $3,651.31.Cognitive Life Skills Director 0.5 FTE $1,473.94 Academic Tutor 0.5 FTE $1,666.86 Drug & Alcohol Facilitator 0.5 FTE $1,730.89.Mental Health Specialist 0.5 FTE $2,002.91 Case Manager 0.5 FTE $2,300.00 Job Readiness Trainer 0.5 FTE $1,200.00
B33: Cash Match | D33: =K15 -> 10082 | E33: Project Director 0..6 FTE $2,860.95 Cognitive Life Skills Director 0.5 FTE $1,179.36 Mental Health Specialist 0.5 FTE $1,830.40.Case $1,388.00 Administrative Support 0.5 FTE $819.00 Academic Tutor/Mentor (2) $2,004.00.Mentor (1) $2,205.00 Mentor (1) $2,956.50 Mentor (3) $3,565.63.Financial Literacy Wells Fargo $400.00 (8hrs @ $50.00 per hour) | O33: Cash ans In-kind Match expenditure description
B34: In-kind Match | D34: =L15 -> 9127
A35: Services & Supplies | B35: Grant Funds | D35: =J16 -> 1008 | E35: PCE Social Solutions $399.00 Stater Bros $71.78 (forklift class meal provided) Omnitrans $45.00 (10 pack individual day passes).Arco Gasoline $152.10 (6 $25 gas cards plus 0.35 processing fee x 6) Community Action Partnership $300.00 (office space).Little Ceaser's Pizza $34.56 (forklift class meal provided) 99 Cent only Store $5.92 (drinks for forklift class)
B36: Cash Match | D36: =K16 -> 1907 | E36: Sema inc $1,040.87 (printer services) SOS Program Stipend (4) $866
B37: In-kind Match | D37: =L16 -> 0
A38: Prof Services / Public Agency Subcontracts | B38: Grant Funds | D38: =-J17 -> 0
B39: Cash Match | D39: =K17 -> 0
B40: In-kind Match | D40: =L17 -> 0
A41: CBO Subcontracts | B41: Grant Funds | D41: =J18 -> 0
B42: Cash Match | D42: =K18 -> 0
B43: In-kind Match | D43: =L18 -> 0
A44: Indirect Cost | B44: Grant Funds | D44: =J19 -> 0
B45: Cash Match | D45: =K19 -> 1529 | E45: Indirect cost rate at 10% Salaries benefits and fringe
B46: In-kind Match | D46: =L19 -> 0
A47: Equipment Fixed Assets | B47: Grant Funds | D47: =J20 -> 0
B48: Cash Match | D48: =K20 -> 0
B49: In-kind Match | D49: =-L20 -> 0
A50: Project Evaluation | B50: Grant Funds | D50: =J21 -> 0
B51: Cash Match | D51: =K21 -> 0
B52: In-kind Match | D52: =L21 -> 0
A53: Other | B53: Grant Funds | D53: =J22 -> 0
B54: Cash Match | D54: =K22 -> 0
B55: In-kind Match | D55: =L22 -> 0
A56: Project Income | D56: =M25 -> 0
A57: PERSON PREPARING REPORT | F57: AUTHORIZED FINANCIAL OFFICER | N57: BSCC Supplier Data - Internal Use Only
F58: By checking the box below, I hereby certify that I am the authorized financial officer of the herein named agency. I further certify that I have not violated any of the provisions of Section 1090 of the Government Code in incurring the expenditures reported in this invoice, nor in any other way; that Sections 1090 through 1096 of the Government Code will not be violated in any way in the expenditure of funds pursuant to this invoice; that statement of funds above is true, correct, and in accordance with program provisions in all respects; and that all expenditures submitted after the expiration date of this contract are for the purpose of substantiating obligations legally incurred during the contract period. Furthermore, by submitting this invoice, I acknowledge that it must adhere to all of the requirements in the BSCC Grant Administration Guide, including any updates to the Guide during the term of the grant agreement.
A59: Jennifer Rosales, Office Manager | N59: 0000102062
A60: Name, Title | N60: Supplier ID
A61: 909-723-1695 | N61: YOUNG VISIONARIES YOUTH LEADERSHIP ACADEMY
A62: Phone | N62: Supplier Name
A63: rosalesj129@yvyla-ie.org | N63: 696 S TIPPECANOE AVE
A64: Email | N64: Address Line 1
A65: 2019-07-24 | N65: SAN BERNARDINO, CA 92408
A66: Date | N66: ='INVOICE 1'!N66:Q66 -> SAN BERNARDINO, CA 92408
F68: Terrance Stone, CEO/President
F69: Name, Title
F70: 909-910-7327
F71: Phone
F72: 2019-07-24
F73: Date
A75: BSCC USE ONLY
A76: Date Received: | C76: 2019-08-13 | I76: Approved By: | K76: Colleen Curtin | O76: Date: | P76: 2019-08-14
K77: BSCC Field Representative

Sheet INVOICE 14
A1: STATE OF CALIFORNIA | N1: Purchase Authority | O1: BSCC 5227
A2: BOARD OF STATE AND COMMUNITY CORRECTIONS | N2: Purchase Order: | O2: 5227-0000002094 | Q2: ='INVOICE 1'!Q2 -> 0
A3: Financial Invoice Form: BSCC 201 (Revised 04/2020)
A5: Program: | B5: ='INVOICE 1'!B5 -> CalVIP-17 | M5: Please Note: The California State Controller's Office will send all checks directly to the address listed in the "BSCC Vendor Data" section at the bottom of this invoice.
A7: Grantee: | B7: ='INVOICE 1'!B7 -> Young Visionaries Youth Leadership Academy | G7: Lead Public Agency: | I7: ='INVOICE 1'!I7 -> Young Visionaries Youth Leadership Academy
A9: Contract #: | B9: ='INVOICE 1'!B9 -> 864-17 | E9: Term: | F9: ='INVOICE 1'!F9 -> 2018-05-01 | G9: TO | I9: ='INVOICE 1'!I9 -> 2021-08-16 | N9: Invoicing Frequency | O9: ='INVOICE 1'!O9 -> Monthly
A11: Invoice #: | B11: 14 CALVIP 18 | E11: Reporting Period: | F11: 2019-06-01 | G11: TO | I11: 6/31/2019 | J11: Due: | K11: 2019-08-15 | N11: Final Invoice (Y/N): | O11: No
A13: Line Items | B13: Budget | F13: Prior Expenditures | J13: This Reporting Period | N13: Balance
B14: Grant Funds | C14: Cash Match | D14: In-kind Match | E14: TOTAL | F14: Grant Funds | G14: Cash Match | H14: In-kind Match | I14: TOTAL | J14: Grant Funds | K14: Cash Match | L14: In-kind Match | M14: TOTAL | N14: Grant Funds | O14: Cash Match | P14: In-kind Match | Q14: TOTAL
A15: ='INVOICE 1'!A15 -> Salaries & Benefits | B15: 366718 | C15: 261000 | D15: 109000 | E15: 736718 | F15: =SUM('INVOICE 13'!F15,'INVOICE 13'!J15) -> 129056 | G15: =SUM('INVOICE 13'!G15,'INVOICE 13'!K15) -> 98539 | H15: =SUM('INVOICE 13'!H15,'INVOICE 13'!L15) -> 41017 | I15: =SUM(F15:H15) -> 268612 | J15: 13620 | K15: 9008 | L15: 5329 | M15: =SUM(J15:L15) -> 27957 | N15: =B15-F15-J15 -> 224042 | O15: 153453 | P15: 62654 | Q15: =SUM(N15:P15) -> 440149
A16: ='INVOICE 1'!A16 -> Services & Supplies | B16: 41282 | C16: 51328 | D16: 0 | E16: 92610 | F16: =SUM('INVOICE 13'!F16,'INVOICE 13'!J16) -> 7252 | G16: =SUM('INVOICE 13'!G16,'INVOICE 13'!K16) -> 14877 | H16: =SUM('INVOICE 13'!H16,'INVOICE 13'!L16) -> 0 | I16: =SUM(F16:H16) -> 22129 | J16: 624 | K16: 1907 | L16: 0 | M16: =SUM(J16:L16) -> 2531 | N16: 33406 | O16: 34544 | P16: 0 | Q16: =SUM(N16:P16) -> 67950
A17: ='INVOICE 1'!A17 -> Prof Services / Public Agency Subcontracts | B17: 40000 | C17: 40000 | D17: 0 | E17: 80000 | F17: =SUM('INVOICE 13'!F17,'INVOICE 13'!J17) -> 20007 | G17: =SUM('INVOICE 13'!G17,'INVOICE 13'!K17) -> 26242 | H17: =SUM('INVOICE 13'!H17,'INVOICE 13'!L17) -> 0 | I17: 46249 | J17: 0 | K17: 0 | L17: 0 | M17: 0 | N17: 19993 | O17: 13758 | P17: 0 | Q17: 33751
A18: ='INVOICE 1'!A18 -> CBO Subcontracts | B18: 0 | C18: 0 | D18: 0 | E18: 0 | F18: =SUM('INVOICE 13'!F18,'INVOICE 13'!J18) -> 0 | G18: =SUM('INVOICE 13'!G18,'INVOICE 13'!K18) -> 0 | H18: =SUM('INVOICE 13'!H18,'INVOICE 13'!L18) -> 0 | I18: 0 | J18: 0 | K18: 0 | L18: 0 | M18: 0 | N18: 0 | O18: 0 | P18: 0 | Q18: 0
A19: ='INVOICE 1'!A19 -> Indirect Costs | B19: 0 | C19: 38672 | D19: 0 | E19: 38672 | F19: =SUM('INVOICE 13'!F19,'INVOICE 13'!J19) -> 0 | G19: =SUM('INVOICE 13'!G19,'INVOICE 13'!K19) -> 12921 | H19: =SUM('INVOICE 13'!H19,'INVOICE 13'!L19) -> 0 | I19: 12921 | J19: 0 | K19: 1362 | L19: 0 | M19: 1362 | N19: 0 | O19: 24389 | P19: 0 | Q19: 24389
A20: ='INVOICE 1'!A20 -> Equip/Fixed Assets | B20: 0 | C20: 0 | D20: 0 | E20: 0 | F20: =SUM('INVOICE 13'!F20,'INVOICE 13'!J20) -> 0 | G20: =SUM('INVOICE 13'!G20,'INVOICE 13'!K20) -> 0 | H20: =SUM('INVOICE 13'!H20,'INVOICE 13'!L20) -> 0 | I20: 0 | J20: 0 | K20: 0 | L20: 0 | M20: 0 | N20: 0 | O20: 0 | P20: 0 | Q20: 0
A21: ='INVOICE 1'!A21 -> Project Evaluation | B21: 50000 | C21: 0 | D21: 0 | E21: 50000 | F21: =SUM('INVOICE 13'!F21,'INVOICE 13'!J21) -> 25000 | G21: =SUM('INVOICE 13'!G21,'INVOICE 13'!K21) -> 0 | H21: =SUM('INVOICE 13'!H21,'INVOICE 13'!L21) -> 0 | I21: 25000 | J21: 7500 | K21: 0 | L21: 0 | M21: 7500 | N21: 17500 | O21: 0 | P21: 0 | Q21: 17500
A22: ='INVOICE 1'!A22 -> Other (Travel, Training, etc) | B22: 2000 | C22: 0 | D22: 0 | E22: 2000 | F22: =SUM('INVOICE 13'!F22,'INVOICE 13'!J22) -> 602 | G22: =SUM('INVOICE 13'!G22,'INVOICE 13'!K22) -> 0 | H22: =SUM('INVOICE 13'!H22,'INVOICE 13'!L22) -> 0 | I22: 602 | J22: 0 | K22: 0 | L22: 0 | M22: 0 | N22: 1398 | O22: 0 | P22: 0 | Q22: 1398
A23: TOTAL | B23: 500000 | C23: 391000 | D23: 109000 | E23: 1000000 | F23: =SUM(F15:F22) -> 181917 | G23: 152579 | H23: 41017 | I23: 375513 | J23: 21744 | K23: =SUM(K15:K22) -> 12277 | L23: =SUM(L15:L22) -> 5329 | M23: =SUM(M15:M22) -> 39350 | N23: 296339 | O23: 226144 | P23: 62654 | Q23: 585137
A25: Project Income | D25: Income reported to date | E25: ='INVOICE 1'!E25+'INVOICE 14'!L25 -> 0 | H25: Prior allocated income | I25: 0 | K25: This Period | L25: 0 | P25: Unallocated income balance | Q25: =E25-I25 -> 0
C27: Grant funds expended to date: | E27: =SUM(F23,J23) -> 203661 | I27: Grant funds claimed this period: | J27: =J23 -> 21744 | O27: Percentage Grant $$ expended to date: | Q27: =E27/B23 -> 0.407322
C28: Cash match to date: | E28: =SUM(G23,K23) -> 164856 | O28: % of Total Obligated Cash Match to date: | Q28: =E28/C23 -> 0.4216265985
C29: In-kind match to date: | E29: =SUM(H23,L23) -> 46346 | O29: % of Total Obligated In-kind Match to date: | Q29: =E29/D23 -> 0.4251926606
E31: Expenditure Descriptions - Units / $ Amounts | O31: Comments
A32: Salaries & Benefits | B32: Grant Funds | D32: =J15 -> 13620 | E32: Project Director 0.4 FTE $1,021.45 Exterprise Outreach Coordinator 1 FTE $3,165.98.Cognitive Life Skill Director 0.5 FTE $937.96 Academic Tutor 0.5 FTE $1,401.13 Drug & Alcohol Facilitator 0.5 FTE $2,088.53.Mental Health Specialist 0.5 FTE $1,805.44 Case Manager 0.5 FTE $2,000.00 Job Readiness Trainer 0.5 FTE $1,200.00
B33: Cash Match | D33: =K15 -> 9008 | E33: Project Director 0.6 FTE $2,760.21 Cognitive Life Skill Director 0.5 FTE $861.12 Mental Health Specialist 0.5 FTE $2,774.20.Case Manager 0.5 FTE $1,388.00 Administrative Support 0.5 FTE $651.00 Academic Tutor/Mentor $537.50.Mentor $1,395 Mentor $1,431Mentor (3) $2,103.13. Financial Literacy Wells Fargo $400.00 (8hrs @ $50.00 per hour) | O33: Cash and Inkind expenditure description
B34: In-kind Match | D34: =L15 -> 5329
A35: Services & Supplies | B35: Grant Funds | D35: =J16 -> 624 | E35: Community Action Partnership $300 (office space) Epson America Inc $79.89 toner.SAM's Club $103.25 (snacks for groups) Domino's Pizza $66.24 (food for Forklift Class) Subway $74.53 (food for forklift class)
B36: Cash Match | D36: =K16 -> 1907 | E36: SOS Program Stipends (4) $864.00 JYT Printing $304 Brochures/flyers CBE $106.92 Sharp TV training room monitor.
B37: In-kind Match | D37: =L16 -> 0
A38: Prof Services / Public Agency Subcontracts | B38: Grant Funds | D38: =-J17 -> 0
B39: Cash Match | D39: =K17 -> 0
B40: In-kind Match | D40: =L17 -> 0
A41: CBO Subcontracts | B41: Grant Funds | D41: =J18 -> 0
B42: Cash Match | D42: =K18 -> 0
B43: In-kind Match | D43: =L18 -> 0
A44: Indirect Cost | B44: Grant Funds | D44: =J19 -> 0
B45: Cash Match | D45: =K19 -> 1362 | E45: Indirect cost rate at 10% Salaries benefits and fringe
B46: In-kind Match | D46: =L19 -> 0
A47: Equipment Fixed Assets | B47: Grant Funds | D47: =J20 -> 0
B48: Cash Match | D48: =K20 -> 0
B49: In-kind Match | D49: =-L20 -> 0
A50: Project Evaluation | B50: Grant Funds | D50: =J21 -> 7500 | E50: Strategic Partnership Schools Group Providing comprehensive evaluation services 150 hours @ $50 per hour $7,500.00
B51: Cash Match | D51: =K21 -> 0
B52: In-kind Match | D52: =L21 -> 0
A53: Other | B53: Grant Funds | D53: =J22 -> 0
B54: Cash Match | D54: =K22 -> 0
B55: In-kind Match | D55: =L22 -> 0
A56: Project Income | D56: =M25 -> 0
A57: PERSON PREPARING REPORT | F57: AUTHORIZED FINANCIAL OFFICER | N57: BSCC Supplier Data - Internal Use Only
F58: By checking the box below, I hereby certify that I am the authorized financial officer of the herein named agency. I further certify that I have not violated any of the provisions of Section 1090 of the Government Code in incurring the expenditures reported in this invoice, nor in any other way; that Sections 1090 through 1096 of the Government Code will not be violated in any way in the expenditure of funds pursuant to this invoice; that statement of funds above is true, correct, and in accordance with program provisions in all respects; and that all expenditures submitted after the expiration date of this contract are for the purpose of substantiating obligations legally incurred during the contract period. Furthermore, by submitting this invoice, I acknowledge that it must adhere to all of the requirements in the BSCC Grant Administration Guide, including any updates to the Guide during the term of the grant agreement.
A59: Jennifer Rosales, Office Manager | N59: 0000102062
A60: Name, Title | N60: Supplier ID
A61: 909-723-1695 | N61: YOUNG VISIONARIES YOUTH LEADERSHIP ACADEMY
A62: Phone | N62: Supplier Name
A63: rosalesj129@yvyla-ie.org | N63: 696 S TIPPECANOE AVE
A64: Email | N64: Address Line 1
A65: 2019-07-16 | N65: SAN BERNARDINO, CA 92408
A66: Date | N66: ='INVOICE 1'!N66:Q66 -> SAN BERNARDINO, CA 92408
A68: Amount to Pay | F68: Terrance Stone, CEO/President
A69: PO #: | B69: 5227-0000002094 | D69: 82 | F69: Name, Title
A70: PO #: | B70: 5227-0000001874 | D70: 21662 | F70: 909-910-7327
B71: Total to be paid | D71: 21744 | F71: Phone
F72: 2019-07-16
F73: Date
A75: BSCC USE ONLY
A76: Date Received: | C76: 2019-08-13 | I76: Approved By: | K76: Colleen Curtin | O76: Date: | P76: 2020-08-14
K77: BSCC Field Representative

Sheet INVOICE 15
A1: STATE OF CALIFORNIA | N1: Purchase Authority | O1: BSCC 5227
A2: BOARD OF STATE AND COMMUNITY CORRECTIONS | N2: Purchase Order: | O2: 5227-0000002094 | Q2: ='INVOICE 1'!Q2 -> 0
A3: Financial Invoice Form: BSCC 201 (Revised 04/2020)
A5: Program: | B5: ='INVOICE 1'!B5 -> CalVIP-17 | M5: Please Note: The California State Controller's Office will send all checks directly to the address listed in the "BSCC Vendor Data" section at the bottom of this invoice.
A7: Grantee: | B7: ='INVOICE 1'!B7 -> Young Visionaries Youth Leadership Academy | G7: Lead Public Agency: | I7: ='INVOICE 1'!I7 -> Young Visionaries Youth Leadership Academy
A9: Contract #: | B9: ='INVOICE 1'!B9 -> 864-17 | E9: Term: | F9: ='INVOICE 1'!F9 -> 2018-05-01 | G9: TO | I9: ='INVOICE 1'!I9 -> 2021-08-16 | N9: Invoicing Frequency | O9: ='INVOICE 1'!O9 -> Monthly
A11: Invoice #: | B11: 15 CALVIP 18 | E11: Reporting Period: | F11: 2019-07-01 | G11: TO | I11: 2019-07-30 | J11: Due: | K11: 2019-09-15 | N11: Final Invoice (Y/N): | O11: No
A13: Line Items | B13: Budget | F13: Prior Expenditures | J13: This Reporting Period | N13: Balance
B14: Grant Funds | C14: Cash Match | D14: In-kind Match | E14: TOTAL | F14: Grant Funds | G14: Cash Match | H14: In-kind Match | I14: TOTAL | J14: Grant Funds | K14: Cash Match | L14: In-kind Match | M14: TOTAL | N14: Grant Funds | O14: Cash Match | P14: In-kind Match | Q14: TOTAL
A15: ='INVOICE 1'!A15 -> Salaries & Benefits | B15: 366718 | C15: 261000 | D15: 109000 | E15: 736718 | F15: =SUM('INVOICE 14'!F15,'INVOICE 14'!J15) -> 142676 | G15: =SUM('INVOICE 14'!G15,'INVOICE 14'!K15) -> 107547 | H15: =SUM('INVOICE 14'!H15,'INVOICE 14'!L15) -> 46346 | I15: =SUM(F15:H15) -> 296569 | J15: 15640 | K15: 6639 | L15: 2915 | M15: =SUM(J15:L15) -> 25194 | N15: =B15-F15-J15 -> 208402 | O15: 146814 | P15: 59739 | Q15: =SUM(N15:P15) -> 414955
A16: ='INVOICE 1'!A16 -> Services & Supplies | B16: 41282 | C16: 51328 | D16: 0 | E16: 92610 | F16: =SUM('INVOICE 14'!F16,'INVOICE 14'!J16) -> 7876 | G16: =SUM('INVOICE 14'!G16,'INVOICE 14'!K16) -> 16784 | H16: =SUM('INVOICE 14'!H16,'INVOICE 14'!L16) -> 0 | I16: =SUM(F16:H16) -> 24660 | J16: 829 | K16: 4992 | L16: 0 | M16: =SUM(J16:L16) -> 5821 | N16: 32577 | O16: 29552 | P16: 0 | Q16: =SUM(N16:P16) -> 62129
A17: ='INVOICE 1'!A17 -> Prof Services / Public Agency Subcontracts | B17: 40000 | C17: 40000 | D17: 0 | E17: 80000 | F17: =SUM('INVOICE 14'!F17,'INVOICE 14'!J17) -> 20007 | G17: =SUM('INVOICE 14'!G17,'INVOICE 14'!K17) -> 26242 | H17: =SUM('INVOICE 14'!H17,'INVOICE 14'!L17) -> 0 | I17: 46249 | J17: 0 | K17: 0 | L17: 0 | M17: 0 | N17: 19993 | O17: 13758 | P17: 0 | Q17: 33751
A18: ='INVOICE 1'!A18 -> CBO Subcontracts | B18: 0 | C18: 0 | D18: 0 | E18: 0 | F18: =SUM('INVOICE 14'!F18,'INVOICE 14'!J18) -> 0 | G18: =SUM('INVOICE 14'!G18,'INVOICE 14'!K18) -> 0 | H18: =SUM('INVOICE 14'!H18,'INVOICE 14'!L18) -> 0 | I18: 0 | J18: 0 | K18: 0 | L18: 0 | M18: 0 | N18: 0 | O18: 0 | P18: 0 | Q18: 0
A19: ='INVOICE 1'!A19 -> Indirect Costs | B19: 0 | C19: 38672 | D19: 0 | E19: 38672 | F19: =SUM('INVOICE 14'!F19,'INVOICE 14'!J19) -> 0 | G19: =SUM('INVOICE 14'!G19,'INVOICE 14'!K19) -> 14283 | H19: =SUM('INVOICE 14'!H19,'INVOICE 14'!L19) -> 0 | I19: 14283 | J19: 0 | K19: 1564 | L19: 0 | M19: 1564 | N19: 0 | O19: 22825 | P19: 0 | Q19: 22825
A20: ='INVOICE 1'!A20 -> Equip/Fixed Assets | B20: 0 | C20: 0 | D20: 0 | E20: 0 | F20: =SUM('INVOICE 14'!F20,'INVOICE 14'!J20) -> 0 | G20: =SUM('INVOICE 14'!G20,'INVOICE 14'!K20) -> 0 | H20: =SUM('INVOICE 14'!H20,'INVOICE 14'!L20) -> 0 | I20: 0 | J20: 0 | K20: 0 | L20: 0 | M20: 0 | N20: 0 | O20: 0 | P20: 0 | Q20: 0
A21: ='INVOICE 1'!A21 -> Project Evaluation | B21: 50000 | C21: 0 | D21: 0 | E21: 50000 | F21: =SUM('INVOICE 14'!F21,'INVOICE 14'!J21) -> 32500 | G21: =SUM('INVOICE 14'!G21,'INVOICE 14'!K21) -> 0 | H21: =SUM('INVOICE 14'!H21,'INVOICE 14'!L21) -> 0 | I21: 32500 | J21: 8750 | K21: 0 | L21: 0 | M21: 8750 | N21: 8750 | O21: 0 | P21: 0 | Q21: 8750
A22: ='INVOICE 1'!A22 -> Other (Travel, Training, etc) | B22: 2000 | C22: 0 | D22: 0 | E22: 2000 | F22: =SUM('INVOICE 14'!F22,'INVOICE 14'!J22) -> 602 | G22: =SUM('INVOICE 14'!G22,'INVOICE 14'!K22) -> 0 | H22: =SUM('INVOICE 14'!H22,'INVOICE 14'!L22) -> 0 | I22: 602 | J22: 0 | K22: 0 | L22: 0 | M22: 0 | N22: 1398 | O22: 0 | P22: 0 | Q22: 1398
A23: TOTAL | B23: 500000 | C23: 391000 | D23: 109000 | E23: 1000000 | F23: =SUM(F15:F22) -> 203661 | G23: 164856 | H23: 46346 | I23: 414863 | J23: 25219 | K23: =SUM(K15:K22) -> 13195 | L23: =SUM(L15:L22) -> 2915 | M23: =SUM(M15:M22) -> 41329 | N23: 271120 | O23: 212949 | P23: 59739 | Q23: 543808
A25: Project Income | D25: Income reported to date | E25: ='INVOICE 1'!E25+'INVOICE 15'!L25 -> 0 | H25: Prior allocated income | I25: 0 | K25: This Period | L25: 0 | P25: Unallocated income balance | Q25: =E25-I25 -> 0
C27: Grant funds expended to date: | E27: =SUM(F23,J23) -> 228880 | I27: Grant funds claimed this period: | J27: =J23 -> 25219 | O27: Percentage Grant $$ expended to date: | Q27: =E27/B23 -> 0.45776
C28: Cash match to date: | E28: =SUM(G23,K23) -> 178051 | O28: % of Total Obligated Cash Match to date: | Q28: =E28/C23 -> 0.4553734015
C29: In-kind match to date: | E29: =SUM(H23,L23) -> 49261 | O29: % of Total Obligated In-kind Match to date: | Q29: =E29/D23 -> 0.4519357798
E31: Expenditure Descriptions - Units / $ Amounts | O31: Comments
A32: Salaries & Benefits | B32: Grant Funds | D32: =J15 -> 15640 | E32: Project Director 0.4 FTE $1,597.40 Enterprise Outreach Coordinator 1 FTE $3,286.09.Cognitive Life Skills Director 0.5 FTE $2,014.68 Drug & Alcohol Facilitator 0.5 FTE $2,208.66 Academic Tutor 0.5 FTE $1,499.61.Mental Health Specialist 0.5 FTE $2,034.24 Job Readiness Trainer 0.5 FTE $1,200.00 Case Management 0.5 FTE $1,800.00
B33: Cash Match | D33: =K15 -> 6639 | E33: Project Director 0.6 FTE $2,320.10 Cognitive Life Skills Director 0.5 $352.09 Mental Health Specialist 0.5 FTE $1,469.15.Administrative Support 0.5 FTE $760.00 Case Management 0.5 FTE $1,388.00 Mentors (2) 0.5 FTE $2,715.00.Wells Fargo - Financial Literacy Workshop $200 (4hrs @ $50ph).Mentor/Cognitive Life Skills Facilitator 0.5 FTE $350.00 | O33: Cash and In-kind Match expenditure description
B34: In-kind Match | D34: =L15 -> 2915
A35: Services & Supplies | B35: Grant Funds | D35: =J16 -> 829 | E35: Social Solutions Apricot Data Analysis System $316.71. Food for Forklift (Job Training Class) $212.05 (Domino's $107.20, Subway $104.85) Community Action Partnership Office Space Rent $300.00
B36: Cash Match | D36: =K16 -> 4992 | E36: JYT Graphics $625.00 (advertising, flyers) Management Consultant of America $994.00 (accounting fee).1&1 IONOS $15.71 (webmail) Tonerpirate.com $218.39 (toner) Quickbooks Intuit $60.00 (accounting tracking system).CBE $112.27 (Smart TV used in training room) SOS Stipends (8) $1,926 Sema Inc $1,040.87 (Sharp Printers)
B37: In-kind Match | D37: =L16 -> 0
A38: Prof Services / Public Agency Subcontracts | B38: Grant Funds | D38: =-J17 -> 0
B39: Cash Match | D39: =K17 -> 0
B40: In-kind Match | D40: =L17 -> 0
A41: CBO Subcontracts | B41: Grant Funds | D41: =J18 -> 0
B42: Cash Match | D42: =K18 -> 0
B43: In-kind Match | D43: =L18 -> 0
A44: Indirect Cost | B44: Grant Funds | D44: =J19 -> 0
B45: Cash Match | D45: =K19 -> 1564 | E45: Indirect cost rate at 10% Salaries benefits and fringe
B46: In-kind Match | D46: =L19 -> 0
A47: Equipment Fixed Assets | B47: Grant Funds | D47: =J20 -> 0
B48: Cash Match | D48: =K20 -> 0
B49: In-kind Match | D49: =-L20 -> 0
A50: Project Evaluation | B50: Grant Funds | D50: =J21 -> 8750 | E50: Strategic Partnership Schools Group Providing comprehensive evaluation services 175 hours @ $50 per hour $8,750.00
B51: Cash Match | D51: =K21 -> 0
B52: In-kind Match | D52: =L21 -> 0
A53: Other | B53: Grant Funds | D53: =J22 -> 0
B54: Cash Match | D54: =K22 -> 0
B55: In-kind Match | D55: =L22 -> 0
A56: Project Income | D56: =M25 -> 0
A57: PERSON PREPARING REPORT | F57: AUTHORIZED FINANCIAL OFFICER | N57: BSCC Supplier Data - Internal Use Only
F58: By checking the box below, I hereby certify that I am the authorized financial officer of the herein named agency. I further certify that I have not violated any of the provisions of Section 1090 of the Government Code in incurring the expenditures reported in this invoice, nor in any other way; that Sections 1090 through 1096 of the Government Code will not be violated in any way in the expenditure of funds pursuant to this invoice; that statement of funds above is true, correct, and in accordance with program provisions in all respects; and that all expenditures submitted after the expiration date of this contract are for the purpose of substantiating obligations legally incurred during the contract period. Furthermore, by submitting this invoice, I acknowledge that it must adhere to all of the requirements in the BSCC Grant Administration Guide, including any updates to the Guide during the term of the grant agreement.
A59: Jennifer Rosales, Office Manager | N59: 0000102062
A60: Name, Title | N60: Supplier ID
A61: 909-723-1695 | N61: YOUNG VISIONARIES YOUTH LEADERSHIP ACADEMY
A62: Phone | N62: Supplier Name
A63: rosalesj129@yvyla-ie.org | N63: 696 S TIPPECANOE AVE
A64: Email | N64: Address Line 1
A65: 2019-11-27 | N65: SAN BERNARDINO, CA 92408
A66: Date | N66: ='INVOICE 1'!N66:Q66 -> SAN BERNARDINO, CA 92408
F68: Terrance Stone, CEO
F69: Name, Title
F70: 909-910-7327
F71: Phone
F72: 2019-11-27
F73: Date
A75: BSCC USE ONLY
A76: Date Received: | C76: 2019-11-27 | I76: Approved By: | K76: Colleen Curtin | O76: Date: | P76: 2019-12-13
K77: BSCC Field Representative

Sheet INVOICE 16
A1: STATE OF CALIFORNIA | N1: Purchase Authority | O1: BSCC 5227
A2: BOARD OF STATE AND COMMUNITY CORRECTIONS | N2: Purchase Order: | O2: 5227-0000002094 | Q2: ='INVOICE 1'!Q2 -> 0
A3: Financial Invoice Form: BSCC 201 (Revised 04/2020)
A5: Program: | B5: ='INVOICE 1'!B5 -> CalVIP-17 | M5: Please Note: The California State Controller's Office will send all checks directly to the address listed in the "BSCC Vendor Data" section at the bottom of this invoice.
A7: Grantee: | B7: ='INVOICE 1'!B7 -> Young Visionaries Youth Leadership Academy | G7: Lead Public Agency: | I7: ='INVOICE 1'!I7 -> Young Visionaries Youth Leadership Academy
A9: Contract #: | B9: ='INVOICE 1'!B9 -> 864-17 | E9: Term: | F9: ='INVOICE 1'!F9 -> 2018-05-01 | G9: TO | I9: ='INVOICE 1'!I9 -> 2021-08-16 | N9: Invoicing Frequency | O9: ='INVOICE 1'!O9 -> Monthly
A11: Invoice #: | B11: 16 CALVIP 18 | E11: Reporting Period: | F11: 2019-08-01 | G11: TO | I11: 2019-08-31 | J11: Due: | K11: 2019-10-14 | N11: Final Invoice (Y/N): | O11: No
A13: Line Items | B13: Budget | F13: Prior Expenditures | J13: This Reporting Period | N13: Balance
B14: Grant Funds | C14: Cash Match | D14: In-kind Match | E14: TOTAL | F14: Grant Funds | G14: Cash Match | H14: In-kind Match | I14: TOTAL | J14: Grant Funds | K14: Cash Match | L14: In-kind Match | M14: TOTAL | N14: Grant Funds | O14: Cash Match | P14: In-kind Match | Q14: TOTAL
A15: ='INVOICE 1'!A15 -> Salaries & Benefits | B15: 366718 | C15: 261000 | D15: 109000 | E15: 736718 | F15: =SUM('INVOICE 15'!F15,'INVOICE 15'!J15) -> 158316 | G15: =SUM('INVOICE 15'!G15,'INVOICE 15'!K15) -> 114186 | H15: =SUM('INVOICE 15'!H15,'INVOICE 15'!L15) -> 49261 | I15: =SUM(F15:H15) -> 321763 | J15: 16624 | K15: 7898 | L15: 5823 | M15: =SUM(J15:L15) -> 30345 | N15: =B15-F15-J15 -> 191778 | O15: 138916 | P15: 53916 | Q15: =SUM(N15:P15) -> 384610
A16: ='INVOICE 1'!A16 -> Services & Supplies | B16: 41282 | C16: 51328 | D16: 0 | E16: 92610 | F16: =SUM('INVOICE 15'!F16,'INVOICE 15'!J16) -> 8705 | G16: =SUM('INVOICE 15'!G16,'INVOICE 15'!K16) -> 21776 | H16: =SUM('INVOICE 15'!H16,'INVOICE 15'!L16) -> 0 | I16: =SUM(F16:H16) -> 30481 | J16: 1695 | K16: 1862 | L16: 0 | M16: =SUM(J16:L16) -> 3557 | N16: 30882 | O16: 27690 | P16: 0 | Q16: =SUM(N16:P16) -> 58572
A17: ='INVOICE 1'!A17 -> Prof Services / Public Agency Subcontracts | B17: 40000 | C17: 40000 | D17: 0 | E17: 80000 | F17: =SUM('INVOICE 15'!F17,'INVOICE 15'!J17) -> 20007 | G17: =SUM('INVOICE 15'!G17,'INVOICE 15'!K17) -> 26242 | H17: =SUM('INVOICE 15'!H17,'INVOICE 15'!L17) -> 0 | I17: 46249 | J17: 0 | K17: 0 | L17: 0 | M17: 0 | N17: 19993 | O17: 13758 | P17: 0 | Q17: 33751
A18: ='INVOICE 1'!A18 -> CBO Subcontracts | B18: 0 | C18: 0 | D18: 0 | E18: 0 | F18: =SUM('INVOICE 15'!F18,'INVOICE 15'!J18) -> 0 | G18: =SUM('INVOICE 15'!G18,'INVOICE 15'!K18) -> 0 | H18: =SUM('INVOICE 15'!H18,'INVOICE 15'!L18) -> 0 | I18: 0 | J18: 0 | K18: 0 | L18: 0 | M18: 0 | N18: 0 | O18: 0 | P18: 0 | Q18: 0
A19: ='INVOICE 1'!A19 -> Indirect Costs | B19: 0 | C19: 38672 | D19: 0 | E19: 38672 | F19: =SUM('INVOICE 15'!F19,'INVOICE 15'!J19) -> 0 | G19: =SUM('INVOICE 15'!G19,'INVOICE 15'!K19) -> 15847 | H19: =SUM('INVOICE 15'!H19,'INVOICE 15'!L19) -> 0 | I19: 15847 | J19: 0 | K19: 1662 | L19: 0 | M19: 1662 | N19: 0 | O19: 21163 | P19: 0 | Q19: 21163
A20: ='INVOICE 1'!A20 -> Equip/Fixed Assets | B20: 0 | C20: 0 | D20: 0 | E20: 0 | F20: =SUM('INVOICE 15'!F20,'INVOICE 15'!J20) -> 0 | G20: =SUM('INVOICE 15'!G20,'INVOICE 15'!K20) -> 0 | H20: =SUM('INVOICE 15'!H20,'INVOICE 15'!L20) -> 0 | I20: 0 | J20: 0 | K20: 0 | L20: 0 | M20: 0 | N20: 0 | O20: 0 | P20: 0 | Q20: 0
A21: ='INVOICE 1'!A21 -> Project Evaluation | B21: 50000 | C21: 0 | D21: 0 | E21: 50000 | F21: =SUM('INVOICE 15'!F21,'INVOICE 15'!J21) -> 41250 | G21: =SUM('INVOICE 15'!G21,'INVOICE 15'!K21) -> 0 | H21: =SUM('INVOICE 15'!H21,'INVOICE 15'!L21) -> 0 | I21: 41250 | J21: 0 | K21: 0 | L21: 0 | M21: 0 | N21: 8750 | O21: 0 | P21: 0 | Q21: 8750
A22: ='INVOICE 1'!A22 -> Other (Travel, Training, etc) | B22: 2000 | C22: 0 | D22: 0 | E22: 2000 | F22: =SUM('INVOICE 15'!F22,'INVOICE 15'!J22) -> 602 | G22: =SUM('INVOICE 15'!G22,'INVOICE 15'!K22) -> 0 | H22: =SUM('INVOICE 15'!H22,'INVOICE 15'!L22) -> 0 | I22: 602 | J22: 0 | K22: 0 | L22: 0 | M22: 0 | N22: 1398 | O22: 0 | P22: 0 | Q22: 1398
A23: TOTAL | B23: 500000 | C23: 391000 | D23: 109000 | E23: 1000000 | F23: =SUM(F15:F22) -> 228880 | G23: 178051 | H23: 49261 | I23: 456192 | J23: 18319 | K23: =SUM(K15:K22) -> 11422 | L23: =SUM(L15:L22) -> 5823 | M23: =SUM(M15:M22) -> 35564 | N23: 252801 | O23: 201527 | P23: 53916 | Q23: 508244
A25: Project Income | D25: Income reported to date | E25: ='INVOICE 1'!E25+'INVOICE 16'!L25 -> 0 | H25: Prior allocated income | I25: 0 | K25: This Period | L25: 0 | P25: Unallocated income balance | Q25: =E25-I25 -> 0
C27: Grant funds expended to date: | E27: =SUM(F23,J23) -> 247199 | I27: Grant funds claimed this period: | J27: =J23 -> 18319 | O27: Percentage Grant $$ expended to date: | Q27: =E27/B23 -> 0.494398
C28: Cash match to date: | E28: =SUM(G23,K23) -> 189473 | O28: % of Total Obligated Cash Match to date: | Q28: =E28/C23 -> 0.4845856777
C29: In-kind match to date: | E29: =SUM(H23,L23) -> 55084 | O29: % of Total Obligated In-kind Match to date: | Q29: =E29/D23 -> 0.5053577982
E31: Expenditure Descriptions - Units / $ Amounts | O31: Comments
A32: Salaries & Benefits | B32: Grant Funds | D32: =J15 -> 16624 | E32: Project Director 0.4 FTE $2022.44 Enterprise Outreach Coordinator 1 FTE $3,244.35. Cognitive Life Skills Director 0.5 FTE $1915.34 Drug & Alcohol Facilitator 0.5 FTE $2092.87 Academic Tutor 0.5 FTE $1872.99.Mental Health Specialist 0.5 FTE $1,976.14 Job Readiness Trainer 0.5 FTE $1,200.00 Case Management 0.5 FTE $2,300.00
B33: Cash Match | D33: =K15 -> 7898 | E33: Project Director 0.6 FTE $2,926.21 Cognitive Life Skills Director 0.5 $781.77 Mental Health Specialist 0.5 FTE $1,524.45.Administrative Support 0.5 FTE $1,064.08 Case Management 0.5 FTE $1,388.00 Mentors (5) 0.5 FTE $5,623.00.Wells Fargo - Financial Literacy Workshop $200 (4hrs @ $50ph).Mentor/Cognitive Life Skills Facilitator 0.5 FTE $212.50 | O33: Cash and In-kind Match expenditure description
B34: In-kind Match | D34: =L15 -> 5823
A35: Services & Supplies | B35: Grant Funds | D35: =J16 -> 1695 | E35: Social Solutions Data Collection $1,173.00 99 Cent Store Only $4.32 Forklift Snacks Domino's Pizza $217.99.Community Action Partnership $300.00 office space
B36: Cash Match | D36: =K16 -> 1862 | E36: Epson America Inc Toner $42.09 Wal-Mart office supplies $124.95 Cell Business Equipment $23.00 Toner delivery freight charge.Time Tracker/Ebility $140.00 constant Contact $135 advertisment Quickbooks $150.00.Sema Inc. $1,247.22 Sharp printers (2)
B37: In-kind Match | D37: =L16 -> 0
A38: Prof Services / Public Agency Subcontracts | B38: Grant Funds | D38: =-J17 -> 0
B39: Cash Match | D39: =K17 -> 0
B40: In-kind Match | D40: =L17 -> 0
A41: CBO Subcontracts | B41: Grant Funds | D41: =J18 -> 0
B42: Cash Match | D42: =K18 -> 0
B43: In-kind Match | D43: =L18 -> 0
A44: Indirect Cost | B44: Grant Funds | D44: =J19 -> 0
B45: Cash Match | D45: =K19 -> 1662 | E45: Indirect cost rate at 10% Salaries benefits and fringe
B46: In-kind Match | D46: =L19 -> 0
A47: Equipment Fixed Assets | B47: Grant Funds | D47: =J20 -> 0
B48: Cash Match | D48: =K20 -> 0
B49: In-kind Match | D49: =-L20 -> 0
A50: Project Evaluation | B50: Grant Funds | D50: =J21 -> 0
B51: Cash Match | D51: =K21 -> 0
B52: In-kind Match | D52: =L21 -> 0
A53: Other | B53: Grant Funds | D53: =J22 -> 0
B54: Cash Match | D54: =K22 -> 0
B55: In-kind Match | D55: =L22 -> 0
A56: Project Income | D56: =M25 -> 0
A57: PERSON PREPARING REPORT | F57: AUTHORIZED FINANCIAL OFFICER | N57: BSCC Supplier Data - Internal Use Only
F58: By checking the box below, I hereby certify that I am the authorized financial officer of the herein named agency. I further certify that I have not violated any of the provisions of Section 1090 of the Government Code in incurring the expenditures reported in this invoice, nor in any other way; that Sections 1090 through 1096 of the Government Code will not be violated in any way in the expenditure of funds pursuant to this invoice; that statement of funds above is true, correct, and in accordance with program provisions in all respects; and that all expenditures submitted after the expiration date of this contract are for the purpose of substantiating obligations legally incurred during the contract period. Furthermore, by submitting this invoice, I acknowledge that it must adhere to all of the requirements in the BSCC Grant Administration Guide, including any updates to the Guide during the term of the grant agreement.
A59: Jennifer Rosales, Office Manager | N59: 0000102062
A60: Name, Title | N60: Supplier ID
A61: 909-723-1695 | N61: YOUNG VISIONARIES YOUTH LEADERSHIP ACADEMY
A62: Phone | N62: Supplier Name
A63: rosalesj129@gmail.com | N63: 696 S TIPPECANOE AVE
A64: Email | N64: Address Line 1
A65: September 27,2019 | N65: SAN BERNARDINO, CA 92408
A66: Date | N66: ='INVOICE 1'!N66:Q66 -> SAN BERNARDINO, CA 92408
F68: Terrance Stone, CEO
F69: Name, Title
F70: 909-910-7327
F71: Phone
F72: 2019-09-27
F73: Date
A75: BSCC USE ONLY
A76: Date Received: | C76: 2019-09-27 | I76: Approved By: | K76: Colleen Curtin | O76: Date: | P76: 2019-12-13
K77: BSCC Field Representative

Sheet INVOICE 17
A1: STATE OF CALIFORNIA | N1: Purchase Authority | O1: BSCC 5227
A2: BOARD OF STATE AND COMMUNITY CORRECTIONS | N2: Purchase Order: | O2: 5227-0000002094 | Q2: ='INVOICE 1'!Q2 -> 0
A3: Financial Invoice Form: BSCC 201 (Revised 04/2020)
A5: Program: | B5: ='INVOICE 1'!B5 -> CalVIP-17 | M5: Please Note: The California State Controller's Office will send all checks directly to the address listed in the "BSCC Vendor Data" section at the bottom of this invoice.
A7: Grantee: | B7: ='INVOICE 1'!B7 -> Young Visionaries Youth Leadership Academy | G7: Lead Public Agency: | I7: ='INVOICE 1'!I7 -> Young Visionaries Youth Leadership Academy
A9: Contract #: | B9: ='INVOICE 1'!B9 -> 864-17 | E9: Term: | F9: ='INVOICE 1'!F9 -> 2018-05-01 | G9: TO | I9: ='INVOICE 1'!I9 -> 2021-08-16 | N9: Invoicing Frequency | O9: ='INVOICE 1'!O9 -> Monthly
A11: Invoice #: | B11: 17 CALVIP 18 | E11: Reporting Period: | F11: 2019-09-01 | G11: TO | I11: 2019-09-30 | J11: Due: | K11: 2019-11-15 | N11: Final Invoice (Y/N): | O11: No
A13: Line Items | B13: Budget | F13: Prior Expenditures | J13: This Reporting Period | N13: Balance
B14: Grant Funds | C14: Cash Match | D14: In-kind Match | E14: TOTAL | F14: Grant Funds | G14: Cash Match | H14: In-kind Match | I14: TOTAL | J14: Grant Funds | K14: Cash Match | L14: In-kind Match | M14: TOTAL | N14: Grant Funds | O14: Cash Match | P14: In-kind Match | Q14: TOTAL
A15: ='INVOICE 1'!A15 -> Salaries & Benefits | B15: ='INVOICE 16'!B15 -> 366718 | C15: ='INVOICE 16'!C15 -> 261000 | D15: ='INVOICE 16'!D15 -> 109000 | E15: =SUM(B15:D15) -> 736718 | F15: =SUM('INVOICE 16'!F15,'INVOICE 16'!J15) -> 174940 | G15: =SUM('INVOICE 16'!G15,'INVOICE 16'!K15) -> 122084 | H15: =SUM('INVOICE 16'!H15,'INVOICE 16'!L15) -> 55084 | I15: =SUM(F15:H15) -> 352108 | J15: 15665 | K15: 7077 | L15: 6633 | M15: =SUM(J15:L15) -> 29375 | N15: =B15-F15-J15 -> 176113 | O15: 131839 | P15: 47283 | Q15: =SUM(N15:P15) -> 355235
A16: ='INVOICE 1'!A16 -> Services & Supplies | B16: ='INVOICE 16'!B16 -> 41282 | C16: ='INVOICE 16'!C16 -> 51328 | D16: ='INVOICE 16'!D16 -> 0 | E16: =SUM(B16:D16) -> 92610 | F16: =SUM('INVOICE 16'!F16,'INVOICE 16'!J16) -> 10400 | G16: =SUM('INVOICE 16'!G16,'INVOICE 16'!K16) -> 23638 | H16: =SUM('INVOICE 16'!H16,'INVOICE 16'!L16) -> 0 | I16: =SUM(F16:H16) -> 34038 | J16: 1022 | K16: 1538 | L16: 0 | M16: =SUM(J16:L16) -> 2560 | N16: 29860 | O16: 26152 | P16: 0 | Q16: =SUM(N16:P16) -> 56012
A17: ='INVOICE 1'!A17 -> Prof Services / Public Agency Subcontracts | B17: ='INVOICE 16'!B17 -> 40000 | C17: ='INVOICE 16'!C17 -> 40000 | D17: ='INVOICE 16'!D17 -> 0 | E17: 80000 | F17: =SUM('INVOICE 16'!F17,'INVOICE 16'!J17) -> 20007 | G17: =SUM('INVOICE 16'!G17,'INVOICE 16'!K17) -> 26242 | H17: =SUM('INVOICE 16'!H17,'INVOICE 16'!L17) -> 0 | I17: 46249 | J17: 0 | K17: 0 | L17: 0 | M17: 0 | N17: 19993 | O17: 13758 | P17: 0 | Q17: 33751
A18: ='INVOICE 1'!A18 -> CBO Subcontracts | B18: ='INVOICE 16'!B18 -> 0 | C18: ='INVOICE 16'!C18 -> 0 | D18: ='INVOICE 16'!D18 -> 0 | E18: 0 | F18: =SUM('INVOICE 16'!F18,'INVOICE 16'!J18) -> 0 | G18: =SUM('INVOICE 16'!G18,'INVOICE 16'!K18) -> 0 | H18: =SUM('INVOICE 16'!H18,'INVOICE 16'!L18) -> 0 | I18: 0 | J18: 0 | K18: 0 | L18: 0 | M18: 0 | N18: 0 | O18: 0 | P18: 0 | Q18: 0
A19: ='INVOICE 1'!A19 -> Indirect Costs | B19: ='INVOICE 16'!B19 -> 0 | C19: ='INVOICE 16'!C19 -> 38672 | D19: ='INVOICE 16'!D19 -> 0 | E19: 38672 | F19: =SUM('INVOICE 16'!F19,'INVOICE 16'!J19) -> 0 | G19: =SUM('INVOICE 16'!G19,'INVOICE 16'!K19) -> 17509 | H19: =SUM('INVOICE 16'!H19,'INVOICE 16'!L19) -> 0 | I19: 17509 | J19: 0 | K19: 1567 | L19: 0 | M19: 1567 | N19: 0 | O19: 19596 | P19: 0 | Q19: 19596
A20: ='INVOICE 1'!A20 -> Equip/Fixed Assets | B20: ='INVOICE 16'!B20 -> 0 | C20: ='INVOICE 16'!C20 -> 0 | D20: ='INVOICE 16'!D20 -> 0 | E20: 0 | F20: =SUM('INVOICE 16'!F20,'INVOICE 16'!J20) -> 0 | G20: =SUM('INVOICE 16'!G20,'INVOICE 16'!K20) -> 0 | H20: =SUM('INVOICE 16'!H20,'INVOICE 16'!L20) -> 0 | I20: 0 | J20: 0 | K20: 0 | L20: 0 | M20: 0 | N20: 0 | O20: 0 | P20: 0 | Q20: 0
A21: ='INVOICE 1'!A21 -> Project Evaluation | B21: ='INVOICE 16'!B21 -> 50000 | C21: ='INVOICE 16'!C21 -> 0 | D21: ='INVOICE 16'!D21 -> 0 | E21: 50000 | F21: =SUM('INVOICE 16'!F21,'INVOICE 16'!J21) -> 41250 | G21: =SUM('INVOICE 16'!G21,'INVOICE 16'!K21) -> 0 | H21: =SUM('INVOICE 16'!H21,'INVOICE 16'!L21) -> 0 | I21: 41250 | J21: 0 | K21: 0 | L21: 0 | M21: 0 | N21: 8750 | O21: 0 | P21: 0 | Q21: 8750
A22: ='INVOICE 1'!A22 -> Other (Travel, Training, etc) | B22: ='INVOICE 16'!B22 -> 2000 | C22: ='INVOICE 16'!C22 -> 0 | D22: ='INVOICE 16'!D22 -> 0 | E22: 2000 | F22: =SUM('INVOICE 16'!F22,'INVOICE 16'!J22) -> 602 | G22: =SUM('INVOICE 16'!G22,'INVOICE 16'!K22) -> 0 | H22: =SUM('INVOICE 16'!H22,'INVOICE 16'!L22) -> 0 | I22: 602 | J22: 0 | K22: 0 | L22: 0 | M22: 0 | N22: 1398 | O22: 0 | P22: 0 | Q22: 1398
A23: TOTAL | B23: =SUM(B15:B22) -> 500000 | C23: =SUM(C15:C22) -> 391000 | D23: =SUM(D15:D22) -> 109000 | E23: =SUM(E15:E22) -> 1000000 | F23: =SUM(F15:F22) -> 247199 | G23: 189473 | H23: 55084 | I23: 491756 | J23: 16687 | K23: =SUM(K15:K22) -> 10182 | L23: =SUM(L15:L22) -> 6633 | M23: =SUM(M15:M22) -> 33502 | N23: 236114 | O23: 191345 | P23: 47283 | Q23: 474742
A25: Project Income | D25: Income reported to date | E25: ='INVOICE 1'!E25+'INVOICE 17'!L25 -> 0 | H25: Prior allocated income | I25: 0 | K25: This Period | L25: 0 | P25: Unallocated income balance | Q25: =E25-I25 -> 0
C27: Grant funds expended to date: | E27: =SUM(F23,J23) -> 263886 | I27: Grant funds claimed this period: | J27: =J23 -> 16687 | O27: Percentage Grant $$ expended to date: | Q27: =E27/B23 -> 0.527772
C28: Cash match to date: | E28: =SUM(G23,K23) -> 199655 | O28: % of Total Obligated Cash Match to date: | Q28: =E28/C23 -> 0.5106265985
C29: In-kind match to date: | E29: =SUM(H23,L23) -> 61717 | O29: % of Total Obligated In-kind Match to date: | Q29: =E29/D23 -> 0.5662110092
E31: Expenditure Descriptions - Units / $ Amounts | O31: Comments
A32: Salaries & Benefits | B32: Grant Funds | D32: =J15 -> 15665 | E32: Project Director 0.2 FTE $1,655.93 Enterprise Outreach Coordinator 1 FTE $2,887.17.Cognitive Life Skills Director 0.5 FTE $1,763.31 Drug & Alcohol Facilitator 0.5 FTE $2,212.21 Academic Tutor 0.5 FTE $2,179.91.Mental Health Specialist 0.5 FTE $2,016.58 Job Readiness Trainer 0.5 FTE $1,200 Program Coordinator 0.5 FTE $1,750
B33: Cash Match | D33: =K15 -> 7077 | E33: roject Director 0.3 FTE $3,016.26 Cognitive Life Skills Director $1,596.32 Mental Health Specialists 0.5 FTE $1,344.39.Program Coordinator 0.5 FTE $1,388 Mentors (6) $5,045.25 Administrative Support 0.5 FTE $1,120.32.Wells Fargo - Financial Literacy Workshop $200 (4hrs @ $50ph) | O33: Cash and In-kind Match Expwnditure Descriptions.
B34: In-kind Match | D34: =L15 -> 6633
A35: Services & Supplies | B35: Grant Funds | D35: =J16 -> 1022 | E35: Office Supplies Sam's Club $64.76 Office Space Rent $300 Cell Business Equipment $112.27.Office Supplies Staples $37.79 Forklift Training Food Domino's $135.93 Forklift Training Drinks 99 Cent Store $7.32.Social Solutions Database collection $363.63
B36: Cash Match | D36: =K16 -> 1538 | E36: Sema Inc. Sharp Printers $1,040.87 Time Tracker $145.65 Toner Pirate $201.94
B37: In-kind Match | D37: =L16 -> 0
A38: Prof Services / Public Agency Subcontracts | B38: Grant Funds | D38: =-J17 -> 0
B39: Cash Match | D39: =K17 -> 0
B40: In-kind Match | D40: =L17 -> 0
A41: CBO Subcontracts | B41: Grant Funds | D41: =J18 -> 0
B42: Cash Match | D42: =K18 -> 0
B43: In-kind Match | D43: =L18 -> 0
A44: Indirect Cost | B44: Grant Funds | D44: =J19 -> 0
B45: Cash Match | D45: =K19 -> 1567 | E45: Indirect cost rate at 10% Salaries benefits and fringe
B46: In-kind Match | D46: =L19 -> 0
A47: Equipment Fixed Assets | B47: Grant Funds | D47: =J20 -> 0
B48: Cash Match | D48: =K20 -> 0
B49: In-kind Match | D49: =-L20 -> 0
A50: Project Evaluation | B50: Grant Funds | D50: =J21 -> 0
B51: Cash Match | D51: =K21 -> 0
B52: In-kind Match | D52: =L21 -> 0
A53: Other | B53: Grant Funds | D53: =J22 -> 0
B54: Cash Match | D54: =K22 -> 0
B55: In-kind Match | D55: =L22 -> 0
A56: Project Income | D56: =M25 -> 0
A57: PERSON PREPARING REPORT | F57: AUTHORIZED FINANCIAL OFFICER | N57: BSCC Supplier Data - Internal Use Only
F58: By checking the box below, I hereby certify that I am the authorized financial officer of the herein named agency. I further certify that I have not violated any of the provisions of Section 1090 of the Government Code in incurring the expenditures reported in this invoice, nor in any other way; that Sections 1090 through 1096 of the Government Code will not be violated in any way in the expenditure of funds pursuant to this invoice; that statement of funds above is true, correct, and in accordance with program provisions in all respects; and that all expenditures submitted after the expiration date of this contract are for the purpose of substantiating obligations legally incurred during the contract period. Furthermore, by submitting this invoice, I acknowledge that it must adhere to all of the requirements in the BSCC Grant Administration Guide, including any updates to the Guide during the term of the grant agreement.
A59: Jennifer Rosales, Office Manager | N59: 0000102062
A60: Name, Title | N60: Supplier ID
A61: 909-723-1695 | N61: YOUNG VISIONARIES YOUTH LEADERSHIP ACADEMY
A62: Phone | N62: Supplier Name
A63: rosalesj129@yvyla-ie.org | N63: 696 S TIPPECANOE AVE
A64: Email | N64: Address Line 1
A65: 2019-11-27 | N65: SAN BERNARDINO, CA 92408
A66: Date | N66: ='INVOICE 1'!N66:Q66 -> SAN BERNARDINO, CA 92408
F68: Terrance Stone, CEO
F69: Name, Title
F70: 909-910-7327
F71: Phone
F72: 2019-11-27
F73: Date
A75: BSCC USE ONLY
A76: Date Received: | C76: 2019-12-05 | I76: Approved By: | K76: Colleen Curtin | O76: Date: | P76: 2019-12-13
K77: BSCC Field Representative

Sheet INVOICE 18
A1: STATE OF CALIFORNIA | N1: Purchase Authority | O1: BSCC 5227
A2: BOARD OF STATE AND COMMUNITY CORRECTIONS | N2: Purchase Order: | O2: 5227-0000002094 | Q2: ='INVOICE 1'!Q2 -> 0
A3: Financial Invoice Form: BSCC 201 (Revised 04/2020)
A5: Program: | B5: ='INVOICE 1'!B5 -> CalVIP-17 | M5: Please Note: The California State Controller's Office will send all checks directly to the address listed in the "BSCC Vendor Data" section at the bottom of this invoice.
A7: Grantee: | B7: ='INVOICE 1'!B7 -> Young Visionaries Youth Leadership Academy | G7: Lead Public Agency: | I7: ='INVOICE 1'!I7 -> Young Visionaries Youth Leadership Academy
A9: Contract #: | B9: ='INVOICE 1'!B9 -> 864-17 | E9: Term: | F9: ='INVOICE 1'!F9 -> 2018-05-01 | G9: TO | I9: ='INVOICE 1'!I9 -> 2021-08-16 | N9: Invoicing Frequency | O9: ='INVOICE 1'!O9 -> Monthly
A11: Invoice #: | B11: 18 CALVIP 18 | E11: Reporting Period: | F11: 2019-10-01 | G11: TO | I11: 2019-10-31 | J11: Due: | K11: 2019-12-15 | N11: Final Invoice (Y/N): | O11: No
A13: Line Items | B13: Budget | F13: Prior Expenditures | J13: This Reporting Period | N13: Balance
B14: Grant Funds | C14: Cash Match | D14: In-kind Match | E14: TOTAL | F14: Grant Funds | G14: Cash Match | H14: In-kind Match | I14: TOTAL | J14: Grant Funds | K14: Cash Match | L14: In-kind Match | M14: TOTAL | N14: Grant Funds | O14: Cash Match | P14: In-kind Match | Q14: TOTAL
A15: ='INVOICE 1'!A15 -> Salaries & Benefits | B15: ='INVOICE 17'!B15 -> 366718 | C15: ='INVOICE 17'!C15 -> 261000 | D15: ='INVOICE 17'!D15 -> 109000 | E15: =SUM(B15:D15) -> 736718 | F15: =SUM('INVOICE 17'!F15,'INVOICE 17'!J15) -> 190605 | G15: =SUM('INVOICE 17'!G15,'INVOICE 17'!K15) -> 129161 | H15: =SUM('INVOICE 17'!H15,'INVOICE 17'!L15) -> 61717 | I15: =SUM(F15:H15) -> 381483 | J15: 17354 | K15: 6933 | L15: 7619 | M15: =SUM(J15:L15) -> 31906 | N15: =B15-F15-J15 -> 158759 | O15: 124906 | P15: 39664 | Q15: =SUM(N15:P15) -> 323329
A16: ='INVOICE 1'!A16 -> Services & Supplies | B16: ='INVOICE 17'!B16 -> 41282 | C16: ='INVOICE 17'!C16 -> 51328 | D16: ='INVOICE 17'!D16 -> 0 | E16: =SUM(B16:D16) -> 92610 | F16: =SUM('INVOICE 17'!F16,'INVOICE 17'!J16) -> 11422 | G16: =SUM('INVOICE 17'!G16,'INVOICE 17'!K16) -> 25176 | H16: =SUM('INVOICE 17'!H16,'INVOICE 17'!L16) -> 0 | I16: =SUM(F16:H16) -> 36598 | J16: 1153 | K16: 2961 | L16: 0 | M16: =SUM(J16:L16) -> 4114 | N16: 28707 | O16: 23191 | P16: 0 | Q16: =SUM(N16:P16) -> 51898
A17: ='INVOICE 1'!A17 -> Prof Services / Public Agency Subcontracts | B17: ='INVOICE 17'!B17 -> 40000 | C17: ='INVOICE 17'!C17 -> 40000 | D17: ='INVOICE 17'!D17 -> 0 | E17: 80000 | F17: =SUM('INVOICE 17'!F17,'INVOICE 17'!J17) -> 20007 | G17: =SUM('INVOICE 17'!G17,'INVOICE 17'!K17) -> 26242 | H17: =SUM('INVOICE 17'!H17,'INVOICE 17'!L17) -> 0 | I17: 46249 | J17: 0 | K17: 0 | L17: 0 | M17: 0 | N17: 19993 | O17: 13758 | P17: 0 | Q17: 33751
A18: ='INVOICE 1'!A18 -> CBO Subcontracts | B18: ='INVOICE 17'!B18 -> 0 | C18: ='INVOICE 17'!C18 -> 0 | D18: ='INVOICE 17'!D18 -> 0 | E18: 0 | F18: =SUM('INVOICE 17'!F18,'INVOICE 17'!J18) -> 0 | G18: =SUM('INVOICE 17'!G18,'INVOICE 17'!K18) -> 0 | H18: =SUM('INVOICE 17'!H18,'INVOICE 17'!L18) -> 0 | I18: 0 | J18: 0 | K18: 0 | L18: 0 | M18: 0 | N18: 0 | O18: 0 | P18: 0 | Q18: 0
A19: ='INVOICE 1'!A19 -> Indirect Costs | B19: ='INVOICE 17'!B19 -> 0 | C19: ='INVOICE 17'!C19 -> 38672 | D19: ='INVOICE 17'!D19 -> 0 | E19: 38672 | F19: =SUM('INVOICE 17'!F19,'INVOICE 17'!J19) -> 0 | G19: =SUM('INVOICE 17'!G19,'INVOICE 17'!K19) -> 19076 | H19: =SUM('INVOICE 17'!H19,'INVOICE 17'!L19) -> 0 | I19: 19076 | J19: 0 | K19: 1735 | L19: 0 | M19: 1735 | N19: 0 | O19: 17861 | P19: 0 | Q19: 17861
A20: ='INVOICE 1'!A20 -> Equip/Fixed Assets | B20: ='INVOICE 17'!B20 -> 0 | C20: ='INVOICE 17'!C20 -> 0 | D20: ='INVOICE 17'!D20 -> 0 | E20: 0 | F20: =SUM('INVOICE 17'!F20,'INVOICE 17'!J20) -> 0 | G20: =SUM('INVOICE 17'!G20,'INVOICE 17'!K20) -> 0 | H20: =SUM('INVOICE 17'!H20,'INVOICE 17'!L20) -> 0 | I20: 0 | J20: 0 | K20: 0 | L20: 0 | M20: 0 | N20: 0 | O20: 0 | P20: 0 | Q20: 0
A21: ='INVOICE 1'!A21 -> Project Evaluation | B21: ='INVOICE 17'!B21 -> 50000 | C21: ='INVOICE 17'!C21 -> 0 | D21: ='INVOICE 17'!D21 -> 0 | E21: 50000 | F21: =SUM('INVOICE 17'!F21,'INVOICE 17'!J21) -> 41250 | G21: =SUM('INVOICE 17'!G21,'INVOICE 17'!K21) -> 0 | H21: =SUM('INVOICE 17'!H21,'INVOICE 17'!L21) -> 0 | I21: 41250 | J21: 0 | K21: 0 | L21: 0 | M21: 0 | N21: 8750 | O21: 0 | P21: 0 | Q21: 8750
A22: ='INVOICE 1'!A22 -> Other (Travel, Training, etc) | B22: ='INVOICE 17'!B22 -> 2000 | C22: ='INVOICE 17'!C22 -> 0 | D22: ='INVOICE 17'!D22 -> 0 | E22: 2000 | F22: =SUM('INVOICE 17'!F22,'INVOICE 17'!J22) -> 602 | G22: =SUM('INVOICE 17'!G22,'INVOICE 17'!K22) -> 0 | H22: =SUM('INVOICE 17'!H22,'INVOICE 17'!L22) -> 0 | I22: 602 | J22: 0 | K22: 0 | L22: 0 | M22: 0 | N22: 1398 | O22: 0 | P22: 0 | Q22: 1398
A23: TOTAL | B23: =SUM(B15:B22) -> 500000 | C23: =SUM(C15:C22) -> 391000 | D23: =SUM(D15:D22) -> 109000 | E23: =SUM(E15:E22) -> 1000000 | F23: =SUM(F15:F22) -> 263886 | G23: 199655 | H23: 61717 | I23: 525258 | J23: 18507 | K23: =SUM(K15:K22) -> 11629 | L23: =SUM(L15:L22) -> 7619 | M23: =SUM(M15:M22) -> 37755 | N23: 217607 | O23: 179716 | P23: 39664 | Q23: 436987
A25: Project Income | D25: Income reported to date | E25: ='INVOICE 1'!E25+'INVOICE 18'!L25 -> 0 | H25: Prior allocated income | I25: 0 | K25: This Period | L25: 0 | P25: Unallocated income balance | Q25: =E25-I25 -> 0
C27: Grant funds expended to date: | E27: =SUM(F23,J23) -> 282393 | I27: Grant funds claimed this period: | J27: =J23 -> 18507 | O27: Percentage Grant $$ expended to date: | Q27: =E27/B23 -> 0.564786
C28: Cash match to date: | E28: =SUM(G23,K23) -> 211284 | O28: % of Total Obligated Cash Match to date: | Q28: =E28/C23 -> 0.5403682864
C29: In-kind match to date: | E29: =SUM(H23,L23) -> 69336 | O29: % of Total Obligated In-kind Match to date: | Q29: =E29/D23 -> 0.6361100917
E31: Expenditure Descriptions - Units / $ Amounts | O31: Comments
A32: Salaries & Benefits | B32: Grant Funds | D32: =J15 -> 17354 | E32: Project Director 0.2 FTE $1,760.28 Enterprise Outreach Coordinator 1 FTE $3,120.34.Cognitive Life Skills Director 0.5 FTE $3,488.58 Drug & Alcohol Facilitator 0.5 FTE $2,212.66 Academic Tutor 0.5 FTE $2,567.98.Mental Health Specialist 0.5 FTE $1,903.64 Program Coordinator 0.5 FTE $1,100.00 Job Readiness Trainer 0.5 FTE $1,200.00
B33: Cash Match | D33: =K15 -> 6933 | E33: Project Director 0.3 FTE $1,771.21 Cognitive Life Skills Director 0.5 FTE $1,038.00 Academic Tutor 0.5 FTE $1,696.50.Mental Health Specialist 0.5 FTE $1,371.74 Administrative Support 0.5 FTE $1,055.19.Wells Fargo - Financial Literacy Workshop $200 (4hrs @ $50ph) Mentors (6) $7,419 | O33: Cash and In-kind Match expenditure Desciptions
B34: In-kind Match | D34: =L15 -> 7619
A35: Services & Supplies | B35: Grant Funds | D35: =J16 -> 1153 | E35: Social Solutions Database System $293.25 Forklift Training Food (Domino's $265.61, 99 cent store only $7.22).Cell Business Equipment - sharp smart tv for training purposes $256.08 Graduation Supplies (amazon $30.50).Community Action Partnership - office space $300.00
B36: Cash Match | D36: =K16 -> 2961 | E36: Paychex - admin fee $236.64 Time Tracker - $145.00 Quickbooks - $150.00.JYT - promotional services $625.00 AMS - insurance $1,804.62
B37: In-kind Match | D37: =L16 -> 0
A38: Prof Services / Public Agency Subcontracts | B38: Grant Funds | D38: =-J17 -> 0
B39: Cash Match | D39: =K17 -> 0
B40: In-kind Match | D40: =L17 -> 0
A41: CBO Subcontracts | B41: Grant Funds | D41: =J18 -> 0
B42: Cash Match | D42: =K18 -> 0
B43: In-kind Match | D43: =L18 -> 0
A44: Indirect Cost | B44: Grant Funds | D44: =J19 -> 0
B45: Cash Match | D45: =K19 -> 1735 | E45: Indirect cost rate at 10% Salaries benefits and fringe
B46: In-kind Match | D46: =L19 -> 0
A47: Equipment Fixed Assets | B47: Grant Funds | D47: =J20 -> 0
B48: Cash Match | D48: =K20 -> 0
B49: In-kind Match | D49: =-L20 -> 0
A50: Project Evaluation | B50: Grant Funds | D50: =J21 -> 0
B51: Cash Match | D51: =K21 -> 0
B52: In-kind Match | D52: =L21 -> 0
A53: Other | B53: Grant Funds | D53: =J22 -> 0
B54: Cash Match | D54: =K22 -> 0
B55: In-kind Match | D55: =L22 -> 0
A56: Project Income | D56: =M25 -> 0
A57: PERSON PREPARING REPORT | F57: AUTHORIZED FINANCIAL OFFICER | N57: BSCC Supplier Data - Internal Use Only
F58: By checking the box below, I hereby certify that I am the authorized financial officer of the herein named agency. I further certify that I have not violated any of the provisions of Section 1090 of the Government Code in incurring the expenditures reported in this invoice, nor in any other way; that Sections 1090 through 1096 of the Government Code will not be violated in any way in the expenditure of funds pursuant to this invoice; that statement of funds above is true, correct, and in accordance with program provisions in all respects; and that all expenditures submitted after the expiration date of this contract are for the purpose of substantiating obligations legally incurred during the contract period. Furthermore, by submitting this invoice, I acknowledge that it must adhere to all of the requirements in the BSCC Grant Administration Guide, including any updates to the Guide during the term of the grant agreement.
A59: Jennifer Rosales, Office Manager | N59: 0000102062
A60: Name, Title | N60: Supplier ID
A61: 909-723-1695 | N61: YOUNG VISIONARIES YOUTH LEADERSHIP ACADEMY
A62: Phone | N62: Supplier Name
A63: rosalesj129@yvyla-ie.org | N63: 696 S TIPPECANOE AVE
A64: Email | N64: Address Line 1
A65: 2019-12-05 | N65: SAN BERNARDINO, CA 92408
A66: Date | N66: ='INVOICE 1'!N66:Q66 -> SAN BERNARDINO, CA 92408
F68: Terrance Stone, CEO
F69: Name, Title
F70: 909-910-7327
F71: Phone
F72: 2019-12-05
F73: Date
A75: BSCC USE ONLY
A76: Date Received: | C76: 2020-12-15 | I76: Approved By: | K76: Colleen Curtin | O76: Date: | P76: 2019-12-13
K77: BSCC Field Representative

Sheet MODIFICATION REQUEST 1 (2)
Q1: STATE OF CALIFORNIA
A2: MODIFICATION REQUEST - (FORM BSCC 223.1 (Revised 04/20) | Q2: BOARD OF STATE AND COMMUNITY CORRECTIONS
B5: Line-Item Change | G5: Budget Modification | M5: Project Income Allocation
B6: Check this box if you are modifying narrative details within a line item (or line items) but not changing the budget. | G6: Check this box if you are modifying line-item dollar amounts by moving funds from one line-item to another. | M6: Check this box if you are allocating earned project income.
A8: Important Note: You must provide a detailed justification for all modification requests. All modifications require BSCC Field Representative approval.
A10: Grantee: | B10: ='INVOICE 1'!B7 -> Young Visionaries Youth Leadership Academy | K10: Grant Program: | M10: ='INVOICE 1'!B5 -> CalVIP-17
A12: Address | K12: Lead Public Agency: | M12: ='INVOICE 1'!I7 -> Young Visionaries Youth Leadership Academy
A16: Contract #: | B16: ='INVOICE 1'!B9 -> 864-17 | M16: Modification Request # | N16: 2
A18: Term: | B18: ='INVOICE 1'!F9 -> 2018-05-01 | C18: ='INVOICE 1'!G9 -> TO | E18: ='INVOICE 1'!I9 -> 2021-08-16 | M18: Effective on Invoice # | N18: 19
A20: Line Items | B20: Current Budget | F20: Available Budget | J20: Changes (+/-) | N20: Modified Budget
B21: Grant Funds | C21: Cash Match | D21: In-kind Match | E21: TOTAL | F21: Grant Funds | G21: Cash Match | H21: In-kind Match | I21: TOTAL | J21: Grant Funds | K21: Cash Match | L21: In-kind Match | M21: TOTAL | N21: Grant Funds | O21: Cash Match | P21: In-kind Match | Q21: TOTAL
A22: Salaries & Benefits | B22: 366718 | C22: 261000 | D22: 109000 | E22: 736718 | F22: 140759 | G22: 124906 | H22: 39664 | I22: 305329 | J22: -39500 | K22: -7114 | L22: -31300 | M22: =SUM(J22:L22) -> -77914 | N22: =SUM(B22,J22) -> 327218 | O22: 253886 | P22: 77700 | Q22: =SUM(N22:P22) -> 658804
A23: Services & Supplies | B23: 41282 | C23: 51328 | D23: 0 | E23: 92610 | F23: 28707 | G23: 23191 | H23: 0 | I23: 51898 | J23: 0 | K23: -13168 | L23: 27532 | M23: =SUM(J23:L23) -> 14364 | N23: 41282 | O23: 38160 | P23: 27532 | Q23: =SUM(N23:P23) -> 106974
A24: Professional Services | B24: 40000 | C24: 40000 | D24: 0 | E24: 80000 | F24: 19993 | G24: 13758 | H24: 0 | I24: 33751 | J24: 30000 | K24: 30000 | M24: 60000 | N24: 70000 | O24: 70000 | P24: 0 | Q24: 140000
A25: CBO Subcontracts | B25: 0 | C25: 0 | D25: 0 | E25: 0 | F25: 0 | G25: 0 | H25: 0 | I25: 0 | M25: 0 | N25: 0 | O25: 0 | P25: 0 | Q25: 0
A26: Indirect Cost | B26: 0 | C26: 38672 | D26: 0 | E26: 38672 | F26: 0 | G26: -20811 | H26: 38672 | I26: 17861 | K26: -5950 | M26: -5950 | N26: 0 | O26: 32722 | P26: 0 | Q26: 32722
A27: Equip/Fixed Assets | B27: 0 | C27: 0 | D27: 0 | E27: 0 | F27: 0 | G27: 0 | H27: 0 | I27: 0 | M27: 0 | N27: 0 | O27: 0 | P27: 0 | Q27: 0
A28: Project Evaluation | B28: 50000 | C28: 0 | D28: 0 | E28: 50000 | F28: 8750 | G28: 0 | H28: 0 | I28: 8750 | J28: 7500 | M28: 7500 | N28: 57500 | O28: 0 | P28: 0 | Q28: 57500
A29: Other (Travel, Training,etc.) | B29: 2000 | C29: 0 | D29: 0 | E29: 2000 | F29: 1398 | G29: 0 | H29: 0 | I29: 1398 | J29: 2000 | M29: 2000 | N29: 4000 | O29: 0 | P29: 0 | Q29: 4000
A30: TOTAL | B30: 500000 | C30: 391000 | D30: 109000 | E30: 1000000 | F30: =SUM(F22:F29) -> 199607 | G30: 141044 | H30: 78336 | I30: 418987 | J30: 0 | K30: 0 | L30: 0 | M30: 0 | N30: 500000 | O30: 394768 | P30: 105232 | Q30: 1000000
A32: Project Income | D32: Income reported to date | E32: ='INVOICE 2'!E25 -> 0 | H32: Prior allocated income | I32: ='INVOICE 2'!I25 -> 0 | K32: This Period | L32: 0 | P32: Unallocated income balance | Q32: =E32-L32 -> 0
A34: JUSTIFICATION FOR MODIFICATION:
A35: Requesting to reallocate $39,500 from unused Grant Funds under Salaries & Benefits as follows: (1) $30,000 to Professional Services to hire a Trauma Informed Therapist, (2) $2,000 to Other will be used to cover additional expenses required for Apricot Solutions training and (3) the remaining $7,500 to Project Evaluation to cover expenses of replacing the Project Evaluator with MHM Services. Requesting to remove $5,950 from Indirect Costs related to grant. Requesting to remove $7,114 from Salaries & Benefits cash match and $31,300 from Salaries & Benefits in-kind match. Requesting to remove $13,168 from Services and Supplies cash match. Requesting to reallocate $27,532 to in-kind match under Services & Supplies and $30,000 to cash match under Professional Services.
A54: PERSON PREPARING REPORT | K54: AUTHORIZED FINANCIAL OFFICER
K55: I hereby certify that I am the authorized financial officer of the herein named agency. I further certify that I have not violated any of the provisions of Section 1090 of the Government Code in incurring the expenditures reported in this invoice, nor in any other way; that Sections 1090 through 1096 of the Government Code will not be violated in any way in the expenditure of funds pursuant to this invoice; that statement of funds above is true, correct, and in accordance with program provisions in all respects; and that all expenditures submitted after the expiration date of this contract are for the purpose of substantiating obligations legally incurred during the contract period. Furthermore, by submitting this invoice, I acknowledge that it must adhere to all of the requirements in the BSCC Grant Administration Guide, including any updates to the Guide during the term of the grant agreement.
A56: Jennifer Rosales, Office Manager
A57: Name, Title
A58: 909-723-1695
A59: Phone
A60: rosalesj129@yvyla-ie.org
A61: Email
A62: 2020-03-16
A63: Date
K65: Terrance Stone
K66: Name, Title
K67: 909-910-7327
K68: Phone
K69: 2019-03-16
K70: Date
A72: BSCC USE ONLY
A73: Date Received: | C73: 2020-03-20 | J73: Approved By: | K73: Colleen Curtin | O73: Date: | Q73: 2020-03-20
K74: BSCC Field Representative

Sheet INVOICE 19
A1: STATE OF CALIFORNIA | N1: Purchase Authority | O1: BSCC 5227
A2: BOARD OF STATE AND COMMUNITY CORRECTIONS | N2: Purchase Order: | O2: 5227-0000002094 | Q2: ='INVOICE 1'!Q2 -> 0
A3: Financial Invoice Form: BSCC 201 (Revised 04/2020)
A5: Program: | B5: ='INVOICE 1'!B5 -> CalVIP-17 | M5: Please Note: The California State Controller's Office will send all checks directly to the address listed in the "BSCC Vendor Data" section at the bottom of this invoice.
A7: Grantee: | B7: ='INVOICE 1'!B7 -> Young Visionaries Youth Leadership Academy | G7: Lead Public Agency: | I7: ='INVOICE 1'!I7 -> Young Visionaries Youth Leadership Academy
A9: Contract #: | B9: ='INVOICE 1'!B9 -> 864-17 | E9: Term: | F9: ='INVOICE 1'!F9 -> 2018-05-01 | G9: TO | I9: ='INVOICE 1'!I9 -> 2021-08-16 | N9: Invoicing Frequency | O9: ='INVOICE 1'!O9 -> Monthly
A11: Invoice #: | B11: 19 CALVIP 18 | E11: Reporting Period: | F11: 2020-11-01 | G11: TO | I11: 2020-11-30 | J11: Due: | K11: 2020-01-15 | N11: Final Invoice (Y/N): | O11: No
A13: Line Items | B13: Budget | F13: Prior Expenditures | J13: This Reporting Period | N13: Balance
B14: Grant Funds | C14: Cash Match | D14: In-kind Match | E14: TOTAL | F14: Grant Funds | G14: Cash Match | H14: In-kind Match | I14: TOTAL | J14: Grant Funds | K14: Cash Match | L14: In-kind Match | M14: TOTAL | N14: Grant Funds | O14: Cash Match | P14: In-kind Match | Q14: TOTAL
A15: ='INVOICE 1'!A15 -> Salaries & Benefits | B15: 327218 | C15: 253886 | D15: 77700 | E15: 658804 | F15: =SUM('INVOICE 18'!F15,'INVOICE 18'!J15) -> 207959 | G15: =SUM('INVOICE 18'!G15,'INVOICE 18'!K15) -> 136094 | H15: =SUM('INVOICE 18'!H15,'INVOICE 18'!L15) -> 69336 | I15: =SUM(F15:H15) -> 413389 | J15: 16251 | K15: 10682 | L15: 400 | M15: =SUM(J15:L15) -> 27333 | N15: =B15-F15-J15 -> 103008 | O15: 107110 | P15: 7964 | Q15: =SUM(N15:P15) -> 218082
A16: ='INVOICE 1'!A16 -> Services & Supplies | B16: 41282 | C16: 38160 | D16: 27532 | E16: 106974 | F16: =SUM('INVOICE 18'!F16,'INVOICE 18'!J16) -> 12575 | G16: =SUM('INVOICE 18'!G16,'INVOICE 18'!K16) -> 28137 | H16: =SUM('INVOICE 18'!H16,'INVOICE 18'!L16) -> 0 | I16: =SUM(F16:H16) -> 40712 | J16: 844 | K16: 1398 | L16: 0 | M16: =SUM(J16:L16) -> 2242 | N16: 27863 | O16: 8625 | P16: 27532 | Q16: =SUM(N16:P16) -> 64020
A17: ='INVOICE 1'!A17 -> Prof Services / Public Agency Subcontracts | B17: 70000 | C17: 70000 | D17: 0 | E17: 140000 | F17: =SUM('INVOICE 18'!F17,'INVOICE 18'!J17) -> 20007 | G17: =SUM('INVOICE 18'!G17,'INVOICE 18'!K17) -> 26242 | H17: =SUM('INVOICE 18'!H17,'INVOICE 18'!L17) -> 0 | I17: 46249 | J17: 5000 | K17: 5000 | L17: 0 | M17: 10000 | N17: 44993 | O17: 38758 | P17: 0 | Q17: 83751
A18: ='INVOICE 1'!A18 -> CBO Subcontracts | B18: 0 | C18: 0 | D18: 0 | E18: 0 | F18: =SUM('INVOICE 18'!F18,'INVOICE 18'!J18) -> 0 | G18: =SUM('INVOICE 18'!G18,'INVOICE 18'!K18) -> 0 | H18: =SUM('INVOICE 18'!H18,'INVOICE 18'!L18) -> 0 | I18: 0 | J18: 0 | K18: 0 | L18: 0 | M18: 0 | N18: 0 | O18: 0 | P18: 0 | Q18: 0
A19: ='INVOICE 1'!A19 -> Indirect Costs | B19: 0 | C19: 32722 | D19: 0 | E19: 32722 | F19: =SUM('INVOICE 18'!F19,'INVOICE 18'!J19) -> 0 | G19: =SUM('INVOICE 18'!G19,'INVOICE 18'!K19) -> 20811 | H19: =SUM('INVOICE 18'!H19,'INVOICE 18'!L19) -> 0 | I19: 20811 | J19: 0 | K19: 1625 | L19: 0 | M19: 1625 | N19: 0 | O19: 10286 | P19: 0 | Q19: 10286
A20: ='INVOICE 1'!A20 -> Equip/Fixed Assets | B20: 0 | C20: 0 | D20: 0 | E20: 0 | F20: =SUM('INVOICE 18'!F20,'INVOICE 18'!J20) -> 0 | G20: =SUM('INVOICE 18'!G20,'INVOICE 18'!K20) -> 0 | H20: =SUM('INVOICE 18'!H20,'INVOICE 18'!L20) -> 0 | I20: 0 | J20: 0 | K20: 0 | L20: 0 | M20: 0 | N20: 0 | O20: 0 | P20: 0 | Q20: 0
A21: ='INVOICE 1'!A21 -> Project Evaluation | B21: 57500 | C21: 0 | D21: 0 | E21: 57500 | F21: =SUM('INVOICE 18'!F21,'INVOICE 18'!J21) -> 41250 | G21: =SUM('INVOICE 18'!G21,'INVOICE 18'!K21) -> 0 | H21: =SUM('INVOICE 18'!H21,'INVOICE 18'!L21) -> 0 | I21: 41250 | J21: 0 | K21: 0 | L21: 0 | M21: 0 | N21: 16250 | O21: 0 | P21: 0 | Q21: 16250
A22: ='INVOICE 1'!A22 -> Other (Travel, Training, etc) | B22: 4000 | C22: 0 | D22: 0 | E22: 4000 | F22: =SUM('INVOICE 18'!F22,'INVOICE 18'!J22) -> 602 | G22: =SUM('INVOICE 18'!G22,'INVOICE 18'!K22) -> 0 | H22: =SUM('INVOICE 18'!H22,'INVOICE 18'!L22) -> 0 | I22: 602 | J22: 0 | K22: 0 | L22: 0 | M22: 0 | N22: 3398 | O22: 0 | P22: 0 | Q22: 3398
A23: TOTAL | B23: 500000 | C23: 394768 | D23: 105232 | E23: 1000000 | F23: =SUM(F15:F22) -> 282393 | G23: 211284 | H23: 69336 | I23: 563013 | J23: 22095 | K23: =SUM(K15:K22) -> 18705 | L23: =SUM(L15:L22) -> 400 | M23: =SUM(M15:M22) -> 41200 | N23: 195512 | O23: 164779 | P23: 35496 | Q23: 395787
A25: Project Income | D25: Income reported to date | E25: ='INVOICE 1'!E25+'INVOICE 19'!L25 -> 0 | H25: Prior allocated income | I25: 0 | K25: This Period | L25: 0 | P25: Unallocated income balance | Q25: =E25-I25 -> 0
C27: Grant funds expended to date: | E27: =SUM(F23,J23) -> 304488 | I27: Grant funds claimed this period: | J27: =J23 -> 22095 | O27: Percentage Grant $$ expended to date: | Q27: =E27/B23 -> 0.608976
C28: Cash match to date: | E28: =SUM(G23,K23) -> 229989 | O28: % of Total Obligated Cash Match to date: | Q28: =E28/C23 -> 0.582592814
C29: In-kind match to date: | E29: =SUM(H23,L23) -> 69736 | O29: % of Total Obligated In-kind Match to date: | Q29: =E29/D23 -> 0.6626881557
E31: Expenditure Descriptions - Units / $ Amounts | O31: Comments
A32: Salaries & Benefits | B32: Grant Funds | D32: =J15 -> 16251 | E32: Project Director 0.2 FTE $2,158.29 Outreach Coordinator 1 FTE $2,946.50 Cognitive Life Skills Director 1 FTE $2,752.65. Drug & Alcohol Facilitator 0.5 FTE $1,591.18 Academic Tutor 0.5 FTE $1,906.18.Mental Health Specialist 0.5 FTE $2,016.03. Case Management 0.5 FTE $1,050.00.Job Readiness Trainer 0.5 FTE $1,200 .Administrative Asst 0.2 FTE $495.39 Administrative Support 0.25 FTE $135.00.
B33: Cash Match | D33: =K15 -> 10682 | E33: Project Director 0.3 FTE $1,960.03 Cognitive Life Skills Director 0.5 FTE $930 Academic Tutor 0.5 FTE $720.00.Mental Health Specialist 0.5 FTE $1,400.20 Administrative Asst 0.3 FTE $1,120.02.Administrative Support 0.25 FTE $513.00 Mentors (5) $4,038.50.Financial Literacy Workshop $400.00. | O33: Cash and In-kind Match expenditure descriptions
B34: In-kind Match | D34: =L15 -> 400
A35: Services & Supplies | B35: Grant Funds | D35: =J16 -> 844 | E35: Social Solutions Data Tracking $293.25 Community Action Partnership Nov. 2019 Rent $300.00.Jennifer Rosales Food Purchase reimbursment Forklift training class $61.31.Adobe Products Office Supplies $82.98 Cell Business Solutions (Sharp TV Training) $106.92
B36: Cash Match | D36: =K16 -> 1398 | E36: Time Tracker $290.00 JYT Wallace Flyers/Brochures $340.00 Management Consultants Accounting $497.00.Quickbooks $150.00 Paychex Admin Fees $120.56
B37: In-kind Match | D37: =L16 -> 0
A38: Prof Services / Public Agency Subcontracts | B38: Grant Funds | D38: =-J17 -> -5000 | E38: True Healing & Evolution Counseling Services $5,000.00/Trauma Informed Therapy Services to youth and young adults
B39: Cash Match | D39: =K17 -> 5000 | E39: True Healing & Evolution Counseling Services $5,000.00/Trauma Informed Therapy Services to youth and young adults
B40: In-kind Match | D40: =L17 -> 0
A41: CBO Subcontracts | B41: Grant Funds | D41: =J18 -> 0
B42: Cash Match | D42: =K18 -> 0
B43: In-kind Match | D43: =L18 -> 0
A44: Indirect Cost | B44: Grant Funds | D44: =J19 -> 0
B45: Cash Match | D45: =K19 -> 1625 | E45: Indirect cost rate at 10% Salaries benefits and fringe
B46: In-kind Match | D46: =L19 -> 0
A47: Equipment Fixed Assets | B47: Grant Funds | D47: =J20 -> 0
B48: Cash Match | D48: =K20 -> 0
B49: In-kind Match | D49: =-L20 -> 0
A50: Project Evaluation | B50: Grant Funds | D50: =J21 -> 0
B51: Cash Match | D51: =K21 -> 0
B52: In-kind Match | D52: =L21 -> 0
A53: Other | B53: Grant Funds | D53: =J22 -> 0
B54: Cash Match | D54: =K22 -> 0
B55: In-kind Match | D55: =L22 -> 0
A56: Project Income | D56: =M25 -> 0
A57: PERSON PREPARING REPORT | F57: AUTHORIZED FINANCIAL OFFICER | N57: BSCC Supplier Data - Internal Use Only
F58: By checking the box below, I hereby certify that I am the authorized financial officer of the herein named agency. I further certify that I have not violated any of the provisions of Section 1090 of the Government Code in incurring the expenditures reported in this invoice, nor in any other way; that Sections 1090 through 1096 of the Government Code will not be violated in any way in the expenditure of funds pursuant to this invoice; that statement of funds above is true, correct, and in accordance with program provisions in all respects; and that all expenditures submitted after the expiration date of this contract are for the purpose of substantiating obligations legally incurred during the contract period. Furthermore, by submitting this invoice, I acknowledge that it must adhere to all of the requirements in the BSCC Grant Administration Guide, including any updates to the Guide during the term of the grant agreement.
A59: Jennifer Rosales, Administrative Director | N59: 0000102062
A60: Name, Title | N60: Supplier ID
A61: 909-723-1695 | N61: YOUNG VISIONARIES YOUTH LEADERSHIP ACADEMY
A62: Phone | N62: Supplier Name
A63: rosalesj129@yvyla-ie.org | N63: 696 S TIPPECANOE AVE
A64: Email | N64: Address Line 1
A65: 2020-03-24 | N65: SAN BERNARDINO, CA 92408
A66: Date | N66: ='INVOICE 1'!N66:Q66 -> SAN BERNARDINO, CA 92408
F68: Terrance Stone, CEO
F69: Name, Title
F70: 909-910-7327
F71: Phone
F72: 2020-03-24
F73: Date
A75: BSCC USE ONLY
A76: Date Received: | C76: 2020-03-24 | I76: Approved By: | K76: Colleen Curtin | O76: Date: | P76: 2020-04-07
K77: BSCC Field Representative

Sheet INVOICE 20
A1: STATE OF CALIFORNIA | N1: Purchase Authority | O1: BSCC 5227
A2: BOARD OF STATE AND COMMUNITY CORRECTIONS | N2: Purchase Order: | O2: 5227-0000002094 | Q2: ='INVOICE 1'!Q2 -> 0
A3: Financial Invoice Form: BSCC 201 (Revised 04/2020)
A5: Program: | B5: ='INVOICE 1'!B5 -> CalVIP-17 | M5: Please Note: The California State Controller's Office will send all checks directly to the address listed in the "BSCC Vendor Data" section at the bottom of this invoice.
A7: Grantee: | B7: ='INVOICE 1'!B7 -> Young Visionaries Youth Leadership Academy | G7: Lead Public Agency: | I7: ='INVOICE 1'!I7 -> Young Visionaries Youth Leadership Academy
A9: Contract #: | B9: ='INVOICE 1'!B9 -> 864-17 | E9: Term: | F9: ='INVOICE 1'!F9 -> 2018-05-01 | G9: TO | I9: ='INVOICE 1'!I9 -> 2021-08-16 | N9: Invoicing Frequency | O9: ='INVOICE 1'!O9 -> Monthly
A11: Invoice #: | B11: 20 CALVIP 18 | E11: Reporting Period: | F11: 2019-12-01 | G11: TO | I11: 2019-12-31 | J11: Due: | K11: 2020-02-15 | N11: Final Invoice (Y/N): | O11: No
A13: Line Items | B13: Budget | F13: Prior Expenditures | J13: This Reporting Period | N13: Balance
B14: Grant Funds | C14: Cash Match | D14: In-kind Match | E14: TOTAL | F14: Grant Funds | G14: Cash Match | H14: In-kind Match | I14: TOTAL | J14: Grant Funds | K14: Cash Match | L14: In-kind Match | M14: TOTAL | N14: Grant Funds | O14: Cash Match | P14: In-kind Match | Q14: TOTAL
A15: ='INVOICE 1'!A15 -> Salaries & Benefits | B15: ='INVOICE 19'!B15 -> 327218 | C15: ='INVOICE 19'!C15 -> 253886 | D15: ='INVOICE 19'!D15 -> 77700 | E15: =SUM(B15:D15) -> 658804 | F15: =SUM('INVOICE 19'!F15,'INVOICE 19'!J15) -> 224210 | G15: =SUM('INVOICE 19'!G15,'INVOICE 19'!K15) -> 146776 | H15: =SUM('INVOICE 19'!H15,'INVOICE 19'!L15) -> 69736 | I15: =SUM(F15:H15) -> 440722 | J15: 17165 | K15: 13793 | L15: 0 | M15: =SUM(J15:L15) -> 30958 | N15: =B15-F15-J15 -> 85843 | O15: 93317 | P15: 7964 | Q15: =SUM(N15:P15) -> 187124
A16: ='INVOICE 1'!A16 -> Services & Supplies | B16: ='INVOICE 19'!B16 -> 41282 | C16: ='INVOICE 19'!C16 -> 38160 | D16: ='INVOICE 19'!D16 -> 27532 | E16: =SUM(B16:D16) -> 106974 | F16: =SUM('INVOICE 19'!F16,'INVOICE 19'!J16) -> 13419 | G16: =SUM('INVOICE 19'!G16,'INVOICE 19'!K16) -> 29535 | H16: =SUM('INVOICE 19'!H16,'INVOICE 19'!L16) -> 0 | I16: =SUM(F16:H16) -> 42954 | J16: 3415 | L16: 0 | M16: =SUM(J16:L16) -> 3415 | N16: 24448 | O16: 8625 | P16: 27532 | Q16: =SUM(N16:P16) -> 60605
A17: ='INVOICE 1'!A17 -> Prof Services / Public Agency Subcontracts | B17: ='INVOICE 19'!B17 -> 70000 | C17: ='INVOICE 19'!C17 -> 70000 | D17: ='INVOICE 19'!D17 -> 0 | E17: 140000 | F17: =SUM('INVOICE 19'!F17,'INVOICE 19'!J17) -> 25007 | G17: =SUM('INVOICE 19'!G17,'INVOICE 19'!K17) -> 31242 | H17: =SUM('INVOICE 19'!H17,'INVOICE 19'!L17) -> 0 | I17: 56249 | J17: 0 | K17: 0 | L17: 0 | M17: 0 | N17: 44993 | O17: 38758 | P17: 0 | Q17: 83751
A18: ='INVOICE 1'!A18 -> CBO Subcontracts | B18: ='INVOICE 19'!B18 -> 0 | C18: ='INVOICE 19'!C18 -> 0 | D18: ='INVOICE 19'!D18 -> 0 | E18: 0 | F18: =SUM('INVOICE 19'!F18,'INVOICE 19'!J18) -> 0 | G18: =SUM('INVOICE 19'!G18,'INVOICE 19'!K18) -> 0 | H18: =SUM('INVOICE 19'!H18,'INVOICE 19'!L18) -> 0 | I18: 0 | J18: 0 | K18: 0 | L18: 0 | M18: 0 | N18: 0 | O18: 0 | P18: 0 | Q18: 0
A19: ='INVOICE 1'!A19 -> Indirect Costs | B19: ='INVOICE 19'!B19 -> 0 | C19: ='INVOICE 19'!C19 -> 32722 | D19: ='INVOICE 19'!D19 -> 0 | E19: 32722 | F19: =SUM('INVOICE 19'!F19,'INVOICE 19'!J19) -> 0 | G19: =SUM('INVOICE 19'!G19,'INVOICE 19'!K19) -> 22436 | H19: =SUM('INVOICE 19'!H19,'INVOICE 19'!L19) -> 0 | I19: 22436 | J19: 0 | K19: 1716 | L19: 0 | M19: 1716 | N19: 0 | O19: 8570 | P19: 0 | Q19: 8570
A20: ='INVOICE 1'!A20 -> Equip/Fixed Assets | B20: ='INVOICE 19'!B20 -> 0 | C20: ='INVOICE 19'!C20 -> 0 | D20: ='INVOICE 19'!D20 -> 0 | E20: 0 | F20: =SUM('INVOICE 19'!F20,'INVOICE 19'!J20) -> 0 | G20: =SUM('INVOICE 19'!G20,'INVOICE 19'!K20) -> 0 | H20: =SUM('INVOICE 19'!H20,'INVOICE 19'!L20) -> 0 | I20: 0 | J20: 0 | K20: 0 | L20: 0 | M20: 0 | N20: 0 | O20: 0 | P20: 0 | Q20: 0
A21: ='INVOICE 1'!A21 -> Project Evaluation | B21: ='INVOICE 19'!B21 -> 57500 | C21: ='INVOICE 19'!C21 -> 0 | D21: ='INVOICE 19'!D21 -> 0 | E21: 57500 | F21: =SUM('INVOICE 19'!F21,'INVOICE 19'!J21) -> 41250 | G21: =SUM('INVOICE 19'!G21,'INVOICE 19'!K21) -> 0 | H21: =SUM('INVOICE 19'!H21,'INVOICE 19'!L21) -> 0 | I21: 41250 | J21: 5750 | K21: 0 | L21: 0 | M21: 5750 | N21: 10500 | O21: 0 | P21: 0 | Q21: 10500
A22: ='INVOICE 1'!A22 -> Other (Travel, Training, etc) | B22: ='INVOICE 19'!B22 -> 4000 | C22: ='INVOICE 19'!C22 -> 0 | D22: ='INVOICE 19'!D22 -> 0 | E22: 4000 | F22: =SUM('INVOICE 19'!F22,'INVOICE 19'!J22) -> 602 | G22: =SUM('INVOICE 19'!G22,'INVOICE 19'!K22) -> 0 | H22: =SUM('INVOICE 19'!H22,'INVOICE 19'!L22) -> 0 | I22: 602 | J22: 0 | K22: 0 | L22: 0 | M22: 0 | N22: 3398 | O22: 0 | P22: 0 | Q22: 3398
A23: TOTAL | B23: =SUM(B15:B22) -> 500000 | C23: =SUM(C15:C22) -> 394768 | D23: =SUM(D15:D22) -> 105232 | E23: =SUM(E15:E22) -> 1000000 | F23: =SUM(F15:F22) -> 304488 | G23: 229989 | H23: 69736 | I23: 604213 | J23: 26330 | K23: =SUM(K15:K22) -> 15509 | L23: =SUM(L15:L22) -> 0 | M23: =SUM(M15:M22) -> 41839 | N23: 169182 | O23: 149270 | P23: 35496 | Q23: 353948
A25: Project Income | D25: Income reported to date | E25: ='INVOICE 1'!E25+'INVOICE 20'!L25 -> 0 | H25: Prior allocated income | I25: 0 | K25: This Period | L25: 0 | P25: Unallocated income balance | Q25: =E25-I25 -> 0
C27: Grant funds expended to date: | E27: =SUM(F23,J23) -> 330818 | I27: Grant funds claimed this period: | J27: =J23 -> 26330 | O27: Percentage Grant $$ expended to date: | Q27: =E27/B23 -> 0.661636
C28: Cash match to date: | E28: =SUM(G23,K23) -> 245498 | O28: % of Total Obligated Cash Match to date: | Q28: =E28/C23 -> 0.6218791797
C29: In-kind match to date: | E29: =SUM(H23,L23) -> 69736 | O29: % of Total Obligated In-kind Match to date: | Q29: =E29/D23 -> 0.6626881557
E31: Expenditure Descriptions - Units / $ Amounts | O31: Comments
A32: Salaries & Benefits | B32: Grant Funds | D32: =J15 -> 17165 | E32: Project Director 0.2 FTE $2,329.09 Enterprise Outreach Coordinator 1 FTE $3,149.99 Cognitive Life Skills Director 1 FTE $3,109.08.Drug & lcohol Facilitator 0.5 FTE $2,215.90 Academic Tutor 0.5 FTE $1,585.22 Mental Health Specialist 0.5 FTE $1,950.00.Administrative Support 0.2 FTE $1,090.91 Administrative asst 0.25 FTE $634.50 Case Management 0.5 FTE $1,100.00
B33: Cash Match | D33: =K15 -> 13793 | E33: Project Director 0.3 FTE $2,982.95 Mental Health Specialist 0.5 FTE $3,338.62 Administrative Support 0.3 FTE $1,136.36.Administrative asst 0.25 $499.50 Mentor (5) $4,222.00 Cognitive Life Skills Director 0.5 FTE $996.00.Academic Tutor 0.5 FTE $618.00
B34: In-kind Match | D34: =L15 -> 0
A35: Services & Supplies | B35: Grant Funds | D35: =J16 -> 3415 | E35: Mod Pizza Food for Forklift $75.10 Spectrum (Marketing) $2,499.02 Facebook Ad (Marketing) $10.00.Popeyes Chicken (food for Group Sessions) $19.82 Cell Business Solutions (SMART TV) $106.92.tater Bros (Snacks for groups) $6.99 Social Solutions (data tracking tool) $397.46
B36: Cash Match | D36: =K16 -> 0
B37: In-kind Match | D37: =L16 -> 0
A38: Prof Services / Public Agency Subcontracts | B38: Grant Funds | D38: =-J17 -> 0
B39: Cash Match | D39: =K17 -> 0
B40: In-kind Match | D40: =L17 -> 0
A41: CBO Subcontracts | B41: Grant Funds | D41: =J18 -> 0
B42: Cash Match | D42: =K18 -> 0
B43: In-kind Match | D43: =L18 -> 0
A44: Indirect Cost | B44: Grant Funds | D44: =J19 -> 0
B45: Cash Match | D45: =K19 -> 1716 | E45: Indirect cost rate at 10% Salaries benefits and fringe
B46: In-kind Match | D46: =L19 -> 0
A47: Equipment Fixed Assets | B47: Grant Funds | D47: =J20 -> 0
B48: Cash Match | D48: =K20 -> 0
B49: In-kind Match | D49: =-L20 -> 0
A50: Project Evaluation | B50: Grant Funds | D50: =J21 -> 5750 | E50: Luvicent Providing comprehensive evaluation services $5,750.00
B51: Cash Match | D51: =K21 -> 0
B52: In-kind Match | D52: =L21 -> 0
A53: Other | B53: Grant Funds | D53: =J22 -> 0
B54: Cash Match | D54: =K22 -> 0
B55: In-kind Match | D55: =L22 -> 0
A56: Project Income | D56: =M25 -> 0
A57: PERSON PREPARING REPORT | F57: AUTHORIZED FINANCIAL OFFICER | N57: BSCC Supplier Data - Internal Use Only
F58: By checking the box below, I hereby certify that I am the authorized financial officer of the herein named agency. I further certify that I have not violated any of the provisions of Section 1090 of the Government Code in incurring the expenditures reported in this invoice, nor in any other way; that Sections 1090 through 1096 of the Government Code will not be violated in any way in the expenditure of funds pursuant to this invoice; that statement of funds above is true, correct, and in accordance with program provisions in all respects; and that all expenditures submitted after the expiration date of this contract are for the purpose of substantiating obligations legally incurred during the contract period. Furthermore, by submitting this invoice, I acknowledge that it must adhere to all of the requirements in the BSCC Grant Administration Guide, including any updates to the Guide during the term of the grant agreement.
A59: Jennifer Rosales, Administrative Director | N59: 0000102062
A60: Name, Title | N60: Supplier ID
A61: 909-723-1695 | N61: YOUNG VISIONARIES YOUTH LEADERSHIP ACADEMY
A62: Phone | N62: Supplier Name
A63: rosalesj129@yvyla-ie.org | N63: 696 S TIPPECANOE AVE
A64: Email | N64: Address Line 1
A65: 2020-04-15 | N65: SAN BERNARDINO, CA 92408
A66: Date | N66: ='INVOICE 1'!N66:Q66 -> SAN BERNARDINO, CA 92408
F68: Terrance Stone, CEO
F69: Name, Title
F70: 909-910-7327
F71: Phone
F72: 2020-04-15
F73: Date
A75: BSCC USE ONLY
A76: Date Received: | C76: 2020-04-15 | I76: Approved By: | K76: Colleen Curtin | O76: Date: | P76: 2020-04-20
K77: BSCC Field Representative

Sheet INVOICE 21
A1: STATE OF CALIFORNIA | N1: Purchase Authority | O1: BSCC 5227
A2: BOARD OF STATE AND COMMUNITY CORRECTIONS | N2: Purchase Order: | O2: 5227-0000002094 | Q2: ='INVOICE 1'!Q2 -> 0
A3: Financial Invoice Form: BSCC 201 (Revised 04/2020)
A5: Program: | B5: ='INVOICE 1'!B5 -> CalVIP-17 | M5: Please Note: The California State Controller's Office will send all checks directly to the address listed in the "BSCC Vendor Data" section at the bottom of this invoice.
A7: Grantee: | B7: ='INVOICE 1'!B7 -> Young Visionaries Youth Leadership Academy | G7: Lead Public Agency: | I7: ='INVOICE 1'!I7 -> Young Visionaries Youth Leadership Academy
A9: Contract #: | B9: ='INVOICE 1'!B9 -> 864-17 | E9: Term: | F9: ='INVOICE 1'!F9 -> 2018-05-01 | G9: TO | I9: ='INVOICE 1'!I9 -> 2021-08-16 | N9: Invoicing Frequency | O9: ='INVOICE 1'!O9 -> Monthly
A11: Invoice #: | B11: 21 CALVIP 18 | E11: Reporting Period: | F11: 2020-01-01 | G11: TO | I11: 2020-01-31 | J11: Due: | K11: 2020-03-15 | N11: Final Invoice (Y/N): | O11: No
A13: Line Items | B13: Budget | F13: Prior Expenditures | J13: This Reporting Period | N13: Balance
B14: Grant Funds | C14: Cash Match | D14: In-kind Match | E14: TOTAL | F14: Grant Funds | G14: Cash Match | H14: In-kind Match | I14: TOTAL | J14: Grant Funds | K14: Cash Match | L14: In-kind Match | M14: TOTAL | N14: Grant Funds | O14: Cash Match | P14: In-kind Match | Q14: TOTAL
A15: ='INVOICE 1'!A15 -> Salaries & Benefits | B15: ='INVOICE 20'!B15 -> 327218 | C15: ='INVOICE 20'!C15 -> 253886 | D15: ='INVOICE 20'!D15 -> 77700 | E15: =SUM(B15:D15) -> 658804 | F15: =SUM('INVOICE 20'!F15,'INVOICE 20'!J15) -> 241375 | G15: =SUM('INVOICE 20'!G15,'INVOICE 20'!K15) -> 160569 | H15: =SUM('INVOICE 20'!H15,'INVOICE 20'!L15) -> 69736 | I15: =SUM(F15:H15) -> 471680 | J15: 16770 | K15: 13934 | L15: 200 | M15: =SUM(J15:L15) -> 30904 | N15: =B15-F15-J15 -> 69073 | O15: 79383 | P15: 7764 | Q15: =SUM(N15:P15) -> 156220
A16: ='INVOICE 1'!A16 -> Services & Supplies | B16: ='INVOICE 20'!B16 -> 41282 | C16: ='INVOICE 20'!C16 -> 38160 | D16: ='INVOICE 20'!D16 -> 27532 | E16: =SUM(B16:D16) -> 106974 | F16: =SUM('INVOICE 20'!F16,'INVOICE 20'!J16) -> 16834 | G16: =SUM('INVOICE 20'!G16,'INVOICE 20'!K16) -> 29535 | H16: =SUM('INVOICE 20'!H16,'INVOICE 20'!L16) -> 0 | I16: =SUM(F16:H16) -> 46369 | J16: 907 | K16: 0 | L16: 0 | M16: =SUM(J16:L16) -> 907 | N16: 23541 | O16: 8625 | P16: 27532 | Q16: =SUM(N16:P16) -> 59698
A17: ='INVOICE 1'!A17 -> Prof Services / Public Agency Subcontracts | B17: ='INVOICE 20'!B17 -> 70000 | C17: ='INVOICE 20'!C17 -> 70000 | D17: ='INVOICE 20'!D17 -> 0 | E17: 140000 | F17: =SUM('INVOICE 20'!F17,'INVOICE 20'!J17) -> 25007 | G17: =SUM('INVOICE 20'!G17,'INVOICE 20'!K17) -> 31242 | H17: =SUM('INVOICE 20'!H17,'INVOICE 20'!L17) -> 0 | I17: 56249 | J17: 5000 | K17: 5000 | L17: 0 | M17: 10000 | N17: 39993 | O17: 33758 | P17: 0 | Q17: 73751
A18: ='INVOICE 1'!A18 -> CBO Subcontracts | B18: ='INVOICE 20'!B18 -> 0 | C18: ='INVOICE 20'!C18 -> 0 | D18: ='INVOICE 20'!D18 -> 0 | E18: 0 | F18: =SUM('INVOICE 20'!F18,'INVOICE 20'!J18) -> 0 | G18: =SUM('INVOICE 20'!G18,'INVOICE 20'!K18) -> 0 | H18: =SUM('INVOICE 20'!H18,'INVOICE 20'!L18) -> 0 | I18: 0 | J18: 0 | K18: 0 | L18: 0 | M18: 0 | N18: 0 | O18: 0 | P18: 0 | Q18: 0
A19: ='INVOICE 1'!A19 -> Indirect Costs | B19: ='INVOICE 20'!B19 -> 0 | C19: ='INVOICE 20'!C19 -> 32722 | D19: ='INVOICE 20'!D19 -> 0 | E19: 32722 | F19: =SUM('INVOICE 20'!F19,'INVOICE 20'!J19) -> 0 | G19: =SUM('INVOICE 20'!G19,'INVOICE 20'!K19) -> 24152 | H19: =SUM('INVOICE 20'!H19,'INVOICE 20'!L19) -> 0 | I19: 24152 | J19: 0 | K19: 1677 | L19: 0 | M19: 1677 | N19: 0 | O19: 6893 | P19: 0 | Q19: 6893
A20: ='INVOICE 1'!A20 -> Equip/Fixed Assets | B20: ='INVOICE 20'!B20 -> 0 | C20: ='INVOICE 20'!C20 -> 0 | D20: ='INVOICE 20'!D20 -> 0 | E20: 0 | F20: =SUM('INVOICE 20'!F20,'INVOICE 20'!J20) -> 0 | G20: =SUM('INVOICE 20'!G20,'INVOICE 20'!K20) -> 0 | H20: =SUM('INVOICE 20'!H20,'INVOICE 20'!L20) -> 0 | I20: 0 | J20: 0 | K20: 0 | L20: 0 | M20: 0 | N20: 0 | O20: 0 | P20: 0 | Q20: 0
A21: ='INVOICE 1'!A21 -> Project Evaluation | B21: ='INVOICE 20'!B21 -> 57500 | C21: ='INVOICE 20'!C21 -> 0 | D21: ='INVOICE 20'!D21 -> 0 | E21: 57500 | F21: =SUM('INVOICE 20'!F21,'INVOICE 20'!J21) -> 47000 | G21: =SUM('INVOICE 20'!G21,'INVOICE 20'!K21) -> 0 | H21: =SUM('INVOICE 20'!H21,'INVOICE 20'!L21) -> 0 | I21: 47000 | J21: 0 | K21: 0 | L21: 0 | M21: 0 | N21: 10500 | O21: 0 | P21: 0 | Q21: 10500
A22: ='INVOICE 1'!A22 -> Other (Travel, Training, etc) | B22: ='INVOICE 20'!B22 -> 4000 | C22: ='INVOICE 20'!C22 -> 0 | D22: ='INVOICE 20'!D22 -> 0 | E22: 4000 | F22: =SUM('INVOICE 20'!F22,'INVOICE 20'!J22) -> 602 | G22: =SUM('INVOICE 20'!G22,'INVOICE 20'!K22) -> 0 | H22: =SUM('INVOICE 20'!H22,'INVOICE 20'!L22) -> 0 | I22: 602 | J22: 0 | K22: 0 | L22: 0 | M22: 0 | N22: 3398 | O22: 0 | P22: 0 | Q22: 3398
A23: TOTAL | B23: =SUM(B15:B22) -> 500000 | C23: =SUM(C15:C22) -> 394768 | D23: =SUM(D15:D22) -> 105232 | E23: =SUM(E15:E22) -> 1000000 | F23: =SUM(F15:F22) -> 330818 | G23: 245498 | H23: 69736 | I23: 646052 | J23: 22677 | K23: =SUM(K15:K22) -> 20611 | L23: =SUM(L15:L22) -> 200 | M23: =SUM(M15:M22) -> 43488 | N23: 146505 | O23: 128659 | P23: 35296 | Q23: 310460
A25: Project Income | D25: Income reported to date | E25: ='INVOICE 1'!E25+'INVOICE 21'!L25 -> 0 | H25: Prior allocated income | I25: 0 | K25: This Period | L25: 0 | P25: Unallocated income balance | Q25: =E25-I25 -> 0
C27: Grant funds expended to date: | E27: =SUM(F23,J23) -> 353495 | I27: Grant funds claimed this period: | J27: =J23 -> 22677 | O27: Percentage Grant $$ expended to date: | Q27: =E27/B23 -> 0.70699
C28: Cash match to date: | E28: =SUM(G23,K23) -> 266109 | O28: % of Total Obligated Cash Match to date: | Q28: =E28/C23 -> 0.6740895919
C29: In-kind match to date: | E29: =SUM(H23,L23) -> 69936 | O29: % of Total Obligated In-kind Match to date: | Q29: =E29/D23 -> 0.6645887183
E31: Expenditure Descriptions - Units / $ Amounts | O31: Comments
A32: Salaries & Benefits | B32: Grant Funds | D32: =J15 -> 16770 | E32: Project Director 0.2 FTE $2,455.52 Enterprise Outreach Coordinator 1 FTE $3,262.83 Cognitive Life Skills Director 1 FTE $3,262.83.Drug & Alcohol Facilitator 0..5 FTE $2,299.42 Mental Health Specialist 0.5 FTE $1,861.92 Administrative Support 0.2 FTE $917.53 .Job Readiness Trainer 0.5 FTE $1,250.00 Case Management 0.5 FTE $1,100.00 Administrative asst. 0.25 FTE $360.00
B33: Cash Match | D33: =K15 -> 13934 | E33: Project Director 0.3 FTE $2,310.61 . Mental Health Specialist 0.5 FTE $3,491.10 Administrative Support 0.3 FTE $984.67.Cognitive Life Skills Director 0.5 FTE $984.00 Academic Tutor 0.5 FTE $984.00.Administrative asst. 0.25 FTE $715.50 Mentors (5) $4,464.00 Wells Fargo Financial Literacy Class $200.00. | O33: Cash and In-kind Match expenditure description.
B34: In-kind Match | D34: =L15 -> 200
A35: Services & Supplies | B35: Grant Funds | D35: =J16 -> 907 | E35: Community Action Partnership (Rent) $300 Social Solutions (data tracking) $227.92 Dominos (training meal) $44.97.Jennifer Rosales (reimbursement training meal) $96.13 Cell Business Equipment (smart tv training room) $112.27.Pronto Pizza (meal for groups) $77.10 Office Depot (supplies) $48.64
B36: Cash Match | D36: =K16 -> 0
B37: In-kind Match | D37: =L16 -> 0
A38: Prof Services / Public Agency Subcontracts | B38: Grant Funds | D38: =-J17 -> -5000 | E38: Truth Healing & Evolution Counseling Services (therapeutic support) $5,000
B39: Cash Match | D39: =K17 -> 5000 | E39: Truth Healing & Evolution Counseling Services (therapeutic support) $5,000
B40: In-kind Match | D40: =L17 -> 0
A41: CBO Subcontracts | B41: Grant Funds | D41: =J18 -> 0
B42: Cash Match | D42: =K18 -> 0
B43: In-kind Match | D43: =L18 -> 0
A44: Indirect Cost | B44: Grant Funds | D44: =J19 -> 0
B45: Cash Match | D45: =K19 -> 1677 | E45: Indirect cost rate at 10% Salaries benefits and fringe
B46: In-kind Match | D46: =L19 -> 0
A47: Equipment Fixed Assets | B47: Grant Funds | D47: =J20 -> 0
B48: Cash Match | D48: =K20 -> 0
B49: In-kind Match | D49: =-L20 -> 0
A50: Project Evaluation | B50: Grant Funds | D50: =J21 -> 0
B51: Cash Match | D51: =K21 -> 0
B52: In-kind Match | D52: =L21 -> 0
A53: Other | B53: Grant Funds | D53: =J22 -> 0
B54: Cash Match | D54: =K22 -> 0
B55: In-kind Match | D55: =L22 -> 0
A56: Project Income | D56: =M25 -> 0
A57: PERSON PREPARING REPORT | F57: AUTHORIZED FINANCIAL OFFICER | N57: BSCC Supplier Data - Internal Use Only
F58: By checking the box below, I hereby certify that I am the authorized financial officer of the herein named agency. I further certify that I have not violated any of the provisions of Section 1090 of the Government Code in incurring the expenditures reported in this invoice, nor in any other way; that Sections 1090 through 1096 of the Government Code will not be violated in any way in the expenditure of funds pursuant to this invoice; that statement of funds above is true, correct, and in accordance with program provisions in all respects; and that all expenditures submitted after the expiration date of this contract are for the purpose of substantiating obligations legally incurred during the contract period. Furthermore, by submitting this invoice, I acknowledge that it must adhere to all of the requirements in the BSCC Grant Administration Guide, including any updates to the Guide during the term of the grant agreement.
A59: Jennifer Rosales, Administrative Director | N59: 0000102062
A60: Name, Title | N60: Supplier ID
A61: 909-723-1695 | N61: YOUNG VISIONARIES YOUTH LEADERSHIP ACADEMY
A62: Phone | N62: Supplier Name
A63: rosalesj129@yvyla-ie.org | N63: 696 S TIPPECANOE AVE
A64: Email | N64: Address Line 1
A65: 2020-04-24 | N65: SAN BERNARDINO, CA 92408
A66: Date | N66: ='INVOICE 1'!N66:Q66 -> SAN BERNARDINO, CA 92408
F68: Terrance Stone, CEO
F69: Name, Title
F70: 909-910-7327
F71: Phone
F72: 2020-04-24
F73: Date
A75: BSCC USE ONLY
A76: Date Received: | C76: 2020-04-24 | I76: Approved By: | K76: Colleen Curtin | O76: Date: | P76: 2020-04-28
K77: BSCC Field Representative

Sheet INVOICE 22
A1: STATE OF CALIFORNIA | N1: Purchase Authority | O1: BSCC 5227
A2: BOARD OF STATE AND COMMUNITY CORRECTIONS | N2: Purchase Order: | O2: 5227-0000002094 | Q2: ='INVOICE 1'!Q2 -> 0
A3: Financial Invoice Form: BSCC 201 (Revised 04/2020)
A5: Program: | B5: ='INVOICE 1'!B5 -> CalVIP-17 | M5: Please Note: The California State Controller's Office will send all checks directly to the address listed in the "BSCC Vendor Data" section at the bottom of this invoice.
A7: Grantee: | B7: ='INVOICE 1'!B7 -> Young Visionaries Youth Leadership Academy | G7: Lead Public Agency: | I7: ='INVOICE 1'!I7 -> Young Visionaries Youth Leadership Academy
A9: Contract #: | B9: ='INVOICE 1'!B9 -> 864-17 | E9: Term: | F9: ='INVOICE 1'!F9 -> 2018-05-01 | G9: TO | I9: ='INVOICE 1'!I9 -> 2021-08-16 | N9: Invoicing Frequency | O9: ='INVOICE 1'!O9 -> Monthly
A11: Invoice #: | B11: 22 CALVIP 18 | E11: Reporting Period: | F11: 2020-02-01 | G11: TO | I11: 2020-02-29 | J11: Due: | K11: 2020-04-15 | N11: Final Invoice (Y/N): | O11: No
A13: Line Items | B13: Budget | F13: Prior Expenditures | J13: This Reporting Period | N13: Balance
B14: Grant Funds | C14: Cash Match | D14: In-kind Match | E14: TOTAL | F14: Grant Funds | G14: Cash Match | H14: In-kind Match | I14: TOTAL | J14: Grant Funds | K14: Cash Match | L14: In-kind Match | M14: TOTAL | N14: Grant Funds | O14: Cash Match | P14: In-kind Match | Q14: TOTAL
A15: ='INVOICE 1'!A15 -> Salaries & Benefits | B15: ='INVOICE 21'!B15 -> 327218 | C15: ='INVOICE 21'!C15 -> 253886 | D15: ='INVOICE 21'!D15 -> 77700 | E15: =SUM(B15:D15) -> 658804 | F15: =SUM('INVOICE 21'!F15,'INVOICE 21'!J15) -> 258145 | G15: =SUM('INVOICE 21'!G15,'INVOICE 21'!K15) -> 174503 | H15: =SUM('INVOICE 21'!H15,'INVOICE 21'!L15) -> 69936 | I15: =SUM(F15:H15) -> 502584 | J15: 16053 | K15: 11973 | L15: 200 | M15: =SUM(J15:L15) -> 28226 | N15: =B15-F15-J15 -> 53020 | O15: 67410 | P15: 7564 | Q15: =SUM(N15:P15) -> 127994
A16: ='INVOICE 1'!A16 -> Services & Supplies | B16: ='INVOICE 21'!B16 -> 41282 | C16: ='INVOICE 21'!C16 -> 38160 | D16: ='INVOICE 21'!D16 -> 27532 | E16: =SUM(B16:D16) -> 106974 | F16: =SUM('INVOICE 21'!F16,'INVOICE 21'!J16) -> 17741 | G16: =SUM('INVOICE 21'!G16,'INVOICE 21'!K16) -> 29535 | H16: =SUM('INVOICE 21'!H16,'INVOICE 21'!L16) -> 0 | I16: =SUM(F16:H16) -> 47276 | J16: 563 | K16: 0 | L16: 0 | M16: =SUM(J16:L16) -> 563 | N16: 22978 | O16: 8625 | P16: 27532 | Q16: =SUM(N16:P16) -> 59135
A17: ='INVOICE 1'!A17 -> Prof Services / Public Agency Subcontracts | B17: ='INVOICE 21'!B17 -> 70000 | C17: ='INVOICE 21'!C17 -> 70000 | D17: ='INVOICE 21'!D17 -> 0 | E17: 140000 | F17: =SUM('INVOICE 21'!F17,'INVOICE 21'!J17) -> 30007 | G17: =SUM('INVOICE 21'!G17,'INVOICE 21'!K17) -> 36242 | H17: =SUM('INVOICE 21'!H17,'INVOICE 21'!L17) -> 0 | I17: 66249 | J17: 5000 | K17: 5000 | L17: 0 | M17: 10000 | N17: 34993 | O17: 28758 | P17: 0 | Q17: 63751
A18: ='INVOICE 1'!A18 -> CBO Subcontracts | B18: ='INVOICE 21'!B18 -> 0 | C18: ='INVOICE 21'!C18 -> 0 | D18: ='INVOICE 21'!D18 -> 0 | E18: 0 | F18: =SUM('INVOICE 21'!F18,'INVOICE 21'!J18) -> 0 | G18: =SUM('INVOICE 21'!G18,'INVOICE 21'!K18) -> 0 | H18: =SUM('INVOICE 21'!H18,'INVOICE 21'!L18) -> 0 | I18: 0 | J18: 0 | K18: 0 | L18: 0 | M18: 0 | N18: 0 | O18: 0 | P18: 0 | Q18: 0
A19: ='INVOICE 1'!A19 -> Indirect Costs | B19: ='INVOICE 21'!B19 -> 0 | C19: ='INVOICE 21'!C19 -> 32722 | D19: ='INVOICE 21'!D19 -> 0 | E19: 32722 | F19: =SUM('INVOICE 21'!F19,'INVOICE 21'!J19) -> 0 | G19: =SUM('INVOICE 21'!G19,'INVOICE 21'!K19) -> 25829 | H19: =SUM('INVOICE 21'!H19,'INVOICE 21'!L19) -> 0 | I19: 25829 | J19: 0 | L19: 0 | M19: 0 | N19: 0 | O19: 6893 | P19: 0 | Q19: 6893
A20: ='INVOICE 1'!A20 -> Equip/Fixed Assets | B20: ='INVOICE 21'!B20 -> 0 | C20: ='INVOICE 21'!C20 -> 0 | D20: ='INVOICE 21'!D20 -> 0 | E20: 0 | F20: =SUM('INVOICE 21'!F20,'INVOICE 21'!J20) -> 0 | G20: =SUM('INVOICE 21'!G20,'INVOICE 21'!K20) -> 0 | H20: =SUM('INVOICE 21'!H20,'INVOICE 21'!L20) -> 0 | I20: 0 | J20: 0 | K20: 0 | L20: 0 | M20: 0 | N20: 0 | O20: 0 | P20: 0 | Q20: 0
A21: ='INVOICE 1'!A21 -> Project Evaluation | B21: ='INVOICE 21'!B21 -> 57500 | C21: ='INVOICE 21'!C21 -> 0 | D21: ='INVOICE 21'!D21 -> 0 | E21: 57500 | F21: =SUM('INVOICE 21'!F21,'INVOICE 21'!J21) -> 47000 | G21: =SUM('INVOICE 21'!G21,'INVOICE 21'!K21) -> 0 | H21: =SUM('INVOICE 21'!H21,'INVOICE 21'!L21) -> 0 | I21: 47000 | K21: 0 | L21: 0 | M21: 0 | N21: 10500 | O21: 0 | P21: 0 | Q21: 10500
A22: ='INVOICE 1'!A22 -> Other (Travel, Training, etc) | B22: ='INVOICE 21'!B22 -> 4000 | C22: ='INVOICE 21'!C22 -> 0 | D22: ='INVOICE 21'!D22 -> 0 | E22: 4000 | F22: =SUM('INVOICE 21'!F22,'INVOICE 21'!J22) -> 602 | G22: =SUM('INVOICE 21'!G22,'INVOICE 21'!K22) -> 0 | H22: =SUM('INVOICE 21'!H22,'INVOICE 21'!L22) -> 0 | I22: 602 | J22: 0 | K22: 0 | L22: 0 | M22: 0 | N22: 3398 | O22: 0 | P22: 0 | Q22: 3398
A23: TOTAL | B23: =SUM(B15:B22) -> 500000 | C23: =SUM(C15:C22) -> 394768 | D23: =SUM(D15:D22) -> 105232 | E23: =SUM(E15:E22) -> 1000000 | F23: =SUM(F15:F22) -> 353495 | G23: 266109 | H23: 69936 | I23: 689540 | J23: 21616 | K23: =SUM(K15:K22) -> 16973 | L23: =SUM(L15:L22) -> 200 | M23: =SUM(M15:M22) -> 38789 | N23: 124889 | O23: 111686 | P23: 35096 | Q23: 271671
A25: Project Income | D25: Income reported to date | E25: ='INVOICE 1'!E25+'INVOICE 22'!L25 -> 0 | H25: Prior allocated income | I25: 0 | K25: This Period | L25: 0 | P25: Unallocated income balance | Q25: =E25-I25 -> 0
C27: Grant funds expended to date: | E27: =SUM(F23,J23) -> 375111 | I27: Grant funds claimed this period: | J27: =J23 -> 21616 | O27: Percentage Grant $$ expended to date: | Q27: =E27/B23 -> 0.750222
C28: Cash match to date: | E28: =SUM(G23,K23) -> 283082 | O28: % of Total Obligated Cash Match to date: | Q28: =E28/C23 -> 0.7170844648
C29: In-kind match to date: | E29: =SUM(H23,L23) -> 70136 | O29: % of Total Obligated In-kind Match to date: | Q29: =E29/D23 -> 0.6664892808
E31: Expenditure Descriptions - Units / $ Amounts | O31: Comments
A32: Salaries & Benefits | B32: Grant Funds | D32: =J15 -> 16053 | E32: Project Director 0.2 FTE $2,000.38 Enterprise Outreach Coordinator 1 FTE $2,733.93 Cognitive Life Skills Director 1 FTE $3,432.60.Drug & Alcohol Facilitator 0.5 FTE $1,645.42 Academic Tutor 0.5 FTE $582.23 Mental Health Specialist 0.5 FTE $1,930.63.Administrative Support 0.2 FTE $1,057.57 Job Readiness Trainer 0.5 FTE $1,250.00 Case Management 0.5 TE $1,000.00.Administrative Asst 0.25 FTE $420.00
B33: Cash Match | D33: =K15 -> 11973 | E33: Project Director 0.3 FTE $1,338.84 Mental Health Specialist 0.5 FTE $2,515.66 Administrative Support 0.3 FTE $585.04.Administrative Asst. 0.25 FTE $660 Academic Tutor 0.5 FTE $1,170.00 Cognitive Life Skils Director 0.5 FTE $1,032.Wells Fargo Financial Literacy $200.00 Mentors (4) $4,671.00 | O33: Cash and In-kind Match expenditure descriptions
B34: In-kind Match | D34: =L15 -> 200
A35: Services & Supplies | B35: Grant Funds | D35: =J16 -> 563 | E35: Community Action Partnership (Rent Space) $300.00 Facebook (advertisement) $10.99 Cell Business Equipment (sharp Tv) $112.27.Yoselyn Aldama (Meal reimbursment Forklift class) $96.68 Domino's Pizza (food forklift class) $43.04
B36: Cash Match | D36: =K16 -> 0
B37: In-kind Match | D37: =L16 -> 0
A38: Prof Services / Public Agency Subcontracts | B38: Grant Funds | D38: =-J17 -> -5000 | E38: Truth Healing & Evolution Counseling Services (therapeutic support) $5,000
B39: Cash Match | D39: =K17 -> 5000 | E39: Truth Healing & Evolution Counseling Services (therapeutic support) $5,000
B40: In-kind Match | D40: =L17 -> 0
A41: CBO Subcontracts | B41: Grant Funds | D41: =J18 -> 0
B42: Cash Match | D42: =K18 -> 0
B43: In-kind Match | D43: =L18 -> 0
A44: Indirect Cost | B44: Grant Funds | D44: =J19 -> 0
B45: Cash Match | D45: =K19 -> 0
B46: In-kind Match | D46: =L19 -> 0
A47: Equipment Fixed Assets | B47: Grant Funds | D47: =J20 -> 0
B48: Cash Match | D48: =K20 -> 0
B49: In-kind Match | D49: =-L20 -> 0
A50: Project Evaluation | B50: Grant Funds | D50: =J21 -> 0
B51: Cash Match | D51: =K21 -> 0
B52: In-kind Match | D52: =L21 -> 0
A53: Other | B53: Grant Funds | D53: =J22 -> 0
B54: Cash Match | D54: =K22 -> 0
B55: In-kind Match | D55: =L22 -> 0
A56: Project Income | D56: =M25 -> 0
A57: PERSON PREPARING REPORT | F57: AUTHORIZED FINANCIAL OFFICER | N57: BSCC Supplier Data - Internal Use Only
F58: By checking the box below, I hereby certify that I am the authorized financial officer of the herein named agency. I further certify that I have not violated any of the provisions of Section 1090 of the Government Code in incurring the expenditures reported in this invoice, nor in any other way; that Sections 1090 through 1096 of the Government Code will not be violated in any way in the expenditure of funds pursuant to this invoice; that statement of funds above is true, correct, and in accordance with program provisions in all respects; and that all expenditures submitted after the expiration date of this contract are for the purpose of substantiating obligations legally incurred during the contract period. Furthermore, by submitting this invoice, I acknowledge that it must adhere to all of the requirements in the BSCC Grant Administration Guide, including any updates to the Guide during the term of the grant agreement.
A59: Jennnifer Rosales, Administrative Director | N59: 0000102062
A60: Name, Title | N60: Supplier ID
A61: 909-723-1695 | N61: YOUNG VISIONARIES YOUTH LEADERSHIP ACADEMY
A62: Phone | N62: Supplier Name
A63: rosalesj129@yvyla-ie.org | N63: 696 S TIPPECANOE AVE
A64: Email | N64: Address Line 1
A65: 2020-05-15 | N65: SAN BERNARDINO, CA 92408
A66: Date | N66: ='INVOICE 1'!N66:Q66 -> SAN BERNARDINO, CA 92408
F68: Terrance Stone, CEO
F69: Name, Title
F70: 909-910-7327
F71: Phone
F72: 2020-05-15
F73: Date
A75: BSCC USE ONLY
A76: Date Received: | C76: 2020-05-15 | I76: Approved By: | K76: Colleen Curtin | O76: Date: | P76: 2020-05-20
K77: BSCC Field Representative

Sheet INVOICE 23
A1: STATE OF CALIFORNIA | N1: Purchase Authority | O1: BSCC 5227
A2: BOARD OF STATE AND COMMUNITY CORRECTIONS | N2: Purchase Order: | O2: 5227-0000002094 | Q2: ='INVOICE 1'!Q2 -> 0
A3: Financial Invoice Form: BSCC 201 (Revised 04/2020)
A5: Program: | B5: ='INVOICE 1'!B5 -> CalVIP-17 | M5: Please Note: The California State Controller's Office will send all checks directly to the address listed in the "BSCC Vendor Data" section at the bottom of this invoice.
A7: Grantee: | B7: ='INVOICE 1'!B7 -> Young Visionaries Youth Leadership Academy | G7: Lead Public Agency: | I7: ='INVOICE 1'!I7 -> Young Visionaries Youth Leadership Academy
A9: Contract #: | B9: ='INVOICE 1'!B9 -> 864-17 | E9: Term: | F9: ='INVOICE 1'!F9 -> 2018-05-01 | G9: TO | I9: ='INVOICE 1'!I9 -> 2021-08-16 | N9: Invoicing Frequency | O9: ='INVOICE 1'!O9 -> Monthly
A11: Invoice #: | B11: 23 CALVIP 18 | E11: Reporting Period: | F11: 2020-03-01 | G11: TO | I11: 2020-03-31 | J11: Due: | K11: 2020-05-15 | N11: Final Invoice (Y/N): | O11: No
A13: Line Items | B13: Budget | F13: Prior Expenditures | J13: This Reporting Period | N13: Balance
B14: Grant Funds | C14: Cash Match | D14: In-kind Match | E14: TOTAL | F14: Grant Funds | G14: Cash Match | H14: In-kind Match | I14: TOTAL | J14: Grant Funds | K14: Cash Match | L14: In-kind Match | M14: TOTAL | N14: Grant Funds | O14: Cash Match | P14: In-kind Match | Q14: TOTAL
A15: ='INVOICE 1'!A15 -> Salaries & Benefits | B15: ='INVOICE 22'!B15 -> 327218 | C15: ='INVOICE 22'!C15 -> 253886 | D15: ='INVOICE 22'!D15 -> 77700 | E15: =SUM(B15:D15) -> 658804 | F15: =SUM('INVOICE 22'!F15,'INVOICE 22'!J15) -> 274198 | G15: =SUM('INVOICE 22'!G15,'INVOICE 22'!K15) -> 186476 | H15: =SUM('INVOICE 22'!H15,'INVOICE 22'!L15) -> 70136 | I15: =SUM(F15:H15) -> 530810 | J15: 13574 | K15: 5048 | L15: 200 | M15: =SUM(J15:L15) -> 18822 | N15: =B15-F15-J15 -> 39446 | O15: 62362 | P15: 7364 | Q15: =SUM(N15:P15) -> 109172
A16: ='INVOICE 1'!A16 -> Services & Supplies | B16: ='INVOICE 22'!B16 -> 41282 | C16: ='INVOICE 22'!C16 -> 38160 | D16: ='INVOICE 22'!D16 -> 27532 | E16: =SUM(B16:D16) -> 106974 | F16: =SUM('INVOICE 22'!F16,'INVOICE 22'!J16) -> 18304 | G16: =SUM('INVOICE 22'!G16,'INVOICE 22'!K16) -> 29535 | H16: =SUM('INVOICE 22'!H16,'INVOICE 22'!L16) -> 0 | I16: =SUM(F16:H16) -> 47839 | J16: 895 | K16: 0 | L16: 0 | M16: =SUM(J16:L16) -> 895 | N16: 22083 | O16: 8625 | P16: 27532 | Q16: =SUM(N16:P16) -> 58240
A17: ='INVOICE 1'!A17 -> Prof Services / Public Agency Subcontracts | B17: ='INVOICE 22'!B17 -> 70000 | C17: ='INVOICE 22'!C17 -> 70000 | D17: ='INVOICE 22'!D17 -> 0 | E17: 140000 | F17: =SUM('INVOICE 22'!F17,'INVOICE 22'!J17) -> 35007 | G17: =SUM('INVOICE 22'!G17,'INVOICE 22'!K17) -> 41242 | H17: =SUM('INVOICE 22'!H17,'INVOICE 22'!L17) -> 0 | I17: 76249 | J17: 0 | K17: 0 | L17: 0 | M17: 0 | N17: 34993 | O17: 28758 | P17: 0 | Q17: 63751
A18: ='INVOICE 1'!A18 -> CBO Subcontracts | B18: ='INVOICE 22'!B18 -> 0 | C18: ='INVOICE 22'!C18 -> 0 | D18: ='INVOICE 22'!D18 -> 0 | E18: 0 | F18: =SUM('INVOICE 22'!F18,'INVOICE 22'!J18) -> 0 | G18: =SUM('INVOICE 22'!G18,'INVOICE 22'!K18) -> 0 | H18: =SUM('INVOICE 22'!H18,'INVOICE 22'!L18) -> 0 | I18: 0 | J18: 0 | K18: 0 | L18: 0 | M18: 0 | N18: 0 | O18: 0 | P18: 0 | Q18: 0
A19: ='INVOICE 1'!A19 -> Indirect Costs | B19: ='INVOICE 22'!B19 -> 0 | C19: ='INVOICE 22'!C19 -> 32722 | D19: ='INVOICE 22'!D19 -> 0 | E19: 32722 | F19: =SUM('INVOICE 22'!F19,'INVOICE 22'!J19) -> 0 | G19: =SUM('INVOICE 22'!G19,'INVOICE 22'!K19) -> 25829 | H19: =SUM('INVOICE 22'!H19,'INVOICE 22'!L19) -> 0 | I19: 25829 | J19: 0 | K19: 0 | L19: 0 | M19: 0 | N19: 0 | O19: 6893 | P19: 0 | Q19: 6893
A20: ='INVOICE 1'!A20 -> Equip/Fixed Assets | B20: ='INVOICE 22'!B20 -> 0 | C20: ='INVOICE 22'!C20 -> 0 | D20: ='INVOICE 22'!D20 -> 0 | E20: 0 | F20: =SUM('INVOICE 22'!F20,'INVOICE 22'!J20) -> 0 | G20: =SUM('INVOICE 22'!G20,'INVOICE 22'!K20) -> 0 | H20: =SUM('INVOICE 22'!H20,'INVOICE 22'!L20) -> 0 | I20: 0 | J20: 0 | K20: 0 | L20: 0 | M20: 0 | N20: 0 | O20: 0 | P20: 0 | Q20: 0
A21: ='INVOICE 1'!A21 -> Project Evaluation | B21: ='INVOICE 22'!B21 -> 57500 | C21: ='INVOICE 22'!C21 -> 0 | D21: ='INVOICE 22'!D21 -> 0 | E21: 57500 | F21: =SUM('INVOICE 22'!F21,'INVOICE 22'!J21) -> 47000 | G21: =SUM('INVOICE 22'!G21,'INVOICE 22'!K21) -> 0 | H21: =SUM('INVOICE 22'!H21,'INVOICE 22'!L21) -> 0 | I21: 47000 | J21: 0 | K21: 0 | L21: 0 | M21: 0 | N21: 10500 | O21: 0 | P21: 0 | Q21: 10500
A22: ='INVOICE 1'!A22 -> Other (Travel, Training, etc) | B22: ='INVOICE 22'!B22 -> 4000 | C22: ='INVOICE 22'!C22 -> 0 | D22: ='INVOICE 22'!D22 -> 0 | E22: 4000 | F22: =SUM('INVOICE 22'!F22,'INVOICE 22'!J22) -> 602 | G22: =SUM('INVOICE 22'!G22,'INVOICE 22'!K22) -> 0 | H22: =SUM('INVOICE 22'!H22,'INVOICE 22'!L22) -> 0 | I22: 602 | J22: 2000 | K22: 0 | L22: 0 | M22: 2000 | N22: 1398 | O22: 0 | P22: 0 | Q22: 1398
A23: TOTAL | B23: =SUM(B15:B22) -> 500000 | C23: =SUM(C15:C22) -> 394768 | D23: =SUM(D15:D22) -> 105232 | E23: =SUM(E15:E22) -> 1000000 | F23: =SUM(F15:F22) -> 375111 | G23: 283082 | H23: 70136 | I23: 728329 | J23: 16469 | K23: =SUM(K15:K22) -> 5048 | L23: =SUM(L15:L22) -> 200 | M23: =SUM(M15:M22) -> 21717 | N23: 108420 | O23: 106638 | P23: 34896 | Q23: 249954
A25: Project Income | D25: Income reported to date | E25: ='INVOICE 1'!E25+'INVOICE 23'!L25 -> 0 | H25: Prior allocated income | I25: 0 | K25: This Period | L25: 0 | P25: Unallocated income balance | Q25: =E25-I25 -> 0
C27: Grant funds expended to date: | E27: =SUM(F23,J23) -> 391580 | I27: Grant funds claimed this period: | J27: =J23 -> 16469 | O27: Percentage Grant $$ expended to date: | Q27: =E27/B23 -> 0.78316
C28: Cash match to date: | E28: =SUM(G23,K23) -> 288130 | O28: % of Total Obligated Cash Match to date: | Q28: =E28/C23 -> 0.7298717221
C29: In-kind match to date: | E29: =SUM(H23,L23) -> 70336 | O29: % of Total Obligated In-kind Match to date: | Q29: =E29/D23 -> 0.6683898434
E31: Expenditure Descriptions - Units / $ Amounts | O31: Comments
A32: Salaries & Benefits | B32: Grant Funds | D32: =J15 -> 13574 | E32: Enterprise Outreach Coordinator 1 FTE $2,740.18 Cognitive Life Skills Director 1 FTE $1,605.72.Drug & Alcohol Facilitator 0.5 FTE $1,720.63 Academic Tutor 0.5 FTE $2,372.86 .Mental Health Specialist 0.5 FTE $1,737.75 Admin. Asst 0.2 FTE $722.71 Admin. Asst 0.25 FTE $264.30.Job Readiness Trainer 0.5 FTE $1,400.00 Case Management 0.5 FTE $1,010.00
B33: Cash Match | D33: =K15 -> 5048 | E33: Cognitive Life Skills Director 1 FTE $1,570.78 Cognitive Life Skills Director (3 0.5 FTE) $1,815.00.Mental Health Specialist 0.5 FTE $869.77 Admin Asst. 0.3 FTE $400.31 Admin Asst 0.25 FTE $392.55.Wells Fargo (financial literacy class) $200.00 | O33: Cash and In-kind Match expenditure description.
B34: In-kind Match | D34: =L15 -> 200
A35: Services & Supplies | B35: Grant Funds | D35: =J16 -> 895 | E35: Community Action Partnership (office space rent) $300.00 Cell Business Equipment (Sharp TV) $112.27.Arco Pro (Gas gift cards 6 @ $25) $150.00 Social Solutions (Data tracking tool) $228.19 Pollo Loco (food for Training Class) $58.30.Domino's Pizza (food for Training) $37.43 Domino's Pizza (incentive graduate program) $8.61
B36: Cash Match | D36: =K16 -> 0
B37: In-kind Match | D37: =L16 -> 0
A38: Prof Services / Public Agency Subcontracts | B38: Grant Funds | D38: =-J17 -> 0
B39: Cash Match | D39: =K17 -> 0
B40: In-kind Match | D40: =L17 -> 0
A41: CBO Subcontracts | B41: Grant Funds | D41: =J18 -> 0
B42: Cash Match | D42: =K18 -> 0
B43: In-kind Match | D43: =L18 -> 0
A44: Indirect Cost | B44: Grant Funds | D44: =J19 -> 0
B45: Cash Match | D45: =K19 -> 0
B46: In-kind Match | D46: =L19 -> 0
A47: Equipment Fixed Assets | B47: Grant Funds | D47: =J20 -> 0
B48: Cash Match | D48: =K20 -> 0
B49: In-kind Match | D49: =-L20 -> 0
A50: Project Evaluation | B50: Grant Funds | D50: =J21 -> 0
B51: Cash Match | D51: =K21 -> 0
B52: In-kind Match | D52: =L21 -> 0
A53: Other | B53: Grant Funds | D53: =J22 -> 2000 | E53: Social Solutions (Admin Bootcamp training fee mthly add on)
B54: Cash Match | D54: =K22 -> 0
B55: In-kind Match | D55: =L22 -> 0
A56: Project Income | D56: =M25 -> 0
A57: PERSON PREPARING REPORT | F57: AUTHORIZED FINANCIAL OFFICER | N57: BSCC Supplier Data - Internal Use Only
F58: By checking the box below, I hereby certify that I am the authorized financial officer of the herein named agency. I further certify that I have not violated any of the provisions of Section 1090 of the Government Code in incurring the expenditures reported in this invoice, nor in any other way; that Sections 1090 through 1096 of the Government Code will not be violated in any way in the expenditure of funds pursuant to this invoice; that statement of funds above is true, correct, and in accordance with program provisions in all respects; and that all expenditures submitted after the expiration date of this contract are for the purpose of substantiating obligations legally incurred during the contract period. Furthermore, by submitting this invoice, I acknowledge that it must adhere to all of the requirements in the BSCC Grant Administration Guide, including any updates to the Guide during the term of the grant agreement.
A59: Jennifer Rosales, Administrative Assistant | N59: 0000102062
A60: Name, Title | N60: Supplier ID
A61: 909-723-1695 | N61: YOUNG VISIONARIES YOUTH LEADERSHIP ACADEMY
A62: Phone | N62: Supplier Name
A63: rosalesj129@yvyla-ie.org | N63: 696 S TIPPECANOE AVE
A64: Email | N64: Address Line 1
A65: 2020-06-23 | N65: SAN BERNARDINO, CA 92408
A66: Date | N66: ='INVOICE 1'!N66:Q66 -> SAN BERNARDINO, CA 92408
F68: Terrance Stone, CEO
F69: Name, Title
F70: 909-910-7327
F71: Phone
F72: 2020-06-23
F73: Date
A75: BSCC USE ONLY
A76: Date Received: | C76: 2020-06-23 | I76: Approved By: | K76: Katrina Jackson | O76: Date: | P76: 2020-06-24
K77: BSCC Field Representative

Sheet INVOICE 24
A1: STATE OF CALIFORNIA | N1: Purchase Authority | O1: BSCC 5227
A2: BOARD OF STATE AND COMMUNITY CORRECTIONS | N2: Purchase Order: | O2: 5227-0000002094 | Q2: ='INVOICE 1'!Q2 -> 0
A3: Financial Invoice Form: BSCC 201 (Revised 04/2020)
A5: Program: | B5: ='INVOICE 1'!B5 -> CalVIP-17 | M5: Please Note: The California State Controller's Office will send all checks directly to the address listed in the "BSCC Vendor Data" section at the bottom of this invoice.
A7: Grantee: | B7: ='INVOICE 1'!B7 -> Young Visionaries Youth Leadership Academy | G7: Lead Public Agency: | I7: ='INVOICE 1'!I7 -> Young Visionaries Youth Leadership Academy
A9: Contract #: | B9: ='INVOICE 1'!B9 -> 864-17 | E9: Term: | F9: ='INVOICE 1'!F9 -> 2018-05-01 | G9: TO | I9: ='INVOICE 1'!I9 -> 2021-08-16 | N9: Invoicing Frequency | O9: ='INVOICE 1'!O9 -> Monthly
A11: Invoice #: | B11: 24 CALVIP 18 | E11: Reporting Period: | F11: 2020-04-01 | G11: TO | I11: 2020-04-30 | J11: Due: | K11: 2020-06-15 | N11: Final Invoice (Y/N): | O11: No
A13: Line Items | B13: Budget | F13: Prior Expenditures | J13: This Reporting Period | N13: Balance
B14: Grant Funds | C14: Cash Match | D14: In-kind Match | E14: TOTAL | F14: Grant Funds | G14: Cash Match | H14: In-kind Match | I14: TOTAL | J14: Grant Funds | K14: Cash Match | L14: In-kind Match | M14: TOTAL | N14: Grant Funds | O14: Cash Match | P14: In-kind Match | Q14: TOTAL
A15: ='INVOICE 1'!A15 -> Salaries & Benefits | B15: ='INVOICE 23'!B15 -> 327218 | C15: ='INVOICE 23'!C15 -> 253886 | D15: ='INVOICE 23'!D15 -> 77700 | E15: =SUM(B15:D15) -> 658804 | F15: =SUM('INVOICE 23'!F15,'INVOICE 23'!J15) -> 287772 | G15: =SUM('INVOICE 23'!G15,'INVOICE 23'!K15) -> 191524 | H15: =SUM('INVOICE 23'!H15,'INVOICE 23'!L15) -> 70336 | I15: =SUM(F15:H15) -> 549632 | J15: 4706 | K15: 6368 | L15: 0 | M15: =SUM(J15:L15) -> 11074 | N15: =B15-F15-J15 -> 34740 | O15: 55994 | P15: 7364 | Q15: =SUM(N15:P15) -> 98098
A16: ='INVOICE 1'!A16 -> Services & Supplies | B16: ='INVOICE 23'!B16 -> 41282 | C16: ='INVOICE 23'!C16 -> 38160 | D16: ='INVOICE 23'!D16 -> 27532 | E16: =SUM(B16:D16) -> 106974 | F16: =SUM('INVOICE 23'!F16,'INVOICE 23'!J16) -> 19199 | G16: =SUM('INVOICE 23'!G16,'INVOICE 23'!K16) -> 29535 | H16: =SUM('INVOICE 23'!H16,'INVOICE 23'!L16) -> 0 | I16: =SUM(F16:H16) -> 48734 | J16: 3430 | K16: 0 | L16: 0 | M16: =SUM(J16:L16) -> 3430 | N16: 18653 | O16: 8625 | P16: 27532 | Q16: =SUM(N16:P16) -> 54810
A17: ='INVOICE 1'!A17 -> Prof Services / Public Agency Subcontracts | B17: ='INVOICE 23'!B17 -> 70000 | C17: ='INVOICE 23'!C17 -> 70000 | D17: ='INVOICE 23'!D17 -> 0 | E17: 140000 | F17: =SUM('INVOICE 23'!F17,'INVOICE 23'!J17) -> 35007 | G17: =SUM('INVOICE 23'!G17,'INVOICE 23'!K17) -> 41242 | H17: =SUM('INVOICE 23'!H17,'INVOICE 23'!L17) -> 0 | I17: 76249 | J17: 2150 | K17: 2150 | L17: 0 | M17: 4300 | N17: 32843 | O17: 26608 | P17: 0 | Q17: 59451
A18: ='INVOICE 1'!A18 -> CBO Subcontracts | B18: ='INVOICE 23'!B18 -> 0 | C18: ='INVOICE 23'!C18 -> 0 | D18: ='INVOICE 23'!D18 -> 0 | E18: 0 | F18: =SUM('INVOICE 23'!F18,'INVOICE 23'!J18) -> 0 | G18: =SUM('INVOICE 23'!G18,'INVOICE 23'!K18) -> 0 | H18: =SUM('INVOICE 23'!H18,'INVOICE 23'!L18) -> 0 | I18: 0 | J18: 0 | K18: 0 | L18: 0 | M18: 0 | N18: 0 | O18: 0 | P18: 0 | Q18: 0
A19: ='INVOICE 1'!A19 -> Indirect Costs | B19: ='INVOICE 23'!B19 -> 0 | C19: ='INVOICE 23'!C19 -> 32722 | D19: ='INVOICE 23'!D19 -> 0 | E19: 32722 | F19: =SUM('INVOICE 23'!F19,'INVOICE 23'!J19) -> 0 | G19: =SUM('INVOICE 23'!G19,'INVOICE 23'!K19) -> 25829 | H19: =SUM('INVOICE 23'!H19,'INVOICE 23'!L19) -> 0 | I19: 25829 | J19: 0 | K19: 0 | L19: 0 | M19: 0 | N19: 0 | O19: 6893 | P19: 0 | Q19: 6893
A20: ='INVOICE 1'!A20 -> Equip/Fixed Assets | B20: ='INVOICE 23'!B20 -> 0 | C20: ='INVOICE 23'!C20 -> 0 | D20: ='INVOICE 23'!D20 -> 0 | E20: 0 | F20: =SUM('INVOICE 23'!F20,'INVOICE 23'!J20) -> 0 | G20: =SUM('INVOICE 23'!G20,'INVOICE 23'!K20) -> 0 | H20: =SUM('INVOICE 23'!H20,'INVOICE 23'!L20) -> 0 | I20: 0 | J20: 0 | K20: 0 | L20: 0 | M20: 0 | N20: 0 | O20: 0 | P20: 0 | Q20: 0
A21: ='INVOICE 1'!A21 -> Project Evaluation | B21: ='INVOICE 23'!B21 -> 57500 | C21: ='INVOICE 23'!C21 -> 0 | D21: ='INVOICE 23'!D21 -> 0 | E21: 57500 | F21: =SUM('INVOICE 23'!F21,'INVOICE 23'!J21) -> 47000 | G21: =SUM('INVOICE 23'!G21,'INVOICE 23'!K21) -> 0 | H21: =SUM('INVOICE 23'!H21,'INVOICE 23'!L21) -> 0 | I21: 47000 | J21: 0 | K21: 0 | L21: 0 | M21: 0 | N21: 10500 | O21: 0 | P21: 0 | Q21: 10500
A22: ='INVOICE 1'!A22 -> Other (Travel, Training, etc) | B22: ='INVOICE 23'!B22 -> 4000 | C22: ='INVOICE 23'!C22 -> 0 | D22: ='INVOICE 23'!D22 -> 0 | E22: 4000 | F22: =SUM('INVOICE 23'!F22,'INVOICE 23'!J22) -> 2602 | G22: =SUM('INVOICE 23'!G22,'INVOICE 23'!K22) -> 0 | H22: =SUM('INVOICE 23'!H22,'INVOICE 23'!L22) -> 0 | I22: 2602 | J22: 0 | K22: 0 | L22: 0 | M22: 0 | N22: 1398 | O22: 0 | P22: 0 | Q22: 1398
A23: TOTAL | B23: =SUM(B15:B22) -> 500000 | C23: =SUM(C15:C22) -> 394768 | D23: =SUM(D15:D22) -> 105232 | E23: =SUM(E15:E22) -> 1000000 | F23: =SUM(F15:F22) -> 391580 | G23: 288130 | H23: 70336 | I23: 750046 | J23: 10286 | K23: =SUM(K15:K22) -> 8518 | L23: =SUM(L15:L22) -> 0 | M23: =SUM(M15:M22) -> 18804 | N23: 98134 | O23: 98120 | P23: 34896 | Q23: 231150
A25: Project Income | D25: Income reported to date | E25: ='INVOICE 1'!E25+'INVOICE 24'!L25 -> 0 | H25: Prior allocated income | I25: 0 | K25: This Period | L25: 0 | P25: Unallocated income balance | Q25: =E25-I25 -> 0
C27: Grant funds expended to date: | E27: =SUM(F23,J23) -> 401866 | I27: Grant funds claimed this period: | J27: =J23 -> 10286 | O27: Percentage Grant $$ expended to date: | Q27: =E27/B23 -> 0.803732
C28: Cash match to date: | E28: =SUM(G23,K23) -> 296648 | O28: % of Total Obligated Cash Match to date: | Q28: =E28/C23 -> 0.7514489523
C29: In-kind match to date: | E29: =SUM(H23,L23) -> 70336 | O29: % of Total Obligated In-kind Match to date: | Q29: =E29/D23 -> 0.6683898434
E31: Expenditure Descriptions - Units / $ Amounts | O31: Comments
A32: Salaries & Benefits | B32: Grant Funds | D32: =J15 -> 4706 | E32: Drug & Alcohol Specialist 0..5 FTE $569.94 Academic Tutor 0.5 FTE $1,377.74 Mental Health Specialist 0.5 FTE $1,339.99.Admin. Support 0.2 FTE $341.92 Case Management 0.5 FTE $575.50 Admin. Asst. 0.25 FTE $501.09
B33: Cash Match | D33: =K15 -> 6368 | E33: Cognitive Life Skills Director 1 FTE $1,849.78 Cognitive Life Skills Director (4) 0.5 FTE $1,229.Admin. Support 0.3 FTE $1,411.95 Admin. Asst. 0.25 FTE $916.79 .Mental Health Specialist 0.5 FTE $960.44
B34: In-kind Match | D34: =L15 -> 0
A35: Services & Supplies | B35: Grant Funds | D35: =J16 -> 3430 | E35: Mental Health Specialist 0.5 FTE $960.44.Cell Business Equipment (Sharp tv mthly fee) $112.27 Social Solutions (Data tracking tool) $416.96.Spectrum (advertisement) $1,032.28 Express Printing (advertisement) $86.40 SAM's Club (wal-mart gift cards) 40 @ $25 each $1,000 plus $12.80 processing fee
B36: Cash Match | D36: =K16 -> 0
B37: In-kind Match | D37: =L16 -> 0
A38: Prof Services / Public Agency Subcontracts | B38: Grant Funds | D38: =-J17 -> -2150 | E38: Truth Healing & Evolution Counseling Services (therapeutic support) $2,150
B39: Cash Match | D39: =K17 -> 2150 | E39: Truth Healing & Evolution Counseling Services (therapeutic support) $2,150
B40: In-kind Match | D40: =L17 -> 0
A41: CBO Subcontracts | B41: Grant Funds | D41: =J18 -> 0
B42: Cash Match | D42: =K18 -> 0
B43: In-kind Match | D43: =L18 -> 0
A44: Indirect Cost | B44: Grant Funds | D44: =J19 -> 0
B45: Cash Match | D45: =K19 -> 0
B46: In-kind Match | D46: =L19 -> 0
A47: Equipment Fixed Assets | B47: Grant Funds | D47: =J20 -> 0
B48: Cash Match | D48: =K20 -> 0
B49: In-kind Match | D49: =-L20 -> 0
A50: Project Evaluation | B50: Grant Funds | D50: =J21 -> 0
B51: Cash Match | D51: =K21 -> 0
B52: In-kind Match | D52: =L21 -> 0
A53: Other | B53: Grant Funds | D53: =J22 -> 0
B54: Cash Match | D54: =K22 -> 0
B55: In-kind Match | D55: =L22 -> 0
A56: Project Income | D56: =M25 -> 0
A57: PERSON PREPARING REPORT | F57: AUTHORIZED FINANCIAL OFFICER | N57: BSCC Supplier Data - Internal Use Only
F58: By checking the box below, I hereby certify that I am the authorized financial officer of the herein named agency. I further certify that I have not violated any of the provisions of Section 1090 of the Government Code in incurring the expenditures reported in this invoice, nor in any other way; that Sections 1090 through 1096 of the Government Code will not be violated in any way in the expenditure of funds pursuant to this invoice; that statement of funds above is true, correct, and in accordance with program provisions in all respects; and that all expenditures submitted after the expiration date of this contract are for the purpose of substantiating obligations legally incurred during the contract period. Furthermore, by submitting this invoice, I acknowledge that it must adhere to all of the requirements in the BSCC Grant Administration Guide, including any updates to the Guide during the term of the grant agreement.
A59: Jennifer Rosales, Administrative Assistant | N59: 0000102062
A60: Name, Title | N60: Supplier ID
A61: 909-723-1695 | N61: YOUNG VISIONARIES YOUTH LEADERSHIP ACADEMY
A62: Phone | N62: Supplier Name
A63: rosalesj129@yvyla-ie.org | N63: 696 S TIPPECANOE AVE
A64: Email | N64: Address Line 1
A65: 2020-06-26 | N65: SAN BERNARDINO, CA 92408
A66: Date | N66: ='INVOICE 1'!N66:Q66 -> SAN BERNARDINO, CA 92408
F68: Terrance Stone, CEO
F69: Name, Title
F70: 909-910-7327
F71: Phone
F72: 2020-06-26
F73: Date
A75: BSCC USE ONLY
A76: Date Received: | C76: 2020-06-24 | I76: Approved By: | K76: Katrina Jackson | O76: Date: | P76: 2020-07-14
K77: BSCC Field Representative

Sheet INVOICE 25
A1: STATE OF CALIFORNIA | N1: Purchase Authority | O1: BSCC 5227
A2: BOARD OF STATE AND COMMUNITY CORRECTIONS | N2: Purchase Order: | O2: 5227-0000002094 | Q2: ='INVOICE 1'!Q2 -> 0
A3: Financial Invoice Form: BSCC 201 (Revised 04/2020)
A5: Program: | B5: ='INVOICE 1'!B5 -> CalVIP-17 | M5: Please Note: The California State Controller's Office will send all checks directly to the address listed in the "BSCC Vendor Data" section at the bottom of this invoice.
A7: Grantee: | B7: ='INVOICE 1'!B7 -> Young Visionaries Youth Leadership Academy | G7: Lead Public Agency: | I7: ='INVOICE 1'!I7 -> Young Visionaries Youth Leadership Academy
A9: Contract #: | B9: ='INVOICE 1'!B9 -> 864-17 | E9: Term: | F9: ='INVOICE 1'!F9 -> 2018-05-01 | G9: TO | I9: ='INVOICE 1'!I9 -> 2021-08-16 | N9: Invoicing Frequency | O9: ='INVOICE 1'!O9 -> Monthly
A11: Invoice #: | B11: 25 CALVIP 18 | E11: Reporting Period: | F11: 2020-05-01 | G11: TO | I11: 2020-05-31 | J11: Due: | K11: 2020-07-15 | N11: Final Invoice (Y/N): | O11: No
A13: Line Items | B13: Budget | F13: Prior Expenditures | J13: This Reporting Period | N13: Balance
B14: Grant Funds | C14: Cash Match | D14: In-kind Match | E14: TOTAL | F14: Grant Funds | G14: Cash Match | H14: In-kind Match | I14: TOTAL | J14: Grant Funds | K14: Cash Match | L14: In-kind Match | M14: TOTAL | N14: Grant Funds | O14: Cash Match | P14: In-kind Match | Q14: TOTAL
A15: ='INVOICE 1'!A15 -> Salaries & Benefits | B15: ='INVOICE 24'!B15 -> 327218 | C15: ='INVOICE 24'!C15 -> 253886 | D15: ='INVOICE 24'!D15 -> 77700 | E15: =SUM(B15:D15) -> 658804 | F15: =SUM('INVOICE 24'!F15,'INVOICE 24'!J15) -> 292478 | G15: =SUM('INVOICE 24'!G15,'INVOICE 24'!K15) -> 197892 | H15: =SUM('INVOICE 24'!H15,'INVOICE 24'!L15) -> 70336 | I15: =SUM(F15:H15) -> 560706 | J15: 6495 | K15: 7477 | L15: 0 | M15: =SUM(J15:L15) -> 13972 | N15: =B15-F15-J15 -> 28245 | O15: 48517 | P15: 7364 | Q15: =SUM(N15:P15) -> 84126
A16: ='INVOICE 1'!A16 -> Services & Supplies | B16: ='INVOICE 24'!B16 -> 41282 | C16: ='INVOICE 24'!C16 -> 38160 | D16: ='INVOICE 24'!D16 -> 27532 | E16: =SUM(B16:D16) -> 106974 | F16: =SUM('INVOICE 24'!F16,'INVOICE 24'!J16) -> 22629 | G16: =SUM('INVOICE 24'!G16,'INVOICE 24'!K16) -> 29535 | H16: =SUM('INVOICE 24'!H16,'INVOICE 24'!L16) -> 0 | I16: =SUM(F16:H16) -> 52164 | J16: 1043 | K16: 1281 | L16: 0 | M16: =SUM(J16:L16) -> 2324 | N16: 17610 | O16: 7344 | P16: 27532 | Q16: =SUM(N16:P16) -> 52486
A17: ='INVOICE 1'!A17 -> Prof Services / Public Agency Subcontracts | B17: ='INVOICE 24'!B17 -> 70000 | C17: ='INVOICE 24'!C17 -> 70000 | D17: ='INVOICE 24'!D17 -> 0 | E17: 140000 | F17: =SUM('INVOICE 24'!F17,'INVOICE 24'!J17) -> 37157 | G17: =SUM('INVOICE 24'!G17,'INVOICE 24'!K17) -> 43392 | H17: =SUM('INVOICE 24'!H17,'INVOICE 24'!L17) -> 0 | I17: 80549 | J17: 2150 | K17: 2150 | L17: 0 | M17: 4300 | N17: 30693 | O17: 24458 | P17: 0 | Q17: 55151
A18: ='INVOICE 1'!A18 -> CBO Subcontracts | B18: ='INVOICE 24'!B18 -> 0 | C18: ='INVOICE 24'!C18 -> 0 | D18: ='INVOICE 24'!D18 -> 0 | E18: 0 | F18: =SUM('INVOICE 24'!F18,'INVOICE 24'!J18) -> 0 | G18: =SUM('INVOICE 24'!G18,'INVOICE 24'!K18) -> 0 | H18: =SUM('INVOICE 24'!H18,'INVOICE 24'!L18) -> 0 | I18: 0 | J18: 0 | K18: 0 | L18: 0 | M18: 0 | N18: 0 | O18: 0 | P18: 0 | Q18: 0
A19: ='INVOICE 1'!A19 -> Indirect Costs | B19: ='INVOICE 24'!B19 -> 0 | C19: ='INVOICE 24'!C19 -> 32722 | D19: ='INVOICE 24'!D19 -> 0 | E19: 32722 | F19: =SUM('INVOICE 24'!F19,'INVOICE 24'!J19) -> 0 | G19: =SUM('INVOICE 24'!G19,'INVOICE 24'!K19) -> 25829 | H19: =SUM('INVOICE 24'!H19,'INVOICE 24'!L19) -> 0 | I19: 25829 | J19: 0 | K19: 649 | L19: 0 | M19: 649 | N19: 0 | O19: 6244 | P19: 0 | Q19: 6244
A20: ='INVOICE 1'!A20 -> Equip/Fixed Assets | B20: ='INVOICE 24'!B20 -> 0 | C20: ='INVOICE 24'!C20 -> 0 | D20: ='INVOICE 24'!D20 -> 0 | E20: 0 | F20: =SUM('INVOICE 24'!F20,'INVOICE 24'!J20) -> 0 | G20: =SUM('INVOICE 24'!G20,'INVOICE 24'!K20) -> 0 | H20: =SUM('INVOICE 24'!H20,'INVOICE 24'!L20) -> 0 | I20: 0 | J20: 0 | K20: 0 | L20: 0 | M20: 0 | N20: 0 | O20: 0 | P20: 0 | Q20: 0
A21: ='INVOICE 1'!A21 -> Project Evaluation | B21: ='INVOICE 24'!B21 -> 57500 | C21: ='INVOICE 24'!C21 -> 0 | D21: ='INVOICE 24'!D21 -> 0 | E21: 57500 | F21: =SUM('INVOICE 24'!F21,'INVOICE 24'!J21) -> 47000 | G21: =SUM('INVOICE 24'!G21,'INVOICE 24'!K21) -> 0 | H21: =SUM('INVOICE 24'!H21,'INVOICE 24'!L21) -> 0 | I21: 47000 | J21: 1306 | K21: 0 | L21: 0 | M21: 1306 | N21: 9194 | O21: 0 | P21: 0 | Q21: 9194
A22: ='INVOICE 1'!A22 -> Other (Travel, Training, etc) | B22: ='INVOICE 24'!B22 -> 4000 | C22: ='INVOICE 24'!C22 -> 0 | D22: ='INVOICE 24'!D22 -> 0 | E22: 4000 | F22: =SUM('INVOICE 24'!F22,'INVOICE 24'!J22) -> 2602 | G22: =SUM('INVOICE 24'!G22,'INVOICE 24'!K22) -> 0 | H22: =SUM('INVOICE 24'!H22,'INVOICE 24'!L22) -> 0 | I22: 2602 | J22: 0 | K22: 0 | L22: 0 | M22: 0 | N22: 1398 | O22: 0 | P22: 0 | Q22: 1398
A23: TOTAL | B23: =SUM(B15:B22) -> 500000 | C23: =SUM(C15:C22) -> 394768 | D23: =SUM(D15:D22) -> 105232 | E23: =SUM(E15:E22) -> 1000000 | F23: =SUM(F15:F22) -> 401866 | G23: 296648 | H23: 70336 | I23: 768850 | J23: 10994 | K23: 11557 | L23: 0 | M23: =SUM(M15:M22) -> 22551 | N23: 87140 | O23: 86563 | P23: 34896 | Q23: 208599
A25: Project Income | D25: Income reported to date | E25: ='INVOICE 1'!E25+'INVOICE 25'!L25 -> 0 | H25: Prior allocated income | I25: 0 | K25: This Period | L25: 0 | P25: Unallocated income balance | Q25: =E25-I25 -> 0
C27: Grant funds expended to date: | E27: =SUM(F23,J23) -> 412860 | I27: Grant funds claimed this period: | J27: =J23 -> 10994 | O27: Percentage Grant $$ expended to date: | Q27: =E27/B23 -> 0.82572
C28: Cash match to date: | E28: =SUM(G23,K23) -> 308205 | O28: % of Total Obligated Cash Match to date: | Q28: =E28/C23 -> 0.7807243748
C29: In-kind match to date: | E29: =SUM(H23,L23) -> 70336 | O29: % of Total Obligated In-kind Match to date: | Q29: =E29/D23 -> 0.6683898434
E31: Expenditure Descriptions - Units / $ Amounts | O31: Comments
A32: Salaries & Benefits | B32: Grant Funds | D32: =J15 -> 6495 | E32: Drug & Alcohol Facilitator 0.5 FTE $1,669.71, Academic Tutor 0.5 FTE $2,729.29, Administrative Support 0.2 FTE $1,011.87, Program Assitant Coordinator 0.5 FTE $500.00, Admin Asst. 0.25 FTE $583.93
B33: Cash Match | D33: =K15 -> 7477 | E33: Cognitive Life Skills Director 1 FTE $3,157.72, Administrative Support 0.3 FTE $1,661.51, Admin Asst. 0.25 FTE $333.14, Cognitive Skills Director (4) 0.5 FTE $2,325.06
B34: In-kind Match | D34: =L15 -> 0
A35: Services & Supplies | B35: Grant Funds | D35: =J16 -> 1043 | E35: Community Action Partnership (rent) $300.00, Social Solutions (data tracking software) $416.96, El Dorado (advertising fees) $219.45, Cell Business Equipment (smart tv for training purposes) $106.92
B36: Cash Match | D36: =K16 -> 1281 | E36: SEMA in (Printing) $1,144.79, Adobe software $135.97
B37: In-kind Match | D37: =L16 -> 0
A38: Prof Services / Public Agency Subcontracts | B38: Grant Funds | D38: 2150 | E38: Truth Healing & Evoluntion Conseling Services (therapeutic support) $2,150.00
B39: Cash Match | D39: =K17 -> 2150 | E39: Truth Healing & Evoluntion Conseling Services (therapeutic support) $2,150.00
B40: In-kind Match | D40: =L17 -> 0
A41: CBO Subcontracts | B41: Grant Funds | D41: =J18 -> 0
B42: Cash Match | D42: =K18 -> 0
B43: In-kind Match | D43: =L18 -> 0
A44: Indirect Cost | B44: Grant Funds | D44: =J19 -> 0
B45: Cash Match | D45: =K19 -> 649 | E45: Indirect cost rate at 10% Salaries Benefits and fringe $649.48
B46: In-kind Match | D46: =L19 -> 0
A47: Equipment Fixed Assets | B47: Grant Funds | D47: =J20 -> 0
B48: Cash Match | D48: =K20 -> 0
B49: In-kind Match | D49: =-L20 -> 0
A50: Project Evaluation | B50: Grant Funds | D50: =J21 -> 1306 | E50: Luvicent providing incomplrehension evaluation services $1,305.55
B51: Cash Match | D51: =K21 -> 0
B52: In-kind Match | D52: =L21 -> 0
A53: Other | B53: Grant Funds | D53: =J22 -> 0
B54: Cash Match | D54: =K22 -> 0
B55: In-kind Match | D55: =L22 -> 0
A56: Project Income | D56: =M25 -> 0
A57: PERSON PREPARING REPORT | F57: AUTHORIZED FINANCIAL OFFICER | N57: BSCC Supplier Data - Internal Use Only
F58: By checking the box below, I hereby certify that I am the authorized financial officer of the herein named agency. I further certify that I have not violated any of the provisions of Section 1090 of the Government Code in incurring the expenditures reported in this invoice, nor in any other way; that Sections 1090 through 1096 of the Government Code will not be violated in any way in the expenditure of funds pursuant to this invoice; that statement of funds above is true, correct, and in accordance with program provisions in all respects; and that all expenditures submitted after the expiration date of this contract are for the purpose of substantiating obligations legally incurred during the contract period. Furthermore, by submitting this invoice, I acknowledge that it must adhere to all of the requirements in the BSCC Grant Administration Guide, including any updates to the Guide during the term of the grant agreement.
A59: Jennifer Rosales, Administrative Director | N59: 0000102062
A60: Name, Title | N60: Supplier ID
A61: 909-723-1695 | N61: YOUNG VISIONARIES YOUTH LEADERSHIP ACADEMY
A62: Phone | N62: Supplier Name
A63: rosalesj129@yvyla-ie.org | N63: 696 S TIPPECANOE AVE
A64: Email | N64: Address Line 1
A65: 2020-08-18 | N65: SAN BERNARDINO, CA 92408
A66: Date | N66: ='INVOICE 1'!N66:Q66 -> SAN BERNARDINO, CA 92408
F68: Terrance Stone, CEO
F69: Name, Title
F70: 909-910-7327
F71: Phone
F72: 2020-08-18
F73: Date
A75: BSCC USE ONLY
A76: Date Received: | C76: 2020-08-18 | I76: Approved By: | K76: Katrina Jackson | O76: Date: | P76: 2020-08-20
K77: BSCC Field Representative

Sheet INVOICE 26
A1: STATE OF CALIFORNIA | N1: Purchase Authority | O1: BSCC 5227
A2: BOARD OF STATE AND COMMUNITY CORRECTIONS | N2: Purchase Order: | O2: 5227-0000002094 | Q2: ='INVOICE 1'!Q2 -> 0
A3: Financial Invoice Form: BSCC 201 (Revised 04/2020)
A5: Program: | B5: ='INVOICE 1'!B5 -> CalVIP-17 | M5: Please Note: The California State Controller's Office will send all checks directly to the address listed in the "BSCC Vendor Data" section at the bottom of this invoice.
A7: Grantee: | B7: ='INVOICE 1'!B7 -> Young Visionaries Youth Leadership Academy | G7: Lead Public Agency: | I7: ='INVOICE 1'!I7 -> Young Visionaries Youth Leadership Academy
A9: Contract #: | B9: ='INVOICE 1'!B9 -> 864-17 | E9: Term: | F9: ='INVOICE 1'!F9 -> 2018-05-01 | G9: TO | I9: ='INVOICE 1'!I9 -> 2021-08-16 | N9: Invoicing Frequency | O9: ='INVOICE 1'!O9 -> Monthly
A11: Invoice #: | B11: 26 CALVIP 18 | E11: Reporting Period: | F11: 2020-06-01 | G11: TO | I11: 2020-06-30 | J11: Due: | K11: 2020-08-14 | N11: Final Invoice (Y/N): | O11: No
A13: Line Items | B13: Budget | F13: Prior Expenditures | J13: This Reporting Period | N13: Balance
B14: Grant Funds | C14: Cash Match | D14: In-kind Match | E14: TOTAL | F14: Grant Funds | G14: Cash Match | H14: In-kind Match | I14: TOTAL | J14: Grant Funds | K14: Cash Match | L14: In-kind Match | M14: TOTAL | N14: Grant Funds | O14: Cash Match | P14: In-kind Match | Q14: TOTAL
A15: ='INVOICE 1'!A15 -> Salaries & Benefits | B15: ='INVOICE 25'!B15 -> 327218 | C15: ='INVOICE 25'!C15 -> 253886 | D15: ='INVOICE 25'!D15 -> 77700 | E15: =SUM(B15:D15) -> 658804 | F15: =SUM('INVOICE 25'!F15,'INVOICE 25'!J15) -> 298973 | G15: =SUM('INVOICE 25'!G15,'INVOICE 25'!K15) -> 205369 | H15: =SUM('INVOICE 25'!H15,'INVOICE 25'!L15) -> 70336 | I15: =SUM(F15:H15) -> 574678 | J15: 4010 | K15: 11192 | L15: 0 | M15: =SUM(J15:L15) -> 15202 | N15: =B15-F15-J15 -> 24235 | O15: 37325 | P15: 7364 | Q15: =SUM(N15:P15) -> 68924
A16: ='INVOICE 1'!A16 -> Services & Supplies | B16: ='INVOICE 25'!B16 -> 41282 | C16: ='INVOICE 25'!C16 -> 38160 | D16: ='INVOICE 25'!D16 -> 27532 | E16: =SUM(B16:D16) -> 106974 | F16: =SUM('INVOICE 25'!F16,'INVOICE 25'!J16) -> 23672 | G16: =SUM('INVOICE 25'!G16,'INVOICE 25'!K16) -> 30816 | H16: =SUM('INVOICE 25'!H16,'INVOICE 25'!L16) -> 0 | I16: =SUM(F16:H16) -> 54488 | J16: 1152 | K16: 1908 | L16: 0 | M16: =SUM(J16:L16) -> 3060 | N16: 16458 | O16: 5436 | P16: 27532 | Q16: =SUM(N16:P16) -> 49426
A17: ='INVOICE 1'!A17 -> Prof Services / Public Agency Subcontracts | B17: ='INVOICE 25'!B17 -> 70000 | C17: ='INVOICE 25'!C17 -> 70000 | D17: ='INVOICE 25'!D17 -> 0 | E17: 140000 | F17: =SUM('INVOICE 25'!F17,'INVOICE 25'!J17) -> 39307 | G17: =SUM('INVOICE 25'!G17,'INVOICE 25'!K17) -> 45542 | H17: =SUM('INVOICE 25'!H17,'INVOICE 25'!L17) -> 0 | I17: 84849 | J17: 2150 | K17: 2150 | L17: 0 | M17: 4300 | N17: 28543 | O17: 22308 | P17: 0 | Q17: 50851
A18: ='INVOICE 1'!A18 -> CBO Subcontracts | B18: ='INVOICE 25'!B18 -> 0 | C18: ='INVOICE 25'!C18 -> 0 | D18: ='INVOICE 25'!D18 -> 0 | E18: 0 | F18: =SUM('INVOICE 25'!F18,'INVOICE 25'!J18) -> 0 | G18: =SUM('INVOICE 25'!G18,'INVOICE 25'!K18) -> 0 | H18: =SUM('INVOICE 25'!H18,'INVOICE 25'!L18) -> 0 | I18: 0 | J18: 0 | K18: 0 | L18: 0 | M18: 0 | N18: 0 | O18: 0 | P18: 0 | Q18: 0
A19: ='INVOICE 1'!A19 -> Indirect Costs | B19: ='INVOICE 25'!B19 -> 0 | C19: ='INVOICE 25'!C19 -> 32722 | D19: ='INVOICE 25'!D19 -> 0 | E19: 32722 | F19: =SUM('INVOICE 25'!F19,'INVOICE 25'!J19) -> 0 | G19: =SUM('INVOICE 25'!G19,'INVOICE 25'!K19) -> 26478 | H19: =SUM('INVOICE 25'!H19,'INVOICE 25'!L19) -> 0 | I19: 26478 | J19: 0 | K19: 401 | L19: 0 | M19: 401 | N19: 0 | O19: 5843 | P19: 0 | Q19: 5843
A20: ='INVOICE 1'!A20 -> Equip/Fixed Assets | B20: ='INVOICE 25'!B20 -> 0 | C20: ='INVOICE 25'!C20 -> 0 | D20: ='INVOICE 25'!D20 -> 0 | E20: 0 | F20: =SUM('INVOICE 25'!F20,'INVOICE 25'!J20) -> 0 | G20: =SUM('INVOICE 25'!G20,'INVOICE 25'!K20) -> 0 | H20: =SUM('INVOICE 25'!H20,'INVOICE 25'!L20) -> 0 | I20: 0 | J20: 0 | K20: 0 | L20: 0 | M20: 0 | N20: 0 | O20: 0 | P20: 0 | Q20: 0
A21: ='INVOICE 1'!A21 -> Project Evaluation | B21: ='INVOICE 25'!B21 -> 57500 | C21: ='INVOICE 25'!C21 -> 0 | D21: ='INVOICE 25'!D21 -> 0 | E21: 57500 | F21: =SUM('INVOICE 25'!F21,'INVOICE 25'!J21) -> 48306 | G21: =SUM('INVOICE 25'!G21,'INVOICE 25'!K21) -> 0 | H21: =SUM('INVOICE 25'!H21,'INVOICE 25'!L21) -> 0 | I21: 48306 | J21: 1306 | K21: 0 | L21: 0 | M21: 1306 | N21: 7888 | O21: 0 | P21: 0 | Q21: 7888
A22: ='INVOICE 1'!A22 -> Other (Travel, Training, etc) | B22: ='INVOICE 25'!B22 -> 4000 | C22: ='INVOICE 25'!C22 -> 0 | D22: ='INVOICE 25'!D22 -> 0 | E22: 4000 | F22: =SUM('INVOICE 25'!F22,'INVOICE 25'!J22) -> 2602 | G22: =SUM('INVOICE 25'!G22,'INVOICE 25'!K22) -> 0 | H22: =SUM('INVOICE 25'!H22,'INVOICE 25'!L22) -> 0 | I22: 2602 | J22: 0 | K22: 0 | L22: 0 | M22: 0 | N22: 1398 | O22: 0 | P22: 0 | Q22: 1398
A23: TOTAL | B23: =SUM(B15:B22) -> 500000 | C23: =SUM(C15:C22) -> 394768 | D23: =SUM(D15:D22) -> 105232 | E23: =SUM(E15:E22) -> 1000000 | F23: =SUM(F15:F22) -> 412860 | G23: 308205 | H23: 70336 | I23: 791401 | J23: 8618 | K23: =SUM(K15:K22) -> 15651 | L23: =SUM(L15:L22) -> 0 | M23: =SUM(M15:M22) -> 24269 | N23: 78522 | O23: 70912 | P23: 34896 | Q23: 184330
A25: Project Income | D25: Income reported to date | E25: ='INVOICE 1'!E25+'INVOICE 26'!L25 -> 0 | H25: Prior allocated income | I25: 0 | K25: This Period | L25: 0 | P25: Unallocated income balance | Q25: =E25-I25 -> 0
C27: Grant funds expended to date: | E27: =SUM(F23,J23) -> 421478 | I27: Grant funds claimed this period: | J27: =J23 -> 8618 | O27: Percentage Grant $$ expended to date: | Q27: =E27/B23 -> 0.842956
C28: Cash match to date: | E28: =SUM(G23,K23) -> 323856 | O28: % of Total Obligated Cash Match to date: | Q28: =E28/C23 -> 0.8203704454
C29: In-kind match to date: | E29: =SUM(H23,L23) -> 70336 | O29: % of Total Obligated In-kind Match to date: | Q29: =E29/D23 -> 0.6683898434
E31: Expenditure Descriptions - Units / $ Amounts | O31: Comments
A32: Salaries & Benefits | B32: Grant Funds | D32: =J15 -> 4010 | E32: Enterprise Outreach Coordinator 1 FTE $1,532.37, Administrative Support 0.2 FTE $499.55, Administrative Support 0.25 $333.03, Case Management Program Assistant 0.5 FTE $1,645.50
B33: Cash Match | D33: =K15 -> 11192 | E33: Cognitive Life Skills Director 1 FTE $2,951.67, 4 0.5 FTE $5,754.33, Administrative Support 1 0.3 FTE $467.99, 1 0.25 FTE $197.74, 1 0.5 FTE $1,819.82
B34: In-kind Match | D34: =L15 -> 0
A35: Services & Supplies | B35: Grant Funds | D35: =J16 -> 1152 | E35: Community Action Partnership (office Space) $300.00, Tmobile (company cell phone) $81.28, Constant Contact (advertising expense) $135.00 Social Solutions (data tracking tool) $416.96, Adobe (office supplies) $82.98, Cell Business Equipment (Smart tv) $106
B36: Cash Match | D36: =K16 -> 1908 | E36: Sema Inc. (sharp printers) $1,145.75, Stipends SOS program 3 @ $254.00 total $762.00
B37: In-kind Match | D37: =L16 -> 0
A38: Prof Services / Public Agency Subcontracts | B38: Grant Funds | D38: =-J17 -> -2150 | E38: Truth Healing & Evolution Counseling Services (therapeutic services/trauma informed specialist) $2,150.00
B39: Cash Match | D39: =K17 -> 2150 | E39: Truth Healing & Evolution Counseling Services (therapeutic services/trauma informed specialist) $2,150.00
B40: In-kind Match | D40: =L17 -> 0
A41: CBO Subcontracts | B41: Grant Funds | D41: =J18 -> 0
B42: Cash Match | D42: =K18 -> 0
B43: In-kind Match | D43: =L18 -> 0
A44: Indirect Cost | B44: Grant Funds | D44: =J19 -> 0
B45: Cash Match | D45: =K19 -> 401 | E45: Indirect cost rate at 10% Salaries, Benefits, and fringe $401.04
B46: In-kind Match | D46: =L19 -> 0
A47: Equipment Fixed Assets | B47: Grant Funds | D47: =J20 -> 0
B48: Cash Match | D48: =K20 -> 0
B49: In-kind Match | D49: =-L20 -> 0
A50: Project Evaluation | B50: Grant Funds | D50: =J21 -> 1306 | E50: Luvicent (providing imcomprehensive evaluation services) $1,305.55
B51: Cash Match | D51: =K21 -> 0
B52: In-kind Match | D52: =L21 -> 0
A53: Other | B53: Grant Funds | D53: =J22 -> 0
B54: Cash Match | D54: =K22 -> 0
B55: In-kind Match | D55: =L22 -> 0
A56: Project Income | D56: =M25 -> 0
A57: PERSON PREPARING REPORT | F57: AUTHORIZED FINANCIAL OFFICER | N57: BSCC Supplier Data - Internal Use Only
F58: By checking the box below, I hereby certify that I am the authorized financial officer of the herein named agency. I further certify that I have not violated any of the provisions of Section 1090 of the Government Code in incurring the expenditures reported in this invoice, nor in any other way; that Sections 1090 through 1096 of the Government Code will not be violated in any way in the expenditure of funds pursuant to this invoice; that statement of funds above is true, correct, and in accordance with program provisions in all respects; and that all expenditures submitted after the expiration date of this contract are for the purpose of substantiating obligations legally incurred during the contract period. Furthermore, by submitting this invoice, I acknowledge that it must adhere to all of the requirements in the BSCC Grant Administration Guide, including any updates to the Guide during the term of the grant agreement.
A59: Jennifer Rosales, Administrative Director | N59: 0000102062
A60: Name, Title | N60: Supplier ID
A61: 909-723-1695 | N61: YOUNG VISIONARIES YOUTH LEADERSHIP ACADEMY
A62: Phone | N62: Supplier Name
A63: rosalesj129@yvyla-ie.org | N63: 696 S TIPPECANOE AVE
A64: Email | N64: Address Line 1
A65: 2020-08-31 | N65: SAN BERNARDINO, CA 92408
A66: Date | N66: ='INVOICE 1'!N66:Q66 -> SAN BERNARDINO, CA 92408
F68: Terrance Stone, CEO
F69: Name, Title
F70: 909-910-7327
F71: Phone
F72: 2020-08-31
F73: Date
A75: BSCC USE ONLY
A76: Date Received: | C76: 2020-08-31 | I76: Approved By: | K76: Katrina Jackson | O76: Date: | P76: 2020-09-08
K77: BSCC Field Representative

Sheet INVOICE 27
A1: STATE OF CALIFORNIA | N1: Purchase Authority | O1: BSCC 5227
A2: BOARD OF STATE AND COMMUNITY CORRECTIONS | N2: Purchase Order: | O2: 5227-0000002094 | Q2: ='INVOICE 1'!Q2 -> 0
A3: Financial Invoice Form: BSCC 201 (Revised 04/2020)
A5: Program: | B5: ='INVOICE 1'!B5 -> CalVIP-17 | M5: Please Note: The California State Controller's Office will send all checks directly to the address listed in the "BSCC Vendor Data" section at the bottom of this invoice.
A7: Grantee: | B7: ='INVOICE 1'!B7 -> Young Visionaries Youth Leadership Academy | G7: Lead Public Agency: | I7: ='INVOICE 1'!I7 -> Young Visionaries Youth Leadership Academy
A9: Contract #: | B9: ='INVOICE 1'!B9 -> 864-17 | E9: Term: | F9: ='INVOICE 1'!F9 -> 2018-05-01 | G9: TO | I9: ='INVOICE 1'!I9 -> 2021-08-16 | N9: Invoicing Frequency | O9: ='INVOICE 1'!O9 -> Monthly
A11: Invoice #: | B11: 27 CALVIP 18 | E11: Reporting Period: | F11: 2020-07-01 | G11: TO | I11: 2020-07-31 | J11: Due: | K11: 2020-09-15 | N11: Final Invoice (Y/N): | O11: No
A13: Line Items | B13: Budget | F13: Prior Expenditures | J13: This Reporting Period | N13: Balance
B14: Grant Funds | C14: Cash Match | D14: In-kind Match | E14: TOTAL | F14: Grant Funds | G14: Cash Match | H14: In-kind Match | I14: TOTAL | J14: Grant Funds | K14: Cash Match | L14: In-kind Match | M14: TOTAL | N14: Grant Funds | O14: Cash Match | P14: In-kind Match | Q14: TOTAL
A15: ='INVOICE 1'!A15 -> Salaries & Benefits | B15: ='INVOICE 26'!B15 -> 327218 | C15: ='INVOICE 26'!C15 -> 253886 | D15: ='INVOICE 26'!D15 -> 77700 | E15: =SUM(B15:D15) -> 658804 | F15: =SUM('INVOICE 26'!F15,'INVOICE 26'!J15) -> 302983 | G15: =SUM('INVOICE 26'!G15,'INVOICE 26'!K15) -> 216561 | H15: =SUM('INVOICE 26'!H15,'INVOICE 26'!L15) -> 70336 | I15: =SUM(F15:H15) -> 589880 | J15: 0 | K15: 0 | L15: 0 | M15: =SUM(J15:L15) -> 0 | N15: =B15-F15-J15 -> 24235 | O15: 37325 | P15: 7364 | Q15: =SUM(N15:P15) -> 68924
A16: ='INVOICE 1'!A16 -> Services & Supplies | B16: ='INVOICE 26'!B16 -> 41282 | C16: ='INVOICE 26'!C16 -> 38160 | D16: ='INVOICE 26'!D16 -> 27532 | E16: =SUM(B16:D16) -> 106974 | F16: =SUM('INVOICE 26'!F16,'INVOICE 26'!J16) -> 24824 | G16: =SUM('INVOICE 26'!G16,'INVOICE 26'!K16) -> 32724 | H16: =SUM('INVOICE 26'!H16,'INVOICE 26'!L16) -> 0 | I16: =SUM(F16:H16) -> 57548 | J16: 0 | K16: 0 | L16: 0 | M16: =SUM(J16:L16) -> 0 | N16: 16458 | O16: 5436 | P16: 27532 | Q16: =SUM(N16:P16) -> 49426
A17: ='INVOICE 1'!A17 -> Prof Services / Public Agency Subcontracts | B17: ='INVOICE 26'!B17 -> 70000 | C17: ='INVOICE 26'!C17 -> 70000 | D17: ='INVOICE 26'!D17 -> 0 | E17: 140000 | F17: =SUM('INVOICE 26'!F17,'INVOICE 26'!J17) -> 41457 | G17: =SUM('INVOICE 26'!G17,'INVOICE 26'!K17) -> 47692 | H17: =SUM('INVOICE 26'!H17,'INVOICE 26'!L17) -> 0 | I17: 89149 | J17: 0 | K17: 0 | L17: 0 | M17: 0 | N17: 28543 | O17: 22308 | P17: 0 | Q17: 50851
A18: ='INVOICE 1'!A18 -> CBO Subcontracts | B18: ='INVOICE 26'!B18 -> 0 | C18: ='INVOICE 26'!C18 -> 0 | D18: ='INVOICE 26'!D18 -> 0 | E18: 0 | F18: =SUM('INVOICE 26'!F18,'INVOICE 26'!J18) -> 0 | G18: =SUM('INVOICE 26'!G18,'INVOICE 26'!K18) -> 0 | H18: =SUM('INVOICE 26'!H18,'INVOICE 26'!L18) -> 0 | I18: 0 | J18: 0 | K18: 0 | L18: 0 | M18: 0 | N18: 0 | O18: 0 | P18: 0 | Q18: 0
A19: ='INVOICE 1'!A19 -> Indirect Costs | B19: ='INVOICE 26'!B19 -> 0 | C19: ='INVOICE 26'!C19 -> 32722 | D19: ='INVOICE 26'!D19 -> 0 | E19: 32722 | F19: =SUM('INVOICE 26'!F19,'INVOICE 26'!J19) -> 0 | G19: =SUM('INVOICE 26'!G19,'INVOICE 26'!K19) -> 26879 | H19: =SUM('INVOICE 26'!H19,'INVOICE 26'!L19) -> 0 | I19: 26879 | J19: 0 | K19: 0 | L19: 0 | M19: 0 | N19: 0 | O19: 5843 | P19: 0 | Q19: 5843
A20: ='INVOICE 1'!A20 -> Equip/Fixed Assets | B20: ='INVOICE 26'!B20 -> 0 | C20: ='INVOICE 26'!C20 -> 0 | D20: ='INVOICE 26'!D20 -> 0 | E20: 0 | F20: =SUM('INVOICE 26'!F20,'INVOICE 26'!J20) -> 0 | G20: =SUM('INVOICE 26'!G20,'INVOICE 26'!K20) -> 0 | H20: =SUM('INVOICE 26'!H20,'INVOICE 26'!L20) -> 0 | I20: 0 | J20: 0 | K20: 0 | L20: 0 | M20: 0 | N20: 0 | O20: 0 | P20: 0 | Q20: 0
A21: ='INVOICE 1'!A21 -> Project Evaluation | B21: ='INVOICE 26'!B21 -> 57500 | C21: ='INVOICE 26'!C21 -> 0 | D21: ='INVOICE 26'!D21 -> 0 | E21: 57500 | F21: =SUM('INVOICE 26'!F21,'INVOICE 26'!J21) -> 49612 | G21: =SUM('INVOICE 26'!G21,'INVOICE 26'!K21) -> 0 | H21: =SUM('INVOICE 26'!H21,'INVOICE 26'!L21) -> 0 | I21: 49612 | J21: 0 | K21: 0 | L21: 0 | M21: 0 | N21: 7888 | O21: 0 | P21: 0 | Q21: 7888
A22: ='INVOICE 1'!A22 -> Other (Travel, Training, etc) | B22: ='INVOICE 26'!B22 -> 4000 | C22: ='INVOICE 26'!C22 -> 0 | D22: ='INVOICE 26'!D22 -> 0 | E22: 4000 | F22: =SUM('INVOICE 26'!F22,'INVOICE 26'!J22) -> 2602 | G22: =SUM('INVOICE 26'!G22,'INVOICE 26'!K22) -> 0 | H22: =SUM('INVOICE 26'!H22,'INVOICE 26'!L22) -> 0 | I22: 2602 | J22: 0 | K22: 0 | L22: 0 | M22: 0 | N22: 1398 | O22: 0 | P22: 0 | Q22: 1398
A23: TOTAL | B23: =SUM(B15:B22) -> 500000 | C23: =SUM(C15:C22) -> 394768 | D23: =SUM(D15:D22) -> 105232 | E23: =SUM(E15:E22) -> 1000000 | F23: =SUM(F15:F22) -> 421478 | G23: 323856 | H23: 70336 | I23: 815670 | J23: 0 | K23: =SUM(K15:K22) -> 0 | L23: =SUM(L15:L22) -> 0 | M23: =SUM(M15:M22) -> 0 | N23: 78522 | O23: 70912 | P23: 34896 | Q23: 184330
A25: Project Income | D25: Income reported to date | E25: ='INVOICE 1'!E25+'INVOICE 27'!L25 -> 0 | H25: Prior allocated income | I25: 0 | K25: This Period | L25: 0 | P25: Unallocated income balance | Q25: =E25-I25 -> 0
C27: Grant funds expended to date: | E27: =SUM(F23,J23) -> 421478 | I27: Grant funds claimed this period: | J27: =J23 -> 0 | O27: Percentage Grant $$ expended to date: | Q27: =E27/B23 -> 0.842956
C28: Cash match to date: | E28: =SUM(G23,K23) -> 323856 | O28: % of Total Obligated Cash Match to date: | Q28: =E28/C23 -> 0.8203704454
C29: In-kind match to date: | E29: =SUM(H23,L23) -> 70336 | O29: % of Total Obligated In-kind Match to date: | Q29: =E29/D23 -> 0.6683898434
E31: Expenditure Descriptions - Units / $ Amounts | O31: Comments
A32: Salaries & Benefits | B32: Grant Funds | D32: =J15 -> 0
B33: Cash Match | D33: =K15 -> 0
B34: In-kind Match | D34: =L15 -> 0
A35: Services & Supplies | B35: Grant Funds | D35: =J16 -> 0
B36: Cash Match | D36: =K16 -> 0
B37: In-kind Match | D37: =L16 -> 0
A38: Prof Services / Public Agency Subcontracts | B38: Grant Funds | D38: =-J17 -> 0
B39: Cash Match | D39: =K17 -> 0
B40: In-kind Match | D40: =L17 -> 0
A41: CBO Subcontracts | B41: Grant Funds | D41: =J18 -> 0
B42: Cash Match | D42: =K18 -> 0
B43: In-kind Match | D43: =L18 -> 0
A44: Indirect Cost | B44: Grant Funds | D44: =J19 -> 0
B45: Cash Match | D45: =K19 -> 0
B46: In-kind Match | D46: =L19 -> 0
A47: Equipment Fixed Assets | B47: Grant Funds | D47: =J20 -> 0
B48: Cash Match | D48: =K20 -> 0
B49: In-kind Match | D49: =-L20 -> 0
A50: Project Evaluation | B50: Grant Funds | D50: =J21 -> 0
B51: Cash Match | D51: =K21 -> 0
B52: In-kind Match | D52: =L21 -> 0
A53: Other | B53: Grant Funds | D53: =J22 -> 0
B54: Cash Match | D54: =K22 -> 0
B55: In-kind Match | D55: =L22 -> 0
A56: Project Income | D56: =M25 -> 0
A57: PERSON PREPARING REPORT | F57: AUTHORIZED FINANCIAL OFFICER | N57: BSCC Supplier Data - Internal Use Only
F58: By checking the box below, I hereby certify that I am the authorized financial officer of the herein named agency. I further certify that I have not violated any of the provisions of Section 1090 of the Government Code in incurring the expenditures reported in this invoice, nor in any other way; that Sections 1090 through 1096 of the Government Code will not be violated in any way in the expenditure of funds pursuant to this invoice; that statement of funds above is true, correct, and in accordance with program provisions in all respects; and that all expenditures submitted after the expiration date of this contract are for the purpose of substantiating obligations legally incurred during the contract period. Furthermore, by submitting this invoice, I acknowledge that it must adhere to all of the requirements in the BSCC Grant Administration Guide, including any updates to the Guide during the term of the grant agreement.
N59: 0000102062
A60: Name, Title | N60: Supplier ID
N61: YOUNG VISIONARIES YOUTH LEADERSHIP ACADEMY
A62: Phone | N62: Supplier Name
N63: 696 S TIPPECANOE AVE
A64: Email | N64: Address Line 1
N65: SAN BERNARDINO, CA 92408
A66: Date | N66: ='INVOICE 1'!N66:Q66 -> SAN BERNARDINO, CA 92408
F69: Name, Title
F71: Phone
F73: Date
A75: BSCC USE ONLY
A76: Date Received: | I76: Approved By: | O76: Date:
K77: BSCC Field Representative

Sheet INVOICE 28
A1: STATE OF CALIFORNIA | N1: Purchase Authority | O1: BSCC 5227
A2: BOARD OF STATE AND COMMUNITY CORRECTIONS | N2: Purchase Order: | O2: 5227-0000002094 | Q2: ='INVOICE 1'!Q2 -> 0
A3: Financial Invoice Form: BSCC 201 (Revised 04/2020)
A5: Program: | B5: ='INVOICE 1'!B5 -> CalVIP-17 | M5: Please Note: The California State Controller's Office will send all checks directly to the address listed in the "BSCC Vendor Data" section at the bottom of this invoice.
A7: Grantee: | B7: ='INVOICE 1'!B7 -> Young Visionaries Youth Leadership Academy | G7: Lead Public Agency: | I7: ='INVOICE 1'!I7 -> Young Visionaries Youth Leadership Academy
A9: Contract #: | B9: ='INVOICE 1'!B9 -> 864-17 | E9: Term: | F9: ='INVOICE 1'!F9 -> 2018-05-01 | G9: TO | I9: ='INVOICE 1'!I9 -> 2021-08-16 | N9: Invoicing Frequency | O9: ='INVOICE 1'!O9 -> Monthly
A11: Invoice #: | B11: 28 CALVIP 18 | E11: Reporting Period: | F11: 2019-08-01 | G11: TO | I11: 2019-08-31 | J11: Due: | K11: 2020-10-15 | N11: Final Invoice (Y/N): | O11: No
A13: Line Items | B13: Budget | F13: Prior Expenditures | J13: This Reporting Period | N13: Balance
B14: Grant Funds | C14: Cash Match | D14: In-kind Match | E14: TOTAL | F14: Grant Funds | G14: Cash Match | H14: In-kind Match | I14: TOTAL | J14: Grant Funds | K14: Cash Match | L14: In-kind Match | M14: TOTAL | N14: Grant Funds | O14: Cash Match | P14: In-kind Match | Q14: TOTAL
A15: ='INVOICE 1'!A15 -> Salaries & Benefits | B15: ='INVOICE 27'!B15 -> 327218 | C15: ='INVOICE 27'!C15 -> 253886 | D15: ='INVOICE 27'!D15 -> 77700 | E15: =SUM(B15:D15) -> 658804 | F15: =SUM('INVOICE 27'!F15,'INVOICE 27'!J15) -> 302983 | G15: =SUM('INVOICE 27'!G15,'INVOICE 27'!K15) -> 216561 | H15: =SUM('INVOICE 27'!H15,'INVOICE 27'!L15) -> 70336 | I15: =SUM(F15:H15) -> 589880 | J15: 0 | K15: 0 | L15: 0 | M15: =SUM(J15:L15) -> 0 | N15: =B15-F15-J15 -> 24235 | O15: 37325 | P15: 7364 | Q15: =SUM(N15:P15) -> 68924
A16: ='INVOICE 1'!A16 -> Services & Supplies | B16: ='INVOICE 27'!B16 -> 41282 | C16: ='INVOICE 27'!C16 -> 38160 | D16: ='INVOICE 27'!D16 -> 27532 | E16: =SUM(B16:D16) -> 106974 | F16: =SUM('INVOICE 27'!F16,'INVOICE 27'!J16) -> 24824 | G16: =SUM('INVOICE 27'!G16,'INVOICE 27'!K16) -> 32724 | H16: =SUM('INVOICE 27'!H16,'INVOICE 27'!L16) -> 0 | I16: =SUM(F16:H16) -> 57548 | J16: 0 | K16: 0 | L16: 0 | M16: =SUM(J16:L16) -> 0 | N16: 16458 | O16: 5436 | P16: 27532 | Q16: =SUM(N16:P16) -> 49426
A17: ='INVOICE 1'!A17 -> Prof Services / Public Agency Subcontracts | B17: ='INVOICE 27'!B17 -> 70000 | C17: ='INVOICE 27'!C17 -> 70000 | D17: ='INVOICE 27'!D17 -> 0 | E17: 140000 | F17: =SUM('INVOICE 27'!F17,'INVOICE 27'!J17) -> 41457 | G17: =SUM('INVOICE 27'!G17,'INVOICE 27'!K17) -> 47692 | H17: =SUM('INVOICE 27'!H17,'INVOICE 27'!L17) -> 0 | I17: 89149 | J17: 0 | K17: 0 | L17: 0 | M17: 0 | N17: 28543 | O17: 22308 | P17: 0 | Q17: 50851
A18: ='INVOICE 1'!A18 -> CBO Subcontracts | B18: ='INVOICE 27'!B18 -> 0 | C18: ='INVOICE 27'!C18 -> 0 | D18: ='INVOICE 27'!D18 -> 0 | E18: 0 | F18: =SUM('INVOICE 27'!F18,'INVOICE 27'!J18) -> 0 | G18: =SUM('INVOICE 27'!G18,'INVOICE 27'!K18) -> 0 | H18: =SUM('INVOICE 27'!H18,'INVOICE 27'!L18) -> 0 | I18: 0 | J18: 0 | K18: 0 | L18: 0 | M18: 0 | N18: 0 | O18: 0 | P18: 0 | Q18: 0
A19: ='INVOICE 1'!A19 -> Indirect Costs | B19: ='INVOICE 27'!B19 -> 0 | C19: ='INVOICE 27'!C19 -> 32722 | D19: ='INVOICE 27'!D19 -> 0 | E19: 32722 | F19: =SUM('INVOICE 27'!F19,'INVOICE 27'!J19) -> 0 | G19: =SUM('INVOICE 27'!G19,'INVOICE 27'!K19) -> 26879 | H19: =SUM('INVOICE 27'!H19,'INVOICE 27'!L19) -> 0 | I19: 26879 | J19: 0 | K19: 0 | L19: 0 | M19: 0 | N19: 0 | O19: 5843 | P19: 0 | Q19: 5843
A20: ='INVOICE 1'!A20 -> Equip/Fixed Assets | B20: ='INVOICE 27'!B20 -> 0 | C20: ='INVOICE 27'!C20 -> 0 | D20: ='INVOICE 27'!D20 -> 0 | E20: 0 | F20: =SUM('INVOICE 27'!F20,'INVOICE 27'!J20) -> 0 | G20: =SUM('INVOICE 27'!G20,'INVOICE 27'!K20) -> 0 | H20: =SUM('INVOICE 27'!H20,'INVOICE 27'!L20) -> 0 | I20: 0 | J20: 0 | K20: 0 | L20: 0 | M20: 0 | N20: 0 | O20: 0 | P20: 0 | Q20: 0
A21: ='INVOICE 1'!A21 -> Project Evaluation | B21: ='INVOICE 27'!B21 -> 57500 | C21: ='INVOICE 27'!C21 -> 0 | D21: ='INVOICE 27'!D21 -> 0 | E21: 57500 | F21: =SUM('INVOICE 27'!F21,'INVOICE 27'!J21) -> 49612 | G21: =SUM('INVOICE 27'!G21,'INVOICE 27'!K21) -> 0 | H21: =SUM('INVOICE 27'!H21,'INVOICE 27'!L21) -> 0 | I21: 49612 | J21: 0 | K21: 0 | L21: 0 | M21: 0 | N21: 7888 | O21: 0 | P21: 0 | Q21: 7888
A22: ='INVOICE 1'!A22 -> Other (Travel, Training, etc) | B22: ='INVOICE 27'!B22 -> 4000 | C22: ='INVOICE 27'!C22 -> 0 | D22: ='INVOICE 27'!D22 -> 0 | E22: 4000 | F22: =SUM('INVOICE 27'!F22,'INVOICE 27'!J22) -> 2602 | G22: =SUM('INVOICE 27'!G22,'INVOICE 27'!K22) -> 0 | H22: =SUM('INVOICE 27'!H22,'INVOICE 27'!L22) -> 0 | I22: 2602 | J22: 0 | K22: 0 | L22: 0 | M22: 0 | N22: 1398 | O22: 0 | P22: 0 | Q22: 1398
A23: TOTAL | B23: =SUM(B15:B22) -> 500000 | C23: =SUM(C15:C22) -> 394768 | D23: =SUM(D15:D22) -> 105232 | E23: =SUM(E15:E22) -> 1000000 | F23: =SUM(F15:F22) -> 421478 | G23: 323856 | H23: 70336 | I23: 815670 | J23: 0 | K23: =SUM(K15:K22) -> 0 | L23: =SUM(L15:L22) -> 0 | M23: =SUM(M15:M22) -> 0 | N23: 78522 | O23: 70912 | P23: 34896 | Q23: 184330
A25: Project Income | D25: Income reported to date | E25: ='INVOICE 1'!E25+'INVOICE 28'!L25 -> 0 | H25: Prior allocated income | I25: 0 | K25: This Period | L25: 0 | P25: Unallocated income balance | Q25: =E25-I25 -> 0
C27: Grant funds expended to date: | E27: =SUM(F23,J23) -> 421478 | I27: Grant funds claimed this period: | J27: =J23 -> 0 | O27: Percentage Grant $$ expended to date: | Q27: =E27/B23 -> 0.842956
C28: Cash match to date: | E28: =SUM(G23,K23) -> 323856 | O28: % of Total Obligated Cash Match to date: | Q28: =E28/C23 -> 0.8203704454
C29: In-kind match to date: | E29: =SUM(H23,L23) -> 70336 | O29: % of Total Obligated In-kind Match to date: | Q29: =E29/D23 -> 0.6683898434
E31: Expenditure Descriptions - Units / $ Amounts | O31: Comments
A32: Salaries & Benefits | B32: Grant Funds | D32: =J15 -> 0
B33: Cash Match | D33: =K15 -> 0
B34: In-kind Match | D34: =L15 -> 0
A35: Services & Supplies | B35: Grant Funds | D35: =J16 -> 0
B36: Cash Match | D36: =K16 -> 0
B37: In-kind Match | D37: =L16 -> 0
A38: Prof Services / Public Agency Subcontracts | B38: Grant Funds | D38: =-J17 -> 0
B39: Cash Match | D39: =K17 -> 0
B40: In-kind Match | D40: =L17 -> 0
A41: CBO Subcontracts | B41: Grant Funds | D41: =J18 -> 0
B42: Cash Match | D42: =K18 -> 0
B43: In-kind Match | D43: =L18 -> 0
A44: Indirect Cost | B44: Grant Funds | D44: =J19 -> 0
B45: Cash Match | D45: =K19 -> 0
B46: In-kind Match | D46: =L19 -> 0
A47: Equipment Fixed Assets | B47: Grant Funds | D47: =J20 -> 0
B48: Cash Match | D48: =K20 -> 0
B49: In-kind Match | D49: =-L20 -> 0
A50: Project Evaluation | B50: Grant Funds | D50: =J21 -> 0
B51: Cash Match | D51: =K21 -> 0
B52: In-kind Match | D52: =L21 -> 0
A53: Other | B53: Grant Funds | D53: =J22 -> 0
B54: Cash Match | D54: =K22 -> 0
B55: In-kind Match | D55: =L22 -> 0
A56: Project Income | D56: =M25 -> 0
A57: PERSON PREPARING REPORT | F57: AUTHORIZED FINANCIAL OFFICER | N57: BSCC Supplier Data - Internal Use Only
F58: By checking the box below, I hereby certify that I am the authorized financial officer of the herein named agency. I further certify that I have not violated any of the provisions of Section 1090 of the Government Code in incurring the expenditures reported in this invoice, nor in any other way; that Sections 1090 through 1096 of the Government Code will not be violated in any way in the expenditure of funds pursuant to this invoice; that statement of funds above is true, correct, and in accordance with program provisions in all respects; and that all expenditures submitted after the expiration date of this contract are for the purpose of substantiating obligations legally incurred during the contract period. Furthermore, by submitting this invoice, I acknowledge that it must adhere to all of the requirements in the BSCC Grant Administration Guide, including any updates to the Guide during the term of the grant agreement.
N59: 0000102062
A60: Name, Title | N60: Supplier ID
N61: YOUNG VISIONARIES YOUTH LEADERSHIP ACADEMY
A62: Phone | N62: Supplier Name
N63: 696 S TIPPECANOE AVE
A64: Email | N64: Address Line 1
N65: SAN BERNARDINO, CA 92408
A66: Date | N66: ='INVOICE 1'!N66:Q66 -> SAN BERNARDINO, CA 92408
F69: Name, Title
F71: Phone
F73: Date
A75: BSCC USE ONLY
A76: Date Received: | I76: Approved By: | O76: Date:
K77: BSCC Field Representative

Sheet INVOICE 29
A1: STATE OF CALIFORNIA | N1: Purchase Authority | O1: BSCC 5227
A2: BOARD OF STATE AND COMMUNITY CORRECTIONS | N2: Purchase Order: | O2: 5227-0000002094 | Q2: ='INVOICE 1'!Q2 -> 0
A3: Financial Invoice Form: BSCC 201 (Revised 04/2020)
A5: Program: | B5: ='INVOICE 1'!B5 -> CalVIP-17 | M5: Please Note: The California State Controller's Office will send all checks directly to the address listed in the "BSCC Vendor Data" section at the bottom of this invoice.
A7: Grantee: | B7: ='INVOICE 1'!B7 -> Young Visionaries Youth Leadership Academy | G7: Lead Public Agency: | I7: ='INVOICE 1'!I7 -> Young Visionaries Youth Leadership Academy
A9: Contract #: | B9: ='INVOICE 1'!B9 -> 864-17 | E9: Term: | F9: ='INVOICE 1'!F9 -> 2018-05-01 | G9: TO | I9: ='INVOICE 1'!I9 -> 2021-08-16 | N9: Invoicing Frequency | O9: ='INVOICE 1'!O9 -> Monthly
A11: Invoice #: | B11: 29 CALVIP 18 | E11: Reporting Period: | F11: 2020-09-01 | G11: TO | I11: 9/31/2020 | J11: Due: | K11: 2020-11-15 | N11: Final Invoice (Y/N): | O11: No
A13: Line Items | B13: Budget | F13: Prior Expenditures | J13: This Reporting Period | N13: Balance
B14: Grant Funds | C14: Cash Match | D14: In-kind Match | E14: TOTAL | F14: Grant Funds | G14: Cash Match | H14: In-kind Match | I14: TOTAL | J14: Grant Funds | K14: Cash Match | L14: In-kind Match | M14: TOTAL | N14: Grant Funds | O14: Cash Match | P14: In-kind Match | Q14: TOTAL
A15: ='INVOICE 1'!A15 -> Salaries & Benefits | B15: ='INVOICE 28'!B15 -> 327218 | C15: ='INVOICE 28'!C15 -> 253886 | D15: ='INVOICE 28'!D15 -> 77700 | E15: =SUM(B15:D15) -> 658804 | F15: =SUM('INVOICE 28'!F15,'INVOICE 28'!J15) -> 302983 | G15: =SUM('INVOICE 28'!G15,'INVOICE 28'!K15) -> 216561 | H15: =SUM('INVOICE 28'!H15,'INVOICE 28'!L15) -> 70336 | I15: =SUM(F15:H15) -> 589880 | J15: 0 | K15: 0 | L15: 0 | M15: =SUM(J15:L15) -> 0 | N15: =B15-F15-J15 -> 24235 | O15: 37325 | P15: 7364 | Q15: =SUM(N15:P15) -> 68924
A16: ='INVOICE 1'!A16 -> Services & Supplies | B16: ='INVOICE 28'!B16 -> 41282 | C16: ='INVOICE 28'!C16 -> 38160 | D16: ='INVOICE 28'!D16 -> 27532 | E16: =SUM(B16:D16) -> 106974 | F16: =SUM('INVOICE 28'!F16,'INVOICE 28'!J16) -> 24824 | G16: =SUM('INVOICE 28'!G16,'INVOICE 28'!K16) -> 32724 | H16: =SUM('INVOICE 28'!H16,'INVOICE 28'!L16) -> 0 | I16: =SUM(F16:H16) -> 57548 | J16: 0 | K16: 0 | L16: 0 | M16: =SUM(J16:L16) -> 0 | N16: 16458 | O16: 5436 | P16: 27532 | Q16: =SUM(N16:P16) -> 49426
A17: ='INVOICE 1'!A17 -> Prof Services / Public Agency Subcontracts | B17: ='INVOICE 28'!B17 -> 70000 | C17: ='INVOICE 28'!C17 -> 70000 | D17: ='INVOICE 28'!D17 -> 0 | E17: 140000 | F17: =SUM('INVOICE 28'!F17,'INVOICE 28'!J17) -> 41457 | G17: =SUM('INVOICE 28'!G17,'INVOICE 28'!K17) -> 47692 | H17: =SUM('INVOICE 28'!H17,'INVOICE 28'!L17) -> 0 | I17: 89149 | J17: 0 | K17: 0 | L17: 0 | M17: 0 | N17: 28543 | O17: 22308 | P17: 0 | Q17: 50851
A18: ='INVOICE 1'!A18 -> CBO Subcontracts | B18: ='INVOICE 28'!B18 -> 0 | C18: ='INVOICE 28'!C18 -> 0 | D18: ='INVOICE 28'!D18 -> 0 | E18: 0 | F18: =SUM('INVOICE 28'!F18,'INVOICE 28'!J18) -> 0 | G18: =SUM('INVOICE 28'!G18,'INVOICE 28'!K18) -> 0 | H18: =SUM('INVOICE 28'!H18,'INVOICE 28'!L18) -> 0 | I18: 0 | J18: 0 | K18: 0 | L18: 0 | M18: 0 | N18: 0 | O18: 0 | P18: 0 | Q18: 0
A19: ='INVOICE 1'!A19 -> Indirect Costs | B19: ='INVOICE 28'!B19 -> 0 | C19: ='INVOICE 28'!C19 -> 32722 | D19: ='INVOICE 28'!D19 -> 0 | E19: 32722 | F19: =SUM('INVOICE 28'!F19,'INVOICE 28'!J19) -> 0 | G19: =SUM('INVOICE 28'!G19,'INVOICE 28'!K19) -> 26879 | H19: =SUM('INVOICE 28'!H19,'INVOICE 28'!L19) -> 0 | I19: 26879 | J19: 0 | K19: 0 | L19: 0 | M19: 0 | N19: 0 | O19: 5843 | P19: 0 | Q19: 5843
A20: ='INVOICE 1'!A20 -> Equip/Fixed Assets | B20: ='INVOICE 28'!B20 -> 0 | C20: ='INVOICE 28'!C20 -> 0 | D20: ='INVOICE 28'!D20 -> 0 | E20: 0 | F20: =SUM('INVOICE 28'!F20,'INVOICE 28'!J20) -> 0 | G20: =SUM('INVOICE 28'!G20,'INVOICE 28'!K20) -> 0 | H20: =SUM('INVOICE 28'!H20,'INVOICE 28'!L20) -> 0 | I20: 0 | J20: 0 | K20: 0 | L20: 0 | M20: 0 | N20: 0 | O20: 0 | P20: 0 | Q20: 0
A21: ='INVOICE 1'!A21 -> Project Evaluation | B21: ='INVOICE 28'!B21 -> 57500 | C21: ='INVOICE 28'!C21 -> 0 | D21: ='INVOICE 28'!D21 -> 0 | E21: 57500 | F21: =SUM('INVOICE 28'!F21,'INVOICE 28'!J21) -> 49612 | G21: =SUM('INVOICE 28'!G21,'INVOICE 28'!K21) -> 0 | H21: =SUM('INVOICE 28'!H21,'INVOICE 28'!L21) -> 0 | I21: 49612 | J21: 0 | K21: 0 | L21: 0 | M21: 0 | N21: 7888 | O21: 0 | P21: 0 | Q21: 7888
A22: ='INVOICE 1'!A22 -> Other (Travel, Training, etc) | B22: ='INVOICE 28'!B22 -> 4000 | C22: ='INVOICE 28'!C22 -> 0 | D22: ='INVOICE 28'!D22 -> 0 | E22: 4000 | F22: =SUM('INVOICE 28'!F22,'INVOICE 28'!J22) -> 2602 | G22: =SUM('INVOICE 28'!G22,'INVOICE 28'!K22) -> 0 | H22: =SUM('INVOICE 28'!H22,'INVOICE 28'!L22) -> 0 | I22: 2602 | J22: 0 | K22: 0 | L22: 0 | M22: 0 | N22: 1398 | O22: 0 | P22: 0 | Q22: 1398
A23: TOTAL | B23: =SUM(B15:B22) -> 500000 | C23: =SUM(C15:C22) -> 394768 | D23: =SUM(D15:D22) -> 105232 | E23: =SUM(E15:E22) -> 1000000 | F23: =SUM(F15:F22) -> 421478 | G23: 323856 | H23: 70336 | I23: 815670 | J23: 0 | K23: =SUM(K15:K22) -> 0 | L23: =SUM(L15:L22) -> 0 | M23: =SUM(M15:M22) -> 0 | N23: 78522 | O23: 70912 | P23: 34896 | Q23: 184330
A25: Project Income | D25: Income reported to date | E25: ='INVOICE 1'!E25+'INVOICE 29'!L25 -> 0 | H25: Prior allocated income | I25: 0 | K25: This Period | L25: 0 | P25: Unallocated income balance | Q25: =E25-I25 -> 0
C27: Grant funds expended to date: | E27: =SUM(F23,J23) -> 421478 | I27: Grant funds claimed this period: | J27: =J23 -> 0 | O27: Percentage Grant $$ expended to date: | Q27: =E27/B23 -> 0.842956
C28: Cash match to date: | E28: =SUM(G23,K23) -> 323856 | O28: % of Total Obligated Cash Match to date: | Q28: =E28/C23 -> 0.8203704454
C29: In-kind match to date: | E29: =SUM(H23,L23) -> 70336 | O29: % of Total Obligated In-kind Match to date: | Q29: =E29/D23 -> 0.6683898434
E31: Expenditure Descriptions - Units / $ Amounts | O31: Comments
A32: Salaries & Benefits | B32: Grant Funds | D32: =J15 -> 0
B33: Cash Match | D33: =K15 -> 0
B34: In-kind Match | D34: =L15 -> 0
A35: Services & Supplies | B35: Grant Funds | D35: =J16 -> 0
B36: Cash Match | D36: =K16 -> 0
B37: In-kind Match | D37: =L16 -> 0
A38: Prof Services / Public Agency Subcontracts | B38: Grant Funds | D38: =-J17 -> 0
B39: Cash Match | D39: =K17 -> 0
B40: In-kind Match | D40: =L17 -> 0
A41: CBO Subcontracts | B41: Grant Funds | D41: =J18 -> 0
B42: Cash Match | D42: =K18 -> 0
B43: In-kind Match | D43: =L18 -> 0
A44: Indirect Cost | B44: Grant Funds | D44: =J19 -> 0
B45: Cash Match | D45: =K19 -> 0
B46: In-kind Match | D46: =L19 -> 0
A47: Equipment Fixed Assets | B47: Grant Funds | D47: =J20 -> 0
B48: Cash Match | D48: =K20 -> 0
B49: In-kind Match | D49: =-L20 -> 0
A50: Project Evaluation | B50: Grant Funds | D50: =J21 -> 0
B51: Cash Match | D51: =K21 -> 0
B52: In-kind Match | D52: =L21 -> 0
A53: Other | B53: Grant Funds | D53: =J22 -> 0
B54: Cash Match | D54: =K22 -> 0
B55: In-kind Match | D55: =L22 -> 0
A56: Project Income | D56: =M25 -> 0
A57: PERSON PREPARING REPORT | F57: AUTHORIZED FINANCIAL OFFICER | N57: BSCC Supplier Data - Internal Use Only
F58: By checking the box below, I hereby certify that I am the authorized financial officer of the herein named agency. I further certify that I have not violated any of the provisions of Section 1090 of the Government Code in incurring the expenditures reported in this invoice, nor in any other way; that Sections 1090 through 1096 of the Government Code will not be violated in any way in the expenditure of funds pursuant to this invoice; that statement of funds above is true, correct, and in accordance with program provisions in all respects; and that all expenditures submitted after the expiration date of this contract are for the purpose of substantiating obligations legally incurred during the contract period. Furthermore, by submitting this invoice, I acknowledge that it must adhere to all of the requirements in the BSCC Grant Administration Guide, including any updates to the Guide during the term of the grant agreement.
N59: 0000102062
A60: Name, Title | N60: Supplier ID
N61: YOUNG VISIONARIES YOUTH LEADERSHIP ACADEMY
A62: Phone | N62: Supplier Name
N63: 696 S TIPPECANOE AVE
A64: Email | N64: Address Line 1
N65: SAN BERNARDINO, CA 92408
A66: Date | N66: ='INVOICE 1'!N66:Q66 -> SAN BERNARDINO, CA 92408
F69: Name, Title
F71: Phone
F73: Date
A75: BSCC USE ONLY
A76: Date Received: | I76: Approved By: | O76: Date:
K77: BSCC Field Representative

Sheet INVOICE 30
A1: STATE OF CALIFORNIA | N1: Purchase Authority | O1: BSCC 5227
A2: BOARD OF STATE AND COMMUNITY CORRECTIONS | N2: Purchase Order: | O2: 5227-0000002094 | Q2: ='INVOICE 1'!Q2 -> 0
A3: Financial Invoice Form: BSCC 201 (Revised 04/2020)
A5: Program: | B5: ='INVOICE 1'!B5 -> CalVIP-17 | M5: Please Note: The California State Controller's Office will send all checks directly to the address listed in the "BSCC Vendor Data" section at the bottom of this invoice.
A7: Grantee: | B7: ='INVOICE 1'!B7 -> Young Visionaries Youth Leadership Academy | G7: Lead Public Agency: | I7: ='INVOICE 1'!I7 -> Young Visionaries Youth Leadership Academy
A9: Contract #: | B9: ='INVOICE 1'!B9 -> 864-17 | E9: Term: | F9: ='INVOICE 1'!F9 -> 2018-05-01 | G9: TO | I9: ='INVOICE 1'!I9 -> 2021-08-16 | N9: Invoicing Frequency | O9: ='INVOICE 1'!O9 -> Monthly
A11: Invoice #: | B11: 30 CALVIP 18 | E11: Reporting Period: | F11: 2020-10-01 | G11: TO | I11: 2020-10-31 | J11: Due: | K11: 2020-12-15 | N11: Final Invoice (Y/N): | O11: No
A13: Line Items | B13: Budget | F13: Prior Expenditures | J13: This Reporting Period | N13: Balance
B14: Grant Funds | C14: Cash Match | D14: In-kind Match | E14: TOTAL | F14: Grant Funds | G14: Cash Match | H14: In-kind Match | I14: TOTAL | J14: Grant Funds | K14: Cash Match | L14: In-kind Match | M14: TOTAL | N14: Grant Funds | O14: Cash Match | P14: In-kind Match | Q14: TOTAL
A15: ='INVOICE 1'!A15 -> Salaries & Benefits | B15: ='INVOICE 29'!B15 -> 327218 | C15: ='INVOICE 29'!C15 -> 253886 | D15: ='INVOICE 29'!D15 -> 77700 | E15: =SUM(B15:D15) -> 658804 | F15: =SUM('INVOICE 29'!F15,'INVOICE 29'!J15) -> 302983 | G15: =SUM('INVOICE 29'!G15,'INVOICE 29'!K15) -> 216561 | H15: =SUM('INVOICE 29'!H15,'INVOICE 29'!L15) -> 70336 | I15: =SUM(F15:H15) -> 589880 | J15: 0 | K15: 0 | L15: 0 | M15: =SUM(J15:L15) -> 0 | N15: =B15-F15-J15 -> 24235 | O15: 37325 | P15: 7364 | Q15: =SUM(N15:P15) -> 68924
A16: ='INVOICE 1'!A16 -> Services & Supplies | B16: ='INVOICE 29'!B16 -> 41282 | C16: ='INVOICE 29'!C16 -> 38160 | D16: ='INVOICE 29'!D16 -> 27532 | E16: =SUM(B16:D16) -> 106974 | F16: =SUM('INVOICE 29'!F16,'INVOICE 29'!J16) -> 24824 | G16: =SUM('INVOICE 29'!G16,'INVOICE 29'!K16) -> 32724 | H16: =SUM('INVOICE 29'!H16,'INVOICE 29'!L16) -> 0 | I16: =SUM(F16:H16) -> 57548 | J16: 0 | K16: 0 | L16: 0 | M16: =SUM(J16:L16) -> 0 | N16: 16458 | O16: 5436 | P16: 27532 | Q16: =SUM(N16:P16) -> 49426
A17: ='INVOICE 1'!A17 -> Prof Services / Public Agency Subcontracts | B17: ='INVOICE 29'!B17 -> 70000 | C17: ='INVOICE 29'!C17 -> 70000 | D17: ='INVOICE 29'!D17 -> 0 | E17: 140000 | F17: =SUM('INVOICE 29'!F17,'INVOICE 29'!J17) -> 41457 | G17: =SUM('INVOICE 29'!G17,'INVOICE 29'!K17) -> 47692 | H17: =SUM('INVOICE 29'!H17,'INVOICE 29'!L17) -> 0 | I17: 89149 | J17: 0 | K17: 0 | L17: 0 | M17: 0 | N17: 28543 | O17: 22308 | P17: 0 | Q17: 50851
A18: ='INVOICE 1'!A18 -> CBO Subcontracts | B18: ='INVOICE 29'!B18 -> 0 | C18: ='INVOICE 29'!C18 -> 0 | D18: ='INVOICE 29'!D18 -> 0 | E18: 0 | F18: =SUM('INVOICE 29'!F18,'INVOICE 29'!J18) -> 0 | G18: =SUM('INVOICE 29'!G18,'INVOICE 29'!K18) -> 0 | H18: =SUM('INVOICE 29'!H18,'INVOICE 29'!L18) -> 0 | I18: 0 | J18: 0 | K18: 0 | L18: 0 | M18: 0 | N18: 0 | O18: 0 | P18: 0 | Q18: 0
A19: ='INVOICE 1'!A19 -> Indirect Costs | B19: ='INVOICE 29'!B19 -> 0 | C19: ='INVOICE 29'!C19 -> 32722 | D19: ='INVOICE 29'!D19 -> 0 | E19: 32722 | F19: =SUM('INVOICE 29'!F19,'INVOICE 29'!J19) -> 0 | G19: =SUM('INVOICE 29'!G19,'INVOICE 29'!K19) -> 26879 | H19: =SUM('INVOICE 29'!H19,'INVOICE 29'!L19) -> 0 | I19: 26879 | J19: 0 | K19: 0 | L19: 0 | M19: 0 | N19: 0 | O19: 5843 | P19: 0 | Q19: 5843
A20: ='INVOICE 1'!A20 -> Equip/Fixed Assets | B20: ='INVOICE 29'!B20 -> 0 | C20: ='INVOICE 29'!C20 -> 0 | D20: ='INVOICE 29'!D20 -> 0 | E20: 0 | F20: =SUM('INVOICE 29'!F20,'INVOICE 29'!J20) -> 0 | G20: =SUM('INVOICE 29'!G20,'INVOICE 29'!K20) -> 0 | H20: =SUM('INVOICE 29'!H20,'INVOICE 29'!L20) -> 0 | I20: 0 | J20: 0 | K20: 0 | L20: 0 | M20: 0 | N20: 0 | O20: 0 | P20: 0 | Q20: 0
A21: ='INVOICE 1'!A21 -> Project Evaluation | B21: ='INVOICE 29'!B21 -> 57500 | C21: ='INVOICE 29'!C21 -> 0 | D21: ='INVOICE 29'!D21 -> 0 | E21: 57500 | F21: =SUM('INVOICE 29'!F21,'INVOICE 29'!J21) -> 49612 | G21: =SUM('INVOICE 29'!G21,'INVOICE 29'!K21) -> 0 | H21: =SUM('INVOICE 29'!H21,'INVOICE 29'!L21) -> 0 | I21: 49612 | J21: 0 | K21: 0 | L21: 0 | M21: 0 | N21: 7888 | O21: 0 | P21: 0 | Q21: 7888
A22: ='INVOICE 1'!A22 -> Other (Travel, Training, etc) | B22: ='INVOICE 29'!B22 -> 4000 | C22: ='INVOICE 29'!C22 -> 0 | D22: ='INVOICE 29'!D22 -> 0 | E22: 4000 | F22: =SUM('INVOICE 29'!F22,'INVOICE 29'!J22) -> 2602 | G22: =SUM('INVOICE 29'!G22,'INVOICE 29'!K22) -> 0 | H22: =SUM('INVOICE 29'!H22,'INVOICE 29'!L22) -> 0 | I22: 2602 | J22: 0 | K22: 0 | L22: 0 | M22: 0 | N22: 1398 | O22: 0 | P22: 0 | Q22: 1398
A23: TOTAL | B23: =SUM(B15:B22) -> 500000 | C23: =SUM(C15:C22) -> 394768 | D23: =SUM(D15:D22) -> 105232 | E23: =SUM(E15:E22) -> 1000000 | F23: =SUM(F15:F22) -> 421478 | G23: 323856 | H23: 70336 | I23: 815670 | J23: 0 | K23: =SUM(K15:K22) -> 0 | L23: =SUM(L15:L22) -> 0 | M23: =SUM(M15:M22) -> 0 | N23: 78522 | O23: 70912 | P23: 34896 | Q23: 184330
A25: Project Income | D25: Income reported to date | E25: ='INVOICE 1'!E25+'INVOICE 30'!L25 -> 0 | H25: Prior allocated income | I25: 0 | K25: This Period | L25: 0 | P25: Unallocated income balance | Q25: =E25-I25 -> 0
C27: Grant funds expended to date: | E27: =SUM(F23,J23) -> 421478 | I27: Grant funds claimed this period: | J27: =J23 -> 0 | O27: Percentage Grant $$ expended to date: | Q27: =E27/B23 -> 0.842956
C28: Cash match to date: | E28: =SUM(G23,K23) -> 323856 | O28: % of Total Obligated Cash Match to date: | Q28: =E28/C23 -> 0.8203704454
C29: In-kind match to date: | E29: =SUM(H23,L23) -> 70336 | O29: % of Total Obligated In-kind Match to date: | Q29: =E29/D23 -> 0.6683898434
E31: Expenditure Descriptions - Units / $ Amounts | O31: Comments
A32: Salaries & Benefits | B32: Grant Funds | D32: =J15 -> 0
B33: Cash Match | D33: =K15 -> 0
B34: In-kind Match | D34: =L15 -> 0
A35: Services & Supplies | B35: Grant Funds | D35: =J16 -> 0
B36: Cash Match | D36: =K16 -> 0
B37: In-kind Match | D37: =L16 -> 0
A38: Prof Services / Public Agency Subcontracts | B38: Grant Funds | D38: =-J17 -> 0
B39: Cash Match | D39: =K17 -> 0
B40: In-kind Match | D40: =L17 -> 0
A41: CBO Subcontracts | B41: Grant Funds | D41: =J18 -> 0
B42: Cash Match | D42: =K18 -> 0
B43: In-kind Match | D43: =L18 -> 0
A44: Indirect Cost | B44: Grant Funds | D44: =J19 -> 0
B45: Cash Match | D45: =K19 -> 0
B46: In-kind Match | D46: =L19 -> 0
A47: Equipment Fixed Assets | B47: Grant Funds | D47: =J20 -> 0
B48: Cash Match | D48: =K20 -> 0
B49: In-kind Match | D49: =-L20 -> 0
A50: Project Evaluation | B50: Grant Funds | D50: =J21 -> 0
B51: Cash Match | D51: =K21 -> 0
B52: In-kind Match | D52: =L21 -> 0
A53: Other | B53: Grant Funds | D53: =J22 -> 0
B54: Cash Match | D54: =K22 -> 0
B55: In-kind Match | D55: =L22 -> 0
A56: Project Income | D56: =M25 -> 0
A57: PERSON PREPARING REPORT | F57: AUTHORIZED FINANCIAL OFFICER | N57: BSCC Supplier Data - Internal Use Only
F58: By checking the box below, I hereby certify that I am the authorized financial officer of the herein named agency. I further certify that I have not violated any of the provisions of Section 1090 of the Government Code in incurring the expenditures reported in this invoice, nor in any other way; that Sections 1090 through 1096 of the Government Code will not be violated in any way in the expenditure of funds pursuant to this invoice; that statement of funds above is true, correct, and in accordance with program provisions in all respects; and that all expenditures submitted after the expiration date of this contract are for the purpose of substantiating obligations legally incurred during the contract period. Furthermore, by submitting this invoice, I acknowledge that it must adhere to all of the requirements in the BSCC Grant Administration Guide, including any updates to the Guide during the term of the grant agreement.
N59: 0000102062
A60: Name, Title | N60: Supplier ID
N61: YOUNG VISIONARIES YOUTH LEADERSHIP ACADEMY
A62: Phone | N62: Supplier Name
N63: 696 S TIPPECANOE AVE
A64: Email | N64: Address Line 1
N65: SAN BERNARDINO, CA 92408
A66: Date | N66: ='INVOICE 1'!N66:Q66 -> SAN BERNARDINO, CA 92408
F69: Name, Title
F71: Phone
F73: Date
A75: BSCC USE ONLY
A76: Date Received: | I76: Approved By: | O76: Date:
K77: BSCC Field Representative

Sheet INVOICE 31
A1: STATE OF CALIFORNIA | N1: Purchase Authority | O1: BSCC 5227
A2: BOARD OF STATE AND COMMUNITY CORRECTIONS | N2: Purchase Order: | O2: 5227-0000002094 | Q2: ='INVOICE 1'!Q2 -> 0
A3: Financial Invoice Form: BSCC 201 (Revised 04/2020)
A5: Program: | B5: ='INVOICE 1'!B5 -> CalVIP-17 | M5: Please Note: The California State Controller's Office will send all checks directly to the address listed in the "BSCC Vendor Data" section at the bottom of this invoice.
A7: Grantee: | B7: ='INVOICE 1'!B7 -> Young Visionaries Youth Leadership Academy | G7: Lead Public Agency: | I7: ='INVOICE 1'!I7 -> Young Visionaries Youth Leadership Academy
A9: Contract #: | B9: ='INVOICE 1'!B9 -> 864-17 | E9: Term: | F9: ='INVOICE 1'!F9 -> 2018-05-01 | G9: TO | I9: ='INVOICE 1'!I9 -> 2021-08-16 | N9: Invoicing Frequency | O9: ='INVOICE 1'!O9 -> Monthly
A11: Invoice #: | B11: 31 CALVIP 18 | E11: Reporting Period: | F11: 2020-11-01 | G11: TO | I11: 2020-11-30 | J11: Due: | K11: 2020-01-15 | N11: Final Invoice (Y/N): | O11: No
A13: Line Items | B13: Budget | F13: Prior Expenditures | J13: This Reporting Period | N13: Balance
B14: Grant Funds | C14: Cash Match | D14: In-kind Match | E14: TOTAL | F14: Grant Funds | G14: Cash Match | H14: In-kind Match | I14: TOTAL | J14: Grant Funds | K14: Cash Match | L14: In-kind Match | M14: TOTAL | N14: Grant Funds | O14: Cash Match | P14: In-kind Match | Q14: TOTAL
A15: ='INVOICE 1'!A15 -> Salaries & Benefits | B15: ='INVOICE 30'!B15 -> 327218 | C15: ='INVOICE 30'!C15 -> 253886 | D15: ='INVOICE 30'!D15 -> 77700 | E15: =SUM(B15:D15) -> 658804 | F15: =SUM('INVOICE 30'!F15,'INVOICE 30'!J15) -> 302983 | G15: =SUM('INVOICE 30'!G15,'INVOICE 30'!K15) -> 216561 | H15: =SUM('INVOICE 30'!H15,'INVOICE 30'!L15) -> 70336 | I15: =SUM(F15:H15) -> 589880 | J15: 0 | K15: 0 | L15: 0 | M15: =SUM(J15:L15) -> 0 | N15: =B15-F15-J15 -> 24235 | O15: 37325 | P15: 7364 | Q15: =SUM(N15:P15) -> 68924
A16: ='INVOICE 1'!A16 -> Services & Supplies | B16: ='INVOICE 30'!B16 -> 41282 | C16: ='INVOICE 30'!C16 -> 38160 | D16: ='INVOICE 30'!D16 -> 27532 | E16: =SUM(B16:D16) -> 106974 | F16: =SUM('INVOICE 30'!F16,'INVOICE 30'!J16) -> 24824 | G16: =SUM('INVOICE 30'!G16,'INVOICE 30'!K16) -> 32724 | H16: =SUM('INVOICE 30'!H16,'INVOICE 30'!L16) -> 0 | I16: =SUM(F16:H16) -> 57548 | J16: 0 | K16: 0 | L16: 0 | M16: =SUM(J16:L16) -> 0 | N16: 16458 | O16: 5436 | P16: 27532 | Q16: =SUM(N16:P16) -> 49426
A17: ='INVOICE 1'!A17 -> Prof Services / Public Agency Subcontracts | B17: ='INVOICE 30'!B17 -> 70000 | C17: ='INVOICE 30'!C17 -> 70000 | D17: ='INVOICE 30'!D17 -> 0 | E17: 140000 | F17: =SUM('INVOICE 30'!F17,'INVOICE 30'!J17) -> 41457 | G17: =SUM('INVOICE 30'!G17,'INVOICE 30'!K17) -> 47692 | H17: =SUM('INVOICE 30'!H17,'INVOICE 30'!L17) -> 0 | I17: 89149 | J17: 0 | K17: 0 | L17: 0 | M17: 0 | N17: 28543 | O17: 22308 | P17: 0 | Q17: 50851
A18: ='INVOICE 1'!A18 -> CBO Subcontracts | B18: ='INVOICE 30'!B18 -> 0 | C18: ='INVOICE 30'!C18 -> 0 | D18: ='INVOICE 30'!D18 -> 0 | E18: 0 | F18: =SUM('INVOICE 30'!F18,'INVOICE 30'!J18) -> 0 | G18: =SUM('INVOICE 30'!G18,'INVOICE 30'!K18) -> 0 | H18: =SUM('INVOICE 30'!H18,'INVOICE 30'!L18) -> 0 | I18: 0 | J18: 0 | K18: 0 | L18: 0 | M18: 0 | N18: 0 | O18: 0 | P18: 0 | Q18: 0
A19: ='INVOICE 1'!A19 -> Indirect Costs | B19: ='INVOICE 30'!B19 -> 0 | C19: ='INVOICE 30'!C19 -> 32722 | D19: ='INVOICE 30'!D19 -> 0 | E19: 32722 | F19: =SUM('INVOICE 30'!F19,'INVOICE 30'!J19) -> 0 | G19: =SUM('INVOICE 30'!G19,'INVOICE 30'!K19) -> 26879 | H19: =SUM('INVOICE 30'!H19,'INVOICE 30'!L19) -> 0 | I19: 26879 | J19: 0 | K19: 0 | L19: 0 | M19: 0 | N19: 0 | O19: 5843 | P19: 0 | Q19: 5843
A20: ='INVOICE 1'!A20 -> Equip/Fixed Assets | B20: ='INVOICE 30'!B20 -> 0 | C20: ='INVOICE 30'!C20 -> 0 | D20: ='INVOICE 30'!D20 -> 0 | E20: 0 | F20: =SUM('INVOICE 30'!F20,'INVOICE 30'!J20) -> 0 | G20: =SUM('INVOICE 30'!G20,'INVOICE 30'!K20) -> 0 | H20: =SUM('INVOICE 30'!H20,'INVOICE 30'!L20) -> 0 | I20: 0 | J20: 0 | K20: 0 | L20: 0 | M20: 0 | N20: 0 | O20: 0 | P20: 0 | Q20: 0
A21: ='INVOICE 1'!A21 -> Project Evaluation | B21: ='INVOICE 30'!B21 -> 57500 | C21: ='INVOICE 30'!C21 -> 0 | D21: ='INVOICE 30'!D21 -> 0 | E21: 57500 | F21: =SUM('INVOICE 30'!F21,'INVOICE 30'!J21) -> 49612 | G21: =SUM('INVOICE 30'!G21,'INVOICE 30'!K21) -> 0 | H21: =SUM('INVOICE 30'!H21,'INVOICE 30'!L21) -> 0 | I21: 49612 | J21: 0 | K21: 0 | L21: 0 | M21: 0 | N21: 7888 | O21: 0 | P21: 0 | Q21: 7888
A22: ='INVOICE 1'!A22 -> Other (Travel, Training, etc) | B22: ='INVOICE 30'!B22 -> 4000 | C22: ='INVOICE 30'!C22 -> 0 | D22: ='INVOICE 30'!D22 -> 0 | E22: 4000 | F22: =SUM('INVOICE 30'!F22,'INVOICE 30'!J22) -> 2602 | G22: =SUM('INVOICE 30'!G22,'INVOICE 30'!K22) -> 0 | H22: =SUM('INVOICE 30'!H22,'INVOICE 30'!L22) -> 0 | I22: 2602 | J22: 0 | K22: 0 | L22: 0 | M22: 0 | N22: 1398 | O22: 0 | P22: 0 | Q22: 1398
A23: TOTAL | B23: =SUM(B15:B22) -> 500000 | C23: =SUM(C15:C22) -> 394768 | D23: =SUM(D15:D22) -> 105232 | E23: =SUM(E15:E22) -> 1000000 | F23: =SUM(F15:F22) -> 421478 | G23: 323856 | H23: 70336 | I23: 815670 | J23: 0 | K23: =SUM(K15:K22) -> 0 | L23: =SUM(L15:L22) -> 0 | M23: =SUM(M15:M22) -> 0 | N23: 78522 | O23: 70912 | P23: 34896 | Q23: 184330
A25: Project Income | D25: Income reported to date | E25: ='INVOICE 1'!E25+'INVOICE 31'!L25 -> 0 | H25: Prior allocated income | I25: 0 | K25: This Period | L25: 0 | P25: Unallocated income balance | Q25: =E25-I25 -> 0
C27: Grant funds expended to date: | E27: =SUM(F23,J23) -> 421478 | I27: Grant funds claimed this period: | J27: =J23 -> 0 | O27: Percentage Grant $$ expended to date: | Q27: =E27/B23 -> 0.842956
C28: Cash match to date: | E28: =SUM(G23,K23) -> 323856 | O28: % of Total Obligated Cash Match to date: | Q28: =E28/C23 -> 0.8203704454
C29: In-kind match to date: | E29: =SUM(H23,L23) -> 70336 | O29: % of Total Obligated In-kind Match to date: | Q29: =E29/D23 -> 0.6683898434
E31: Expenditure Descriptions - Units / $ Amounts | O31: Comments
A32: Salaries & Benefits | B32: Grant Funds | D32: =J15 -> 0
B33: Cash Match | D33: =K15 -> 0
B34: In-kind Match | D34: =L15 -> 0
A35: Services & Supplies | B35: Grant Funds | D35: =J16 -> 0
B36: Cash Match | D36: =K16 -> 0
B37: In-kind Match | D37: =L16 -> 0
A38: Prof Services / Public Agency Subcontracts | B38: Grant Funds | D38: =-J17 -> 0
B39: Cash Match | D39: =K17 -> 0
B40: In-kind Match | D40: =L17 -> 0
A41: CBO Subcontracts | B41: Grant Funds | D41: =J18 -> 0
B42: Cash Match | D42: =K18 -> 0
B43: In-kind Match | D43: =L18 -> 0
A44: Indirect Cost | B44: Grant Funds | D44: =J19 -> 0
B45: Cash Match | D45: =K19 -> 0
B46: In-kind Match | D46: =L19 -> 0
A47: Equipment Fixed Assets | B47: Grant Funds | D47: =J20 -> 0
B48: Cash Match | D48: =K20 -> 0
B49: In-kind Match | D49: =-L20 -> 0
A50: Project Evaluation | B50: Grant Funds | D50: =J21 -> 0
B51: Cash Match | D51: =K21 -> 0
B52: In-kind Match | D52: =L21 -> 0
A53: Other | B53: Grant Funds | D53: =J22 -> 0
B54: Cash Match | D54: =K22 -> 0
B55: In-kind Match | D55: =L22 -> 0
A56: Project Income | D56: =M25 -> 0
A57: PERSON PREPARING REPORT | F57: AUTHORIZED FINANCIAL OFFICER | N57: BSCC Supplier Data - Internal Use Only
F58: By checking the box below, I hereby certify that I am the authorized financial officer of the herein named agency. I further certify that I have not violated any of the provisions of Section 1090 of the Government Code in incurring the expenditures reported in this invoice, nor in any other way; that Sections 1090 through 1096 of the Government Code will not be violated in any way in the expenditure of funds pursuant to this invoice; that statement of funds above is true, correct, and in accordance with program provisions in all respects; and that all expenditures submitted after the expiration date of this contract are for the purpose of substantiating obligations legally incurred during the contract period. Furthermore, by submitting this invoice, I acknowledge that it must adhere to all of the requirements in the BSCC Grant Administration Guide, including any updates to the Guide during the term of the grant agreement.
N59: 0000102062
A60: Name, Title | N60: Supplier ID
N61: YOUNG VISIONARIES YOUTH LEADERSHIP ACADEMY
A62: Phone | N62: Supplier Name
N63: 696 S TIPPECANOE AVE
A64: Email | N64: Address Line 1
N65: SAN BERNARDINO, CA 92408
A66: Date | N66: ='INVOICE 1'!N66:Q66 -> SAN BERNARDINO, CA 92408
F69: Name, Title
F71: Phone
F73: Date
A75: BSCC USE ONLY
A76: Date Received: | I76: Approved By: | O76: Date:
K77: BSCC Field Representative

